Workbook

Sheet Infos
B7: Présentation du générateur de codes d'éco-participation
B9: Créer les codes pour l'application de l'éco-participation sur les Jeux et jouets
B10: Version 1.7m - 18 Décembre 2024
B11: Intégration des codes écomodulés
B12: A qui s’adresse cet outil ?
B13: Cet outil s'adresse aux metteurs sur le marché de jeux et jouets de plein air.
B15: A quoi sert-il ?
B16: Ce fichier permet de générer les codes produits qui servent à déclarer les mises en marché. Ces codes produits permettent d'appliquer le tarif de l'éco-participation aux Jeux et jouets en fonction de leurs caractéristiques : type de jeux, matériaux, poids.
B17: Pour comprendre comment est constitué ce code produit à 11 chiffres, cliquez sur l’onglet « Comprendre la codification »
B19: Comment générer un code produit ?
B20: Pour générer un code produit cliquez sur l’onglet « Générateur code produit »
B21: Attention : Pour être certain de renseigner les bons codes lors de votre déclaration, utilisez l'onglet « Générateur code produit » et la fonction « copier-coller » en sélectionnant « collage spécial valeur absolue ».
B22: Quel est le code GTIN/EAN de la filière Jouets ?
B23: Un code GTIN / EAN a été attribué à la filière jouet. Ce code est le suivant : 3001000002831
B25: Déclarer l’éco-participation
B27: A quel moment faire votre déclaration ?
B28: La première déclaration à partir des codes produits sera à réaliser en avril 2023 pour les mises en marché du 1er trimestre 2023.
B29: Remarque importante : une déclaration simplifiée devra être réalisée en octobre 2022 sur la base du CA HT estimée pour décembre 2022. Toutes les informations sont à retrouver dans le guide adhérent.
B30: Pour les déclarations trimestrielles, celles-ci doivent être faites le mois suivant chaque trimestre calendaire (avril pour le T1, juillet pour le T2, octobre pour le T3 et janvier pour le T4).
B32: Comment faire votre déclaration (avec les codes produits) ?
B33: La déclaration des mises en marché avec les codes produits se fait par saisie ou chargement d'un fichier* format .csv sur l'Extranet d'Eco-mobilier : https://espace-services.eco-mobilier.fr/ *Vous pouvez télécharger le fichier type dans la rubrique Déclarations.
B35: Le fichier doit contenir les intitulés de colonnes suivants :
B42: > Pour savoir comment effectuer votre déclaration, consultez le mode opératoire complet : https://espace-services.eco-mobilier.fr/mode-operatoire-declarer

Sheet Comprendre la codification
A1: Nomenclature des codes produits à 11 chiffres
A2: =Infos!$B$10 -> Version 1.7m - 18 Décembre 2024
A3: Composition du code Eco-mobilier :
A11: Code catégorie | D11: Code type de produit | G11: Code matériau | J11: Code caractéristique | M11: 11ème chiffre
A13: 31 | B13: Jouets | D13: 201 | E13: Figurines d'action & accessoires | G13: 00 | H13: Non connu | J13: 083 | K13: inférieur strictement à 0,1 kg | M13: 0 | N13: Non spécifié
A14: 32 | B14: Jouets de plein air | D14: 202 | E14: Jeux de construction & accessoires | G14: 01 | H14: Bois, panneaux et dérivés de bois >50% | J14: 084 | K14: Compris entre 0,1 kg et 0,2 kg exclus
A15: 33 | B15: Jeux de société | D15: 203 | E15: Poupées, Poupons & accessoires | G15: 02 | H15: Métal >50% | J15: 085 | K15: Compris entre 0,2 kg et 0,3 kg exclus
A16: 34 | B16: Jouets cadeaux | D16: 204 | E16: Peluches & accessoires | G16: 03 | H16: Bambou/Rotin >50% | J16: 086 | K16: Compris entre 0,3 kg et 0,4 kg exclus
D17: 205 | E17: Jouets Premier âge et Pré-scolaires & accessoires (3 ans et moins) | G17: 04 | H17: Osier et autres tiges végétales >50% | J17: 087 | K17: Compris entre 0,4 kg et 0,5 kg exclus
D18: 206 | E18: Véhicules miniatures & accessoires | G18: 05 | H18: Plastiques >50% | J18: 021 | K18: Compris entre 0,5 kg et 1 kg exclus
D19: 207 | E19: Loisirs créatifs jouets & accessoires | G19: 06 | H19: Textiles, cuirs, fourrures… >50% | J19: 022 | K19: Compris entre 1 kg et 2 kg exclus
D20: 208 | E20: Jouets d'exploration et autres jouets & accessoires | G20: 07 | H20: Verre et miroir >50% | J20: 052 | K20: Compris entre 2 kg et 3 kg exclus
D21: 209 | E21: Jouets porteurs à pédales & accessoires | G21: 08 | H21: Inerte, minéraux >50% | J21: 053 | K21: Compris entre 3 kg et 5 kg exclus
D22: 210 | E22: Jouets porteurs sans pédales & accessoires | G22: 12 | H22: Autres | J22: 054 | K22: Compris entre 5 kg et 7 kg exclus
D23: 211 | E23: Jouets sportifs & accessoires | G23: 13 | H23: Rembourrage naturel (plume, laine…) | J23: 055 | K23: Compris entre 7 kg et 10 kg exclus
D24: 212 | E24: Jouets d'été & accessoires | G24: 14 | H24: Rembourrage Synthétique (mousse, polyester…) | J24: 056 | K24: Compris entre 10 kg et 15 kg exclus
D25: 213 | E25: Jouets d’activités à usage familial | G25: 15 | H25: Composites et compact >50% | J25: 057 | K25: Compris entre 15 kg et 20 kg exclus
D26: 214 | E26: Jeux de Société & accessoires (directive jouet) | G26: 16 | H26: Pierre artificielle >50% | J26: 058 | K26: Compris entre 20 kg et 25 kg exclus
D27: 215 | E27: Jeux de Société & accessoires (hors directive jouet) | G27: 17 | H27: Ciment, béton >50% | J27: 059 | K27: Compris entre 25 kg et 30 kg exclus
D28: 216 | E28: Puzzles & accessoires (directive jouet) | G28: 18 | H28: Céramique >50% | J28: 027 | K28: Compris entre 30 kg et 40 kg exclus
D29: 217 | E29: Puzzles & accessoires (hors directive jouet) | G29: 19 | H29: Papier, carton >50% | J29: 060 | K29: Compris entre 40 kg et 50 kg exclus
D30: 218 | E30: Maquettes & accessoires (directive jouet) | G30: 20 | H30: Bois massif certifié à plus de 75% | J30: 088 | K30: Compris entre 50 kg et 100 kg exclus
D31: 219 | E31: Maquettes & accessoires (hors directive jouet) | G31: 21 | H31: Bois massif non certifié à plus de 75% | J31: 030 | K31: Compris entre 100 kg et 150 kg exclus
D32: 220 | E32: Jouets cadeaux & accessoires | G32: 22 | H32: Métal à plus de 75% | J32: 031 | K32: Compris entre 150 kg et 200 kg exclus
G33: 23 | H33: Mélange bois massif certifié et métal à plus de 75% | J33: 032 | K33: Compris entre 200 kg et 250 kg exclus
G34: 24 | H34: Panneaux de particules et/ou bois et/ou métal à plus de 75% | J34: 082 | K34: supérieur à 250 kg
G35: 25 | H35: Panneaux de particules à plus de 75% | J35: 089 | K35: Lot de 1000
G36: 26 | H36: Contreplaqué à plus de 75%
G37: 27 | H37: OSB à plus de 75%
G38: 28 | H38: Métal à plus de 95%
G39: 29 | H39: Métal ferreux >50%
G40: 30 | H40: Métal ferreux à plus de 95%
G41: 31 | H41: Métal non ferreux >50%
G42: 32 | H42: Métal non ferreux à plus de 95%
G43: 33 | H43: Polyterephtalate d'Ethylène (PET) >50%
G44: 34 | H44: Polyéthylène (PE) >50%
G45: 35 | H45: Polypropylène (PP) >50%
G46: 36 | H46: Mélange PE et PP >50%
G47: 37 | H47: ABS >50%
G48: 38 | H48: Polystyrène >50%
G49: 39 | H49: PVC >50%
G50: 40 | H50: Caoutchouc >50%
G51: 41 | H51: Plastiques​ (sans spécificité) >95%
G52: 42 | H52: Polyterephtalate d'Ethylène (PET) >95%
G53: 43 | H53: Polyéthylène (PE) >95%
G54: 44 | H54: Polypropylène (PP) >95%
G55: 45 | H55: Mélange PE et PP >95%
G56: 46 | H56: ABS >95%
G57: 47 | H57: Polystyrène >95%
G58: 48 | H58: PVC >95%
G59: 49 | H59: Caoutchouc >95%
G60: 50 | H60: Papier >95%
G61: 51 | H61: Papier, carton >95% en gestion durable certifiée
G62: 52 | H62: Bois massif certifié à plus de 95%
G63: 53 | H63: Bois massif non certifié à plus de 95%
G64: 54 | H64: Bambou/Rotin >95%
G65: 55 | H65: Osier et autres tiges végétales >95%
G66: 56 | H66: Textiles, cuirs, fourrures… >95%
G67: 57 | H67: Verre et miroir >95%
G68: 58 | H68: Inerte, minéraux >95%
G69: 99 | H69: Assemblage de 3 matériaux maximum

Sheet Generateur code produit
A1: Générateur de code produit - Jeux et jouets | J1: MASQUER | K1: MASQUER | L1: MASQUER | M1: MASQUER | N1: MASQUER | P1: =Infos!$B$10 -> Version 1.7m - 18 Décembre 2024
A2: Sélectionner les éléments dans les cases vertes
B5: Votre référence | C5: Libellé | D5: Choisissez une catégorie : | E5: Choisissez un type de produit : | F5: Choisissez un type de matériau puis le matériau majoritaire en poids : | H5: Choisissez la caractéristique (poids net du produit) en fonction du type de produit : | I5: Le produit bénéficie-t-il d'une éco-modulation ? | P5: D'où le code produit: | Q5: Libellé du code produit | R5: Tarif HT | S5: Alerte:
D6: Jouets cadeaux | E6: Jouets cadeaux & accessoires | F6: Bois et dérivés | G6: Bois massif non certifié à plus de 75% | H6: Lot de 1000 | I6: non | J6: =IF(D6="","",VLOOKUP(D6,Listes_masqué!$H$3:$K$14,2,FALSE)) -> 34 | K6: =IF(E6="","",VLOOKUP(E6,Listes_masqué!$N$3:$O$22,2,FALSE)) -> 220 | L6: =IF(G6="","",VLOOKUP(G6,Listes_masqué!$F$3:$G$62,2,FALSE)) -> 21 | M6: =IF(H6="","",VLOOKUP(H6,Listes_masqué!$B$3:$C$25,2,FALSE)) -> 089 | N6: =IF(I6="","",IF(I6="oui",1,0)) -> 0 | P6: =IF(OR(H6="",G6="",E6="",D6=""),"",CONCATENATE(J6,K6,L6,M6,N6)) -> 34220210890 | Q6: =IFERROR(_xlfn.XLOOKUP(P6,Tableau13[Code produit],Tableau13[Libellé]),"") -> Jouets cadeaux - en Bois massif non certifié à plus de 75% Lot de 1000 | R6: =IFERROR(VLOOKUP('Generateur code produit'!$P6,Tableau13[[#All],[Code produit]:[Tarif HT]],3,FALSE),"") -> 7 | S6: =IF(M6="089","Attention! Il faut déclarer un nombre de lot de 1000 et non des unités.",IF(I6="oui","Attention, pensez à bien verifier l'éligibilité de ce produit aux éco-modulations.","")) -> Attention! Il faut déclarer un nombre de lot de 1000 et non des unités. | T6: =VLOOKUP(D6,Listes_masqué!$H$3:$J$6,3,FALSE) -> Jeux_cadeau | U6: =IF(K6="213",VLOOKUP(F6,Listes_masqué!$Q$9:$R$13,2,FALSE),VLOOKUP(F6,Listes_masqué!$Q$3:$R$7,2,FALSE)) -> Bois_et_dérivés
D7: Jouets de plein air | E7: Jouets sportifs & accessoires | F7: Autres | G7: Rembourrage naturel (plume, laine…) | H7: Compris entre 0,2 kg et 0,3 kg exclus | I7: oui | J7: =IF(D7="","",VLOOKUP(D7,Listes_masqué!$H$3:$K$14,2,FALSE)) -> 32 | K7: =IF(E7="","",VLOOKUP(E7,Listes_masqué!$N$3:$O$22,2,FALSE)) -> 211 | L7: =IF(G7="","",VLOOKUP(G7,Listes_masqué!$F$3:$G$62,2,FALSE)) -> 13 | M7: =IF(H7="","",VLOOKUP(H7,Listes_masqué!$B$3:$C$25,2,FALSE)) -> 085 | N7: =IF(I7="","",IF(I7="oui",1,0)) -> 1 | P7: 32211130851 | Q7: =IFERROR(_xlfn.XLOOKUP(P7,Tableau13[Code produit],Tableau13[Libellé]),"") -> Jouets de plein air - en Rembourrage naturel (plume, laine…) Compris entre 0,2 kg et 0,3 kg exclus éco-modulés | R7: =IFERROR(VLOOKUP('Generateur code produit'!$P7,Tableau13[[#All],[Code produit]:[Tarif HT]],3,FALSE),"") -> 0.07 | S7: Attention, pensez à bien verifier l'éligibilité de ce produit aux éco-modulations. | T7: =VLOOKUP(D7,Listes_masqué!$H$3:$J$6,3,FALSE) -> Jouets_de_plein_air | U7: =IF(K7="213",VLOOKUP(F7,Listes_masqué!$Q$9:$R$13,2,FALSE),VLOOKUP(F7,Listes_masqué!$Q$3:$R$7,2,FALSE)) -> Autres
D8: Jouets cadeaux | E8: Jouets cadeaux & accessoires | F8: Plastiques | G8: Polyterephtalate d'Ethylène (PET) >95% | H8: Lot de 1000 | I8: non | J8: =IF(D8="","",VLOOKUP(D8,Listes_masqué!$H$3:$K$14,2,FALSE)) -> 34 | K8: =IF(E8="","",VLOOKUP(E8,Listes_masqué!$N$3:$O$22,2,FALSE)) -> 220 | L8: =IF(G8="","",VLOOKUP(G8,Listes_masqué!$F$3:$G$62,2,FALSE)) -> 42 | M8: =IF(H8="","",VLOOKUP(H8,Listes_masqué!$B$3:$C$25,2,FALSE)) -> 089 | N8: 0 | P8: 34220420890 | Q8: =IFERROR(_xlfn.XLOOKUP(P8,Tableau13[Code produit],Tableau13[Libellé]),"") -> Jouets cadeaux - en Polyterephtalate d'Ethylène (PET) >95% Lot de 1000 | R8: =IFERROR(VLOOKUP('Generateur code produit'!$P8,Tableau13[[#All],[Code produit]:[Tarif HT]],3,FALSE),"") -> 7 | S8: =IF(M8="089","Attention! Il faut déclarer un nombre de lot de 1000 et non des unités.",IF(I8="oui","Attention, pensez à bien verifier l'éligibilité de ce produit aux éco-modulations.","")) -> Attention! Il faut déclarer un nombre de lot de 1000 et non des unités. | T8: =VLOOKUP(D8,Listes_masqué!$H$3:$J$6,3,FALSE) -> Jeux_cadeau | U8: =IF(K8="213",VLOOKUP(F8,Listes_masqué!$Q$9:$R$13,2,FALSE),VLOOKUP(F8,Listes_masqué!$Q$3:$R$7,2,FALSE)) -> Plastiques
D9: Jouets | E9: Figurines d'action & accessoires | F9: Autres | G9: Papier, carton >95% en gestion durable certifiée | H9: Compris entre 0,1 kg et 0,2 kg exclus | I9: oui | J9: =IF(D9="","",VLOOKUP(D9,Listes_masqué!$H$3:$K$14,2,FALSE)) -> 31 | K9: =IF(E9="","",VLOOKUP(E9,Listes_masqué!$N$3:$O$22,2,FALSE)) -> 201 | L9: =IF(G9="","",VLOOKUP(G9,Listes_masqué!$F$3:$G$62,2,FALSE)) -> 51 | M9: =IF(H9="","",VLOOKUP(H9,Listes_masqué!$B$3:$C$25,2,FALSE)) -> 084 | N9: 1 | P9: =IF(OR(H9="",G9="",E9="",D9=""),"",CONCATENATE(J9,K9,L9,M9,N9)) -> 31201510841 | Q9: =IFERROR(_xlfn.XLOOKUP(P9,Tableau13[Code produit],Tableau13[Libellé]),"") -> Jouets - en Papier, carton >95% en gestion durable certifiée Compris entre 0,1 kg et 0,2 kg exclus éco-modulés | R9: =IFERROR(VLOOKUP('Generateur code produit'!$P9,Tableau13[[#All],[Code produit]:[Tarif HT]],3,FALSE),"") -> 0.03 | S9: =IF(M9="089","Attention! Il faut déclarer un nombre de lot de 1000 et non des unités.",IF(I9="oui","Attention, pensez à bien verifier l'éligibilité de ce produit aux éco-modulations.","")) -> Attention, pensez à bien verifier l'éligibilité de ce produit aux éco-modulations. | T9: =VLOOKUP(D9,Listes_masqué!$H$3:$J$6,3,FALSE) -> Jouets | U9: =IF(K9="213",VLOOKUP(F9,Listes_masqué!$Q$9:$R$13,2,FALSE),VLOOKUP(F9,Listes_masqué!$Q$3:$R$7,2,FALSE)) -> Autres
D10: Jouets | E10: Poupées, Poupons & accessoires | F10: Autres | J10: =IF(D10="","",VLOOKUP(D10,Listes_masqué!$H$3:$K$14,2,FALSE)) -> 31 | K10: =IF(E10="","",VLOOKUP(E10,Listes_masqué!$N$3:$O$22,2,FALSE)) -> 203 | L10: =IF(G10="","",VLOOKUP(G10,Listes_masqué!$F$3:$G$62,2,FALSE)) ->  | M10: =IF(H10="","",VLOOKUP(H10,Listes_masqué!$B$3:$C$25,2,FALSE)) ->  | P10: =IF(OR(H10="",G10="",E10="",D10=""),"",CONCATENATE(J10,K10,L10,M10,N10)) ->  | Q10: =IFERROR(_xlfn.XLOOKUP(P10,Tableau13[Code produit],Tableau13[Libellé]),"") ->  | R10: =IFERROR(VLOOKUP('Generateur code produit'!$P10,Tableau13[[#All],[Code produit]:[Tarif HT]],3,FALSE),"") ->  | T10: =VLOOKUP(D10,Listes_masqué!$H$3:$J$6,3,FALSE) -> Jouets | U10: =IF(K10="213",VLOOKUP(F10,Listes_masqué!$Q$9:$R$13,2,FALSE),VLOOKUP(F10,Listes_masqué!$Q$3:$R$7,2,FALSE)) -> Autres
J11: =IF(D11="","",VLOOKUP(D11,Listes_masqué!$H$3:$K$14,2,FALSE)) ->  | K11: =IF(E11="","",VLOOKUP(E11,Listes_masqué!$N$3:$O$22,2,FALSE)) ->  | L11: =IF(G11="","",VLOOKUP(G11,Listes_masqué!$F$3:$G$62,2,FALSE)) ->  | M11: =IF(H11="","",VLOOKUP(H11,Listes_masqué!$B$3:$C$25,2,FALSE)) ->  | Q11: =IFERROR(_xlfn.XLOOKUP(P11,Tableau13[Code produit],Tableau13[Libellé]),"") ->  | R11: =IFERROR(VLOOKUP('Generateur code produit'!$P11,Tableau13[[#All],[Code produit]:[Tarif HT]],3,FALSE),"") ->  | T11: =VLOOKUP(D11,Listes_masqué!$H$3:$J$6,3,FALSE) ->  | U11: =IF(K11="213",VLOOKUP(F11,Listes_masqué!$Q$9:$R$13,2,FALSE),VLOOKUP(F11,Listes_masqué!$Q$3:$R$7,2,FALSE)) -> 
J12: =IF(D12="","",VLOOKUP(D12,Listes_masqué!$H$3:$K$14,2,FALSE)) ->  | K12: =IF(E12="","",VLOOKUP(E12,Listes_masqué!$N$3:$O$22,2,FALSE)) ->  | L12: =IF(G12="","",VLOOKUP(G12,Listes_masqué!$F$3:$G$62,2,FALSE)) ->  | M12: =IF(H12="","",VLOOKUP(H12,Listes_masqué!$B$3:$C$25,2,FALSE)) ->  | Q12: =IFERROR(_xlfn.XLOOKUP(P12,Tableau13[Code produit],Tableau13[Libellé]),"") ->  | R12: =IFERROR(VLOOKUP('Generateur code produit'!$P12,Tableau13[[#All],[Code produit]:[Tarif HT]],3,FALSE),"") ->  | T12: =VLOOKUP(D12,Listes_masqué!$H$3:$J$6,3,FALSE) ->  | U12: =IF(K12="213",VLOOKUP(F12,Listes_masqué!$Q$9:$R$13,2,FALSE),VLOOKUP(F12,Listes_masqué!$Q$3:$R$7,2,FALSE)) -> 
J13: =IF(D13="","",VLOOKUP(D13,Listes_masqué!$H$3:$K$14,2,FALSE)) ->  | K13: =IF(E13="","",VLOOKUP(E13,Listes_masqué!$N$3:$O$22,2,FALSE)) ->  | L13: =IF(G13="","",VLOOKUP(G13,Listes_masqué!$F$3:$G$62,2,FALSE)) ->  | M13: =IF(H13="","",VLOOKUP(H13,Listes_masqué!$B$3:$C$25,2,FALSE)) ->  | Q13: =IFERROR(_xlfn.XLOOKUP(P13,Tableau13[Code produit],Tableau13[Libellé]),"") ->  | R13: =IFERROR(VLOOKUP('Generateur code produit'!$P13,Tableau13[[#All],[Code produit]:[Tarif HT]],3,FALSE),"") ->  | T13: =VLOOKUP(D13,Listes_masqué!$H$3:$J$6,3,FALSE) ->  | U13: =IF(K13="213",VLOOKUP(F13,Listes_masqué!$Q$9:$R$13,2,FALSE),VLOOKUP(F13,Listes_masqué!$Q$3:$R$7,2,FALSE)) -> 
J14: =IF(D14="","",VLOOKUP(D14,Listes_masqué!$H$3:$K$14,2,FALSE)) ->  | K14: =IF(E14="","",VLOOKUP(E14,Listes_masqué!$N$3:$O$22,2,FALSE)) ->  | L14: =IF(G14="","",VLOOKUP(G14,Listes_masqué!$F$3:$G$62,2,FALSE)) ->  | M14: =IF(H14="","",VLOOKUP(H14,Listes_masqué!$B$3:$C$25,2,FALSE)) ->  | Q14: =IFERROR(_xlfn.XLOOKUP(P14,Tableau13[Code produit],Tableau13[Libellé]),"") ->  | R14: =IFERROR(VLOOKUP('Generateur code produit'!$P14,Tableau13[[#All],[Code produit]:[Tarif HT]],3,FALSE),"") ->  | T14: =VLOOKUP(D14,Listes_masqué!$H$3:$J$6,3,FALSE) ->  | U14: =IF(K14="213",VLOOKUP(F14,Listes_masqué!$Q$9:$R$13,2,FALSE),VLOOKUP(F14,Listes_masqué!$Q$3:$R$7,2,FALSE)) -> 
J15: =IF(D15="","",VLOOKUP(D15,Listes_masqué!$H$3:$K$14,2,FALSE)) ->  | K15: =IF(E15="","",VLOOKUP(E15,Listes_masqué!$N$3:$O$22,2,FALSE)) ->  | L15: =IF(G15="","",VLOOKUP(G15,Listes_masqué!$F$3:$G$62,2,FALSE)) ->  | M15: =IF(H15="","",VLOOKUP(H15,Listes_masqué!$B$3:$C$25,2,FALSE)) ->  | Q15: =IFERROR(_xlfn.XLOOKUP(P15,Tableau13[Code produit],Tableau13[Libellé]),"") ->  | R15: =IFERROR(VLOOKUP('Generateur code produit'!$P15,Tableau13[[#All],[Code produit]:[Tarif HT]],3,FALSE),"") ->  | T15: =VLOOKUP(D15,Listes_masqué!$H$3:$J$6,3,FALSE) ->  | U15: =IF(K15="213",VLOOKUP(F15,Listes_masqué!$Q$9:$R$13,2,FALSE),VLOOKUP(F15,Listes_masqué!$Q$3:$R$7,2,FALSE)) -> 
J16: =IF(D16="","",VLOOKUP(D16,Listes_masqué!$H$3:$K$14,2,FALSE)) ->  | K16: =IF(E16="","",VLOOKUP(E16,Listes_masqué!$N$3:$O$22,2,FALSE)) ->  | L16: =IF(G16="","",VLOOKUP(G16,Listes_masqué!$F$3:$G$62,2,FALSE)) ->  | M16: =IF(H16="","",VLOOKUP(H16,Listes_masqué!$B$3:$C$25,2,FALSE)) ->  | Q16: =IFERROR(_xlfn.XLOOKUP(P16,Tableau13[Code produit],Tableau13[Libellé]),"") ->  | R16: =IFERROR(VLOOKUP('Generateur code produit'!$P16,Tableau13[[#All],[Code produit]:[Tarif HT]],3,FALSE),"") ->  | T16: =VLOOKUP(D16,Listes_masqué!$H$3:$J$6,3,FALSE) ->  | U16: =IF(K16="213",VLOOKUP(F16,Listes_masqué!$Q$9:$R$13,2,FALSE),VLOOKUP(F16,Listes_masqué!$Q$3:$R$7,2,FALSE)) -> 
J17: =IF(D17="","",VLOOKUP(D17,Listes_masqué!$H$3:$K$14,2,FALSE)) ->  | K17: =IF(E17="","",VLOOKUP(E17,Listes_masqué!$N$3:$O$22,2,FALSE)) ->  | L17: =IF(G17="","",VLOOKUP(G17,Listes_masqué!$F$3:$G$62,2,FALSE)) ->  | M17: =IF(H17="","",VLOOKUP(H17,Listes_masqué!$B$3:$C$25,2,FALSE)) ->  | Q17: =IFERROR(_xlfn.XLOOKUP(P17,Tableau13[Code produit],Tableau13[Libellé]),"") ->  | R17: =IFERROR(VLOOKUP('Generateur code produit'!$P17,Tableau13[[#All],[Code produit]:[Tarif HT]],3,FALSE),"") ->  | T17: =VLOOKUP(D17,Listes_masqué!$H$3:$J$6,3,FALSE) ->  | U17: =IF(K17="213",VLOOKUP(F17,Listes_masqué!$Q$9:$R$13,2,FALSE),VLOOKUP(F17,Listes_masqué!$Q$3:$R$7,2,FALSE)) -> 
J18: =IF(D18="","",VLOOKUP(D18,Listes_masqué!$H$3:$K$14,2,FALSE)) ->  | K18: =IF(E18="","",VLOOKUP(E18,Listes_masqué!$N$3:$O$22,2,FALSE)) ->  | L18: =IF(G18="","",VLOOKUP(G18,Listes_masqué!$F$3:$G$62,2,FALSE)) ->  | M18: =IF(H18="","",VLOOKUP(H18,Listes_masqué!$B$3:$C$25,2,FALSE)) ->  | Q18: =IFERROR(_xlfn.XLOOKUP(P18,Tableau13[Code produit],Tableau13[Libellé]),"") ->  | R18: =IFERROR(VLOOKUP('Generateur code produit'!$P18,Tableau13[[#All],[Code produit]:[Tarif HT]],3,FALSE),"") ->  | T18: =VLOOKUP(D18,Listes_masqué!$H$3:$J$6,3,FALSE) ->  | U18: =IF(K18="213",VLOOKUP(F18,Listes_masqué!$Q$9:$R$13,2,FALSE),VLOOKUP(F18,Listes_masqué!$Q$3:$R$7,2,FALSE)) -> 
J19: =IF(D19="","",VLOOKUP(D19,Listes_masqué!$H$3:$K$14,2,FALSE)) ->  | K19: =IF(E19="","",VLOOKUP(E19,Listes_masqué!$N$3:$O$22,2,FALSE)) ->  | L19: =IF(G19="","",VLOOKUP(G19,Listes_masqué!$F$3:$G$62,2,FALSE)) ->  | M19: =IF(H19="","",VLOOKUP(H19,Listes_masqué!$B$3:$C$25,2,FALSE)) ->  | Q19: =IFERROR(_xlfn.XLOOKUP(P19,Tableau13[Code produit],Tableau13[Libellé]),"") ->  | R19: =IFERROR(VLOOKUP('Generateur code produit'!$P19,Tableau13[[#All],[Code produit]:[Tarif HT]],3,FALSE),"") ->  | T19: =VLOOKUP(D19,Listes_masqué!$H$3:$J$6,3,FALSE) ->  | U19: =IF(K19="213",VLOOKUP(F19,Listes_masqué!$Q$9:$R$13,2,FALSE),VLOOKUP(F19,Listes_masqué!$Q$3:$R$7,2,FALSE)) -> 
J20: =IF(D20="","",VLOOKUP(D20,Listes_masqué!$H$3:$K$14,2,FALSE)) ->  | K20: =IF(E20="","",VLOOKUP(E20,Listes_masqué!$N$3:$O$22,2,FALSE)) ->  | L20: =IF(G20="","",VLOOKUP(G20,Listes_masqué!$F$3:$G$62,2,FALSE)) ->  | M20: =IF(H20="","",VLOOKUP(H20,Listes_masqué!$B$3:$C$25,2,FALSE)) ->  | Q20: =IFERROR(_xlfn.XLOOKUP(P20,Tableau13[Code produit],Tableau13[Libellé]),"") ->  | R20: =IFERROR(VLOOKUP('Generateur code produit'!$P20,Tableau13[[#All],[Code produit]:[Tarif HT]],3,FALSE),"") ->  | T20: =VLOOKUP(D20,Listes_masqué!$H$3:$J$6,3,FALSE) ->  | U20: =IF(K20="213",VLOOKUP(F20,Listes_masqué!$Q$9:$R$13,2,FALSE),VLOOKUP(F20,Listes_masqué!$Q$3:$R$7,2,FALSE)) -> 
J21: =IF(D21="","",VLOOKUP(D21,Listes_masqué!$H$3:$K$14,2,FALSE)) ->  | K21: =IF(E21="","",VLOOKUP(E21,Listes_masqué!$N$3:$O$22,2,FALSE)) ->  | L21: =IF(G21="","",VLOOKUP(G21,Listes_masqué!$F$3:$G$62,2,FALSE)) ->  | M21: =IF(H21="","",VLOOKUP(H21,Listes_masqué!$B$3:$C$25,2,FALSE)) ->  | Q21: =IFERROR(_xlfn.XLOOKUP(P21,Tableau13[Code produit],Tableau13[Libellé]),"") ->  | R21: =IFERROR(VLOOKUP('Generateur code produit'!$P21,Tableau13[[#All],[Code produit]:[Tarif HT]],3,FALSE),"") ->  | T21: =VLOOKUP(D21,Listes_masqué!$H$3:$J$6,3,FALSE) ->  | U21: =IF(K21="213",VLOOKUP(F21,Listes_masqué!$Q$9:$R$13,2,FALSE),VLOOKUP(F21,Listes_masqué!$Q$3:$R$7,2,FALSE)) -> 
J22: =IF(D22="","",VLOOKUP(D22,Listes_masqué!$H$3:$K$14,2,FALSE)) ->  | K22: =IF(E22="","",VLOOKUP(E22,Listes_masqué!$N$3:$O$22,2,FALSE)) ->  | L22: =IF(G22="","",VLOOKUP(G22,Listes_masqué!$F$3:$G$62,2,FALSE)) ->  | M22: =IF(H22="","",VLOOKUP(H22,Listes_masqué!$B$3:$C$25,2,FALSE)) ->  | Q22: =IFERROR(_xlfn.XLOOKUP(P22,Tableau13[Code produit],Tableau13[Libellé]),"") ->  | R22: =IFERROR(VLOOKUP('Generateur code produit'!$P22,Tableau13[[#All],[Code produit]:[Tarif HT]],3,FALSE),"") ->  | T22: =VLOOKUP(D22,Listes_masqué!$H$3:$J$6,3,FALSE) ->  | U22: =IF(K22="213",VLOOKUP(F22,Listes_masqué!$Q$9:$R$13,2,FALSE),VLOOKUP(F22,Listes_masqué!$Q$3:$R$7,2,FALSE)) -> 
J23: =IF(D23="","",VLOOKUP(D23,Listes_masqué!$H$3:$K$14,2,FALSE)) ->  | K23: =IF(E23="","",VLOOKUP(E23,Listes_masqué!$N$3:$O$22,2,FALSE)) ->  | L23: =IF(G23="","",VLOOKUP(G23,Listes_masqué!$F$3:$G$62,2,FALSE)) ->  | M23: =IF(H23="","",VLOOKUP(H23,Listes_masqué!$B$3:$C$25,2,FALSE)) ->  | Q23: =IFERROR(_xlfn.XLOOKUP(P23,Tableau13[Code produit],Tableau13[Libellé]),"") ->  | R23: =IFERROR(VLOOKUP('Generateur code produit'!$P23,Tableau13[[#All],[Code produit]:[Tarif HT]],3,FALSE),"") ->  | T23: =VLOOKUP(D23,Listes_masqué!$H$3:$J$6,3,FALSE) ->  | U23: =IF(K23="213",VLOOKUP(F23,Listes_masqué!$Q$9:$R$13,2,FALSE),VLOOKUP(F23,Listes_masqué!$Q$3:$R$7,2,FALSE)) -> 
J24: =IF(D24="","",VLOOKUP(D24,Listes_masqué!$H$3:$K$14,2,FALSE)) ->  | K24: =IF(E24="","",VLOOKUP(E24,Listes_masqué!$N$3:$O$22,2,FALSE)) ->  | L24: =IF(G24="","",VLOOKUP(G24,Listes_masqué!$F$3:$G$62,2,FALSE)) ->  | M24: =IF(H24="","",VLOOKUP(H24,Listes_masqué!$B$3:$C$25,2,FALSE)) ->  | Q24: =IFERROR(_xlfn.XLOOKUP(P24,Tableau13[Code produit],Tableau13[Libellé]),"") ->  | R24: =IFERROR(VLOOKUP('Generateur code produit'!$P24,Tableau13[[#All],[Code produit]:[Tarif HT]],3,FALSE),"") ->  | T24: =VLOOKUP(D24,Listes_masqué!$H$3:$J$6,3,FALSE) ->  | U24: =IF(K24="213",VLOOKUP(F24,Listes_masqué!$Q$9:$R$13,2,FALSE),VLOOKUP(F24,Listes_masqué!$Q$3:$R$7,2,FALSE)) -> 
J25: =IF(D25="","",VLOOKUP(D25,Listes_masqué!$H$3:$K$14,2,FALSE)) ->  | K25: =IF(E25="","",VLOOKUP(E25,Listes_masqué!$N$3:$O$22,2,FALSE)) ->  | L25: =IF(G25="","",VLOOKUP(G25,Listes_masqué!$F$3:$G$62,2,FALSE)) ->  | M25: =IF(H25="","",VLOOKUP(H25,Listes_masqué!$B$3:$C$25,2,FALSE)) ->  | Q25: =IFERROR(_xlfn.XLOOKUP(P25,Tableau13[Code produit],Tableau13[Libellé]),"") ->  | R25: =IFERROR(VLOOKUP('Generateur code produit'!$P25,Tableau13[[#All],[Code produit]:[Tarif HT]],3,FALSE),"") ->  | T25: =VLOOKUP(D25,Listes_masqué!$H$3:$J$6,3,FALSE) ->  | U25: =IF(K25="213",VLOOKUP(F25,Listes_masqué!$Q$9:$R$13,2,FALSE),VLOOKUP(F25,Listes_masqué!$Q$3:$R$7,2,FALSE)) -> 
J26: =IF(D26="","",VLOOKUP(D26,Listes_masqué!$H$3:$K$14,2,FALSE)) ->  | K26: =IF(E26="","",VLOOKUP(E26,Listes_masqué!$N$3:$O$22,2,FALSE)) ->  | L26: =IF(G26="","",VLOOKUP(G26,Listes_masqué!$F$3:$G$62,2,FALSE)) ->  | M26: =IF(H26="","",VLOOKUP(H26,Listes_masqué!$B$3:$C$25,2,FALSE)) ->  | Q26: =IFERROR(_xlfn.XLOOKUP(P26,Tableau13[Code produit],Tableau13[Libellé]),"") ->  | R26: =IFERROR(VLOOKUP('Generateur code produit'!$P26,Tableau13[[#All],[Code produit]:[Tarif HT]],3,FALSE),"") ->  | T26: =VLOOKUP(D26,Listes_masqué!$H$3:$J$6,3,FALSE) ->  | U26: =IF(K26="213",VLOOKUP(F26,Listes_masqué!$Q$9:$R$13,2,FALSE),VLOOKUP(F26,Listes_masqué!$Q$3:$R$7,2,FALSE)) -> 
J27: =IF(D27="","",VLOOKUP(D27,Listes_masqué!$H$3:$K$14,2,FALSE)) ->  | K27: =IF(E27="","",VLOOKUP(E27,Listes_masqué!$N$3:$O$22,2,FALSE)) ->  | L27: =IF(G27="","",VLOOKUP(G27,Listes_masqué!$F$3:$G$62,2,FALSE)) ->  | M27: =IF(H27="","",VLOOKUP(H27,Listes_masqué!$B$3:$C$25,2,FALSE)) ->  | Q27: =IFERROR(_xlfn.XLOOKUP(P27,Tableau13[Code produit],Tableau13[Libellé]),"") ->  | R27: =IFERROR(VLOOKUP('Generateur code produit'!$P27,Tableau13[[#All],[Code produit]:[Tarif HT]],3,FALSE),"") ->  | T27: =VLOOKUP(D27,Listes_masqué!$H$3:$J$6,3,FALSE) ->  | U27: =IF(K27="213",VLOOKUP(F27,Listes_masqué!$Q$9:$R$13,2,FALSE),VLOOKUP(F27,Listes_masqué!$Q$3:$R$7,2,FALSE)) -> 
J28: =IF(D28="","",VLOOKUP(D28,Listes_masqué!$H$3:$K$14,2,FALSE)) ->  | K28: =IF(E28="","",VLOOKUP(E28,Listes_masqué!$N$3:$O$22,2,FALSE)) ->  | L28: =IF(G28="","",VLOOKUP(G28,Listes_masqué!$F$3:$G$62,2,FALSE)) ->  | M28: =IF(H28="","",VLOOKUP(H28,Listes_masqué!$B$3:$C$25,2,FALSE)) ->  | Q28: =IFERROR(_xlfn.XLOOKUP(P28,Tableau13[Code produit],Tableau13[Libellé]),"") ->  | R28: =IFERROR(VLOOKUP('Generateur code produit'!$P28,Tableau13[[#All],[Code produit]:[Tarif HT]],3,FALSE),"") ->  | T28: =VLOOKUP(D28,Listes_masqué!$H$3:$J$6,3,FALSE) ->  | U28: =IF(K28="213",VLOOKUP(F28,Listes_masqué!$Q$9:$R$13,2,FALSE),VLOOKUP(F28,Listes_masqué!$Q$3:$R$7,2,FALSE)) -> 
J29: =IF(D29="","",VLOOKUP(D29,Listes_masqué!$H$3:$K$14,2,FALSE)) ->  | K29: =IF(E29="","",VLOOKUP(E29,Listes_masqué!$N$3:$O$22,2,FALSE)) ->  | L29: =IF(G29="","",VLOOKUP(G29,Listes_masqué!$F$3:$G$62,2,FALSE)) ->  | M29: =IF(H29="","",VLOOKUP(H29,Listes_masqué!$B$3:$C$25,2,FALSE)) ->  | Q29: =IFERROR(_xlfn.XLOOKUP(P29,Tableau13[Code produit],Tableau13[Libellé]),"") ->  | R29: =IFERROR(VLOOKUP('Generateur code produit'!$P29,Tableau13[[#All],[Code produit]:[Tarif HT]],3,FALSE),"") ->  | T29: =VLOOKUP(D29,Listes_masqué!$H$3:$J$6,3,FALSE) ->  | U29: =IF(K29="213",VLOOKUP(F29,Listes_masqué!$Q$9:$R$13,2,FALSE),VLOOKUP(F29,Listes_masqué!$Q$3:$R$7,2,FALSE)) -> 
J30: =IF(D30="","",VLOOKUP(D30,Listes_masqué!$H$3:$K$14,2,FALSE)) ->  | K30: =IF(E30="","",VLOOKUP(E30,Listes_masqué!$N$3:$O$22,2,FALSE)) ->  | L30: =IF(G30="","",VLOOKUP(G30,Listes_masqué!$F$3:$G$62,2,FALSE)) ->  | M30: =IF(H30="","",VLOOKUP(H30,Listes_masqué!$B$3:$C$25,2,FALSE)) ->  | Q30: =IFERROR(_xlfn.XLOOKUP(P30,Tableau13[Code produit],Tableau13[Libellé]),"") ->  | R30: =IFERROR(VLOOKUP('Generateur code produit'!$P30,Tableau13[[#All],[Code produit]:[Tarif HT]],3,FALSE),"") ->  | T30: =VLOOKUP(D30,Listes_masqué!$H$3:$J$6,3,FALSE) ->  | U30: =IF(K30="213",VLOOKUP(F30,Listes_masqué!$Q$9:$R$13,2,FALSE),VLOOKUP(F30,Listes_masqué!$Q$3:$R$7,2,FALSE)) -> 
J31: =IF(D31="","",VLOOKUP(D31,Listes_masqué!$H$3:$K$14,2,FALSE)) ->  | K31: =IF(E31="","",VLOOKUP(E31,Listes_masqué!$N$3:$O$22,2,FALSE)) ->  | L31: =IF(G31="","",VLOOKUP(G31,Listes_masqué!$F$3:$G$62,2,FALSE)) ->  | M31: =IF(H31="","",VLOOKUP(H31,Listes_masqué!$B$3:$C$25,2,FALSE)) ->  | Q31: =IFERROR(_xlfn.XLOOKUP(P31,Tableau13[Code produit],Tableau13[Libellé]),"") ->  | R31: =IFERROR(VLOOKUP('Generateur code produit'!$P31,Tableau13[[#All],[Code produit]:[Tarif HT]],3,FALSE),"") ->  | T31: =VLOOKUP(D31,Listes_masqué!$H$3:$J$6,3,FALSE) ->  | U31: =IF(K31="213",VLOOKUP(F31,Listes_masqué!$Q$9:$R$13,2,FALSE),VLOOKUP(F31,Listes_masqué!$Q$3:$R$7,2,FALSE)) -> 
J32: =IF(D32="","",VLOOKUP(D32,Listes_masqué!$H$3:$K$14,2,FALSE)) ->  | K32: =IF(E32="","",VLOOKUP(E32,Listes_masqué!$N$3:$O$22,2,FALSE)) ->  | L32: =IF(G32="","",VLOOKUP(G32,Listes_masqué!$F$3:$G$62,2,FALSE)) ->  | M32: =IF(H32="","",VLOOKUP(H32,Listes_masqué!$B$3:$C$25,2,FALSE)) ->  | Q32: =IFERROR(_xlfn.XLOOKUP(P32,Tableau13[Code produit],Tableau13[Libellé]),"") ->  | R32: =IFERROR(VLOOKUP('Generateur code produit'!$P32,Tableau13[[#All],[Code produit]:[Tarif HT]],3,FALSE),"") ->  | T32: =VLOOKUP(D32,Listes_masqué!$H$3:$J$6,3,FALSE) ->  | U32: =IF(K32="213",VLOOKUP(F32,Listes_masqué!$Q$9:$R$13,2,FALSE),VLOOKUP(F32,Listes_masqué!$Q$3:$R$7,2,FALSE)) -> 
J33: =IF(D33="","",VLOOKUP(D33,Listes_masqué!$H$3:$K$14,2,FALSE)) ->  | K33: =IF(E33="","",VLOOKUP(E33,Listes_masqué!$N$3:$O$22,2,FALSE)) ->  | L33: =IF(G33="","",VLOOKUP(G33,Listes_masqué!$F$3:$G$62,2,FALSE)) ->  | M33: =IF(H33="","",VLOOKUP(H33,Listes_masqué!$B$3:$C$25,2,FALSE)) ->  | Q33: =IFERROR(_xlfn.XLOOKUP(P33,Tableau13[Code produit],Tableau13[Libellé]),"") ->  | R33: =IFERROR(VLOOKUP('Generateur code produit'!$P33,Tableau13[[#All],[Code produit]:[Tarif HT]],3,FALSE),"") ->  | T33: =VLOOKUP(D33,Listes_masqué!$H$3:$J$6,3,FALSE) ->  | U33: =IF(K33="213",VLOOKUP(F33,Listes_masqué!$Q$9:$R$13,2,FALSE),VLOOKUP(F33,Listes_masqué!$Q$3:$R$7,2,FALSE)) -> 
J34: =IF(D34="","",VLOOKUP(D34,Listes_masqué!$H$3:$K$14,2,FALSE)) ->  | K34: =IF(E34="","",VLOOKUP(E34,Listes_masqué!$N$3:$O$22,2,FALSE)) ->  | L34: =IF(G34="","",VLOOKUP(G34,Listes_masqué!$F$3:$G$62,2,FALSE)) ->  | M34: =IF(H34="","",VLOOKUP(H34,Listes_masqué!$B$3:$C$25,2,FALSE)) ->  | Q34: =IFERROR(_xlfn.XLOOKUP(P34,Tableau13[Code produit],Tableau13[Libellé]),"") ->  | R34: =IFERROR(VLOOKUP('Generateur code produit'!$P34,Tableau13[[#All],[Code produit]:[Tarif HT]],3,FALSE),"") ->  | T34: =VLOOKUP(D34,Listes_masqué!$H$3:$J$6,3,FALSE) ->  | U34: =IF(K34="213",VLOOKUP(F34,Listes_masqué!$Q$9:$R$13,2,FALSE),VLOOKUP(F34,Listes_masqué!$Q$3:$R$7,2,FALSE)) -> 
J35: =IF(D35="","",VLOOKUP(D35,Listes_masqué!$H$3:$K$14,2,FALSE)) ->  | K35: =IF(E35="","",VLOOKUP(E35,Listes_masqué!$N$3:$O$22,2,FALSE)) ->  | L35: =IF(G35="","",VLOOKUP(G35,Listes_masqué!$F$3:$G$62,2,FALSE)) ->  | M35: =IF(H35="","",VLOOKUP(H35,Listes_masqué!$B$3:$C$25,2,FALSE)) ->  | Q35: =IFERROR(_xlfn.XLOOKUP(P35,Tableau13[Code produit],Tableau13[Libellé]),"") ->  | R35: =IFERROR(VLOOKUP('Generateur code produit'!$P35,Tableau13[[#All],[Code produit]:[Tarif HT]],3,FALSE),"") ->  | T35: =VLOOKUP(D35,Listes_masqué!$H$3:$J$6,3,FALSE) ->  | U35: =IF(K35="213",VLOOKUP(F35,Listes_masqué!$Q$9:$R$13,2,FALSE),VLOOKUP(F35,Listes_masqué!$Q$3:$R$7,2,FALSE)) -> 
J36: =IF(D36="","",VLOOKUP(D36,Listes_masqué!$H$3:$K$14,2,FALSE)) ->  | K36: =IF(E36="","",VLOOKUP(E36,Listes_masqué!$N$3:$O$22,2,FALSE)) ->  | L36: =IF(G36="","",VLOOKUP(G36,Listes_masqué!$F$3:$G$62,2,FALSE)) ->  | M36: =IF(H36="","",VLOOKUP(H36,Listes_masqué!$B$3:$C$25,2,FALSE)) ->  | Q36: =IFERROR(_xlfn.XLOOKUP(P36,Tableau13[Code produit],Tableau13[Libellé]),"") ->  | R36: =IFERROR(VLOOKUP('Generateur code produit'!$P36,Tableau13[[#All],[Code produit]:[Tarif HT]],3,FALSE),"") ->  | T36: =VLOOKUP(D36,Listes_masqué!$H$3:$J$6,3,FALSE) ->  | U36: =IF(K36="213",VLOOKUP(F36,Listes_masqué!$Q$9:$R$13,2,FALSE),VLOOKUP(F36,Listes_masqué!$Q$3:$R$7,2,FALSE)) -> 
J37: =IF(D37="","",VLOOKUP(D37,Listes_masqué!$H$3:$K$14,2,FALSE)) ->  | K37: =IF(E37="","",VLOOKUP(E37,Listes_masqué!$N$3:$O$22,2,FALSE)) ->  | L37: =IF(G37="","",VLOOKUP(G37,Listes_masqué!$F$3:$G$62,2,FALSE)) ->  | M37: =IF(H37="","",VLOOKUP(H37,Listes_masqué!$B$3:$C$25,2,FALSE)) ->  | Q37: =IFERROR(_xlfn.XLOOKUP(P37,Tableau13[Code produit],Tableau13[Libellé]),"") ->  | R37: =IFERROR(VLOOKUP('Generateur code produit'!$P37,Tableau13[[#All],[Code produit]:[Tarif HT]],3,FALSE),"") ->  | T37: =VLOOKUP(D37,Listes_masqué!$H$3:$J$6,3,FALSE) ->  | U37: =IF(K37="213",VLOOKUP(F37,Listes_masqué!$Q$9:$R$13,2,FALSE),VLOOKUP(F37,Listes_masqué!$Q$3:$R$7,2,FALSE)) -> 
J38: =IF(D38="","",VLOOKUP(D38,Listes_masqué!$H$3:$K$14,2,FALSE)) ->  | K38: =IF(E38="","",VLOOKUP(E38,Listes_masqué!$N$3:$O$22,2,FALSE)) ->  | L38: =IF(G38="","",VLOOKUP(G38,Listes_masqué!$F$3:$G$62,2,FALSE)) ->  | M38: =IF(H38="","",VLOOKUP(H38,Listes_masqué!$B$3:$C$25,2,FALSE)) ->  | Q38: =IFERROR(_xlfn.XLOOKUP(P38,Tableau13[Code produit],Tableau13[Libellé]),"") ->  | R38: =IFERROR(VLOOKUP('Generateur code produit'!$P38,Tableau13[[#All],[Code produit]:[Tarif HT]],3,FALSE),"") ->  | T38: =VLOOKUP(D38,Listes_masqué!$H$3:$J$6,3,FALSE) ->  | U38: =IF(K38="213",VLOOKUP(F38,Listes_masqué!$Q$9:$R$13,2,FALSE),VLOOKUP(F38,Listes_masqué!$Q$3:$R$7,2,FALSE)) -> 
J39: =IF(D39="","",VLOOKUP(D39,Listes_masqué!$H$3:$K$14,2,FALSE)) ->  | K39: =IF(E39="","",VLOOKUP(E39,Listes_masqué!$N$3:$O$22,2,FALSE)) ->  | L39: =IF(G39="","",VLOOKUP(G39,Listes_masqué!$F$3:$G$62,2,FALSE)) ->  | M39: =IF(H39="","",VLOOKUP(H39,Listes_masqué!$B$3:$C$25,2,FALSE)) ->  | Q39: =IFERROR(_xlfn.XLOOKUP(P39,Tableau13[Code produit],Tableau13[Libellé]),"") ->  | R39: =IFERROR(VLOOKUP('Generateur code produit'!$P39,Tableau13[[#All],[Code produit]:[Tarif HT]],3,FALSE),"") ->  | T39: =VLOOKUP(D39,Listes_masqué!$H$3:$J$6,3,FALSE) ->  | U39: =IF(K39="213",VLOOKUP(F39,Listes_masqué!$Q$9:$R$13,2,FALSE),VLOOKUP(F39,Listes_masqué!$Q$3:$R$7,2,FALSE)) -> 
J40: =IF(D40="","",VLOOKUP(D40,Listes_masqué!$H$3:$K$14,2,FALSE)) ->  | K40: =IF(E40="","",VLOOKUP(E40,Listes_masqué!$N$3:$O$22,2,FALSE)) ->  | L40: =IF(G40="","",VLOOKUP(G40,Listes_masqué!$F$3:$G$62,2,FALSE)) ->  | M40: =IF(H40="","",VLOOKUP(H40,Listes_masqué!$B$3:$C$25,2,FALSE)) ->  | Q40: =IFERROR(_xlfn.XLOOKUP(P40,Tableau13[Code produit],Tableau13[Libellé]),"") ->  | R40: =IFERROR(VLOOKUP('Generateur code produit'!$P40,Tableau13[[#All],[Code produit]:[Tarif HT]],3,FALSE),"") ->  | T40: =VLOOKUP(D40,Listes_masqué!$H$3:$J$6,3,FALSE) ->  | U40: =IF(K40="213",VLOOKUP(F40,Listes_masqué!$Q$9:$R$13,2,FALSE),VLOOKUP(F40,Listes_masqué!$Q$3:$R$7,2,FALSE)) -> 
J41: =IF(D41="","",VLOOKUP(D41,Listes_masqué!$H$3:$K$14,2,FALSE)) ->  | K41: =IF(E41="","",VLOOKUP(E41,Listes_masqué!$N$3:$O$22,2,FALSE)) ->  | L41: =IF(G41="","",VLOOKUP(G41,Listes_masqué!$F$3:$G$62,2,FALSE)) ->  | M41: =IF(H41="","",VLOOKUP(H41,Listes_masqué!$B$3:$C$25,2,FALSE)) ->  | Q41: =IFERROR(_xlfn.XLOOKUP(P41,Tableau13[Code produit],Tableau13[Libellé]),"") ->  | R41: =IFERROR(VLOOKUP('Generateur code produit'!$P41,Tableau13[[#All],[Code produit]:[Tarif HT]],3,FALSE),"") ->  | T41: =VLOOKUP(D41,Listes_masqué!$H$3:$J$6,3,FALSE) ->  | U41: =IF(K41="213",VLOOKUP(F41,Listes_masqué!$Q$9:$R$13,2,FALSE),VLOOKUP(F41,Listes_masqué!$Q$3:$R$7,2,FALSE)) -> 
J42: =IF(D42="","",VLOOKUP(D42,Listes_masqué!$H$3:$K$14,2,FALSE)) ->  | K42: =IF(E42="","",VLOOKUP(E42,Listes_masqué!$N$3:$O$22,2,FALSE)) ->  | L42: =IF(G42="","",VLOOKUP(G42,Listes_masqué!$F$3:$G$62,2,FALSE)) ->  | M42: =IF(H42="","",VLOOKUP(H42,Listes_masqué!$B$3:$C$25,2,FALSE)) ->  | Q42: =IFERROR(_xlfn.XLOOKUP(P42,Tableau13[Code produit],Tableau13[Libellé]),"") ->  | R42: =IFERROR(VLOOKUP('Generateur code produit'!$P42,Tableau13[[#All],[Code produit]:[Tarif HT]],3,FALSE),"") ->  | T42: =VLOOKUP(D42,Listes_masqué!$H$3:$J$6,3,FALSE) ->  | U42: =IF(K42="213",VLOOKUP(F42,Listes_masqué!$Q$9:$R$13,2,FALSE),VLOOKUP(F42,Listes_masqué!$Q$3:$R$7,2,FALSE)) -> 
J43: =IF(D43="","",VLOOKUP(D43,Listes_masqué!$H$3:$K$14,2,FALSE)) ->  | K43: =IF(E43="","",VLOOKUP(E43,Listes_masqué!$N$3:$O$22,2,FALSE)) ->  | L43: =IF(G43="","",VLOOKUP(G43,Listes_masqué!$F$3:$G$62,2,FALSE)) ->  | M43: =IF(H43="","",VLOOKUP(H43,Listes_masqué!$B$3:$C$25,2,FALSE)) ->  | Q43: =IFERROR(_xlfn.XLOOKUP(P43,Tableau13[Code produit],Tableau13[Libellé]),"") ->  | R43: =IFERROR(VLOOKUP('Generateur code produit'!$P43,Tableau13[[#All],[Code produit]:[Tarif HT]],3,FALSE),"") ->  | T43: =VLOOKUP(D43,Listes_masqué!$H$3:$J$6,3,FALSE) ->  | U43: =IF(K43="213",VLOOKUP(F43,Listes_masqué!$Q$9:$R$13,2,FALSE),VLOOKUP(F43,Listes_masqué!$Q$3:$R$7,2,FALSE)) -> 
J44: =IF(D44="","",VLOOKUP(D44,Listes_masqué!$H$3:$K$14,2,FALSE)) ->  | K44: =IF(E44="","",VLOOKUP(E44,Listes_masqué!$N$3:$O$22,2,FALSE)) ->  | L44: =IF(G44="","",VLOOKUP(G44,Listes_masqué!$F$3:$G$62,2,FALSE)) ->  | M44: =IF(H44="","",VLOOKUP(H44,Listes_masqué!$B$3:$C$25,2,FALSE)) ->  | Q44: =IFERROR(_xlfn.XLOOKUP(P44,Tableau13[Code produit],Tableau13[Libellé]),"") ->  | R44: =IFERROR(VLOOKUP('Generateur code produit'!$P44,Tableau13[[#All],[Code produit]:[Tarif HT]],3,FALSE),"") ->  | T44: =VLOOKUP(D44,Listes_masqué!$H$3:$J$6,3,FALSE) ->  | U44: =IF(K44="213",VLOOKUP(F44,Listes_masqué!$Q$9:$R$13,2,FALSE),VLOOKUP(F44,Listes_masqué!$Q$3:$R$7,2,FALSE)) -> 
J45: =IF(D45="","",VLOOKUP(D45,Listes_masqué!$H$3:$K$14,2,FALSE)) ->  | K45: =IF(E45="","",VLOOKUP(E45,Listes_masqué!$N$3:$O$22,2,FALSE)) ->  | L45: =IF(G45="","",VLOOKUP(G45,Listes_masqué!$F$3:$G$62,2,FALSE)) ->  | M45: =IF(H45="","",VLOOKUP(H45,Listes_masqué!$B$3:$C$25,2,FALSE)) ->  | Q45: =IFERROR(_xlfn.XLOOKUP(P45,Tableau13[Code produit],Tableau13[Libellé]),"") ->  | R45: =IFERROR(VLOOKUP('Generateur code produit'!$P45,Tableau13[[#All],[Code produit]:[Tarif HT]],3,FALSE),"") ->  | T45: =VLOOKUP(D45,Listes_masqué!$H$3:$J$6,3,FALSE) ->  | U45: =IF(K45="213",VLOOKUP(F45,Listes_masqué!$Q$9:$R$13,2,FALSE),VLOOKUP(F45,Listes_masqué!$Q$3:$R$7,2,FALSE)) -> 
J46: =IF(D46="","",VLOOKUP(D46,Listes_masqué!$H$3:$K$14,2,FALSE)) ->  | K46: =IF(E46="","",VLOOKUP(E46,Listes_masqué!$N$3:$O$22,2,FALSE)) ->  | L46: =IF(G46="","",VLOOKUP(G46,Listes_masqué!$F$3:$G$62,2,FALSE)) ->  | M46: =IF(H46="","",VLOOKUP(H46,Listes_masqué!$B$3:$C$25,2,FALSE)) ->  | Q46: =IFERROR(_xlfn.XLOOKUP(P46,Tableau13[Code produit],Tableau13[Libellé]),"") ->  | R46: =IFERROR(VLOOKUP('Generateur code produit'!$P46,Tableau13[[#All],[Code produit]:[Tarif HT]],3,FALSE),"") ->  | T46: =VLOOKUP(D46,Listes_masqué!$H$3:$J$6,3,FALSE) ->  | U46: =IF(K46="213",VLOOKUP(F46,Listes_masqué!$Q$9:$R$13,2,FALSE),VLOOKUP(F46,Listes_masqué!$Q$3:$R$7,2,FALSE)) -> 
J47: =IF(D47="","",VLOOKUP(D47,Listes_masqué!$H$3:$K$14,2,FALSE)) ->  | K47: =IF(E47="","",VLOOKUP(E47,Listes_masqué!$N$3:$O$22,2,FALSE)) ->  | L47: =IF(G47="","",VLOOKUP(G47,Listes_masqué!$F$3:$G$62,2,FALSE)) ->  | M47: =IF(H47="","",VLOOKUP(H47,Listes_masqué!$B$3:$C$25,2,FALSE)) ->  | Q47: =IFERROR(_xlfn.XLOOKUP(P47,Tableau13[Code produit],Tableau13[Libellé]),"") ->  | R47: =IFERROR(VLOOKUP('Generateur code produit'!$P47,Tableau13[[#All],[Code produit]:[Tarif HT]],3,FALSE),"") ->  | T47: =VLOOKUP(D47,Listes_masqué!$H$3:$J$6,3,FALSE) ->  | U47: =IF(K47="213",VLOOKUP(F47,Listes_masqué!$Q$9:$R$13,2,FALSE),VLOOKUP(F47,Listes_masqué!$Q$3:$R$7,2,FALSE)) -> 
J48: =IF(D48="","",VLOOKUP(D48,Listes_masqué!$H$3:$K$14,2,FALSE)) ->  | K48: =IF(E48="","",VLOOKUP(E48,Listes_masqué!$N$3:$O$22,2,FALSE)) ->  | L48: =IF(G48="","",VLOOKUP(G48,Listes_masqué!$F$3:$G$62,2,FALSE)) ->  | M48: =IF(H48="","",VLOOKUP(H48,Listes_masqué!$B$3:$C$25,2,FALSE)) ->  | Q48: =IFERROR(_xlfn.XLOOKUP(P48,Tableau13[Code produit],Tableau13[Libellé]),"") ->  | R48: =IFERROR(VLOOKUP('Generateur code produit'!$P48,Tableau13[[#All],[Code produit]:[Tarif HT]],3,FALSE),"") ->  | T48: =VLOOKUP(D48,Listes_masqué!$H$3:$J$6,3,FALSE) ->  | U48: =IF(K48="213",VLOOKUP(F48,Listes_masqué!$Q$9:$R$13,2,FALSE),VLOOKUP(F48,Listes_masqué!$Q$3:$R$7,2,FALSE)) -> 
J49: =IF(D49="","",VLOOKUP(D49,Listes_masqué!$H$3:$K$14,2,FALSE)) ->  | K49: =IF(E49="","",VLOOKUP(E49,Listes_masqué!$N$3:$O$22,2,FALSE)) ->  | L49: =IF(G49="","",VLOOKUP(G49,Listes_masqué!$F$3:$G$62,2,FALSE)) ->  | M49: =IF(H49="","",VLOOKUP(H49,Listes_masqué!$B$3:$C$25,2,FALSE)) ->  | Q49: =IFERROR(_xlfn.XLOOKUP(P49,Tableau13[Code produit],Tableau13[Libellé]),"") ->  | R49: =IFERROR(VLOOKUP('Generateur code produit'!$P49,Tableau13[[#All],[Code produit]:[Tarif HT]],3,FALSE),"") ->  | T49: =VLOOKUP(D49,Listes_masqué!$H$3:$J$6,3,FALSE) ->  | U49: =IF(K49="213",VLOOKUP(F49,Listes_masqué!$Q$9:$R$13,2,FALSE),VLOOKUP(F49,Listes_masqué!$Q$3:$R$7,2,FALSE)) -> 
J50: =IF(D50="","",VLOOKUP(D50,Listes_masqué!$H$3:$K$14,2,FALSE)) ->  | K50: =IF(E50="","",VLOOKUP(E50,Listes_masqué!$N$3:$O$22,2,FALSE)) ->  | L50: =IF(G50="","",VLOOKUP(G50,Listes_masqué!$F$3:$G$62,2,FALSE)) ->  | M50: =IF(H50="","",VLOOKUP(H50,Listes_masqué!$B$3:$C$25,2,FALSE)) ->  | Q50: =IFERROR(_xlfn.XLOOKUP(P50,Tableau13[Code produit],Tableau13[Libellé]),"") ->  | R50: =IFERROR(VLOOKUP('Generateur code produit'!$P50,Tableau13[[#All],[Code produit]:[Tarif HT]],3,FALSE),"") ->  | T50: =VLOOKUP(D50,Listes_masqué!$H$3:$J$6,3,FALSE) ->  | U50: =IF(K50="213",VLOOKUP(F50,Listes_masqué!$Q$9:$R$13,2,FALSE),VLOOKUP(F50,Listes_masqué!$Q$3:$R$7,2,FALSE)) -> 
J51: =IF(D51="","",VLOOKUP(D51,Listes_masqué!$H$3:$K$14,2,FALSE)) ->  | K51: =IF(E51="","",VLOOKUP(E51,Listes_masqué!$N$3:$O$22,2,FALSE)) ->  | L51: =IF(G51="","",VLOOKUP(G51,Listes_masqué!$F$3:$G$62,2,FALSE)) ->  | M51: =IF(H51="","",VLOOKUP(H51,Listes_masqué!$B$3:$C$25,2,FALSE)) ->  | Q51: =IFERROR(_xlfn.XLOOKUP(P51,Tableau13[Code produit],Tableau13[Libellé]),"") ->  | R51: =IFERROR(VLOOKUP('Generateur code produit'!$P51,Tableau13[[#All],[Code produit]:[Tarif HT]],3,FALSE),"") ->  | T51: =VLOOKUP(D51,Listes_masqué!$H$3:$J$6,3,FALSE) ->  | U51: =IF(K51="213",VLOOKUP(F51,Listes_masqué!$Q$9:$R$13,2,FALSE),VLOOKUP(F51,Listes_masqué!$Q$3:$R$7,2,FALSE)) -> 
J52: =IF(D52="","",VLOOKUP(D52,Listes_masqué!$H$3:$K$14,2,FALSE)) ->  | K52: =IF(E52="","",VLOOKUP(E52,Listes_masqué!$N$3:$O$22,2,FALSE)) ->  | L52: =IF(G52="","",VLOOKUP(G52,Listes_masqué!$F$3:$G$62,2,FALSE)) ->  | M52: =IF(H52="","",VLOOKUP(H52,Listes_masqué!$B$3:$C$25,2,FALSE)) ->  | Q52: =IFERROR(_xlfn.XLOOKUP(P52,Tableau13[Code produit],Tableau13[Libellé]),"") ->  | R52: =IFERROR(VLOOKUP('Generateur code produit'!$P52,Tableau13[[#All],[Code produit]:[Tarif HT]],3,FALSE),"") ->  | T52: =VLOOKUP(D52,Listes_masqué!$H$3:$J$6,3,FALSE) ->  | U52: =IF(K52="213",VLOOKUP(F52,Listes_masqué!$Q$9:$R$13,2,FALSE),VLOOKUP(F52,Listes_masqué!$Q$3:$R$7,2,FALSE)) -> 
J53: =IF(D53="","",VLOOKUP(D53,Listes_masqué!$H$3:$K$14,2,FALSE)) ->  | K53: =IF(E53="","",VLOOKUP(E53,Listes_masqué!$N$3:$O$22,2,FALSE)) ->  | L53: =IF(G53="","",VLOOKUP(G53,Listes_masqué!$F$3:$G$62,2,FALSE)) ->  | M53: =IF(H53="","",VLOOKUP(H53,Listes_masqué!$B$3:$C$25,2,FALSE)) ->  | Q53: =IFERROR(_xlfn.XLOOKUP(P53,Tableau13[Code produit],Tableau13[Libellé]),"") ->  | R53: =IFERROR(VLOOKUP('Generateur code produit'!$P53,Tableau13[[#All],[Code produit]:[Tarif HT]],3,FALSE),"") ->  | T53: =VLOOKUP(D53,Listes_masqué!$H$3:$J$6,3,FALSE) ->  | U53: =IF(K53="213",VLOOKUP(F53,Listes_masqué!$Q$9:$R$13,2,FALSE),VLOOKUP(F53,Listes_masqué!$Q$3:$R$7,2,FALSE)) -> 
J54: =IF(D54="","",VLOOKUP(D54,Listes_masqué!$H$3:$K$14,2,FALSE)) ->  | K54: =IF(E54="","",VLOOKUP(E54,Listes_masqué!$N$3:$O$22,2,FALSE)) ->  | L54: =IF(G54="","",VLOOKUP(G54,Listes_masqué!$F$3:$G$62,2,FALSE)) ->  | M54: =IF(H54="","",VLOOKUP(H54,Listes_masqué!$B$3:$C$25,2,FALSE)) ->  | Q54: =IFERROR(_xlfn.XLOOKUP(P54,Tableau13[Code produit],Tableau13[Libellé]),"") ->  | R54: =IFERROR(VLOOKUP('Generateur code produit'!$P54,Tableau13[[#All],[Code produit]:[Tarif HT]],3,FALSE),"") ->  | T54: =VLOOKUP(D54,Listes_masqué!$H$3:$J$6,3,FALSE) ->  | U54: =IF(K54="213",VLOOKUP(F54,Listes_masqué!$Q$9:$R$13,2,FALSE),VLOOKUP(F54,Listes_masqué!$Q$3:$R$7,2,FALSE)) -> 
J55: =IF(D55="","",VLOOKUP(D55,Listes_masqué!$H$3:$K$14,2,FALSE)) ->  | K55: =IF(E55="","",VLOOKUP(E55,Listes_masqué!$N$3:$O$22,2,FALSE)) ->  | L55: =IF(G55="","",VLOOKUP(G55,Listes_masqué!$F$3:$G$62,2,FALSE)) ->  | M55: =IF(H55="","",VLOOKUP(H55,Listes_masqué!$B$3:$C$25,2,FALSE)) ->  | Q55: =IFERROR(_xlfn.XLOOKUP(P55,Tableau13[Code produit],Tableau13[Libellé]),"") ->  | R55: =IFERROR(VLOOKUP('Generateur code produit'!$P55,Tableau13[[#All],[Code produit]:[Tarif HT]],3,FALSE),"") ->  | T55: =VLOOKUP(D55,Listes_masqué!$H$3:$J$6,3,FALSE) ->  | U55: =IF(K55="213",VLOOKUP(F55,Listes_masqué!$Q$9:$R$13,2,FALSE),VLOOKUP(F55,Listes_masqué!$Q$3:$R$7,2,FALSE)) -> 
J56: =IF(D56="","",VLOOKUP(D56,Listes_masqué!$H$3:$K$14,2,FALSE)) ->  | K56: =IF(E56="","",VLOOKUP(E56,Listes_masqué!$N$3:$O$22,2,FALSE)) ->  | L56: =IF(G56="","",VLOOKUP(G56,Listes_masqué!$F$3:$G$62,2,FALSE)) ->  | M56: =IF(H56="","",VLOOKUP(H56,Listes_masqué!$B$3:$C$25,2,FALSE)) ->  | Q56: =IFERROR(_xlfn.XLOOKUP(P56,Tableau13[Code produit],Tableau13[Libellé]),"") ->  | R56: =IFERROR(VLOOKUP('Generateur code produit'!$P56,Tableau13[[#All],[Code produit]:[Tarif HT]],3,FALSE),"") ->  | T56: =VLOOKUP(D56,Listes_masqué!$H$3:$J$6,3,FALSE) ->  | U56: =IF(K56="213",VLOOKUP(F56,Listes_masqué!$Q$9:$R$13,2,FALSE),VLOOKUP(F56,Listes_masqué!$Q$3:$R$7,2,FALSE)) -> 
J57: =IF(D57="","",VLOOKUP(D57,Listes_masqué!$H$3:$K$14,2,FALSE)) ->  | K57: =IF(E57="","",VLOOKUP(E57,Listes_masqué!$N$3:$O$22,2,FALSE)) ->  | L57: =IF(G57="","",VLOOKUP(G57,Listes_masqué!$F$3:$G$62,2,FALSE)) ->  | M57: =IF(H57="","",VLOOKUP(H57,Listes_masqué!$B$3:$C$25,2,FALSE)) ->  | Q57: =IFERROR(_xlfn.XLOOKUP(P57,Tableau13[Code produit],Tableau13[Libellé]),"") ->  | R57: =IFERROR(VLOOKUP('Generateur code produit'!$P57,Tableau13[[#All],[Code produit]:[Tarif HT]],3,FALSE),"") ->  | T57: =VLOOKUP(D57,Listes_masqué!$H$3:$J$6,3,FALSE) ->  | U57: =IF(K57="213",VLOOKUP(F57,Listes_masqué!$Q$9:$R$13,2,FALSE),VLOOKUP(F57,Listes_masqué!$Q$3:$R$7,2,FALSE)) -> 
J58: =IF(D58="","",VLOOKUP(D58,Listes_masqué!$H$3:$K$14,2,FALSE)) ->  | K58: =IF(E58="","",VLOOKUP(E58,Listes_masqué!$N$3:$O$22,2,FALSE)) ->  | L58: =IF(G58="","",VLOOKUP(G58,Listes_masqué!$F$3:$G$62,2,FALSE)) ->  | M58: =IF(H58="","",VLOOKUP(H58,Listes_masqué!$B$3:$C$25,2,FALSE)) ->  | Q58: =IFERROR(_xlfn.XLOOKUP(P58,Tableau13[Code produit],Tableau13[Libellé]),"") ->  | R58: =IFERROR(VLOOKUP('Generateur code produit'!$P58,Tableau13[[#All],[Code produit]:[Tarif HT]],3,FALSE),"") ->  | T58: =VLOOKUP(D58,Listes_masqué!$H$3:$J$6,3,FALSE) ->  | U58: =IF(K58="213",VLOOKUP(F58,Listes_masqué!$Q$9:$R$13,2,FALSE),VLOOKUP(F58,Listes_masqué!$Q$3:$R$7,2,FALSE)) -> 
J59: =IF(D59="","",VLOOKUP(D59,Listes_masqué!$H$3:$K$14,2,FALSE)) ->  | K59: =IF(E59="","",VLOOKUP(E59,Listes_masqué!$N$3:$O$22,2,FALSE)) ->  | L59: =IF(G59="","",VLOOKUP(G59,Listes_masqué!$F$3:$G$62,2,FALSE)) ->  | M59: =IF(H59="","",VLOOKUP(H59,Listes_masqué!$B$3:$C$25,2,FALSE)) ->  | Q59: =IFERROR(_xlfn.XLOOKUP(P59,Tableau13[Code produit],Tableau13[Libellé]),"") ->  | R59: =IFERROR(VLOOKUP('Generateur code produit'!$P59,Tableau13[[#All],[Code produit]:[Tarif HT]],3,FALSE),"") ->  | T59: =VLOOKUP(D59,Listes_masqué!$H$3:$J$6,3,FALSE) ->  | U59: =IF(K59="213",VLOOKUP(F59,Listes_masqué!$Q$9:$R$13,2,FALSE),VLOOKUP(F59,Listes_masqué!$Q$3:$R$7,2,FALSE)) -> 
J60: =IF(D60="","",VLOOKUP(D60,Listes_masqué!$H$3:$K$14,2,FALSE)) ->  | K60: =IF(E60="","",VLOOKUP(E60,Listes_masqué!$N$3:$O$22,2,FALSE)) ->  | L60: =IF(G60="","",VLOOKUP(G60,Listes_masqué!$F$3:$G$62,2,FALSE)) ->  | M60: =IF(H60="","",VLOOKUP(H60,Listes_masqué!$B$3:$C$25,2,FALSE)) ->  | Q60: =IFERROR(_xlfn.XLOOKUP(P60,Tableau13[Code produit],Tableau13[Libellé]),"") ->  | R60: =IFERROR(VLOOKUP('Generateur code produit'!$P60,Tableau13[[#All],[Code produit]:[Tarif HT]],3,FALSE),"") ->  | T60: =VLOOKUP(D60,Listes_masqué!$H$3:$J$6,3,FALSE) ->  | U60: =IF(K60="213",VLOOKUP(F60,Listes_masqué!$Q$9:$R$13,2,FALSE),VLOOKUP(F60,Listes_masqué!$Q$3:$R$7,2,FALSE)) -> 
J61: =IF(D61="","",VLOOKUP(D61,Listes_masqué!$H$3:$K$14,2,FALSE)) ->  | K61: =IF(E61="","",VLOOKUP(E61,Listes_masqué!$N$3:$O$22,2,FALSE)) ->  | L61: =IF(G61="","",VLOOKUP(G61,Listes_masqué!$F$3:$G$62,2,FALSE)) ->  | M61: =IF(H61="","",VLOOKUP(H61,Listes_masqué!$B$3:$C$25,2,FALSE)) ->  | Q61: =IFERROR(_xlfn.XLOOKUP(P61,Tableau13[Code produit],Tableau13[Libellé]),"") ->  | R61: =IFERROR(VLOOKUP('Generateur code produit'!$P61,Tableau13[[#All],[Code produit]:[Tarif HT]],3,FALSE),"") ->  | T61: =VLOOKUP(D61,Listes_masqué!$H$3:$J$6,3,FALSE) ->  | U61: =IF(K61="213",VLOOKUP(F61,Listes_masqué!$Q$9:$R$13,2,FALSE),VLOOKUP(F61,Listes_masqué!$Q$3:$R$7,2,FALSE)) -> 
J62: =IF(D62="","",VLOOKUP(D62,Listes_masqué!$H$3:$K$14,2,FALSE)) ->  | K62: =IF(E62="","",VLOOKUP(E62,Listes_masqué!$N$3:$O$22,2,FALSE)) ->  | L62: =IF(G62="","",VLOOKUP(G62,Listes_masqué!$F$3:$G$62,2,FALSE)) ->  | M62: =IF(H62="","",VLOOKUP(H62,Listes_masqué!$B$3:$C$25,2,FALSE)) ->  | Q62: =IFERROR(_xlfn.XLOOKUP(P62,Tableau13[Code produit],Tableau13[Libellé]),"") ->  | R62: =IFERROR(VLOOKUP('Generateur code produit'!$P62,Tableau13[[#All],[Code produit]:[Tarif HT]],3,FALSE),"") ->  | T62: =VLOOKUP(D62,Listes_masqué!$H$3:$J$6,3,FALSE) ->  | U62: =IF(K62="213",VLOOKUP(F62,Listes_masqué!$Q$9:$R$13,2,FALSE),VLOOKUP(F62,Listes_masqué!$Q$3:$R$7,2,FALSE)) -> 
J63: =IF(D63="","",VLOOKUP(D63,Listes_masqué!$H$3:$K$14,2,FALSE)) ->  | K63: =IF(E63="","",VLOOKUP(E63,Listes_masqué!$N$3:$O$22,2,FALSE)) ->  | L63: =IF(G63="","",VLOOKUP(G63,Listes_masqué!$F$3:$G$62,2,FALSE)) ->  | M63: =IF(H63="","",VLOOKUP(H63,Listes_masqué!$B$3:$C$25,2,FALSE)) ->  | Q63: =IFERROR(_xlfn.XLOOKUP(P63,Tableau13[Code produit],Tableau13[Libellé]),"") ->  | R63: =IFERROR(VLOOKUP('Generateur code produit'!$P63,Tableau13[[#All],[Code produit]:[Tarif HT]],3,FALSE),"") ->  | T63: =VLOOKUP(D63,Listes_masqué!$H$3:$J$6,3,FALSE) ->  | U63: =IF(K63="213",VLOOKUP(F63,Listes_masqué!$Q$9:$R$13,2,FALSE),VLOOKUP(F63,Listes_masqué!$Q$3:$R$7,2,FALSE)) -> 
J64: =IF(D64="","",VLOOKUP(D64,Listes_masqué!$H$3:$K$14,2,FALSE)) ->  | K64: =IF(E64="","",VLOOKUP(E64,Listes_masqué!$N$3:$O$22,2,FALSE)) ->  | L64: =IF(G64="","",VLOOKUP(G64,Listes_masqué!$F$3:$G$62,2,FALSE)) ->  | M64: =IF(H64="","",VLOOKUP(H64,Listes_masqué!$B$3:$C$25,2,FALSE)) ->  | Q64: =IFERROR(_xlfn.XLOOKUP(P64,Tableau13[Code produit],Tableau13[Libellé]),"") ->  | R64: =IFERROR(VLOOKUP('Generateur code produit'!$P64,Tableau13[[#All],[Code produit]:[Tarif HT]],3,FALSE),"") ->  | T64: =VLOOKUP(D64,Listes_masqué!$H$3:$J$6,3,FALSE) ->  | U64: =IF(K64="213",VLOOKUP(F64,Listes_masqué!$Q$9:$R$13,2,FALSE),VLOOKUP(F64,Listes_masqué!$Q$3:$R$7,2,FALSE)) -> 
J65: =IF(D65="","",VLOOKUP(D65,Listes_masqué!$H$3:$K$14,2,FALSE)) ->  | K65: =IF(E65="","",VLOOKUP(E65,Listes_masqué!$N$3:$O$22,2,FALSE)) ->  | L65: =IF(G65="","",VLOOKUP(G65,Listes_masqué!$F$3:$G$62,2,FALSE)) ->  | M65: =IF(H65="","",VLOOKUP(H65,Listes_masqué!$B$3:$C$25,2,FALSE)) ->  | Q65: =IFERROR(_xlfn.XLOOKUP(P65,Tableau13[Code produit],Tableau13[Libellé]),"") ->  | R65: =IFERROR(VLOOKUP('Generateur code produit'!$P65,Tableau13[[#All],[Code produit]:[Tarif HT]],3,FALSE),"") ->  | T65: =VLOOKUP(D65,Listes_masqué!$H$3:$J$6,3,FALSE) ->  | U65: =IF(K65="213",VLOOKUP(F65,Listes_masqué!$Q$9:$R$13,2,FALSE),VLOOKUP(F65,Listes_masqué!$Q$3:$R$7,2,FALSE)) -> 
J66: =IF(D66="","",VLOOKUP(D66,Listes_masqué!$H$3:$K$14,2,FALSE)) ->  | K66: =IF(E66="","",VLOOKUP(E66,Listes_masqué!$N$3:$O$22,2,FALSE)) ->  | L66: =IF(G66="","",VLOOKUP(G66,Listes_masqué!$F$3:$G$62,2,FALSE)) ->  | M66: =IF(H66="","",VLOOKUP(H66,Listes_masqué!$B$3:$C$25,2,FALSE)) ->  | Q66: =IFERROR(_xlfn.XLOOKUP(P66,Tableau13[Code produit],Tableau13[Libellé]),"") ->  | R66: =IFERROR(VLOOKUP('Generateur code produit'!$P66,Tableau13[[#All],[Code produit]:[Tarif HT]],3,FALSE),"") ->  | T66: =VLOOKUP(D66,Listes_masqué!$H$3:$J$6,3,FALSE) ->  | U66: =IF(K66="213",VLOOKUP(F66,Listes_masqué!$Q$9:$R$13,2,FALSE),VLOOKUP(F66,Listes_masqué!$Q$3:$R$7,2,FALSE)) -> 
J67: =IF(D67="","",VLOOKUP(D67,Listes_masqué!$H$3:$K$14,2,FALSE)) ->  | K67: =IF(E67="","",VLOOKUP(E67,Listes_masqué!$N$3:$O$22,2,FALSE)) ->  | L67: =IF(G67="","",VLOOKUP(G67,Listes_masqué!$F$3:$G$62,2,FALSE)) ->  | M67: =IF(H67="","",VLOOKUP(H67,Listes_masqué!$B$3:$C$25,2,FALSE)) ->  | Q67: =IFERROR(_xlfn.XLOOKUP(P67,Tableau13[Code produit],Tableau13[Libellé]),"") ->  | R67: =IFERROR(VLOOKUP('Generateur code produit'!$P67,Tableau13[[#All],[Code produit]:[Tarif HT]],3,FALSE),"") ->  | T67: =VLOOKUP(D67,Listes_masqué!$H$3:$J$6,3,FALSE) ->  | U67: =IF(K67="213",VLOOKUP(F67,Listes_masqué!$Q$9:$R$13,2,FALSE),VLOOKUP(F67,Listes_masqué!$Q$3:$R$7,2,FALSE)) -> 
J68: =IF(D68="","",VLOOKUP(D68,Listes_masqué!$H$3:$K$14,2,FALSE)) ->  | K68: =IF(E68="","",VLOOKUP(E68,Listes_masqué!$N$3:$O$22,2,FALSE)) ->  | L68: =IF(G68="","",VLOOKUP(G68,Listes_masqué!$F$3:$G$62,2,FALSE)) ->  | M68: =IF(H68="","",VLOOKUP(H68,Listes_masqué!$B$3:$C$25,2,FALSE)) ->  | Q68: =IFERROR(_xlfn.XLOOKUP(P68,Tableau13[Code produit],Tableau13[Libellé]),"") ->  | R68: =IFERROR(VLOOKUP('Generateur code produit'!$P68,Tableau13[[#All],[Code produit]:[Tarif HT]],3,FALSE),"") ->  | T68: =VLOOKUP(D68,Listes_masqué!$H$3:$J$6,3,FALSE) ->  | U68: =IF(K68="213",VLOOKUP(F68,Listes_masqué!$Q$9:$R$13,2,FALSE),VLOOKUP(F68,Listes_masqué!$Q$3:$R$7,2,FALSE)) -> 
J69: =IF(D69="","",VLOOKUP(D69,Listes_masqué!$H$3:$K$14,2,FALSE)) ->  | K69: =IF(E69="","",VLOOKUP(E69,Listes_masqué!$N$3:$O$22,2,FALSE)) ->  | L69: =IF(G69="","",VLOOKUP(G69,Listes_masqué!$F$3:$G$62,2,FALSE)) ->  | M69: =IF(H69="","",VLOOKUP(H69,Listes_masqué!$B$3:$C$25,2,FALSE)) ->  | Q69: =IFERROR(_xlfn.XLOOKUP(P69,Tableau13[Code produit],Tableau13[Libellé]),"") ->  | R69: =IFERROR(VLOOKUP('Generateur code produit'!$P69,Tableau13[[#All],[Code produit]:[Tarif HT]],3,FALSE),"") ->  | T69: =VLOOKUP(D69,Listes_masqué!$H$3:$J$6,3,FALSE) ->  | U69: =IF(K69="213",VLOOKUP(F69,Listes_masqué!$Q$9:$R$13,2,FALSE),VLOOKUP(F69,Listes_masqué!$Q$3:$R$7,2,FALSE)) -> 
J70: =IF(D70="","",VLOOKUP(D70,Listes_masqué!$H$3:$K$14,2,FALSE)) ->  | K70: =IF(E70="","",VLOOKUP(E70,Listes_masqué!$N$3:$O$22,2,FALSE)) ->  | L70: =IF(G70="","",VLOOKUP(G70,Listes_masqué!$F$3:$G$62,2,FALSE)) ->  | M70: =IF(H70="","",VLOOKUP(H70,Listes_masqué!$B$3:$C$25,2,FALSE)) ->  | Q70: =IFERROR(_xlfn.XLOOKUP(P70,Tableau13[Code produit],Tableau13[Libellé]),"") ->  | R70: =IFERROR(VLOOKUP('Generateur code produit'!$P70,Tableau13[[#All],[Code produit]:[Tarif HT]],3,FALSE),"") ->  | T70: =VLOOKUP(D70,Listes_masqué!$H$3:$J$6,3,FALSE) ->  | U70: =IF(K70="213",VLOOKUP(F70,Listes_masqué!$Q$9:$R$13,2,FALSE),VLOOKUP(F70,Listes_masqué!$Q$3:$R$7,2,FALSE)) -> 
J71: =IF(D71="","",VLOOKUP(D71,Listes_masqué!$H$3:$K$14,2,FALSE)) ->  | K71: =IF(E71="","",VLOOKUP(E71,Listes_masqué!$N$3:$O$22,2,FALSE)) ->  | L71: =IF(G71="","",VLOOKUP(G71,Listes_masqué!$F$3:$G$62,2,FALSE)) ->  | M71: =IF(H71="","",VLOOKUP(H71,Listes_masqué!$B$3:$C$25,2,FALSE)) ->  | N71: =IF(I71="","",IF(I71="oui",1,0)) ->  | Q71: =IFERROR(_xlfn.XLOOKUP(P71,Tableau13[Code produit],Tableau13[Libellé]),"") ->  | R71: =IFERROR(VLOOKUP('Generateur code produit'!$P71,Tableau13[[#All],[Code produit]:[Tarif HT]],3,FALSE),"") ->  | T71: =VLOOKUP(D71,Listes_masqué!$H$3:$J$6,3,FALSE) ->  | U71: =IF(K71="213",VLOOKUP(F71,Listes_masqué!$Q$9:$R$13,2,FALSE),VLOOKUP(F71,Listes_masqué!$Q$3:$R$7,2,FALSE)) -> 
J72: =IF(D72="","",VLOOKUP(D72,Listes_masqué!$H$3:$K$14,2,FALSE)) ->  | K72: =IF(E72="","",VLOOKUP(E72,Listes_masqué!$N$3:$O$22,2,FALSE)) ->  | L72: =IF(G72="","",VLOOKUP(G72,Listes_masqué!$F$3:$G$62,2,FALSE)) ->  | M72: =IF(H72="","",VLOOKUP(H72,Listes_masqué!$B$3:$C$25,2,FALSE)) ->  | Q72: =IFERROR(_xlfn.XLOOKUP(P72,Tableau13[Code produit],Tableau13[Libellé]),"") ->  | R72: =IFERROR(VLOOKUP('Generateur code produit'!$P72,Tableau13[[#All],[Code produit]:[Tarif HT]],3,FALSE),"") ->  | T72: =VLOOKUP(D72,Listes_masqué!$H$3:$J$6,3,FALSE) ->  | U72: =IF(K72="213",VLOOKUP(F72,Listes_masqué!$Q$9:$R$13,2,FALSE),VLOOKUP(F72,Listes_masqué!$Q$3:$R$7,2,FALSE)) -> 
J73: =IF(D73="","",VLOOKUP(D73,Listes_masqué!$H$3:$K$14,2,FALSE)) ->  | K73: =IF(E73="","",VLOOKUP(E73,Listes_masqué!$N$3:$O$22,2,FALSE)) ->  | L73: =IF(G73="","",VLOOKUP(G73,Listes_masqué!$F$3:$G$62,2,FALSE)) ->  | M73: =IF(H73="","",VLOOKUP(H73,Listes_masqué!$B$3:$C$25,2,FALSE)) ->  | Q73: =IFERROR(_xlfn.XLOOKUP(P73,Tableau13[Code produit],Tableau13[Libellé]),"") ->  | R73: =IFERROR(VLOOKUP('Generateur code produit'!$P73,Tableau13[[#All],[Code produit]:[Tarif HT]],3,FALSE),"") ->  | S73: =IF(M73="089","Attention! Il faut déclarer un nombre de lot de 1000 et non des unités.",IF(I73="oui","Attention, pensez à bien verifier l'éligibilité de ce produit aux éco-modulations.","")) ->  | T73: =VLOOKUP(D73,Listes_masqué!$H$3:$J$6,3,FALSE) ->  | U73: =IF(K73="213",VLOOKUP(F73,Listes_masqué!$Q$9:$R$13,2,FALSE),VLOOKUP(F73,Listes_masqué!$Q$3:$R$7,2,FALSE)) -> 
J74: =IF(D74="","",VLOOKUP(D74,Listes_masqué!$H$3:$K$14,2,FALSE)) ->  | K74: =IF(E74="","",VLOOKUP(E74,Listes_masqué!$N$3:$O$22,2,FALSE)) ->  | L74: =IF(G74="","",VLOOKUP(G74,Listes_masqué!$F$3:$G$62,2,FALSE)) ->  | M74: =IF(H74="","",VLOOKUP(H74,Listes_masqué!$B$3:$C$25,2,FALSE)) ->  | P74: =IF(OR(H74="",G74="",E74="",D74=""),"",CONCATENATE(J74,K74,L74,M74,N74)) ->  | Q74: =IFERROR(_xlfn.XLOOKUP(P74,Tableau13[Code produit],Tableau13[Libellé]),"") ->  | R74: =IFERROR(VLOOKUP('Generateur code produit'!$P74,Tableau13[[#All],[Code produit]:[Tarif HT]],3,FALSE),"") ->  | T74: =VLOOKUP(D74,Listes_masqué!$H$3:$J$6,3,FALSE) ->  | U74: =IF(K74="213",VLOOKUP(F74,Listes_masqué!$Q$9:$R$13,2,FALSE),VLOOKUP(F74,Listes_masqué!$Q$3:$R$7,2,FALSE)) -> 
J75: =IF(D75="","",VLOOKUP(D75,Listes_masqué!$H$3:$K$14,2,FALSE)) ->  | K75: =IF(E75="","",VLOOKUP(E75,Listes_masqué!$N$3:$O$22,2,FALSE)) ->  | L75: =IF(G75="","",VLOOKUP(G75,Listes_masqué!$F$3:$G$62,2,FALSE)) ->  | M75: =IF(H75="","",VLOOKUP(H75,Listes_masqué!$B$3:$C$25,2,FALSE)) ->  | Q75: =IFERROR(_xlfn.XLOOKUP(P75,Tableau13[Code produit],Tableau13[Libellé]),"") ->  | R75: =IFERROR(VLOOKUP('Generateur code produit'!$P75,Tableau13[[#All],[Code produit]:[Tarif HT]],3,FALSE),"") ->  | T75: =VLOOKUP(D75,Listes_masqué!$H$3:$J$6,3,FALSE) ->  | U75: =IF(K75="213",VLOOKUP(F75,Listes_masqué!$Q$9:$R$13,2,FALSE),VLOOKUP(F75,Listes_masqué!$Q$3:$R$7,2,FALSE)) -> 
J76: =IF(D76="","",VLOOKUP(D76,Listes_masqué!$H$3:$K$14,2,FALSE)) ->  | K76: =IF(E76="","",VLOOKUP(E76,Listes_masqué!$N$3:$O$22,2,FALSE)) ->  | L76: =IF(G76="","",VLOOKUP(G76,Listes_masqué!$F$3:$G$62,2,FALSE)) ->  | M76: =IF(H76="","",VLOOKUP(H76,Listes_masqué!$B$3:$C$25,2,FALSE)) ->  | Q76: =IFERROR(_xlfn.XLOOKUP(P76,Tableau13[Code produit],Tableau13[Libellé]),"") ->  | R76: =IFERROR(VLOOKUP('Generateur code produit'!$P76,Tableau13[[#All],[Code produit]:[Tarif HT]],3,FALSE),"") ->  | T76: =VLOOKUP(D76,Listes_masqué!$H$3:$J$6,3,FALSE) ->  | U76: =IF(K76="213",VLOOKUP(F76,Listes_masqué!$Q$9:$R$13,2,FALSE),VLOOKUP(F76,Listes_masqué!$Q$3:$R$7,2,FALSE)) -> 
J77: =IF(D77="","",VLOOKUP(D77,Listes_masqué!$H$3:$K$14,2,FALSE)) ->  | K77: =IF(E77="","",VLOOKUP(E77,Listes_masqué!$N$3:$O$22,2,FALSE)) ->  | L77: =IF(G77="","",VLOOKUP(G77,Listes_masqué!$F$3:$G$62,2,FALSE)) ->  | M77: =IF(H77="","",VLOOKUP(H77,Listes_masqué!$B$3:$C$25,2,FALSE)) ->  | Q77: =IFERROR(_xlfn.XLOOKUP(P77,Tableau13[Code produit],Tableau13[Libellé]),"") ->  | R77: =IFERROR(VLOOKUP('Generateur code produit'!$P77,Tableau13[[#All],[Code produit]:[Tarif HT]],3,FALSE),"") ->  | T77: =VLOOKUP(D77,Listes_masqué!$H$3:$J$6,3,FALSE) ->  | U77: =IF(K77="213",VLOOKUP(F77,Listes_masqué!$Q$9:$R$13,2,FALSE),VLOOKUP(F77,Listes_masqué!$Q$3:$R$7,2,FALSE)) -> 
J78: =IF(D78="","",VLOOKUP(D78,Listes_masqué!$H$3:$K$14,2,FALSE)) ->  | K78: =IF(E78="","",VLOOKUP(E78,Listes_masqué!$N$3:$O$22,2,FALSE)) ->  | L78: =IF(G78="","",VLOOKUP(G78,Listes_masqué!$F$3:$G$62,2,FALSE)) ->  | M78: =IF(H78="","",VLOOKUP(H78,Listes_masqué!$B$3:$C$25,2,FALSE)) ->  | Q78: =IFERROR(_xlfn.XLOOKUP(P78,Tableau13[Code produit],Tableau13[Libellé]),"") ->  | R78: =IFERROR(VLOOKUP('Generateur code produit'!$P78,Tableau13[[#All],[Code produit]:[Tarif HT]],3,FALSE),"") ->  | T78: =VLOOKUP(D78,Listes_masqué!$H$3:$J$6,3,FALSE) ->  | U78: =IF(K78="213",VLOOKUP(F78,Listes_masqué!$Q$9:$R$13,2,FALSE),VLOOKUP(F78,Listes_masqué!$Q$3:$R$7,2,FALSE)) -> 
J79: =IF(D79="","",VLOOKUP(D79,Listes_masqué!$H$3:$K$14,2,FALSE)) ->  | K79: =IF(E79="","",VLOOKUP(E79,Listes_masqué!$N$3:$O$22,2,FALSE)) ->  | L79: =IF(G79="","",VLOOKUP(G79,Listes_masqué!$F$3:$G$62,2,FALSE)) ->  | M79: =IF(H79="","",VLOOKUP(H79,Listes_masqué!$B$3:$C$25,2,FALSE)) ->  | Q79: =IFERROR(_xlfn.XLOOKUP(P79,Tableau13[Code produit],Tableau13[Libellé]),"") ->  | R79: =IFERROR(VLOOKUP('Generateur code produit'!$P79,Tableau13[[#All],[Code produit]:[Tarif HT]],3,FALSE),"") ->  | T79: =VLOOKUP(D79,Listes_masqué!$H$3:$J$6,3,FALSE) ->  | U79: =IF(K79="213",VLOOKUP(F79,Listes_masqué!$Q$9:$R$13,2,FALSE),VLOOKUP(F79,Listes_masqué!$Q$3:$R$7,2,FALSE)) -> 
J80: =IF(D80="","",VLOOKUP(D80,Listes_masqué!$H$3:$K$14,2,FALSE)) ->  | K80: =IF(E80="","",VLOOKUP(E80,Listes_masqué!$N$3:$O$22,2,FALSE)) ->  | L80: =IF(G80="","",VLOOKUP(G80,Listes_masqué!$F$3:$G$62,2,FALSE)) ->  | M80: =IF(H80="","",VLOOKUP(H80,Listes_masqué!$B$3:$C$25,2,FALSE)) ->  | Q80: =IFERROR(_xlfn.XLOOKUP(P80,Tableau13[Code produit],Tableau13[Libellé]),"") ->  | R80: =IFERROR(VLOOKUP('Generateur code produit'!$P80,Tableau13[[#All],[Code produit]:[Tarif HT]],3,FALSE),"") ->  | T80: =VLOOKUP(D80,Listes_masqué!$H$3:$J$6,3,FALSE) ->  | U80: =IF(K80="213",VLOOKUP(F80,Listes_masqué!$Q$9:$R$13,2,FALSE),VLOOKUP(F80,Listes_masqué!$Q$3:$R$7,2,FALSE)) -> 
J81: =IF(D81="","",VLOOKUP(D81,Listes_masqué!$H$3:$K$14,2,FALSE)) ->  | K81: =IF(E81="","",VLOOKUP(E81,Listes_masqué!$N$3:$O$22,2,FALSE)) ->  | L81: =IF(G81="","",VLOOKUP(G81,Listes_masqué!$F$3:$G$62,2,FALSE)) ->  | M81: =IF(H81="","",VLOOKUP(H81,Listes_masqué!$B$3:$C$25,2,FALSE)) ->  | Q81: =IFERROR(_xlfn.XLOOKUP(P81,Tableau13[Code produit],Tableau13[Libellé]),"") ->  | R81: =IFERROR(VLOOKUP('Generateur code produit'!$P81,Tableau13[[#All],[Code produit]:[Tarif HT]],3,FALSE),"") ->  | T81: =VLOOKUP(D81,Listes_masqué!$H$3:$J$6,3,FALSE) ->  | U81: =IF(K81="213",VLOOKUP(F81,Listes_masqué!$Q$9:$R$13,2,FALSE),VLOOKUP(F81,Listes_masqué!$Q$3:$R$7,2,FALSE)) -> 
J82: =IF(D82="","",VLOOKUP(D82,Listes_masqué!$H$3:$K$14,2,FALSE)) ->  | K82: =IF(E82="","",VLOOKUP(E82,Listes_masqué!$N$3:$O$22,2,FALSE)) ->  | L82: =IF(G82="","",VLOOKUP(G82,Listes_masqué!$F$3:$G$62,2,FALSE)) ->  | M82: =IF(H82="","",VLOOKUP(H82,Listes_masqué!$B$3:$C$25,2,FALSE)) ->  | Q82: =IFERROR(_xlfn.XLOOKUP(P82,Tableau13[Code produit],Tableau13[Libellé]),"") ->  | R82: =IFERROR(VLOOKUP('Generateur code produit'!$P82,Tableau13[[#All],[Code produit]:[Tarif HT]],3,FALSE),"") ->  | T82: =VLOOKUP(D82,Listes_masqué!$H$3:$J$6,3,FALSE) ->  | U82: =IF(K82="213",VLOOKUP(F82,Listes_masqué!$Q$9:$R$13,2,FALSE),VLOOKUP(F82,Listes_masqué!$Q$3:$R$7,2,FALSE)) -> 
J83: =IF(D83="","",VLOOKUP(D83,Listes_masqué!$H$3:$K$14,2,FALSE)) ->  | K83: =IF(E83="","",VLOOKUP(E83,Listes_masqué!$N$3:$O$22,2,FALSE)) ->  | L83: =IF(G83="","",VLOOKUP(G83,Listes_masqué!$F$3:$G$62,2,FALSE)) ->  | M83: =IF(H83="","",VLOOKUP(H83,Listes_masqué!$B$3:$C$25,2,FALSE)) ->  | Q83: =IFERROR(_xlfn.XLOOKUP(P83,Tableau13[Code produit],Tableau13[Libellé]),"") ->  | R83: =IFERROR(VLOOKUP('Generateur code produit'!$P83,Tableau13[[#All],[Code produit]:[Tarif HT]],3,FALSE),"") ->  | T83: =VLOOKUP(D83,Listes_masqué!$H$3:$J$6,3,FALSE) ->  | U83: =IF(K83="213",VLOOKUP(F83,Listes_masqué!$Q$9:$R$13,2,FALSE),VLOOKUP(F83,Listes_masqué!$Q$3:$R$7,2,FALSE)) -> 
J84: =IF(D84="","",VLOOKUP(D84,Listes_masqué!$H$3:$K$14,2,FALSE)) ->  | K84: =IF(E84="","",VLOOKUP(E84,Listes_masqué!$N$3:$O$22,2,FALSE)) ->  | L84: =IF(G84="","",VLOOKUP(G84,Listes_masqué!$F$3:$G$62,2,FALSE)) ->  | M84: =IF(H84="","",VLOOKUP(H84,Listes_masqué!$B$3:$C$25,2,FALSE)) ->  | Q84: =IFERROR(_xlfn.XLOOKUP(P84,Tableau13[Code produit],Tableau13[Libellé]),"") ->  | R84: =IFERROR(VLOOKUP('Generateur code produit'!$P84,Tableau13[[#All],[Code produit]:[Tarif HT]],3,FALSE),"") ->  | T84: =VLOOKUP(D84,Listes_masqué!$H$3:$J$6,3,FALSE) ->  | U84: =IF(K84="213",VLOOKUP(F84,Listes_masqué!$Q$9:$R$13,2,FALSE),VLOOKUP(F84,Listes_masqué!$Q$3:$R$7,2,FALSE)) -> 
J85: =IF(D85="","",VLOOKUP(D85,Listes_masqué!$H$3:$K$14,2,FALSE)) ->  | K85: =IF(E85="","",VLOOKUP(E85,Listes_masqué!$N$3:$O$22,2,FALSE)) ->  | L85: =IF(G85="","",VLOOKUP(G85,Listes_masqué!$F$3:$G$62,2,FALSE)) ->  | M85: =IF(H85="","",VLOOKUP(H85,Listes_masqué!$B$3:$C$25,2,FALSE)) ->  | Q85: =IFERROR(_xlfn.XLOOKUP(P85,Tableau13[Code produit],Tableau13[Libellé]),"") ->  | R85: =IFERROR(VLOOKUP('Generateur code produit'!$P85,Tableau13[[#All],[Code produit]:[Tarif HT]],3,FALSE),"") ->  | T85: =VLOOKUP(D85,Listes_masqué!$H$3:$J$6,3,FALSE) ->  | U85: =IF(K85="213",VLOOKUP(F85,Listes_masqué!$Q$9:$R$13,2,FALSE),VLOOKUP(F85,Listes_masqué!$Q$3:$R$7,2,FALSE)) -> 
J86: =IF(D86="","",VLOOKUP(D86,Listes_masqué!$H$3:$K$14,2,FALSE)) ->  | K86: =IF(E86="","",VLOOKUP(E86,Listes_masqué!$N$3:$O$22,2,FALSE)) ->  | L86: =IF(G86="","",VLOOKUP(G86,Listes_masqué!$F$3:$G$62,2,FALSE)) ->  | M86: =IF(H86="","",VLOOKUP(H86,Listes_masqué!$B$3:$C$25,2,FALSE)) ->  | Q86: =IFERROR(_xlfn.XLOOKUP(P86,Tableau13[Code produit],Tableau13[Libellé]),"") ->  | R86: =IFERROR(VLOOKUP('Generateur code produit'!$P86,Tableau13[[#All],[Code produit]:[Tarif HT]],3,FALSE),"") ->  | T86: =VLOOKUP(D86,Listes_masqué!$H$3:$J$6,3,FALSE) ->  | U86: =IF(K86="213",VLOOKUP(F86,Listes_masqué!$Q$9:$R$13,2,FALSE),VLOOKUP(F86,Listes_masqué!$Q$3:$R$7,2,FALSE)) -> 
J87: =IF(D87="","",VLOOKUP(D87,Listes_masqué!$H$3:$K$14,2,FALSE)) ->  | K87: =IF(E87="","",VLOOKUP(E87,Listes_masqué!$N$3:$O$22,2,FALSE)) ->  | L87: =IF(G87="","",VLOOKUP(G87,Listes_masqué!$F$3:$G$62,2,FALSE)) ->  | M87: =IF(H87="","",VLOOKUP(H87,Listes_masqué!$B$3:$C$25,2,FALSE)) ->  | Q87: =IFERROR(_xlfn.XLOOKUP(P87,Tableau13[Code produit],Tableau13[Libellé]),"") ->  | R87: =IFERROR(VLOOKUP('Generateur code produit'!$P87,Tableau13[[#All],[Code produit]:[Tarif HT]],3,FALSE),"") ->  | T87: =VLOOKUP(D87,Listes_masqué!$H$3:$J$6,3,FALSE) ->  | U87: =IF(K87="213",VLOOKUP(F87,Listes_masqué!$Q$9:$R$13,2,FALSE),VLOOKUP(F87,Listes_masqué!$Q$3:$R$7,2,FALSE)) -> 
J88: =IF(D88="","",VLOOKUP(D88,Listes_masqué!$H$3:$K$14,2,FALSE)) ->  | K88: =IF(E88="","",VLOOKUP(E88,Listes_masqué!$N$3:$O$22,2,FALSE)) ->  | L88: =IF(G88="","",VLOOKUP(G88,Listes_masqué!$F$3:$G$62,2,FALSE)) ->  | M88: =IF(H88="","",VLOOKUP(H88,Listes_masqué!$B$3:$C$25,2,FALSE)) ->  | Q88: =IFERROR(_xlfn.XLOOKUP(P88,Tableau13[Code produit],Tableau13[Libellé]),"") ->  | R88: =IFERROR(VLOOKUP('Generateur code produit'!$P88,Tableau13[[#All],[Code produit]:[Tarif HT]],3,FALSE),"") ->  | T88: =VLOOKUP(D88,Listes_masqué!$H$3:$J$6,3,FALSE) ->  | U88: =IF(K88="213",VLOOKUP(F88,Listes_masqué!$Q$9:$R$13,2,FALSE),VLOOKUP(F88,Listes_masqué!$Q$3:$R$7,2,FALSE)) -> 
J89: =IF(D89="","",VLOOKUP(D89,Listes_masqué!$H$3:$K$14,2,FALSE)) ->  | K89: =IF(E89="","",VLOOKUP(E89,Listes_masqué!$N$3:$O$22,2,FALSE)) ->  | L89: =IF(G89="","",VLOOKUP(G89,Listes_masqué!$F$3:$G$62,2,FALSE)) ->  | M89: =IF(H89="","",VLOOKUP(H89,Listes_masqué!$B$3:$C$25,2,FALSE)) ->  | Q89: =IFERROR(_xlfn.XLOOKUP(P89,Tableau13[Code produit],Tableau13[Libellé]),"") ->  | R89: =IFERROR(VLOOKUP('Generateur code produit'!$P89,Tableau13[[#All],[Code produit]:[Tarif HT]],3,FALSE),"") ->  | T89: =VLOOKUP(D89,Listes_masqué!$H$3:$J$6,3,FALSE) ->  | U89: =IF(K89="213",VLOOKUP(F89,Listes_masqué!$Q$9:$R$13,2,FALSE),VLOOKUP(F89,Listes_masqué!$Q$3:$R$7,2,FALSE)) -> 
J90: =IF(D90="","",VLOOKUP(D90,Listes_masqué!$H$3:$K$14,2,FALSE)) ->  | K90: =IF(E90="","",VLOOKUP(E90,Listes_masqué!$N$3:$O$22,2,FALSE)) ->  | L90: =IF(G90="","",VLOOKUP(G90,Listes_masqué!$F$3:$G$62,2,FALSE)) ->  | M90: =IF(H90="","",VLOOKUP(H90,Listes_masqué!$B$3:$C$25,2,FALSE)) ->  | Q90: =IFERROR(_xlfn.XLOOKUP(P90,Tableau13[Code produit],Tableau13[Libellé]),"") ->  | R90: =IFERROR(VLOOKUP('Generateur code produit'!$P90,Tableau13[[#All],[Code produit]:[Tarif HT]],3,FALSE),"") ->  | T90: =VLOOKUP(D90,Listes_masqué!$H$3:$J$6,3,FALSE) ->  | U90: =IF(K90="213",VLOOKUP(F90,Listes_masqué!$Q$9:$R$13,2,FALSE),VLOOKUP(F90,Listes_masqué!$Q$3:$R$7,2,FALSE)) -> 
J91: =IF(D91="","",VLOOKUP(D91,Listes_masqué!$H$3:$K$14,2,FALSE)) ->  | K91: =IF(E91="","",VLOOKUP(E91,Listes_masqué!$N$3:$O$22,2,FALSE)) ->  | L91: =IF(G91="","",VLOOKUP(G91,Listes_masqué!$F$3:$G$62,2,FALSE)) ->  | M91: =IF(H91="","",VLOOKUP(H91,Listes_masqué!$B$3:$C$25,2,FALSE)) ->  | Q91: =IFERROR(_xlfn.XLOOKUP(P91,Tableau13[Code produit],Tableau13[Libellé]),"") ->  | R91: =IFERROR(VLOOKUP('Generateur code produit'!$P91,Tableau13[[#All],[Code produit]:[Tarif HT]],3,FALSE),"") ->  | T91: =VLOOKUP(D91,Listes_masqué!$H$3:$J$6,3,FALSE) ->  | U91: =IF(K91="213",VLOOKUP(F91,Listes_masqué!$Q$9:$R$13,2,FALSE),VLOOKUP(F91,Listes_masqué!$Q$3:$R$7,2,FALSE)) -> 
J92: =IF(D92="","",VLOOKUP(D92,Listes_masqué!$H$3:$K$14,2,FALSE)) ->  | K92: =IF(E92="","",VLOOKUP(E92,Listes_masqué!$N$3:$O$22,2,FALSE)) ->  | L92: =IF(G92="","",VLOOKUP(G92,Listes_masqué!$F$3:$G$62,2,FALSE)) ->  | M92: =IF(H92="","",VLOOKUP(H92,Listes_masqué!$B$3:$C$25,2,FALSE)) ->  | Q92: =IFERROR(_xlfn.XLOOKUP(P92,Tableau13[Code produit],Tableau13[Libellé]),"") ->  | R92: =IFERROR(VLOOKUP('Generateur code produit'!$P92,Tableau13[[#All],[Code produit]:[Tarif HT]],3,FALSE),"") ->  | T92: =VLOOKUP(D92,Listes_masqué!$H$3:$J$6,3,FALSE) ->  | U92: =IF(K92="213",VLOOKUP(F92,Listes_masqué!$Q$9:$R$13,2,FALSE),VLOOKUP(F92,Listes_masqué!$Q$3:$R$7,2,FALSE)) -> 
J93: =IF(D93="","",VLOOKUP(D93,Listes_masqué!$H$3:$K$14,2,FALSE)) ->  | K93: =IF(E93="","",VLOOKUP(E93,Listes_masqué!$N$3:$O$22,2,FALSE)) ->  | L93: =IF(G93="","",VLOOKUP(G93,Listes_masqué!$F$3:$G$62,2,FALSE)) ->  | M93: =IF(H93="","",VLOOKUP(H93,Listes_masqué!$B$3:$C$25,2,FALSE)) ->  | Q93: =IFERROR(_xlfn.XLOOKUP(P93,Tableau13[Code produit],Tableau13[Libellé]),"") ->  | R93: =IFERROR(VLOOKUP('Generateur code produit'!$P93,Tableau13[[#All],[Code produit]:[Tarif HT]],3,FALSE),"") ->  | T93: =VLOOKUP(D93,Listes_masqué!$H$3:$J$6,3,FALSE) ->  | U93: =IF(K93="213",VLOOKUP(F93,Listes_masqué!$Q$9:$R$13,2,FALSE),VLOOKUP(F93,Listes_masqué!$Q$3:$R$7,2,FALSE)) -> 
J94: =IF(D94="","",VLOOKUP(D94,Listes_masqué!$H$3:$K$14,2,FALSE)) ->  | K94: =IF(E94="","",VLOOKUP(E94,Listes_masqué!$N$3:$O$22,2,FALSE)) ->  | L94: =IF(G94="","",VLOOKUP(G94,Listes_masqué!$F$3:$G$62,2,FALSE)) ->  | M94: =IF(H94="","",VLOOKUP(H94,Listes_masqué!$B$3:$C$25,2,FALSE)) ->  | Q94: =IFERROR(_xlfn.XLOOKUP(P94,Tableau13[Code produit],Tableau13[Libellé]),"") ->  | R94: =IFERROR(VLOOKUP('Generateur code produit'!$P94,Tableau13[[#All],[Code produit]:[Tarif HT]],3,FALSE),"") ->  | T94: =VLOOKUP(D94,Listes_masqué!$H$3:$J$6,3,FALSE) ->  | U94: =IF(K94="213",VLOOKUP(F94,Listes_masqué!$Q$9:$R$13,2,FALSE),VLOOKUP(F94,Listes_masqué!$Q$3:$R$7,2,FALSE)) -> 
J95: =IF(D95="","",VLOOKUP(D95,Listes_masqué!$H$3:$K$14,2,FALSE)) ->  | K95: =IF(E95="","",VLOOKUP(E95,Listes_masqué!$N$3:$O$22,2,FALSE)) ->  | L95: =IF(G95="","",VLOOKUP(G95,Listes_masqué!$F$3:$G$62,2,FALSE)) ->  | M95: =IF(H95="","",VLOOKUP(H95,Listes_masqué!$B$3:$C$25,2,FALSE)) ->  | Q95: =IFERROR(_xlfn.XLOOKUP(P95,Tableau13[Code produit],Tableau13[Libellé]),"") ->  | R95: =IFERROR(VLOOKUP('Generateur code produit'!$P95,Tableau13[[#All],[Code produit]:[Tarif HT]],3,FALSE),"") ->  | T95: =VLOOKUP(D95,Listes_masqué!$H$3:$J$6,3,FALSE) ->  | U95: =IF(K95="213",VLOOKUP(F95,Listes_masqué!$Q$9:$R$13,2,FALSE),VLOOKUP(F95,Listes_masqué!$Q$3:$R$7,2,FALSE)) -> 
J96: =IF(D96="","",VLOOKUP(D96,Listes_masqué!$H$3:$K$14,2,FALSE)) ->  | K96: =IF(E96="","",VLOOKUP(E96,Listes_masqué!$N$3:$O$22,2,FALSE)) ->  | L96: =IF(G96="","",VLOOKUP(G96,Listes_masqué!$F$3:$G$62,2,FALSE)) ->  | M96: =IF(H96="","",VLOOKUP(H96,Listes_masqué!$B$3:$C$25,2,FALSE)) ->  | Q96: =IFERROR(_xlfn.XLOOKUP(P96,Tableau13[Code produit],Tableau13[Libellé]),"") ->  | R96: =IFERROR(VLOOKUP('Generateur code produit'!$P96,Tableau13[[#All],[Code produit]:[Tarif HT]],3,FALSE),"") ->  | T96: =VLOOKUP(D96,Listes_masqué!$H$3:$J$6,3,FALSE) ->  | U96: =IF(K96="213",VLOOKUP(F96,Listes_masqué!$Q$9:$R$13,2,FALSE),VLOOKUP(F96,Listes_masqué!$Q$3:$R$7,2,FALSE)) -> 
J97: =IF(D97="","",VLOOKUP(D97,Listes_masqué!$H$3:$K$14,2,FALSE)) ->  | K97: =IF(E97="","",VLOOKUP(E97,Listes_masqué!$N$3:$O$22,2,FALSE)) ->  | L97: =IF(G97="","",VLOOKUP(G97,Listes_masqué!$F$3:$G$62,2,FALSE)) ->  | M97: =IF(H97="","",VLOOKUP(H97,Listes_masqué!$B$3:$C$25,2,FALSE)) ->  | Q97: =IFERROR(_xlfn.XLOOKUP(P97,Tableau13[Code produit],Tableau13[Libellé]),"") ->  | R97: =IFERROR(VLOOKUP('Generateur code produit'!$P97,Tableau13[[#All],[Code produit]:[Tarif HT]],3,FALSE),"") ->  | T97: =VLOOKUP(D97,Listes_masqué!$H$3:$J$6,3,FALSE) ->  | U97: =IF(K97="213",VLOOKUP(F97,Listes_masqué!$Q$9:$R$13,2,FALSE),VLOOKUP(F97,Listes_masqué!$Q$3:$R$7,2,FALSE)) -> 
J98: =IF(D98="","",VLOOKUP(D98,Listes_masqué!$H$3:$K$14,2,FALSE)) ->  | K98: =IF(E98="","",VLOOKUP(E98,Listes_masqué!$N$3:$O$22,2,FALSE)) ->  | L98: =IF(G98="","",VLOOKUP(G98,Listes_masqué!$F$3:$G$62,2,FALSE)) ->  | M98: =IF(H98="","",VLOOKUP(H98,Listes_masqué!$B$3:$C$25,2,FALSE)) ->  | Q98: =IFERROR(_xlfn.XLOOKUP(P98,Tableau13[Code produit],Tableau13[Libellé]),"") ->  | R98: =IFERROR(VLOOKUP('Generateur code produit'!$P98,Tableau13[[#All],[Code produit]:[Tarif HT]],3,FALSE),"") ->  | T98: =VLOOKUP(D98,Listes_masqué!$H$3:$J$6,3,FALSE) ->  | U98: =IF(K98="213",VLOOKUP(F98,Listes_masqué!$Q$9:$R$13,2,FALSE),VLOOKUP(F98,Listes_masqué!$Q$3:$R$7,2,FALSE)) -> 
J99: =IF(D99="","",VLOOKUP(D99,Listes_masqué!$H$3:$K$14,2,FALSE)) ->  | K99: =IF(E99="","",VLOOKUP(E99,Listes_masqué!$N$3:$O$22,2,FALSE)) ->  | L99: =IF(G99="","",VLOOKUP(G99,Listes_masqué!$F$3:$G$62,2,FALSE)) ->  | M99: =IF(H99="","",VLOOKUP(H99,Listes_masqué!$B$3:$C$25,2,FALSE)) ->  | Q99: =IFERROR(_xlfn.XLOOKUP(P99,Tableau13[Code produit],Tableau13[Libellé]),"") ->  | R99: =IFERROR(VLOOKUP('Generateur code produit'!$P99,Tableau13[[#All],[Code produit]:[Tarif HT]],3,FALSE),"") ->  | T99: =VLOOKUP(D99,Listes_masqué!$H$3:$J$6,3,FALSE) ->  | U99: =IF(K99="213",VLOOKUP(F99,Listes_masqué!$Q$9:$R$13,2,FALSE),VLOOKUP(F99,Listes_masqué!$Q$3:$R$7,2,FALSE)) -> 
J100: =IF(D100="","",VLOOKUP(D100,Listes_masqué!$H$3:$K$14,2,FALSE)) ->  | K100: =IF(E100="","",VLOOKUP(E100,Listes_masqué!$N$3:$O$22,2,FALSE)) ->  | L100: =IF(G100="","",VLOOKUP(G100,Listes_masqué!$F$3:$G$62,2,FALSE)) ->  | M100: =IF(H100="","",VLOOKUP(H100,Listes_masqué!$B$3:$C$25,2,FALSE)) ->  | Q100: =IFERROR(_xlfn.XLOOKUP(P100,Tableau13[Code produit],Tableau13[Libellé]),"") ->  | R100: =IFERROR(VLOOKUP('Generateur code produit'!$P100,Tableau13[[#All],[Code produit]:[Tarif HT]],3,FALSE),"") ->  | T100: =VLOOKUP(D100,Listes_masqué!$H$3:$J$6,3,FALSE) ->  | U100: =IF(K100="213",VLOOKUP(F100,Listes_masqué!$Q$9:$R$13,2,FALSE),VLOOKUP(F100,Listes_masqué!$Q$3:$R$7,2,FALSE)) -> 
J101: =IF(D101="","",VLOOKUP(D101,Listes_masqué!$H$3:$K$14,2,FALSE)) ->  | K101: =IF(E101="","",VLOOKUP(E101,Listes_masqué!$N$3:$O$22,2,FALSE)) ->  | L101: =IF(G101="","",VLOOKUP(G101,Listes_masqué!$F$3:$G$62,2,FALSE)) ->  | M101: =IF(H101="","",VLOOKUP(H101,Listes_masqué!$B$3:$C$25,2,FALSE)) ->  | Q101: =IFERROR(_xlfn.XLOOKUP(P101,Tableau13[Code produit],Tableau13[Libellé]),"") ->  | R101: =IFERROR(VLOOKUP('Generateur code produit'!$P101,Tableau13[[#All],[Code produit]:[Tarif HT]],3,FALSE),"") ->  | T101: =VLOOKUP(D101,Listes_masqué!$H$3:$J$6,3,FALSE) ->  | U101: =IF(K101="213",VLOOKUP(F101,Listes_masqué!$Q$9:$R$13,2,FALSE),VLOOKUP(F101,Listes_masqué!$Q$3:$R$7,2,FALSE)) -> 
J102: =IF(D102="","",VLOOKUP(D102,Listes_masqué!$H$3:$K$14,2,FALSE)) ->  | K102: =IF(E102="","",VLOOKUP(E102,Listes_masqué!$N$3:$O$22,2,FALSE)) ->  | L102: =IF(G102="","",VLOOKUP(G102,Listes_masqué!$F$3:$G$62,2,FALSE)) ->  | M102: =IF(H102="","",VLOOKUP(H102,Listes_masqué!$B$3:$C$25,2,FALSE)) ->  | Q102: =IFERROR(_xlfn.XLOOKUP(P102,Tableau13[Code produit],Tableau13[Libellé]),"") ->  | R102: =IFERROR(VLOOKUP('Generateur code produit'!$P102,Tableau13[[#All],[Code produit]:[Tarif HT]],3,FALSE),"") ->  | T102: =VLOOKUP(D102,Listes_masqué!$H$3:$J$6,3,FALSE) ->  | U102: =IF(K102="213",VLOOKUP(F102,Listes_masqué!$Q$9:$R$13,2,FALSE),VLOOKUP(F102,Listes_masqué!$Q$3:$R$7,2,FALSE)) -> 
J103: =IF(D103="","",VLOOKUP(D103,Listes_masqué!$H$3:$K$14,2,FALSE)) ->  | K103: =IF(E103="","",VLOOKUP(E103,Listes_masqué!$N$3:$O$22,2,FALSE)) ->  | L103: =IF(G103="","",VLOOKUP(G103,Listes_masqué!$F$3:$G$62,2,FALSE)) ->  | M103: =IF(H103="","",VLOOKUP(H103,Listes_masqué!$B$3:$C$25,2,FALSE)) ->  | Q103: =IFERROR(_xlfn.XLOOKUP(P103,Tableau13[Code produit],Tableau13[Libellé]),"") ->  | R103: =IFERROR(VLOOKUP('Generateur code produit'!$P103,Tableau13[[#All],[Code produit]:[Tarif HT]],3,FALSE),"") ->  | T103: =VLOOKUP(D103,Listes_masqué!$H$3:$J$6,3,FALSE) ->  | U103: =IF(K103="213",VLOOKUP(F103,Listes_masqué!$Q$9:$R$13,2,FALSE),VLOOKUP(F103,Listes_masqué!$Q$3:$R$7,2,FALSE)) -> 
J104: =IF(D104="","",VLOOKUP(D104,Listes_masqué!$H$3:$K$14,2,FALSE)) ->  | K104: =IF(E104="","",VLOOKUP(E104,Listes_masqué!$N$3:$O$22,2,FALSE)) ->  | L104: =IF(G104="","",VLOOKUP(G104,Listes_masqué!$F$3:$G$62,2,FALSE)) ->  | M104: =IF(H104="","",VLOOKUP(H104,Listes_masqué!$B$3:$C$25,2,FALSE)) ->  | Q104: =IFERROR(_xlfn.XLOOKUP(P104,Tableau13[Code produit],Tableau13[Libellé]),"") ->  | R104: =IFERROR(VLOOKUP('Generateur code produit'!$P104,Tableau13[[#All],[Code produit]:[Tarif HT]],3,FALSE),"") ->  | T104: =VLOOKUP(D104,Listes_masqué!$H$3:$J$6,3,FALSE) ->  | U104: =IF(K104="213",VLOOKUP(F104,Listes_masqué!$Q$9:$R$13,2,FALSE),VLOOKUP(F104,Listes_masqué!$Q$3:$R$7,2,FALSE)) -> 
J105: =IF(D105="","",VLOOKUP(D105,Listes_masqué!$H$3:$K$14,2,FALSE)) ->  | K105: =IF(E105="","",VLOOKUP(E105,Listes_masqué!$N$3:$O$22,2,FALSE)) ->  | L105: =IF(G105="","",VLOOKUP(G105,Listes_masqué!$F$3:$G$62,2,FALSE)) ->  | M105: =IF(H105="","",VLOOKUP(H105,Listes_masqué!$B$3:$C$25,2,FALSE)) ->  | Q105: =IFERROR(_xlfn.XLOOKUP(P105,Tableau13[Code produit],Tableau13[Libellé]),"") ->  | R105: =IFERROR(VLOOKUP('Generateur code produit'!$P105,Tableau13[[#All],[Code produit]:[Tarif HT]],3,FALSE),"") ->  | T105: =VLOOKUP(D105,Listes_masqué!$H$3:$J$6,3,FALSE) ->  | U105: =IF(K105="213",VLOOKUP(F105,Listes_masqué!$Q$9:$R$13,2,FALSE),VLOOKUP(F105,Listes_masqué!$Q$3:$R$7,2,FALSE)) -> 
J106: =IF(D106="","",VLOOKUP(D106,Listes_masqué!$H$3:$K$14,2,FALSE)) ->  | K106: =IF(E106="","",VLOOKUP(E106,Listes_masqué!$N$3:$O$22,2,FALSE)) ->  | L106: =IF(G106="","",VLOOKUP(G106,Listes_masqué!$F$3:$G$62,2,FALSE)) ->  | M106: =IF(H106="","",VLOOKUP(H106,Listes_masqué!$B$3:$C$25,2,FALSE)) ->  | Q106: =IFERROR(_xlfn.XLOOKUP(P106,Tableau13[Code produit],Tableau13[Libellé]),"") ->  | R106: =IFERROR(VLOOKUP('Generateur code produit'!$P106,Tableau13[[#All],[Code produit]:[Tarif HT]],3,FALSE),"") ->  | T106: =VLOOKUP(D106,Listes_masqué!$H$3:$J$6,3,FALSE) ->  | U106: =IF(K106="213",VLOOKUP(F106,Listes_masqué!$Q$9:$R$13,2,FALSE),VLOOKUP(F106,Listes_masqué!$Q$3:$R$7,2,FALSE)) -> 
J107: =IF(D107="","",VLOOKUP(D107,Listes_masqué!$H$3:$K$14,2,FALSE)) ->  | K107: =IF(E107="","",VLOOKUP(E107,Listes_masqué!$N$3:$O$22,2,FALSE)) ->  | L107: =IF(G107="","",VLOOKUP(G107,Listes_masqué!$F$3:$G$62,2,FALSE)) ->  | M107: =IF(H107="","",VLOOKUP(H107,Listes_masqué!$B$3:$C$25,2,FALSE)) ->  | Q107: =IFERROR(_xlfn.XLOOKUP(P107,Tableau13[Code produit],Tableau13[Libellé]),"") ->  | R107: =IFERROR(VLOOKUP('Generateur code produit'!$P107,Tableau13[[#All],[Code produit]:[Tarif HT]],3,FALSE),"") ->  | T107: =VLOOKUP(D107,Listes_masqué!$H$3:$J$6,3,FALSE) ->  | U107: =IF(K107="213",VLOOKUP(F107,Listes_masqué!$Q$9:$R$13,2,FALSE),VLOOKUP(F107,Listes_masqué!$Q$3:$R$7,2,FALSE)) -> 
J108: =IF(D108="","",VLOOKUP(D108,Listes_masqué!$H$3:$K$14,2,FALSE)) ->  | K108: =IF(E108="","",VLOOKUP(E108,Listes_masqué!$N$3:$O$22,2,FALSE)) ->  | L108: =IF(G108="","",VLOOKUP(G108,Listes_masqué!$F$3:$G$62,2,FALSE)) ->  | M108: =IF(H108="","",VLOOKUP(H108,Listes_masqué!$B$3:$C$25,2,FALSE)) ->  | Q108: =IFERROR(_xlfn.XLOOKUP(P108,Tableau13[Code produit],Tableau13[Libellé]),"") ->  | R108: =IFERROR(VLOOKUP('Generateur code produit'!$P108,Tableau13[[#All],[Code produit]:[Tarif HT]],3,FALSE),"") ->  | T108: =VLOOKUP(D108,Listes_masqué!$H$3:$J$6,3,FALSE) ->  | U108: =IF(K108="213",VLOOKUP(F108,Listes_masqué!$Q$9:$R$13,2,FALSE),VLOOKUP(F108,Listes_masqué!$Q$3:$R$7,2,FALSE)) -> 
J109: =IF(D109="","",VLOOKUP(D109,Listes_masqué!$H$3:$K$14,2,FALSE)) ->  | K109: =IF(E109="","",VLOOKUP(E109,Listes_masqué!$N$3:$O$22,2,FALSE)) ->  | L109: =IF(G109="","",VLOOKUP(G109,Listes_masqué!$F$3:$G$62,2,FALSE)) ->  | M109: =IF(H109="","",VLOOKUP(H109,Listes_masqué!$B$3:$C$25,2,FALSE)) ->  | Q109: =IFERROR(_xlfn.XLOOKUP(P109,Tableau13[Code produit],Tableau13[Libellé]),"") ->  | R109: =IFERROR(VLOOKUP('Generateur code produit'!$P109,Tableau13[[#All],[Code produit]:[Tarif HT]],3,FALSE),"") ->  | T109: =VLOOKUP(D109,Listes_masqué!$H$3:$J$6,3,FALSE) ->  | U109: =IF(K109="213",VLOOKUP(F109,Listes_masqué!$Q$9:$R$13,2,FALSE),VLOOKUP(F109,Listes_masqué!$Q$3:$R$7,2,FALSE)) -> 
J110: =IF(D110="","",VLOOKUP(D110,Listes_masqué!$H$3:$K$14,2,FALSE)) ->  | K110: =IF(E110="","",VLOOKUP(E110,Listes_masqué!$N$3:$O$22,2,FALSE)) ->  | L110: =IF(G110="","",VLOOKUP(G110,Listes_masqué!$F$3:$G$62,2,FALSE)) ->  | M110: =IF(H110="","",VLOOKUP(H110,Listes_masqué!$B$3:$C$25,2,FALSE)) ->  | Q110: =IFERROR(_xlfn.XLOOKUP(P110,Tableau13[Code produit],Tableau13[Libellé]),"") ->  | R110: =IFERROR(VLOOKUP('Generateur code produit'!$P110,Tableau13[[#All],[Code produit]:[Tarif HT]],3,FALSE),"") ->  | T110: =VLOOKUP(D110,Listes_masqué!$H$3:$J$6,3,FALSE) ->  | U110: =IF(K110="213",VLOOKUP(F110,Listes_masqué!$Q$9:$R$13,2,FALSE),VLOOKUP(F110,Listes_masqué!$Q$3:$R$7,2,FALSE)) -> 
J111: =IF(D111="","",VLOOKUP(D111,Listes_masqué!$H$3:$K$14,2,FALSE)) ->  | K111: =IF(E111="","",VLOOKUP(E111,Listes_masqué!$N$3:$O$22,2,FALSE)) ->  | L111: =IF(G111="","",VLOOKUP(G111,Listes_masqué!$F$3:$G$62,2,FALSE)) ->  | M111: =IF(H111="","",VLOOKUP(H111,Listes_masqué!$B$3:$C$25,2,FALSE)) ->  | Q111: =IFERROR(_xlfn.XLOOKUP(P111,Tableau13[Code produit],Tableau13[Libellé]),"") ->  | R111: =IFERROR(VLOOKUP('Generateur code produit'!$P111,Tableau13[[#All],[Code produit]:[Tarif HT]],3,FALSE),"") ->  | T111: =VLOOKUP(D111,Listes_masqué!$H$3:$J$6,3,FALSE) ->  | U111: =IF(K111="213",VLOOKUP(F111,Listes_masqué!$Q$9:$R$13,2,FALSE),VLOOKUP(F111,Listes_masqué!$Q$3:$R$7,2,FALSE)) -> 
J112: =IF(D112="","",VLOOKUP(D112,Listes_masqué!$H$3:$K$14,2,FALSE)) ->  | K112: =IF(E112="","",VLOOKUP(E112,Listes_masqué!$N$3:$O$22,2,FALSE)) ->  | L112: =IF(G112="","",VLOOKUP(G112,Listes_masqué!$F$3:$G$62,2,FALSE)) ->  | M112: =IF(H112="","",VLOOKUP(H112,Listes_masqué!$B$3:$C$25,2,FALSE)) ->  | Q112: =IFERROR(_xlfn.XLOOKUP(P112,Tableau13[Code produit],Tableau13[Libellé]),"") ->  | R112: =IFERROR(VLOOKUP('Generateur code produit'!$P112,Tableau13[[#All],[Code produit]:[Tarif HT]],3,FALSE),"") ->  | T112: =VLOOKUP(D112,Listes_masqué!$H$3:$J$6,3,FALSE) ->  | U112: =IF(K112="213",VLOOKUP(F112,Listes_masqué!$Q$9:$R$13,2,FALSE),VLOOKUP(F112,Listes_masqué!$Q$3:$R$7,2,FALSE)) -> 
J113: =IF(D113="","",VLOOKUP(D113,Listes_masqué!$H$3:$K$14,2,FALSE)) ->  | K113: =IF(E113="","",VLOOKUP(E113,Listes_masqué!$N$3:$O$22,2,FALSE)) ->  | L113: =IF(G113="","",VLOOKUP(G113,Listes_masqué!$F$3:$G$62,2,FALSE)) ->  | M113: =IF(H113="","",VLOOKUP(H113,Listes_masqué!$B$3:$C$25,2,FALSE)) ->  | Q113: =IFERROR(_xlfn.XLOOKUP(P113,Tableau13[Code produit],Tableau13[Libellé]),"") ->  | R113: =IFERROR(VLOOKUP('Generateur code produit'!$P113,Tableau13[[#All],[Code produit]:[Tarif HT]],3,FALSE),"") ->  | T113: =VLOOKUP(D113,Listes_masqué!$H$3:$J$6,3,FALSE) ->  | U113: =IF(K113="213",VLOOKUP(F113,Listes_masqué!$Q$9:$R$13,2,FALSE),VLOOKUP(F113,Listes_masqué!$Q$3:$R$7,2,FALSE)) -> 
J114: =IF(D114="","",VLOOKUP(D114,Listes_masqué!$H$3:$K$14,2,FALSE)) ->  | K114: =IF(E114="","",VLOOKUP(E114,Listes_masqué!$N$3:$O$22,2,FALSE)) ->  | L114: =IF(G114="","",VLOOKUP(G114,Listes_masqué!$F$3:$G$62,2,FALSE)) ->  | M114: =IF(H114="","",VLOOKUP(H114,Listes_masqué!$B$3:$C$25,2,FALSE)) ->  | Q114: =IFERROR(_xlfn.XLOOKUP(P114,Tableau13[Code produit],Tableau13[Libellé]),"") ->  | R114: =IFERROR(VLOOKUP('Generateur code produit'!$P114,Tableau13[[#All],[Code produit]:[Tarif HT]],3,FALSE),"") ->  | T114: =VLOOKUP(D114,Listes_masqué!$H$3:$J$6,3,FALSE) ->  | U114: =IF(K114="213",VLOOKUP(F114,Listes_masqué!$Q$9:$R$13,2,FALSE),VLOOKUP(F114,Listes_masqué!$Q$3:$R$7,2,FALSE)) -> 
J115: =IF(D115="","",VLOOKUP(D115,Listes_masqué!$H$3:$K$14,2,FALSE)) ->  | K115: =IF(E115="","",VLOOKUP(E115,Listes_masqué!$N$3:$O$22,2,FALSE)) ->  | L115: =IF(G115="","",VLOOKUP(G115,Listes_masqué!$F$3:$G$62,2,FALSE)) ->  | M115: =IF(H115="","",VLOOKUP(H115,Listes_masqué!$B$3:$C$25,2,FALSE)) ->  | Q115: =IFERROR(_xlfn.XLOOKUP(P115,Tableau13[Code produit],Tableau13[Libellé]),"") ->  | R115: =IFERROR(VLOOKUP('Generateur code produit'!$P115,Tableau13[[#All],[Code produit]:[Tarif HT]],3,FALSE),"") ->  | T115: =VLOOKUP(D115,Listes_masqué!$H$3:$J$6,3,FALSE) ->  | U115: =IF(K115="213",VLOOKUP(F115,Listes_masqué!$Q$9:$R$13,2,FALSE),VLOOKUP(F115,Listes_masqué!$Q$3:$R$7,2,FALSE)) -> 
J116: =IF(D116="","",VLOOKUP(D116,Listes_masqué!$H$3:$K$14,2,FALSE)) ->  | K116: =IF(E116="","",VLOOKUP(E116,Listes_masqué!$N$3:$O$22,2,FALSE)) ->  | L116: =IF(G116="","",VLOOKUP(G116,Listes_masqué!$F$3:$G$62,2,FALSE)) ->  | M116: =IF(H116="","",VLOOKUP(H116,Listes_masqué!$B$3:$C$25,2,FALSE)) ->  | Q116: =IFERROR(_xlfn.XLOOKUP(P116,Tableau13[Code produit],Tableau13[Libellé]),"") ->  | R116: =IFERROR(VLOOKUP('Generateur code produit'!$P116,Tableau13[[#All],[Code produit]:[Tarif HT]],3,FALSE),"") ->  | T116: =VLOOKUP(D116,Listes_masqué!$H$3:$J$6,3,FALSE) ->  | U116: =IF(K116="213",VLOOKUP(F116,Listes_masqué!$Q$9:$R$13,2,FALSE),VLOOKUP(F116,Listes_masqué!$Q$3:$R$7,2,FALSE)) -> 
J117: =IF(D117="","",VLOOKUP(D117,Listes_masqué!$H$3:$K$14,2,FALSE)) ->  | K117: =IF(E117="","",VLOOKUP(E117,Listes_masqué!$N$3:$O$22,2,FALSE)) ->  | L117: =IF(G117="","",VLOOKUP(G117,Listes_masqué!$F$3:$G$62,2,FALSE)) ->  | M117: =IF(H117="","",VLOOKUP(H117,Listes_masqué!$B$3:$C$25,2,FALSE)) ->  | Q117: =IFERROR(_xlfn.XLOOKUP(P117,Tableau13[Code produit],Tableau13[Libellé]),"") ->  | R117: =IFERROR(VLOOKUP('Generateur code produit'!$P117,Tableau13[[#All],[Code produit]:[Tarif HT]],3,FALSE),"") ->  | T117: =VLOOKUP(D117,Listes_masqué!$H$3:$J$6,3,FALSE) ->  | U117: =IF(K117="213",VLOOKUP(F117,Listes_masqué!$Q$9:$R$13,2,FALSE),VLOOKUP(F117,Listes_masqué!$Q$3:$R$7,2,FALSE)) -> 
J118: =IF(D118="","",VLOOKUP(D118,Listes_masqué!$H$3:$K$14,2,FALSE)) ->  | K118: =IF(E118="","",VLOOKUP(E118,Listes_masqué!$N$3:$O$22,2,FALSE)) ->  | L118: =IF(G118="","",VLOOKUP(G118,Listes_masqué!$F$3:$G$62,2,FALSE)) ->  | M118: =IF(H118="","",VLOOKUP(H118,Listes_masqué!$B$3:$C$25,2,FALSE)) ->  | Q118: =IFERROR(_xlfn.XLOOKUP(P118,Tableau13[Code produit],Tableau13[Libellé]),"") ->  | R118: =IFERROR(VLOOKUP('Generateur code produit'!$P118,Tableau13[[#All],[Code produit]:[Tarif HT]],3,FALSE),"") ->  | T118: =VLOOKUP(D118,Listes_masqué!$H$3:$J$6,3,FALSE) ->  | U118: =IF(K118="213",VLOOKUP(F118,Listes_masqué!$Q$9:$R$13,2,FALSE),VLOOKUP(F118,Listes_masqué!$Q$3:$R$7,2,FALSE)) -> 
J119: =IF(D119="","",VLOOKUP(D119,Listes_masqué!$H$3:$K$14,2,FALSE)) ->  | K119: =IF(E119="","",VLOOKUP(E119,Listes_masqué!$N$3:$O$22,2,FALSE)) ->  | L119: =IF(G119="","",VLOOKUP(G119,Listes_masqué!$F$3:$G$62,2,FALSE)) ->  | M119: =IF(H119="","",VLOOKUP(H119,Listes_masqué!$B$3:$C$25,2,FALSE)) ->  | Q119: =IFERROR(_xlfn.XLOOKUP(P119,Tableau13[Code produit],Tableau13[Libellé]),"") ->  | R119: =IFERROR(VLOOKUP('Generateur code produit'!$P119,Tableau13[[#All],[Code produit]:[Tarif HT]],3,FALSE),"") ->  | T119: =VLOOKUP(D119,Listes_masqué!$H$3:$J$6,3,FALSE) ->  | U119: =IF(K119="213",VLOOKUP(F119,Listes_masqué!$Q$9:$R$13,2,FALSE),VLOOKUP(F119,Listes_masqué!$Q$3:$R$7,2,FALSE)) -> 
J120: =IF(D120="","",VLOOKUP(D120,Listes_masqué!$H$3:$K$14,2,FALSE)) ->  | K120: =IF(E120="","",VLOOKUP(E120,Listes_masqué!$N$3:$O$22,2,FALSE)) ->  | L120: =IF(G120="","",VLOOKUP(G120,Listes_masqué!$F$3:$G$62,2,FALSE)) ->  | M120: =IF(H120="","",VLOOKUP(H120,Listes_masqué!$B$3:$C$25,2,FALSE)) ->  | Q120: =IFERROR(_xlfn.XLOOKUP(P120,Tableau13[Code produit],Tableau13[Libellé]),"") ->  | R120: =IFERROR(VLOOKUP('Generateur code produit'!$P120,Tableau13[[#All],[Code produit]:[Tarif HT]],3,FALSE),"") ->  | T120: =VLOOKUP(D120,Listes_masqué!$H$3:$J$6,3,FALSE) ->  | U120: =IF(K120="213",VLOOKUP(F120,Listes_masqué!$Q$9:$R$13,2,FALSE),VLOOKUP(F120,Listes_masqué!$Q$3:$R$7,2,FALSE)) -> 
J121: =IF(D121="","",VLOOKUP(D121,Listes_masqué!$H$3:$K$14,2,FALSE)) ->  | K121: =IF(E121="","",VLOOKUP(E121,Listes_masqué!$N$3:$O$22,2,FALSE)) ->  | L121: =IF(G121="","",VLOOKUP(G121,Listes_masqué!$F$3:$G$62,2,FALSE)) ->  | M121: =IF(H121="","",VLOOKUP(H121,Listes_masqué!$B$3:$C$25,2,FALSE)) ->  | Q121: =IFERROR(_xlfn.XLOOKUP(P121,Tableau13[Code produit],Tableau13[Libellé]),"") ->  | R121: =IFERROR(VLOOKUP('Generateur code produit'!$P121,Tableau13[[#All],[Code produit]:[Tarif HT]],3,FALSE),"") ->  | T121: =VLOOKUP(D121,Listes_masqué!$H$3:$J$6,3,FALSE) ->  | U121: =IF(K121="213",VLOOKUP(F121,Listes_masqué!$Q$9:$R$13,2,FALSE),VLOOKUP(F121,Listes_masqué!$Q$3:$R$7,2,FALSE)) -> 
J122: =IF(D122="","",VLOOKUP(D122,Listes_masqué!$H$3:$K$14,2,FALSE)) ->  | K122: =IF(E122="","",VLOOKUP(E122,Listes_masqué!$N$3:$O$22,2,FALSE)) ->  | L122: =IF(G122="","",VLOOKUP(G122,Listes_masqué!$F$3:$G$62,2,FALSE)) ->  | M122: =IF(H122="","",VLOOKUP(H122,Listes_masqué!$B$3:$C$25,2,FALSE)) ->  | Q122: =IFERROR(_xlfn.XLOOKUP(P122,Tableau13[Code produit],Tableau13[Libellé]),"") ->  | R122: =IFERROR(VLOOKUP('Generateur code produit'!$P122,Tableau13[[#All],[Code produit]:[Tarif HT]],3,FALSE),"") ->  | T122: =VLOOKUP(D122,Listes_masqué!$H$3:$J$6,3,FALSE) ->  | U122: =IF(K122="213",VLOOKUP(F122,Listes_masqué!$Q$9:$R$13,2,FALSE),VLOOKUP(F122,Listes_masqué!$Q$3:$R$7,2,FALSE)) -> 
J123: =IF(D123="","",VLOOKUP(D123,Listes_masqué!$H$3:$K$14,2,FALSE)) ->  | K123: =IF(E123="","",VLOOKUP(E123,Listes_masqué!$N$3:$O$22,2,FALSE)) ->  | L123: =IF(G123="","",VLOOKUP(G123,Listes_masqué!$F$3:$G$62,2,FALSE)) ->  | M123: =IF(H123="","",VLOOKUP(H123,Listes_masqué!$B$3:$C$25,2,FALSE)) ->  | Q123: =IFERROR(_xlfn.XLOOKUP(P123,Tableau13[Code produit],Tableau13[Libellé]),"") ->  | R123: =IFERROR(VLOOKUP('Generateur code produit'!$P123,Tableau13[[#All],[Code produit]:[Tarif HT]],3,FALSE),"") ->  | T123: =VLOOKUP(D123,Listes_masqué!$H$3:$J$6,3,FALSE) ->  | U123: =IF(K123="213",VLOOKUP(F123,Listes_masqué!$Q$9:$R$13,2,FALSE),VLOOKUP(F123,Listes_masqué!$Q$3:$R$7,2,FALSE)) -> 
J124: =IF(D124="","",VLOOKUP(D124,Listes_masqué!$H$3:$K$14,2,FALSE)) ->  | K124: =IF(E124="","",VLOOKUP(E124,Listes_masqué!$N$3:$O$22,2,FALSE)) ->  | L124: =IF(G124="","",VLOOKUP(G124,Listes_masqué!$F$3:$G$62,2,FALSE)) ->  | M124: =IF(H124="","",VLOOKUP(H124,Listes_masqué!$B$3:$C$25,2,FALSE)) ->  | Q124: =IFERROR(_xlfn.XLOOKUP(P124,Tableau13[Code produit],Tableau13[Libellé]),"") ->  | R124: =IFERROR(VLOOKUP('Generateur code produit'!$P124,Tableau13[[#All],[Code produit]:[Tarif HT]],3,FALSE),"") ->  | T124: =VLOOKUP(D124,Listes_masqué!$H$3:$J$6,3,FALSE) ->  | U124: =IF(K124="213",VLOOKUP(F124,Listes_masqué!$Q$9:$R$13,2,FALSE),VLOOKUP(F124,Listes_masqué!$Q$3:$R$7,2,FALSE)) -> 
J125: =IF(D125="","",VLOOKUP(D125,Listes_masqué!$H$3:$K$14,2,FALSE)) ->  | K125: =IF(E125="","",VLOOKUP(E125,Listes_masqué!$N$3:$O$22,2,FALSE)) ->  | L125: =IF(G125="","",VLOOKUP(G125,Listes_masqué!$F$3:$G$62,2,FALSE)) ->  | M125: =IF(H125="","",VLOOKUP(H125,Listes_masqué!$B$3:$C$25,2,FALSE)) ->  | Q125: =IFERROR(_xlfn.XLOOKUP(P125,Tableau13[Code produit],Tableau13[Libellé]),"") ->  | R125: =IFERROR(VLOOKUP('Generateur code produit'!$P125,Tableau13[[#All],[Code produit]:[Tarif HT]],3,FALSE),"") ->  | T125: =VLOOKUP(D125,Listes_masqué!$H$3:$J$6,3,FALSE) ->  | U125: =IF(K125="213",VLOOKUP(F125,Listes_masqué!$Q$9:$R$13,2,FALSE),VLOOKUP(F125,Listes_masqué!$Q$3:$R$7,2,FALSE)) -> 
J126: =IF(D126="","",VLOOKUP(D126,Listes_masqué!$H$3:$K$14,2,FALSE)) ->  | K126: =IF(E126="","",VLOOKUP(E126,Listes_masqué!$N$3:$O$22,2,FALSE)) ->  | L126: =IF(G126="","",VLOOKUP(G126,Listes_masqué!$F$3:$G$62,2,FALSE)) ->  | M126: =IF(H126="","",VLOOKUP(H126,Listes_masqué!$B$3:$C$25,2,FALSE)) ->  | Q126: =IFERROR(_xlfn.XLOOKUP(P126,Tableau13[Code produit],Tableau13[Libellé]),"") ->  | R126: =IFERROR(VLOOKUP('Generateur code produit'!$P126,Tableau13[[#All],[Code produit]:[Tarif HT]],3,FALSE),"") ->  | T126: =VLOOKUP(D126,Listes_masqué!$H$3:$J$6,3,FALSE) ->  | U126: =IF(K126="213",VLOOKUP(F126,Listes_masqué!$Q$9:$R$13,2,FALSE),VLOOKUP(F126,Listes_masqué!$Q$3:$R$7,2,FALSE)) -> 
J127: =IF(D127="","",VLOOKUP(D127,Listes_masqué!$H$3:$K$14,2,FALSE)) ->  | K127: =IF(E127="","",VLOOKUP(E127,Listes_masqué!$N$3:$O$22,2,FALSE)) ->  | L127: =IF(G127="","",VLOOKUP(G127,Listes_masqué!$F$3:$G$62,2,FALSE)) ->  | M127: =IF(H127="","",VLOOKUP(H127,Listes_masqué!$B$3:$C$25,2,FALSE)) ->  | Q127: =IFERROR(_xlfn.XLOOKUP(P127,Tableau13[Code produit],Tableau13[Libellé]),"") ->  | R127: =IFERROR(VLOOKUP('Generateur code produit'!$P127,Tableau13[[#All],[Code produit]:[Tarif HT]],3,FALSE),"") ->  | T127: =VLOOKUP(D127,Listes_masqué!$H$3:$J$6,3,FALSE) ->  | U127: =IF(K127="213",VLOOKUP(F127,Listes_masqué!$Q$9:$R$13,2,FALSE),VLOOKUP(F127,Listes_masqué!$Q$3:$R$7,2,FALSE)) -> 
J128: =IF(D128="","",VLOOKUP(D128,Listes_masqué!$H$3:$K$14,2,FALSE)) ->  | K128: =IF(E128="","",VLOOKUP(E128,Listes_masqué!$N$3:$O$22,2,FALSE)) ->  | L128: =IF(G128="","",VLOOKUP(G128,Listes_masqué!$F$3:$G$62,2,FALSE)) ->  | M128: =IF(H128="","",VLOOKUP(H128,Listes_masqué!$B$3:$C$25,2,FALSE)) ->  | Q128: =IFERROR(_xlfn.XLOOKUP(P128,Tableau13[Code produit],Tableau13[Libellé]),"") ->  | R128: =IFERROR(VLOOKUP('Generateur code produit'!$P128,Tableau13[[#All],[Code produit]:[Tarif HT]],3,FALSE),"") ->  | T128: =VLOOKUP(D128,Listes_masqué!$H$3:$J$6,3,FALSE) ->  | U128: =IF(K128="213",VLOOKUP(F128,Listes_masqué!$Q$9:$R$13,2,FALSE),VLOOKUP(F128,Listes_masqué!$Q$3:$R$7,2,FALSE)) -> 
J129: =IF(D129="","",VLOOKUP(D129,Listes_masqué!$H$3:$K$14,2,FALSE)) ->  | K129: =IF(E129="","",VLOOKUP(E129,Listes_masqué!$N$3:$O$22,2,FALSE)) ->  | L129: =IF(G129="","",VLOOKUP(G129,Listes_masqué!$F$3:$G$62,2,FALSE)) ->  | M129: =IF(H129="","",VLOOKUP(H129,Listes_masqué!$B$3:$C$25,2,FALSE)) ->  | Q129: =IFERROR(_xlfn.XLOOKUP(P129,Tableau13[Code produit],Tableau13[Libellé]),"") ->  | R129: =IFERROR(VLOOKUP('Generateur code produit'!$P129,Tableau13[[#All],[Code produit]:[Tarif HT]],3,FALSE),"") ->  | T129: =VLOOKUP(D129,Listes_masqué!$H$3:$J$6,3,FALSE) ->  | U129: =IF(K129="213",VLOOKUP(F129,Listes_masqué!$Q$9:$R$13,2,FALSE),VLOOKUP(F129,Listes_masqué!$Q$3:$R$7,2,FALSE)) -> 
J130: =IF(D130="","",VLOOKUP(D130,Listes_masqué!$H$3:$K$14,2,FALSE)) ->  | K130: =IF(E130="","",VLOOKUP(E130,Listes_masqué!$N$3:$O$22,2,FALSE)) ->  | L130: =IF(G130="","",VLOOKUP(G130,Listes_masqué!$F$3:$G$62,2,FALSE)) ->  | M130: =IF(H130="","",VLOOKUP(H130,Listes_masqué!$B$3:$C$25,2,FALSE)) ->  | Q130: =IFERROR(_xlfn.XLOOKUP(P130,Tableau13[Code produit],Tableau13[Libellé]),"") ->  | R130: =IFERROR(VLOOKUP('Generateur code produit'!$P130,Tableau13[[#All],[Code produit]:[Tarif HT]],3,FALSE),"") ->  | T130: =VLOOKUP(D130,Listes_masqué!$H$3:$J$6,3,FALSE) ->  | U130: =IF(K130="213",VLOOKUP(F130,Listes_masqué!$Q$9:$R$13,2,FALSE),VLOOKUP(F130,Listes_masqué!$Q$3:$R$7,2,FALSE)) -> 
J131: =IF(D131="","",VLOOKUP(D131,Listes_masqué!$H$3:$K$14,2,FALSE)) ->  | K131: =IF(E131="","",VLOOKUP(E131,Listes_masqué!$N$3:$O$22,2,FALSE)) ->  | L131: =IF(G131="","",VLOOKUP(G131,Listes_masqué!$F$3:$G$62,2,FALSE)) ->  | M131: =IF(H131="","",VLOOKUP(H131,Listes_masqué!$B$3:$C$25,2,FALSE)) ->  | Q131: =IFERROR(_xlfn.XLOOKUP(P131,Tableau13[Code produit],Tableau13[Libellé]),"") ->  | R131: =IFERROR(VLOOKUP('Generateur code produit'!$P131,Tableau13[[#All],[Code produit]:[Tarif HT]],3,FALSE),"") ->  | T131: =VLOOKUP(D131,Listes_masqué!$H$3:$J$6,3,FALSE) ->  | U131: =IF(K131="213",VLOOKUP(F131,Listes_masqué!$Q$9:$R$13,2,FALSE),VLOOKUP(F131,Listes_masqué!$Q$3:$R$7,2,FALSE)) -> 
J132: =IF(D132="","",VLOOKUP(D132,Listes_masqué!$H$3:$K$14,2,FALSE)) ->  | K132: =IF(E132="","",VLOOKUP(E132,Listes_masqué!$N$3:$O$22,2,FALSE)) ->  | L132: =IF(G132="","",VLOOKUP(G132,Listes_masqué!$F$3:$G$62,2,FALSE)) ->  | M132: =IF(H132="","",VLOOKUP(H132,Listes_masqué!$B$3:$C$25,2,FALSE)) ->  | Q132: =IFERROR(_xlfn.XLOOKUP(P132,Tableau13[Code produit],Tableau13[Libellé]),"") ->  | R132: =IFERROR(VLOOKUP('Generateur code produit'!$P132,Tableau13[[#All],[Code produit]:[Tarif HT]],3,FALSE),"") ->  | T132: =VLOOKUP(D132,Listes_masqué!$H$3:$J$6,3,FALSE) ->  | U132: =IF(K132="213",VLOOKUP(F132,Listes_masqué!$Q$9:$R$13,2,FALSE),VLOOKUP(F132,Listes_masqué!$Q$3:$R$7,2,FALSE)) -> 
J133: =IF(D133="","",VLOOKUP(D133,Listes_masqué!$H$3:$K$14,2,FALSE)) ->  | K133: =IF(E133="","",VLOOKUP(E133,Listes_masqué!$N$3:$O$22,2,FALSE)) ->  | L133: =IF(G133="","",VLOOKUP(G133,Listes_masqué!$F$3:$G$62,2,FALSE)) ->  | M133: =IF(H133="","",VLOOKUP(H133,Listes_masqué!$B$3:$C$25,2,FALSE)) ->  | Q133: =IFERROR(_xlfn.XLOOKUP(P133,Tableau13[Code produit],Tableau13[Libellé]),"") ->  | R133: =IFERROR(VLOOKUP('Generateur code produit'!$P133,Tableau13[[#All],[Code produit]:[Tarif HT]],3,FALSE),"") ->  | T133: =VLOOKUP(D133,Listes_masqué!$H$3:$J$6,3,FALSE) ->  | U133: =IF(K133="213",VLOOKUP(F133,Listes_masqué!$Q$9:$R$13,2,FALSE),VLOOKUP(F133,Listes_masqué!$Q$3:$R$7,2,FALSE)) -> 
J134: =IF(D134="","",VLOOKUP(D134,Listes_masqué!$H$3:$K$14,2,FALSE)) ->  | K134: =IF(E134="","",VLOOKUP(E134,Listes_masqué!$N$3:$O$22,2,FALSE)) ->  | L134: =IF(G134="","",VLOOKUP(G134,Listes_masqué!$F$3:$G$62,2,FALSE)) ->  | M134: =IF(H134="","",VLOOKUP(H134,Listes_masqué!$B$3:$C$25,2,FALSE)) ->  | Q134: =IFERROR(_xlfn.XLOOKUP(P134,Tableau13[Code produit],Tableau13[Libellé]),"") ->  | R134: =IFERROR(VLOOKUP('Generateur code produit'!$P134,Tableau13[[#All],[Code produit]:[Tarif HT]],3,FALSE),"") ->  | T134: =VLOOKUP(D134,Listes_masqué!$H$3:$J$6,3,FALSE) ->  | U134: =IF(K134="213",VLOOKUP(F134,Listes_masqué!$Q$9:$R$13,2,FALSE),VLOOKUP(F134,Listes_masqué!$Q$3:$R$7,2,FALSE)) -> 
J135: =IF(D135="","",VLOOKUP(D135,Listes_masqué!$H$3:$K$14,2,FALSE)) ->  | K135: =IF(E135="","",VLOOKUP(E135,Listes_masqué!$N$3:$O$22,2,FALSE)) ->  | L135: =IF(G135="","",VLOOKUP(G135,Listes_masqué!$F$3:$G$62,2,FALSE)) ->  | M135: =IF(H135="","",VLOOKUP(H135,Listes_masqué!$B$3:$C$25,2,FALSE)) ->  | N135: =IF(I135="","",IF(I135="oui",1,0)) ->  | Q135: =IFERROR(_xlfn.XLOOKUP(P135,Tableau13[Code produit],Tableau13[Libellé]),"") ->  | R135: =IFERROR(VLOOKUP('Generateur code produit'!$P135,Tableau13[[#All],[Code produit]:[Tarif HT]],3,FALSE),"") ->  | T135: =VLOOKUP(D135,Listes_masqué!$H$3:$J$6,3,FALSE) ->  | U135: =IF(K135="213",VLOOKUP(F135,Listes_masqué!$Q$9:$R$13,2,FALSE),VLOOKUP(F135,Listes_masqué!$Q$3:$R$7,2,FALSE)) -> 
J136: =IF(D136="","",VLOOKUP(D136,Listes_masqué!$H$3:$K$14,2,FALSE)) ->  | K136: =IF(E136="","",VLOOKUP(E136,Listes_masqué!$N$3:$O$22,2,FALSE)) ->  | L136: =IF(G136="","",VLOOKUP(G136,Listes_masqué!$F$3:$G$62,2,FALSE)) ->  | M136: =IF(H136="","",VLOOKUP(H136,Listes_masqué!$B$3:$C$25,2,FALSE)) ->  | Q136: =IFERROR(_xlfn.XLOOKUP(P136,Tableau13[Code produit],Tableau13[Libellé]),"") ->  | R136: =IFERROR(VLOOKUP('Generateur code produit'!$P136,Tableau13[[#All],[Code produit]:[Tarif HT]],3,FALSE),"") ->  | T136: =VLOOKUP(D136,Listes_masqué!$H$3:$J$6,3,FALSE) ->  | U136: =IF(K136="213",VLOOKUP(F136,Listes_masqué!$Q$9:$R$13,2,FALSE),VLOOKUP(F136,Listes_masqué!$Q$3:$R$7,2,FALSE)) -> 
J137: =IF(D137="","",VLOOKUP(D137,Listes_masqué!$H$3:$K$14,2,FALSE)) ->  | K137: =IF(E137="","",VLOOKUP(E137,Listes_masqué!$N$3:$O$22,2,FALSE)) ->  | L137: =IF(G137="","",VLOOKUP(G137,Listes_masqué!$F$3:$G$62,2,FALSE)) ->  | M137: =IF(H137="","",VLOOKUP(H137,Listes_masqué!$B$3:$C$25,2,FALSE)) ->  | Q137: =IFERROR(_xlfn.XLOOKUP(P137,Tableau13[Code produit],Tableau13[Libellé]),"") ->  | R137: =IFERROR(VLOOKUP('Generateur code produit'!$P137,Tableau13[[#All],[Code produit]:[Tarif HT]],3,FALSE),"") ->  | S137: =IF(M137="089","Attention! Il faut déclarer un nombre de lot de 1000 et non des unités.",IF(I137="oui","Attention, pensez à bien verifier l'éligibilité de ce produit aux éco-modulations.","")) ->  | T137: =VLOOKUP(D137,Listes_masqué!$H$3:$J$6,3,FALSE) ->  | U137: =IF(K137="213",VLOOKUP(F137,Listes_masqué!$Q$9:$R$13,2,FALSE),VLOOKUP(F137,Listes_masqué!$Q$3:$R$7,2,FALSE)) -> 
J138: =IF(D138="","",VLOOKUP(D138,Listes_masqué!$H$3:$K$14,2,FALSE)) ->  | K138: =IF(E138="","",VLOOKUP(E138,Listes_masqué!$N$3:$O$22,2,FALSE)) ->  | L138: =IF(G138="","",VLOOKUP(G138,Listes_masqué!$F$3:$G$62,2,FALSE)) ->  | M138: =IF(H138="","",VLOOKUP(H138,Listes_masqué!$B$3:$C$25,2,FALSE)) ->  | P138: =IF(OR(H138="",G138="",E138="",D138=""),"",CONCATENATE(J138,K138,L138,M138,N138)) ->  | Q138: =IFERROR(_xlfn.XLOOKUP(P138,Tableau13[Code produit],Tableau13[Libellé]),"") ->  | R138: =IFERROR(VLOOKUP('Generateur code produit'!$P138,Tableau13[[#All],[Code produit]:[Tarif HT]],3,FALSE),"") ->  | T138: =VLOOKUP(D138,Listes_masqué!$H$3:$J$6,3,FALSE) ->  | U138: =IF(K138="213",VLOOKUP(F138,Listes_masqué!$Q$9:$R$13,2,FALSE),VLOOKUP(F138,Listes_masqué!$Q$3:$R$7,2,FALSE)) -> 
J139: =IF(D139="","",VLOOKUP(D139,Listes_masqué!$H$3:$K$14,2,FALSE)) ->  | K139: =IF(E139="","",VLOOKUP(E139,Listes_masqué!$N$3:$O$22,2,FALSE)) ->  | L139: =IF(G139="","",VLOOKUP(G139,Listes_masqué!$F$3:$G$62,2,FALSE)) ->  | M139: =IF(H139="","",VLOOKUP(H139,Listes_masqué!$B$3:$C$25,2,FALSE)) ->  | Q139: =IFERROR(_xlfn.XLOOKUP(P139,Tableau13[Code produit],Tableau13[Libellé]),"") ->  | R139: =IFERROR(VLOOKUP('Generateur code produit'!$P139,Tableau13[[#All],[Code produit]:[Tarif HT]],3,FALSE),"") ->  | T139: =VLOOKUP(D139,Listes_masqué!$H$3:$J$6,3,FALSE) ->  | U139: =IF(K139="213",VLOOKUP(F139,Listes_masqué!$Q$9:$R$13,2,FALSE),VLOOKUP(F139,Listes_masqué!$Q$3:$R$7,2,FALSE)) -> 
J140: =IF(D140="","",VLOOKUP(D140,Listes_masqué!$H$3:$K$14,2,FALSE)) ->  | K140: =IF(E140="","",VLOOKUP(E140,Listes_masqué!$N$3:$O$22,2,FALSE)) ->  | L140: =IF(G140="","",VLOOKUP(G140,Listes_masqué!$F$3:$G$62,2,FALSE)) ->  | M140: =IF(H140="","",VLOOKUP(H140,Listes_masqué!$B$3:$C$25,2,FALSE)) ->  | Q140: =IFERROR(_xlfn.XLOOKUP(P140,Tableau13[Code produit],Tableau13[Libellé]),"") ->  | R140: =IFERROR(VLOOKUP('Generateur code produit'!$P140,Tableau13[[#All],[Code produit]:[Tarif HT]],3,FALSE),"") ->  | T140: =VLOOKUP(D140,Listes_masqué!$H$3:$J$6,3,FALSE) ->  | U140: =IF(K140="213",VLOOKUP(F140,Listes_masqué!$Q$9:$R$13,2,FALSE),VLOOKUP(F140,Listes_masqué!$Q$3:$R$7,2,FALSE)) -> 
J141: =IF(D141="","",VLOOKUP(D141,Listes_masqué!$H$3:$K$14,2,FALSE)) ->  | K141: =IF(E141="","",VLOOKUP(E141,Listes_masqué!$N$3:$O$22,2,FALSE)) ->  | L141: =IF(G141="","",VLOOKUP(G141,Listes_masqué!$F$3:$G$62,2,FALSE)) ->  | M141: =IF(H141="","",VLOOKUP(H141,Listes_masqué!$B$3:$C$25,2,FALSE)) ->  | Q141: =IFERROR(_xlfn.XLOOKUP(P141,Tableau13[Code produit],Tableau13[Libellé]),"") ->  | R141: =IFERROR(VLOOKUP('Generateur code produit'!$P141,Tableau13[[#All],[Code produit]:[Tarif HT]],3,FALSE),"") ->  | T141: =VLOOKUP(D141,Listes_masqué!$H$3:$J$6,3,FALSE) ->  | U141: =IF(K141="213",VLOOKUP(F141,Listes_masqué!$Q$9:$R$13,2,FALSE),VLOOKUP(F141,Listes_masqué!$Q$3:$R$7,2,FALSE)) -> 
J142: =IF(D142="","",VLOOKUP(D142,Listes_masqué!$H$3:$K$14,2,FALSE)) ->  | K142: =IF(E142="","",VLOOKUP(E142,Listes_masqué!$N$3:$O$22,2,FALSE)) ->  | L142: =IF(G142="","",VLOOKUP(G142,Listes_masqué!$F$3:$G$62,2,FALSE)) ->  | M142: =IF(H142="","",VLOOKUP(H142,Listes_masqué!$B$3:$C$25,2,FALSE)) ->  | Q142: =IFERROR(_xlfn.XLOOKUP(P142,Tableau13[Code produit],Tableau13[Libellé]),"") ->  | R142: =IFERROR(VLOOKUP('Generateur code produit'!$P142,Tableau13[[#All],[Code produit]:[Tarif HT]],3,FALSE),"") ->  | T142: =VLOOKUP(D142,Listes_masqué!$H$3:$J$6,3,FALSE) ->  | U142: =IF(K142="213",VLOOKUP(F142,Listes_masqué!$Q$9:$R$13,2,FALSE),VLOOKUP(F142,Listes_masqué!$Q$3:$R$7,2,FALSE)) -> 
J143: =IF(D143="","",VLOOKUP(D143,Listes_masqué!$H$3:$K$14,2,FALSE)) ->  | K143: =IF(E143="","",VLOOKUP(E143,Listes_masqué!$N$3:$O$22,2,FALSE)) ->  | L143: =IF(G143="","",VLOOKUP(G143,Listes_masqué!$F$3:$G$62,2,FALSE)) ->  | M143: =IF(H143="","",VLOOKUP(H143,Listes_masqué!$B$3:$C$25,2,FALSE)) ->  | Q143: =IFERROR(_xlfn.XLOOKUP(P143,Tableau13[Code produit],Tableau13[Libellé]),"") ->  | R143: =IFERROR(VLOOKUP('Generateur code produit'!$P143,Tableau13[[#All],[Code produit]:[Tarif HT]],3,FALSE),"") ->  | T143: =VLOOKUP(D143,Listes_masqué!$H$3:$J$6,3,FALSE) ->  | U143: =IF(K143="213",VLOOKUP(F143,Listes_masqué!$Q$9:$R$13,2,FALSE),VLOOKUP(F143,Listes_masqué!$Q$3:$R$7,2,FALSE)) -> 
J144: =IF(D144="","",VLOOKUP(D144,Listes_masqué!$H$3:$K$14,2,FALSE)) ->  | K144: =IF(E144="","",VLOOKUP(E144,Listes_masqué!$N$3:$O$22,2,FALSE)) ->  | L144: =IF(G144="","",VLOOKUP(G144,Listes_masqué!$F$3:$G$62,2,FALSE)) ->  | M144: =IF(H144="","",VLOOKUP(H144,Listes_masqué!$B$3:$C$25,2,FALSE)) ->  | Q144: =IFERROR(_xlfn.XLOOKUP(P144,Tableau13[Code produit],Tableau13[Libellé]),"") ->  | R144: =IFERROR(VLOOKUP('Generateur code produit'!$P144,Tableau13[[#All],[Code produit]:[Tarif HT]],3,FALSE),"") ->  | T144: =VLOOKUP(D144,Listes_masqué!$H$3:$J$6,3,FALSE) ->  | U144: =IF(K144="213",VLOOKUP(F144,Listes_masqué!$Q$9:$R$13,2,FALSE),VLOOKUP(F144,Listes_masqué!$Q$3:$R$7,2,FALSE)) -> 
J145: =IF(D145="","",VLOOKUP(D145,Listes_masqué!$H$3:$K$14,2,FALSE)) ->  | K145: =IF(E145="","",VLOOKUP(E145,Listes_masqué!$N$3:$O$22,2,FALSE)) ->  | L145: =IF(G145="","",VLOOKUP(G145,Listes_masqué!$F$3:$G$62,2,FALSE)) ->  | M145: =IF(H145="","",VLOOKUP(H145,Listes_masqué!$B$3:$C$25,2,FALSE)) ->  | Q145: =IFERROR(_xlfn.XLOOKUP(P145,Tableau13[Code produit],Tableau13[Libellé]),"") ->  | R145: =IFERROR(VLOOKUP('Generateur code produit'!$P145,Tableau13[[#All],[Code produit]:[Tarif HT]],3,FALSE),"") ->  | T145: =VLOOKUP(D145,Listes_masqué!$H$3:$J$6,3,FALSE) ->  | U145: =IF(K145="213",VLOOKUP(F145,Listes_masqué!$Q$9:$R$13,2,FALSE),VLOOKUP(F145,Listes_masqué!$Q$3:$R$7,2,FALSE)) -> 
J146: =IF(D146="","",VLOOKUP(D146,Listes_masqué!$H$3:$K$14,2,FALSE)) ->  | K146: =IF(E146="","",VLOOKUP(E146,Listes_masqué!$N$3:$O$22,2,FALSE)) ->  | L146: =IF(G146="","",VLOOKUP(G146,Listes_masqué!$F$3:$G$62,2,FALSE)) ->  | M146: =IF(H146="","",VLOOKUP(H146,Listes_masqué!$B$3:$C$25,2,FALSE)) ->  | Q146: =IFERROR(_xlfn.XLOOKUP(P146,Tableau13[Code produit],Tableau13[Libellé]),"") ->  | R146: =IFERROR(VLOOKUP('Generateur code produit'!$P146,Tableau13[[#All],[Code produit]:[Tarif HT]],3,FALSE),"") ->  | T146: =VLOOKUP(D146,Listes_masqué!$H$3:$J$6,3,FALSE) ->  | U146: =IF(K146="213",VLOOKUP(F146,Listes_masqué!$Q$9:$R$13,2,FALSE),VLOOKUP(F146,Listes_masqué!$Q$3:$R$7,2,FALSE)) -> 
J147: =IF(D147="","",VLOOKUP(D147,Listes_masqué!$H$3:$K$14,2,FALSE)) ->  | K147: =IF(E147="","",VLOOKUP(E147,Listes_masqué!$N$3:$O$22,2,FALSE)) ->  | L147: =IF(G147="","",VLOOKUP(G147,Listes_masqué!$F$3:$G$62,2,FALSE)) ->  | M147: =IF(H147="","",VLOOKUP(H147,Listes_masqué!$B$3:$C$25,2,FALSE)) ->  | Q147: =IFERROR(_xlfn.XLOOKUP(P147,Tableau13[Code produit],Tableau13[Libellé]),"") ->  | R147: =IFERROR(VLOOKUP('Generateur code produit'!$P147,Tableau13[[#All],[Code produit]:[Tarif HT]],3,FALSE),"") ->  | T147: =VLOOKUP(D147,Listes_masqué!$H$3:$J$6,3,FALSE) ->  | U147: =IF(K147="213",VLOOKUP(F147,Listes_masqué!$Q$9:$R$13,2,FALSE),VLOOKUP(F147,Listes_masqué!$Q$3:$R$7,2,FALSE)) -> 
J148: =IF(D148="","",VLOOKUP(D148,Listes_masqué!$H$3:$K$14,2,FALSE)) ->  | K148: =IF(E148="","",VLOOKUP(E148,Listes_masqué!$N$3:$O$22,2,FALSE)) ->  | L148: =IF(G148="","",VLOOKUP(G148,Listes_masqué!$F$3:$G$62,2,FALSE)) ->  | M148: =IF(H148="","",VLOOKUP(H148,Listes_masqué!$B$3:$C$25,2,FALSE)) ->  | Q148: =IFERROR(_xlfn.XLOOKUP(P148,Tableau13[Code produit],Tableau13[Libellé]),"") ->  | R148: =IFERROR(VLOOKUP('Generateur code produit'!$P148,Tableau13[[#All],[Code produit]:[Tarif HT]],3,FALSE),"") ->  | T148: =VLOOKUP(D148,Listes_masqué!$H$3:$J$6,3,FALSE) ->  | U148: =IF(K148="213",VLOOKUP(F148,Listes_masqué!$Q$9:$R$13,2,FALSE),VLOOKUP(F148,Listes_masqué!$Q$3:$R$7,2,FALSE)) -> 
J149: =IF(D149="","",VLOOKUP(D149,Listes_masqué!$H$3:$K$14,2,FALSE)) ->  | K149: =IF(E149="","",VLOOKUP(E149,Listes_masqué!$N$3:$O$22,2,FALSE)) ->  | L149: =IF(G149="","",VLOOKUP(G149,Listes_masqué!$F$3:$G$62,2,FALSE)) ->  | M149: =IF(H149="","",VLOOKUP(H149,Listes_masqué!$B$3:$C$25,2,FALSE)) ->  | Q149: =IFERROR(_xlfn.XLOOKUP(P149,Tableau13[Code produit],Tableau13[Libellé]),"") ->  | R149: =IFERROR(VLOOKUP('Generateur code produit'!$P149,Tableau13[[#All],[Code produit]:[Tarif HT]],3,FALSE),"") ->  | T149: =VLOOKUP(D149,Listes_masqué!$H$3:$J$6,3,FALSE) ->  | U149: =IF(K149="213",VLOOKUP(F149,Listes_masqué!$Q$9:$R$13,2,FALSE),VLOOKUP(F149,Listes_masqué!$Q$3:$R$7,2,FALSE)) -> 
J150: =IF(D150="","",VLOOKUP(D150,Listes_masqué!$H$3:$K$14,2,FALSE)) ->  | K150: =IF(E150="","",VLOOKUP(E150,Listes_masqué!$N$3:$O$22,2,FALSE)) ->  | L150: =IF(G150="","",VLOOKUP(G150,Listes_masqué!$F$3:$G$62,2,FALSE)) ->  | M150: =IF(H150="","",VLOOKUP(H150,Listes_masqué!$B$3:$C$25,2,FALSE)) ->  | Q150: =IFERROR(_xlfn.XLOOKUP(P150,Tableau13[Code produit],Tableau13[Libellé]),"") ->  | R150: =IFERROR(VLOOKUP('Generateur code produit'!$P150,Tableau13[[#All],[Code produit]:[Tarif HT]],3,FALSE),"") ->  | T150: =VLOOKUP(D150,Listes_masqué!$H$3:$J$6,3,FALSE) ->  | U150: =IF(K150="213",VLOOKUP(F150,Listes_masqué!$Q$9:$R$13,2,FALSE),VLOOKUP(F150,Listes_masqué!$Q$3:$R$7,2,FALSE)) -> 
J151: =IF(D151="","",VLOOKUP(D151,Listes_masqué!$H$3:$K$14,2,FALSE)) ->  | K151: =IF(E151="","",VLOOKUP(E151,Listes_masqué!$N$3:$O$22,2,FALSE)) ->  | L151: =IF(G151="","",VLOOKUP(G151,Listes_masqué!$F$3:$G$62,2,FALSE)) ->  | M151: =IF(H151="","",VLOOKUP(H151,Listes_masqué!$B$3:$C$25,2,FALSE)) ->  | Q151: =IFERROR(_xlfn.XLOOKUP(P151,Tableau13[Code produit],Tableau13[Libellé]),"") ->  | R151: =IFERROR(VLOOKUP('Generateur code produit'!$P151,Tableau13[[#All],[Code produit]:[Tarif HT]],3,FALSE),"") ->  | T151: =VLOOKUP(D151,Listes_masqué!$H$3:$J$6,3,FALSE) ->  | U151: =IF(K151="213",VLOOKUP(F151,Listes_masqué!$Q$9:$R$13,2,FALSE),VLOOKUP(F151,Listes_masqué!$Q$3:$R$7,2,FALSE)) -> 
J152: =IF(D152="","",VLOOKUP(D152,Listes_masqué!$H$3:$K$14,2,FALSE)) ->  | K152: =IF(E152="","",VLOOKUP(E152,Listes_masqué!$N$3:$O$22,2,FALSE)) ->  | L152: =IF(G152="","",VLOOKUP(G152,Listes_masqué!$F$3:$G$62,2,FALSE)) ->  | M152: =IF(H152="","",VLOOKUP(H152,Listes_masqué!$B$3:$C$25,2,FALSE)) ->  | Q152: =IFERROR(_xlfn.XLOOKUP(P152,Tableau13[Code produit],Tableau13[Libellé]),"") ->  | R152: =IFERROR(VLOOKUP('Generateur code produit'!$P152,Tableau13[[#All],[Code produit]:[Tarif HT]],3,FALSE),"") ->  | T152: =VLOOKUP(D152,Listes_masqué!$H$3:$J$6,3,FALSE) ->  | U152: =IF(K152="213",VLOOKUP(F152,Listes_masqué!$Q$9:$R$13,2,FALSE),VLOOKUP(F152,Listes_masqué!$Q$3:$R$7,2,FALSE)) -> 
J153: =IF(D153="","",VLOOKUP(D153,Listes_masqué!$H$3:$K$14,2,FALSE)) ->  | K153: =IF(E153="","",VLOOKUP(E153,Listes_masqué!$N$3:$O$22,2,FALSE)) ->  | L153: =IF(G153="","",VLOOKUP(G153,Listes_masqué!$F$3:$G$62,2,FALSE)) ->  | M153: =IF(H153="","",VLOOKUP(H153,Listes_masqué!$B$3:$C$25,2,FALSE)) ->  | Q153: =IFERROR(_xlfn.XLOOKUP(P153,Tableau13[Code produit],Tableau13[Libellé]),"") ->  | R153: =IFERROR(VLOOKUP('Generateur code produit'!$P153,Tableau13[[#All],[Code produit]:[Tarif HT]],3,FALSE),"") ->  | T153: =VLOOKUP(D153,Listes_masqué!$H$3:$J$6,3,FALSE) ->  | U153: =IF(K153="213",VLOOKUP(F153,Listes_masqué!$Q$9:$R$13,2,FALSE),VLOOKUP(F153,Listes_masqué!$Q$3:$R$7,2,FALSE)) -> 
J154: =IF(D154="","",VLOOKUP(D154,Listes_masqué!$H$3:$K$14,2,FALSE)) ->  | K154: =IF(E154="","",VLOOKUP(E154,Listes_masqué!$N$3:$O$22,2,FALSE)) ->  | L154: =IF(G154="","",VLOOKUP(G154,Listes_masqué!$F$3:$G$62,2,FALSE)) ->  | M154: =IF(H154="","",VLOOKUP(H154,Listes_masqué!$B$3:$C$25,2,FALSE)) ->  | Q154: =IFERROR(_xlfn.XLOOKUP(P154,Tableau13[Code produit],Tableau13[Libellé]),"") ->  | R154: =IFERROR(VLOOKUP('Generateur code produit'!$P154,Tableau13[[#All],[Code produit]:[Tarif HT]],3,FALSE),"") ->  | T154: =VLOOKUP(D154,Listes_masqué!$H$3:$J$6,3,FALSE) ->  | U154: =IF(K154="213",VLOOKUP(F154,Listes_masqué!$Q$9:$R$13,2,FALSE),VLOOKUP(F154,Listes_masqué!$Q$3:$R$7,2,FALSE)) -> 
J155: =IF(D155="","",VLOOKUP(D155,Listes_masqué!$H$3:$K$14,2,FALSE)) ->  | K155: =IF(E155="","",VLOOKUP(E155,Listes_masqué!$N$3:$O$22,2,FALSE)) ->  | L155: =IF(G155="","",VLOOKUP(G155,Listes_masqué!$F$3:$G$62,2,FALSE)) ->  | M155: =IF(H155="","",VLOOKUP(H155,Listes_masqué!$B$3:$C$25,2,FALSE)) ->  | Q155: =IFERROR(_xlfn.XLOOKUP(P155,Tableau13[Code produit],Tableau13[Libellé]),"") ->  | R155: =IFERROR(VLOOKUP('Generateur code produit'!$P155,Tableau13[[#All],[Code produit]:[Tarif HT]],3,FALSE),"") ->  | T155: =VLOOKUP(D155,Listes_masqué!$H$3:$J$6,3,FALSE) ->  | U155: =IF(K155="213",VLOOKUP(F155,Listes_masqué!$Q$9:$R$13,2,FALSE),VLOOKUP(F155,Listes_masqué!$Q$3:$R$7,2,FALSE)) -> 
J156: =IF(D156="","",VLOOKUP(D156,Listes_masqué!$H$3:$K$14,2,FALSE)) ->  | K156: =IF(E156="","",VLOOKUP(E156,Listes_masqué!$N$3:$O$22,2,FALSE)) ->  | L156: =IF(G156="","",VLOOKUP(G156,Listes_masqué!$F$3:$G$62,2,FALSE)) ->  | M156: =IF(H156="","",VLOOKUP(H156,Listes_masqué!$B$3:$C$25,2,FALSE)) ->  | Q156: =IFERROR(_xlfn.XLOOKUP(P156,Tableau13[Code produit],Tableau13[Libellé]),"") ->  | R156: =IFERROR(VLOOKUP('Generateur code produit'!$P156,Tableau13[[#All],[Code produit]:[Tarif HT]],3,FALSE),"") ->  | T156: =VLOOKUP(D156,Listes_masqué!$H$3:$J$6,3,FALSE) ->  | U156: =IF(K156="213",VLOOKUP(F156,Listes_masqué!$Q$9:$R$13,2,FALSE),VLOOKUP(F156,Listes_masqué!$Q$3:$R$7,2,FALSE)) -> 
J157: =IF(D157="","",VLOOKUP(D157,Listes_masqué!$H$3:$K$14,2,FALSE)) ->  | K157: =IF(E157="","",VLOOKUP(E157,Listes_masqué!$N$3:$O$22,2,FALSE)) ->  | L157: =IF(G157="","",VLOOKUP(G157,Listes_masqué!$F$3:$G$62,2,FALSE)) ->  | M157: =IF(H157="","",VLOOKUP(H157,Listes_masqué!$B$3:$C$25,2,FALSE)) ->  | Q157: =IFERROR(_xlfn.XLOOKUP(P157,Tableau13[Code produit],Tableau13[Libellé]),"") ->  | R157: =IFERROR(VLOOKUP('Generateur code produit'!$P157,Tableau13[[#All],[Code produit]:[Tarif HT]],3,FALSE),"") ->  | T157: =VLOOKUP(D157,Listes_masqué!$H$3:$J$6,3,FALSE) ->  | U157: =IF(K157="213",VLOOKUP(F157,Listes_masqué!$Q$9:$R$13,2,FALSE),VLOOKUP(F157,Listes_masqué!$Q$3:$R$7,2,FALSE)) -> 
J158: =IF(D158="","",VLOOKUP(D158,Listes_masqué!$H$3:$K$14,2,FALSE)) ->  | K158: =IF(E158="","",VLOOKUP(E158,Listes_masqué!$N$3:$O$22,2,FALSE)) ->  | L158: =IF(G158="","",VLOOKUP(G158,Listes_masqué!$F$3:$G$62,2,FALSE)) ->  | M158: =IF(H158="","",VLOOKUP(H158,Listes_masqué!$B$3:$C$25,2,FALSE)) ->  | Q158: =IFERROR(_xlfn.XLOOKUP(P158,Tableau13[Code produit],Tableau13[Libellé]),"") ->  | R158: =IFERROR(VLOOKUP('Generateur code produit'!$P158,Tableau13[[#All],[Code produit]:[Tarif HT]],3,FALSE),"") ->  | T158: =VLOOKUP(D158,Listes_masqué!$H$3:$J$6,3,FALSE) ->  | U158: =IF(K158="213",VLOOKUP(F158,Listes_masqué!$Q$9:$R$13,2,FALSE),VLOOKUP(F158,Listes_masqué!$Q$3:$R$7,2,FALSE)) -> 
J159: =IF(D159="","",VLOOKUP(D159,Listes_masqué!$H$3:$K$14,2,FALSE)) ->  | K159: =IF(E159="","",VLOOKUP(E159,Listes_masqué!$N$3:$O$22,2,FALSE)) ->  | L159: =IF(G159="","",VLOOKUP(G159,Listes_masqué!$F$3:$G$62,2,FALSE)) ->  | M159: =IF(H159="","",VLOOKUP(H159,Listes_masqué!$B$3:$C$25,2,FALSE)) ->  | Q159: =IFERROR(_xlfn.XLOOKUP(P159,Tableau13[Code produit],Tableau13[Libellé]),"") ->  | R159: =IFERROR(VLOOKUP('Generateur code produit'!$P159,Tableau13[[#All],[Code produit]:[Tarif HT]],3,FALSE),"") ->  | T159: =VLOOKUP(D159,Listes_masqué!$H$3:$J$6,3,FALSE) ->  | U159: =IF(K159="213",VLOOKUP(F159,Listes_masqué!$Q$9:$R$13,2,FALSE),VLOOKUP(F159,Listes_masqué!$Q$3:$R$7,2,FALSE)) -> 
J160: =IF(D160="","",VLOOKUP(D160,Listes_masqué!$H$3:$K$14,2,FALSE)) ->  | K160: =IF(E160="","",VLOOKUP(E160,Listes_masqué!$N$3:$O$22,2,FALSE)) ->  | L160: =IF(G160="","",VLOOKUP(G160,Listes_masqué!$F$3:$G$62,2,FALSE)) ->  | M160: =IF(H160="","",VLOOKUP(H160,Listes_masqué!$B$3:$C$25,2,FALSE)) ->  | Q160: =IFERROR(_xlfn.XLOOKUP(P160,Tableau13[Code produit],Tableau13[Libellé]),"") ->  | R160: =IFERROR(VLOOKUP('Generateur code produit'!$P160,Tableau13[[#All],[Code produit]:[Tarif HT]],3,FALSE),"") ->  | T160: =VLOOKUP(D160,Listes_masqué!$H$3:$J$6,3,FALSE) ->  | U160: =IF(K160="213",VLOOKUP(F160,Listes_masqué!$Q$9:$R$13,2,FALSE),VLOOKUP(F160,Listes_masqué!$Q$3:$R$7,2,FALSE)) -> 
J161: =IF(D161="","",VLOOKUP(D161,Listes_masqué!$H$3:$K$14,2,FALSE)) ->  | K161: =IF(E161="","",VLOOKUP(E161,Listes_masqué!$N$3:$O$22,2,FALSE)) ->  | L161: =IF(G161="","",VLOOKUP(G161,Listes_masqué!$F$3:$G$62,2,FALSE)) ->  | M161: =IF(H161="","",VLOOKUP(H161,Listes_masqué!$B$3:$C$25,2,FALSE)) ->  | Q161: =IFERROR(_xlfn.XLOOKUP(P161,Tableau13[Code produit],Tableau13[Libellé]),"") ->  | R161: =IFERROR(VLOOKUP('Generateur code produit'!$P161,Tableau13[[#All],[Code produit]:[Tarif HT]],3,FALSE),"") ->  | T161: =VLOOKUP(D161,Listes_masqué!$H$3:$J$6,3,FALSE) ->  | U161: =IF(K161="213",VLOOKUP(F161,Listes_masqué!$Q$9:$R$13,2,FALSE),VLOOKUP(F161,Listes_masqué!$Q$3:$R$7,2,FALSE)) -> 
J162: =IF(D162="","",VLOOKUP(D162,Listes_masqué!$H$3:$K$14,2,FALSE)) ->  | K162: =IF(E162="","",VLOOKUP(E162,Listes_masqué!$N$3:$O$22,2,FALSE)) ->  | L162: =IF(G162="","",VLOOKUP(G162,Listes_masqué!$F$3:$G$62,2,FALSE)) ->  | M162: =IF(H162="","",VLOOKUP(H162,Listes_masqué!$B$3:$C$25,2,FALSE)) ->  | Q162: =IFERROR(_xlfn.XLOOKUP(P162,Tableau13[Code produit],Tableau13[Libellé]),"") ->  | R162: =IFERROR(VLOOKUP('Generateur code produit'!$P162,Tableau13[[#All],[Code produit]:[Tarif HT]],3,FALSE),"") ->  | T162: =VLOOKUP(D162,Listes_masqué!$H$3:$J$6,3,FALSE) ->  | U162: =IF(K162="213",VLOOKUP(F162,Listes_masqué!$Q$9:$R$13,2,FALSE),VLOOKUP(F162,Listes_masqué!$Q$3:$R$7,2,FALSE)) -> 
J163: =IF(D163="","",VLOOKUP(D163,Listes_masqué!$H$3:$K$14,2,FALSE)) ->  | K163: =IF(E163="","",VLOOKUP(E163,Listes_masqué!$N$3:$O$22,2,FALSE)) ->  | L163: =IF(G163="","",VLOOKUP(G163,Listes_masqué!$F$3:$G$62,2,FALSE)) ->  | M163: =IF(H163="","",VLOOKUP(H163,Listes_masqué!$B$3:$C$25,2,FALSE)) ->  | Q163: =IFERROR(_xlfn.XLOOKUP(P163,Tableau13[Code produit],Tableau13[Libellé]),"") ->  | R163: =IFERROR(VLOOKUP('Generateur code produit'!$P163,Tableau13[[#All],[Code produit]:[Tarif HT]],3,FALSE),"") ->  | T163: =VLOOKUP(D163,Listes_masqué!$H$3:$J$6,3,FALSE) ->  | U163: =IF(K163="213",VLOOKUP(F163,Listes_masqué!$Q$9:$R$13,2,FALSE),VLOOKUP(F163,Listes_masqué!$Q$3:$R$7,2,FALSE)) -> 
J164: =IF(D164="","",VLOOKUP(D164,Listes_masqué!$H$3:$K$14,2,FALSE)) ->  | K164: =IF(E164="","",VLOOKUP(E164,Listes_masqué!$N$3:$O$22,2,FALSE)) ->  | L164: =IF(G164="","",VLOOKUP(G164,Listes_masqué!$F$3:$G$62,2,FALSE)) ->  | M164: =IF(H164="","",VLOOKUP(H164,Listes_masqué!$B$3:$C$25,2,FALSE)) ->  | Q164: =IFERROR(_xlfn.XLOOKUP(P164,Tableau13[Code produit],Tableau13[Libellé]),"") ->  | R164: =IFERROR(VLOOKUP('Generateur code produit'!$P164,Tableau13[[#All],[Code produit]:[Tarif HT]],3,FALSE),"") ->  | T164: =VLOOKUP(D164,Listes_masqué!$H$3:$J$6,3,FALSE) ->  | U164: =IF(K164="213",VLOOKUP(F164,Listes_masqué!$Q$9:$R$13,2,FALSE),VLOOKUP(F164,Listes_masqué!$Q$3:$R$7,2,FALSE)) -> 
J165: =IF(D165="","",VLOOKUP(D165,Listes_masqué!$H$3:$K$14,2,FALSE)) ->  | K165: =IF(E165="","",VLOOKUP(E165,Listes_masqué!$N$3:$O$22,2,FALSE)) ->  | L165: =IF(G165="","",VLOOKUP(G165,Listes_masqué!$F$3:$G$62,2,FALSE)) ->  | M165: =IF(H165="","",VLOOKUP(H165,Listes_masqué!$B$3:$C$25,2,FALSE)) ->  | Q165: =IFERROR(_xlfn.XLOOKUP(P165,Tableau13[Code produit],Tableau13[Libellé]),"") ->  | R165: =IFERROR(VLOOKUP('Generateur code produit'!$P165,Tableau13[[#All],[Code produit]:[Tarif HT]],3,FALSE),"") ->  | T165: =VLOOKUP(D165,Listes_masqué!$H$3:$J$6,3,FALSE) ->  | U165: =IF(K165="213",VLOOKUP(F165,Listes_masqué!$Q$9:$R$13,2,FALSE),VLOOKUP(F165,Listes_masqué!$Q$3:$R$7,2,FALSE)) -> 
J166: =IF(D166="","",VLOOKUP(D166,Listes_masqué!$H$3:$K$14,2,FALSE)) ->  | K166: =IF(E166="","",VLOOKUP(E166,Listes_masqué!$N$3:$O$22,2,FALSE)) ->  | L166: =IF(G166="","",VLOOKUP(G166,Listes_masqué!$F$3:$G$62,2,FALSE)) ->  | M166: =IF(H166="","",VLOOKUP(H166,Listes_masqué!$B$3:$C$25,2,FALSE)) ->  | Q166: =IFERROR(_xlfn.XLOOKUP(P166,Tableau13[Code produit],Tableau13[Libellé]),"") ->  | R166: =IFERROR(VLOOKUP('Generateur code produit'!$P166,Tableau13[[#All],[Code produit]:[Tarif HT]],3,FALSE),"") ->  | T166: =VLOOKUP(D166,Listes_masqué!$H$3:$J$6,3,FALSE) ->  | U166: =IF(K166="213",VLOOKUP(F166,Listes_masqué!$Q$9:$R$13,2,FALSE),VLOOKUP(F166,Listes_masqué!$Q$3:$R$7,2,FALSE)) -> 
J167: =IF(D167="","",VLOOKUP(D167,Listes_masqué!$H$3:$K$14,2,FALSE)) ->  | K167: =IF(E167="","",VLOOKUP(E167,Listes_masqué!$N$3:$O$22,2,FALSE)) ->  | L167: =IF(G167="","",VLOOKUP(G167,Listes_masqué!$F$3:$G$62,2,FALSE)) ->  | M167: =IF(H167="","",VLOOKUP(H167,Listes_masqué!$B$3:$C$25,2,FALSE)) ->  | Q167: =IFERROR(_xlfn.XLOOKUP(P167,Tableau13[Code produit],Tableau13[Libellé]),"") ->  | R167: =IFERROR(VLOOKUP('Generateur code produit'!$P167,Tableau13[[#All],[Code produit]:[Tarif HT]],3,FALSE),"") ->  | T167: =VLOOKUP(D167,Listes_masqué!$H$3:$J$6,3,FALSE) ->  | U167: =IF(K167="213",VLOOKUP(F167,Listes_masqué!$Q$9:$R$13,2,FALSE),VLOOKUP(F167,Listes_masqué!$Q$3:$R$7,2,FALSE)) -> 
J168: =IF(D168="","",VLOOKUP(D168,Listes_masqué!$H$3:$K$14,2,FALSE)) ->  | K168: =IF(E168="","",VLOOKUP(E168,Listes_masqué!$N$3:$O$22,2,FALSE)) ->  | L168: =IF(G168="","",VLOOKUP(G168,Listes_masqué!$F$3:$G$62,2,FALSE)) ->  | M168: =IF(H168="","",VLOOKUP(H168,Listes_masqué!$B$3:$C$25,2,FALSE)) ->  | Q168: =IFERROR(_xlfn.XLOOKUP(P168,Tableau13[Code produit],Tableau13[Libellé]),"") ->  | R168: =IFERROR(VLOOKUP('Generateur code produit'!$P168,Tableau13[[#All],[Code produit]:[Tarif HT]],3,FALSE),"") ->  | T168: =VLOOKUP(D168,Listes_masqué!$H$3:$J$6,3,FALSE) ->  | U168: =IF(K168="213",VLOOKUP(F168,Listes_masqué!$Q$9:$R$13,2,FALSE),VLOOKUP(F168,Listes_masqué!$Q$3:$R$7,2,FALSE)) -> 
J169: =IF(D169="","",VLOOKUP(D169,Listes_masqué!$H$3:$K$14,2,FALSE)) ->  | K169: =IF(E169="","",VLOOKUP(E169,Listes_masqué!$N$3:$O$22,2,FALSE)) ->  | L169: =IF(G169="","",VLOOKUP(G169,Listes_masqué!$F$3:$G$62,2,FALSE)) ->  | M169: =IF(H169="","",VLOOKUP(H169,Listes_masqué!$B$3:$C$25,2,FALSE)) ->  | Q169: =IFERROR(_xlfn.XLOOKUP(P169,Tableau13[Code produit],Tableau13[Libellé]),"") ->  | R169: =IFERROR(VLOOKUP('Generateur code produit'!$P169,Tableau13[[#All],[Code produit]:[Tarif HT]],3,FALSE),"") ->  | T169: =VLOOKUP(D169,Listes_masqué!$H$3:$J$6,3,FALSE) ->  | U169: =IF(K169="213",VLOOKUP(F169,Listes_masqué!$Q$9:$R$13,2,FALSE),VLOOKUP(F169,Listes_masqué!$Q$3:$R$7,2,FALSE)) -> 
J170: =IF(D170="","",VLOOKUP(D170,Listes_masqué!$H$3:$K$14,2,FALSE)) ->  | K170: =IF(E170="","",VLOOKUP(E170,Listes_masqué!$N$3:$O$22,2,FALSE)) ->  | L170: =IF(G170="","",VLOOKUP(G170,Listes_masqué!$F$3:$G$62,2,FALSE)) ->  | M170: =IF(H170="","",VLOOKUP(H170,Listes_masqué!$B$3:$C$25,2,FALSE)) ->  | Q170: =IFERROR(_xlfn.XLOOKUP(P170,Tableau13[Code produit],Tableau13[Libellé]),"") ->  | R170: =IFERROR(VLOOKUP('Generateur code produit'!$P170,Tableau13[[#All],[Code produit]:[Tarif HT]],3,FALSE),"") ->  | T170: =VLOOKUP(D170,Listes_masqué!$H$3:$J$6,3,FALSE) ->  | U170: =IF(K170="213",VLOOKUP(F170,Listes_masqué!$Q$9:$R$13,2,FALSE),VLOOKUP(F170,Listes_masqué!$Q$3:$R$7,2,FALSE)) -> 
J171: =IF(D171="","",VLOOKUP(D171,Listes_masqué!$H$3:$K$14,2,FALSE)) ->  | K171: =IF(E171="","",VLOOKUP(E171,Listes_masqué!$N$3:$O$22,2,FALSE)) ->  | L171: =IF(G171="","",VLOOKUP(G171,Listes_masqué!$F$3:$G$62,2,FALSE)) ->  | M171: =IF(H171="","",VLOOKUP(H171,Listes_masqué!$B$3:$C$25,2,FALSE)) ->  | Q171: =IFERROR(_xlfn.XLOOKUP(P171,Tableau13[Code produit],Tableau13[Libellé]),"") ->  | R171: =IFERROR(VLOOKUP('Generateur code produit'!$P171,Tableau13[[#All],[Code produit]:[Tarif HT]],3,FALSE),"") ->  | T171: =VLOOKUP(D171,Listes_masqué!$H$3:$J$6,3,FALSE) ->  | U171: =IF(K171="213",VLOOKUP(F171,Listes_masqué!$Q$9:$R$13,2,FALSE),VLOOKUP(F171,Listes_masqué!$Q$3:$R$7,2,FALSE)) -> 
J172: =IF(D172="","",VLOOKUP(D172,Listes_masqué!$H$3:$K$14,2,FALSE)) ->  | K172: =IF(E172="","",VLOOKUP(E172,Listes_masqué!$N$3:$O$22,2,FALSE)) ->  | L172: =IF(G172="","",VLOOKUP(G172,Listes_masqué!$F$3:$G$62,2,FALSE)) ->  | M172: =IF(H172="","",VLOOKUP(H172,Listes_masqué!$B$3:$C$25,2,FALSE)) ->  | Q172: =IFERROR(_xlfn.XLOOKUP(P172,Tableau13[Code produit],Tableau13[Libellé]),"") ->  | R172: =IFERROR(VLOOKUP('Generateur code produit'!$P172,Tableau13[[#All],[Code produit]:[Tarif HT]],3,FALSE),"") ->  | T172: =VLOOKUP(D172,Listes_masqué!$H$3:$J$6,3,FALSE) ->  | U172: =IF(K172="213",VLOOKUP(F172,Listes_masqué!$Q$9:$R$13,2,FALSE),VLOOKUP(F172,Listes_masqué!$Q$3:$R$7,2,FALSE)) -> 
J173: =IF(D173="","",VLOOKUP(D173,Listes_masqué!$H$3:$K$14,2,FALSE)) ->  | K173: =IF(E173="","",VLOOKUP(E173,Listes_masqué!$N$3:$O$22,2,FALSE)) ->  | L173: =IF(G173="","",VLOOKUP(G173,Listes_masqué!$F$3:$G$62,2,FALSE)) ->  | M173: =IF(H173="","",VLOOKUP(H173,Listes_masqué!$B$3:$C$25,2,FALSE)) ->  | Q173: =IFERROR(_xlfn.XLOOKUP(P173,Tableau13[Code produit],Tableau13[Libellé]),"") ->  | R173: =IFERROR(VLOOKUP('Generateur code produit'!$P173,Tableau13[[#All],[Code produit]:[Tarif HT]],3,FALSE),"") ->  | T173: =VLOOKUP(D173,Listes_masqué!$H$3:$J$6,3,FALSE) ->  | U173: =IF(K173="213",VLOOKUP(F173,Listes_masqué!$Q$9:$R$13,2,FALSE),VLOOKUP(F173,Listes_masqué!$Q$3:$R$7,2,FALSE)) -> 
J174: =IF(D174="","",VLOOKUP(D174,Listes_masqué!$H$3:$K$14,2,FALSE)) ->  | K174: =IF(E174="","",VLOOKUP(E174,Listes_masqué!$N$3:$O$22,2,FALSE)) ->  | L174: =IF(G174="","",VLOOKUP(G174,Listes_masqué!$F$3:$G$62,2,FALSE)) ->  | M174: =IF(H174="","",VLOOKUP(H174,Listes_masqué!$B$3:$C$25,2,FALSE)) ->  | Q174: =IFERROR(_xlfn.XLOOKUP(P174,Tableau13[Code produit],Tableau13[Libellé]),"") ->  | R174: =IFERROR(VLOOKUP('Generateur code produit'!$P174,Tableau13[[#All],[Code produit]:[Tarif HT]],3,FALSE),"") ->  | T174: =VLOOKUP(D174,Listes_masqué!$H$3:$J$6,3,FALSE) ->  | U174: =IF(K174="213",VLOOKUP(F174,Listes_masqué!$Q$9:$R$13,2,FALSE),VLOOKUP(F174,Listes_masqué!$Q$3:$R$7,2,FALSE)) -> 
J175: =IF(D175="","",VLOOKUP(D175,Listes_masqué!$H$3:$K$14,2,FALSE)) ->  | K175: =IF(E175="","",VLOOKUP(E175,Listes_masqué!$N$3:$O$22,2,FALSE)) ->  | L175: =IF(G175="","",VLOOKUP(G175,Listes_masqué!$F$3:$G$62,2,FALSE)) ->  | M175: =IF(H175="","",VLOOKUP(H175,Listes_masqué!$B$3:$C$25,2,FALSE)) ->  | Q175: =IFERROR(_xlfn.XLOOKUP(P175,Tableau13[Code produit],Tableau13[Libellé]),"") ->  | R175: =IFERROR(VLOOKUP('Generateur code produit'!$P175,Tableau13[[#All],[Code produit]:[Tarif HT]],3,FALSE),"") ->  | T175: =VLOOKUP(D175,Listes_masqué!$H$3:$J$6,3,FALSE) ->  | U175: =IF(K175="213",VLOOKUP(F175,Listes_masqué!$Q$9:$R$13,2,FALSE),VLOOKUP(F175,Listes_masqué!$Q$3:$R$7,2,FALSE)) -> 
J176: =IF(D176="","",VLOOKUP(D176,Listes_masqué!$H$3:$K$14,2,FALSE)) ->  | K176: =IF(E176="","",VLOOKUP(E176,Listes_masqué!$N$3:$O$22,2,FALSE)) ->  | L176: =IF(G176="","",VLOOKUP(G176,Listes_masqué!$F$3:$G$62,2,FALSE)) ->  | M176: =IF(H176="","",VLOOKUP(H176,Listes_masqué!$B$3:$C$25,2,FALSE)) ->  | Q176: =IFERROR(_xlfn.XLOOKUP(P176,Tableau13[Code produit],Tableau13[Libellé]),"") ->  | R176: =IFERROR(VLOOKUP('Generateur code produit'!$P176,Tableau13[[#All],[Code produit]:[Tarif HT]],3,FALSE),"") ->  | T176: =VLOOKUP(D176,Listes_masqué!$H$3:$J$6,3,FALSE) ->  | U176: =IF(K176="213",VLOOKUP(F176,Listes_masqué!$Q$9:$R$13,2,FALSE),VLOOKUP(F176,Listes_masqué!$Q$3:$R$7,2,FALSE)) -> 
J177: =IF(D177="","",VLOOKUP(D177,Listes_masqué!$H$3:$K$14,2,FALSE)) ->  | K177: =IF(E177="","",VLOOKUP(E177,Listes_masqué!$N$3:$O$22,2,FALSE)) ->  | L177: =IF(G177="","",VLOOKUP(G177,Listes_masqué!$F$3:$G$62,2,FALSE)) ->  | M177: =IF(H177="","",VLOOKUP(H177,Listes_masqué!$B$3:$C$25,2,FALSE)) ->  | Q177: =IFERROR(_xlfn.XLOOKUP(P177,Tableau13[Code produit],Tableau13[Libellé]),"") ->  | R177: =IFERROR(VLOOKUP('Generateur code produit'!$P177,Tableau13[[#All],[Code produit]:[Tarif HT]],3,FALSE),"") ->  | T177: =VLOOKUP(D177,Listes_masqué!$H$3:$J$6,3,FALSE) ->  | U177: =IF(K177="213",VLOOKUP(F177,Listes_masqué!$Q$9:$R$13,2,FALSE),VLOOKUP(F177,Listes_masqué!$Q$3:$R$7,2,FALSE)) -> 
J178: =IF(D178="","",VLOOKUP(D178,Listes_masqué!$H$3:$K$14,2,FALSE)) ->  | K178: =IF(E178="","",VLOOKUP(E178,Listes_masqué!$N$3:$O$22,2,FALSE)) ->  | L178: =IF(G178="","",VLOOKUP(G178,Listes_masqué!$F$3:$G$62,2,FALSE)) ->  | M178: =IF(H178="","",VLOOKUP(H178,Listes_masqué!$B$3:$C$25,2,FALSE)) ->  | Q178: =IFERROR(_xlfn.XLOOKUP(P178,Tableau13[Code produit],Tableau13[Libellé]),"") ->  | R178: =IFERROR(VLOOKUP('Generateur code produit'!$P178,Tableau13[[#All],[Code produit]:[Tarif HT]],3,FALSE),"") ->  | T178: =VLOOKUP(D178,Listes_masqué!$H$3:$J$6,3,FALSE) ->  | U178: =IF(K178="213",VLOOKUP(F178,Listes_masqué!$Q$9:$R$13,2,FALSE),VLOOKUP(F178,Listes_masqué!$Q$3:$R$7,2,FALSE)) -> 
J179: =IF(D179="","",VLOOKUP(D179,Listes_masqué!$H$3:$K$14,2,FALSE)) ->  | K179: =IF(E179="","",VLOOKUP(E179,Listes_masqué!$N$3:$O$22,2,FALSE)) ->  | L179: =IF(G179="","",VLOOKUP(G179,Listes_masqué!$F$3:$G$62,2,FALSE)) ->  | M179: =IF(H179="","",VLOOKUP(H179,Listes_masqué!$B$3:$C$25,2,FALSE)) ->  | Q179: =IFERROR(_xlfn.XLOOKUP(P179,Tableau13[Code produit],Tableau13[Libellé]),"") ->  | R179: =IFERROR(VLOOKUP('Generateur code produit'!$P179,Tableau13[[#All],[Code produit]:[Tarif HT]],3,FALSE),"") ->  | T179: =VLOOKUP(D179,Listes_masqué!$H$3:$J$6,3,FALSE) ->  | U179: =IF(K179="213",VLOOKUP(F179,Listes_masqué!$Q$9:$R$13,2,FALSE),VLOOKUP(F179,Listes_masqué!$Q$3:$R$7,2,FALSE)) -> 
J180: =IF(D180="","",VLOOKUP(D180,Listes_masqué!$H$3:$K$14,2,FALSE)) ->  | K180: =IF(E180="","",VLOOKUP(E180,Listes_masqué!$N$3:$O$22,2,FALSE)) ->  | L180: =IF(G180="","",VLOOKUP(G180,Listes_masqué!$F$3:$G$62,2,FALSE)) ->  | M180: =IF(H180="","",VLOOKUP(H180,Listes_masqué!$B$3:$C$25,2,FALSE)) ->  | Q180: =IFERROR(_xlfn.XLOOKUP(P180,Tableau13[Code produit],Tableau13[Libellé]),"") ->  | R180: =IFERROR(VLOOKUP('Generateur code produit'!$P180,Tableau13[[#All],[Code produit]:[Tarif HT]],3,FALSE),"") ->  | T180: =VLOOKUP(D180,Listes_masqué!$H$3:$J$6,3,FALSE) ->  | U180: =IF(K180="213",VLOOKUP(F180,Listes_masqué!$Q$9:$R$13,2,FALSE),VLOOKUP(F180,Listes_masqué!$Q$3:$R$7,2,FALSE)) -> 
J181: =IF(D181="","",VLOOKUP(D181,Listes_masqué!$H$3:$K$14,2,FALSE)) ->  | K181: =IF(E181="","",VLOOKUP(E181,Listes_masqué!$N$3:$O$22,2,FALSE)) ->  | L181: =IF(G181="","",VLOOKUP(G181,Listes_masqué!$F$3:$G$62,2,FALSE)) ->  | M181: =IF(H181="","",VLOOKUP(H181,Listes_masqué!$B$3:$C$25,2,FALSE)) ->  | Q181: =IFERROR(_xlfn.XLOOKUP(P181,Tableau13[Code produit],Tableau13[Libellé]),"") ->  | R181: =IFERROR(VLOOKUP('Generateur code produit'!$P181,Tableau13[[#All],[Code produit]:[Tarif HT]],3,FALSE),"") ->  | T181: =VLOOKUP(D181,Listes_masqué!$H$3:$J$6,3,FALSE) ->  | U181: =IF(K181="213",VLOOKUP(F181,Listes_masqué!$Q$9:$R$13,2,FALSE),VLOOKUP(F181,Listes_masqué!$Q$3:$R$7,2,FALSE)) -> 
J182: =IF(D182="","",VLOOKUP(D182,Listes_masqué!$H$3:$K$14,2,FALSE)) ->  | K182: =IF(E182="","",VLOOKUP(E182,Listes_masqué!$N$3:$O$22,2,FALSE)) ->  | L182: =IF(G182="","",VLOOKUP(G182,Listes_masqué!$F$3:$G$62,2,FALSE)) ->  | M182: =IF(H182="","",VLOOKUP(H182,Listes_masqué!$B$3:$C$25,2,FALSE)) ->  | Q182: =IFERROR(_xlfn.XLOOKUP(P182,Tableau13[Code produit],Tableau13[Libellé]),"") ->  | R182: =IFERROR(VLOOKUP('Generateur code produit'!$P182,Tableau13[[#All],[Code produit]:[Tarif HT]],3,FALSE),"") ->  | T182: =VLOOKUP(D182,Listes_masqué!$H$3:$J$6,3,FALSE) ->  | U182: =IF(K182="213",VLOOKUP(F182,Listes_masqué!$Q$9:$R$13,2,FALSE),VLOOKUP(F182,Listes_masqué!$Q$3:$R$7,2,FALSE)) -> 
J183: =IF(D183="","",VLOOKUP(D183,Listes_masqué!$H$3:$K$14,2,FALSE)) ->  | K183: =IF(E183="","",VLOOKUP(E183,Listes_masqué!$N$3:$O$22,2,FALSE)) ->  | L183: =IF(G183="","",VLOOKUP(G183,Listes_masqué!$F$3:$G$62,2,FALSE)) ->  | M183: =IF(H183="","",VLOOKUP(H183,Listes_masqué!$B$3:$C$25,2,FALSE)) ->  | Q183: =IFERROR(_xlfn.XLOOKUP(P183,Tableau13[Code produit],Tableau13[Libellé]),"") ->  | R183: =IFERROR(VLOOKUP('Generateur code produit'!$P183,Tableau13[[#All],[Code produit]:[Tarif HT]],3,FALSE),"") ->  | T183: =VLOOKUP(D183,Listes_masqué!$H$3:$J$6,3,FALSE) ->  | U183: =IF(K183="213",VLOOKUP(F183,Listes_masqué!$Q$9:$R$13,2,FALSE),VLOOKUP(F183,Listes_masqué!$Q$3:$R$7,2,FALSE)) -> 
J184: =IF(D184="","",VLOOKUP(D184,Listes_masqué!$H$3:$K$14,2,FALSE)) ->  | K184: =IF(E184="","",VLOOKUP(E184,Listes_masqué!$N$3:$O$22,2,FALSE)) ->  | L184: =IF(G184="","",VLOOKUP(G184,Listes_masqué!$F$3:$G$62,2,FALSE)) ->  | M184: =IF(H184="","",VLOOKUP(H184,Listes_masqué!$B$3:$C$25,2,FALSE)) ->  | Q184: =IFERROR(_xlfn.XLOOKUP(P184,Tableau13[Code produit],Tableau13[Libellé]),"") ->  | R184: =IFERROR(VLOOKUP('Generateur code produit'!$P184,Tableau13[[#All],[Code produit]:[Tarif HT]],3,FALSE),"") ->  | T184: =VLOOKUP(D184,Listes_masqué!$H$3:$J$6,3,FALSE) ->  | U184: =IF(K184="213",VLOOKUP(F184,Listes_masqué!$Q$9:$R$13,2,FALSE),VLOOKUP(F184,Listes_masqué!$Q$3:$R$7,2,FALSE)) -> 
J185: =IF(D185="","",VLOOKUP(D185,Listes_masqué!$H$3:$K$14,2,FALSE)) ->  | K185: =IF(E185="","",VLOOKUP(E185,Listes_masqué!$N$3:$O$22,2,FALSE)) ->  | L185: =IF(G185="","",VLOOKUP(G185,Listes_masqué!$F$3:$G$62,2,FALSE)) ->  | M185: =IF(H185="","",VLOOKUP(H185,Listes_masqué!$B$3:$C$25,2,FALSE)) ->  | Q185: =IFERROR(_xlfn.XLOOKUP(P185,Tableau13[Code produit],Tableau13[Libellé]),"") ->  | R185: =IFERROR(VLOOKUP('Generateur code produit'!$P185,Tableau13[[#All],[Code produit]:[Tarif HT]],3,FALSE),"") ->  | T185: =VLOOKUP(D185,Listes_masqué!$H$3:$J$6,3,FALSE) ->  | U185: =IF(K185="213",VLOOKUP(F185,Listes_masqué!$Q$9:$R$13,2,FALSE),VLOOKUP(F185,Listes_masqué!$Q$3:$R$7,2,FALSE)) -> 
J186: =IF(D186="","",VLOOKUP(D186,Listes_masqué!$H$3:$K$14,2,FALSE)) ->  | K186: =IF(E186="","",VLOOKUP(E186,Listes_masqué!$N$3:$O$22,2,FALSE)) ->  | L186: =IF(G186="","",VLOOKUP(G186,Listes_masqué!$F$3:$G$62,2,FALSE)) ->  | M186: =IF(H186="","",VLOOKUP(H186,Listes_masqué!$B$3:$C$25,2,FALSE)) ->  | Q186: =IFERROR(_xlfn.XLOOKUP(P186,Tableau13[Code produit],Tableau13[Libellé]),"") ->  | R186: =IFERROR(VLOOKUP('Generateur code produit'!$P186,Tableau13[[#All],[Code produit]:[Tarif HT]],3,FALSE),"") ->  | T186: =VLOOKUP(D186,Listes_masqué!$H$3:$J$6,3,FALSE) ->  | U186: =IF(K186="213",VLOOKUP(F186,Listes_masqué!$Q$9:$R$13,2,FALSE),VLOOKUP(F186,Listes_masqué!$Q$3:$R$7,2,FALSE)) -> 
J187: =IF(D187="","",VLOOKUP(D187,Listes_masqué!$H$3:$K$14,2,FALSE)) ->  | K187: =IF(E187="","",VLOOKUP(E187,Listes_masqué!$N$3:$O$22,2,FALSE)) ->  | L187: =IF(G187="","",VLOOKUP(G187,Listes_masqué!$F$3:$G$62,2,FALSE)) ->  | M187: =IF(H187="","",VLOOKUP(H187,Listes_masqué!$B$3:$C$25,2,FALSE)) ->  | Q187: =IFERROR(_xlfn.XLOOKUP(P187,Tableau13[Code produit],Tableau13[Libellé]),"") ->  | R187: =IFERROR(VLOOKUP('Generateur code produit'!$P187,Tableau13[[#All],[Code produit]:[Tarif HT]],3,FALSE),"") ->  | T187: =VLOOKUP(D187,Listes_masqué!$H$3:$J$6,3,FALSE) ->  | U187: =IF(K187="213",VLOOKUP(F187,Listes_masqué!$Q$9:$R$13,2,FALSE),VLOOKUP(F187,Listes_masqué!$Q$3:$R$7,2,FALSE)) -> 
J188: =IF(D188="","",VLOOKUP(D188,Listes_masqué!$H$3:$K$14,2,FALSE)) ->  | K188: =IF(E188="","",VLOOKUP(E188,Listes_masqué!$N$3:$O$22,2,FALSE)) ->  | L188: =IF(G188="","",VLOOKUP(G188,Listes_masqué!$F$3:$G$62,2,FALSE)) ->  | M188: =IF(H188="","",VLOOKUP(H188,Listes_masqué!$B$3:$C$25,2,FALSE)) ->  | Q188: =IFERROR(_xlfn.XLOOKUP(P188,Tableau13[Code produit],Tableau13[Libellé]),"") ->  | R188: =IFERROR(VLOOKUP('Generateur code produit'!$P188,Tableau13[[#All],[Code produit]:[Tarif HT]],3,FALSE),"") ->  | T188: =VLOOKUP(D188,Listes_masqué!$H$3:$J$6,3,FALSE) ->  | U188: =IF(K188="213",VLOOKUP(F188,Listes_masqué!$Q$9:$R$13,2,FALSE),VLOOKUP(F188,Listes_masqué!$Q$3:$R$7,2,FALSE)) -> 
J189: =IF(D189="","",VLOOKUP(D189,Listes_masqué!$H$3:$K$14,2,FALSE)) ->  | K189: =IF(E189="","",VLOOKUP(E189,Listes_masqué!$N$3:$O$22,2,FALSE)) ->  | L189: =IF(G189="","",VLOOKUP(G189,Listes_masqué!$F$3:$G$62,2,FALSE)) ->  | M189: =IF(H189="","",VLOOKUP(H189,Listes_masqué!$B$3:$C$25,2,FALSE)) ->  | Q189: =IFERROR(_xlfn.XLOOKUP(P189,Tableau13[Code produit],Tableau13[Libellé]),"") ->  | R189: =IFERROR(VLOOKUP('Generateur code produit'!$P189,Tableau13[[#All],[Code produit]:[Tarif HT]],3,FALSE),"") ->  | T189: =VLOOKUP(D189,Listes_masqué!$H$3:$J$6,3,FALSE) ->  | U189: =IF(K189="213",VLOOKUP(F189,Listes_masqué!$Q$9:$R$13,2,FALSE),VLOOKUP(F189,Listes_masqué!$Q$3:$R$7,2,FALSE)) -> 
J190: =IF(D190="","",VLOOKUP(D190,Listes_masqué!$H$3:$K$14,2,FALSE)) ->  | K190: =IF(E190="","",VLOOKUP(E190,Listes_masqué!$N$3:$O$22,2,FALSE)) ->  | L190: =IF(G190="","",VLOOKUP(G190,Listes_masqué!$F$3:$G$62,2,FALSE)) ->  | M190: =IF(H190="","",VLOOKUP(H190,Listes_masqué!$B$3:$C$25,2,FALSE)) ->  | Q190: =IFERROR(_xlfn.XLOOKUP(P190,Tableau13[Code produit],Tableau13[Libellé]),"") ->  | R190: =IFERROR(VLOOKUP('Generateur code produit'!$P190,Tableau13[[#All],[Code produit]:[Tarif HT]],3,FALSE),"") ->  | T190: =VLOOKUP(D190,Listes_masqué!$H$3:$J$6,3,FALSE) ->  | U190: =IF(K190="213",VLOOKUP(F190,Listes_masqué!$Q$9:$R$13,2,FALSE),VLOOKUP(F190,Listes_masqué!$Q$3:$R$7,2,FALSE)) -> 
J191: =IF(D191="","",VLOOKUP(D191,Listes_masqué!$H$3:$K$14,2,FALSE)) ->  | K191: =IF(E191="","",VLOOKUP(E191,Listes_masqué!$N$3:$O$22,2,FALSE)) ->  | L191: =IF(G191="","",VLOOKUP(G191,Listes_masqué!$F$3:$G$62,2,FALSE)) ->  | M191: =IF(H191="","",VLOOKUP(H191,Listes_masqué!$B$3:$C$25,2,FALSE)) ->  | Q191: =IFERROR(_xlfn.XLOOKUP(P191,Tableau13[Code produit],Tableau13[Libellé]),"") ->  | R191: =IFERROR(VLOOKUP('Generateur code produit'!$P191,Tableau13[[#All],[Code produit]:[Tarif HT]],3,FALSE),"") ->  | T191: =VLOOKUP(D191,Listes_masqué!$H$3:$J$6,3,FALSE) ->  | U191: =IF(K191="213",VLOOKUP(F191,Listes_masqué!$Q$9:$R$13,2,FALSE),VLOOKUP(F191,Listes_masqué!$Q$3:$R$7,2,FALSE)) -> 
J192: =IF(D192="","",VLOOKUP(D192,Listes_masqué!$H$3:$K$14,2,FALSE)) ->  | K192: =IF(E192="","",VLOOKUP(E192,Listes_masqué!$N$3:$O$22,2,FALSE)) ->  | L192: =IF(G192="","",VLOOKUP(G192,Listes_masqué!$F$3:$G$62,2,FALSE)) ->  | M192: =IF(H192="","",VLOOKUP(H192,Listes_masqué!$B$3:$C$25,2,FALSE)) ->  | Q192: =IFERROR(_xlfn.XLOOKUP(P192,Tableau13[Code produit],Tableau13[Libellé]),"") ->  | R192: =IFERROR(VLOOKUP('Generateur code produit'!$P192,Tableau13[[#All],[Code produit]:[Tarif HT]],3,FALSE),"") ->  | T192: =VLOOKUP(D192,Listes_masqué!$H$3:$J$6,3,FALSE) ->  | U192: =IF(K192="213",VLOOKUP(F192,Listes_masqué!$Q$9:$R$13,2,FALSE),VLOOKUP(F192,Listes_masqué!$Q$3:$R$7,2,FALSE)) -> 
J193: =IF(D193="","",VLOOKUP(D193,Listes_masqué!$H$3:$K$14,2,FALSE)) ->  | K193: =IF(E193="","",VLOOKUP(E193,Listes_masqué!$N$3:$O$22,2,FALSE)) ->  | L193: =IF(G193="","",VLOOKUP(G193,Listes_masqué!$F$3:$G$62,2,FALSE)) ->  | M193: =IF(H193="","",VLOOKUP(H193,Listes_masqué!$B$3:$C$25,2,FALSE)) ->  | Q193: =IFERROR(_xlfn.XLOOKUP(P193,Tableau13[Code produit],Tableau13[Libellé]),"") ->  | R193: =IFERROR(VLOOKUP('Generateur code produit'!$P193,Tableau13[[#All],[Code produit]:[Tarif HT]],3,FALSE),"") ->  | T193: =VLOOKUP(D193,Listes_masqué!$H$3:$J$6,3,FALSE) ->  | U193: =IF(K193="213",VLOOKUP(F193,Listes_masqué!$Q$9:$R$13,2,FALSE),VLOOKUP(F193,Listes_masqué!$Q$3:$R$7,2,FALSE)) -> 
J194: =IF(D194="","",VLOOKUP(D194,Listes_masqué!$H$3:$K$14,2,FALSE)) ->  | K194: =IF(E194="","",VLOOKUP(E194,Listes_masqué!$N$3:$O$22,2,FALSE)) ->  | L194: =IF(G194="","",VLOOKUP(G194,Listes_masqué!$F$3:$G$62,2,FALSE)) ->  | M194: =IF(H194="","",VLOOKUP(H194,Listes_masqué!$B$3:$C$25,2,FALSE)) ->  | Q194: =IFERROR(_xlfn.XLOOKUP(P194,Tableau13[Code produit],Tableau13[Libellé]),"") ->  | R194: =IFERROR(VLOOKUP('Generateur code produit'!$P194,Tableau13[[#All],[Code produit]:[Tarif HT]],3,FALSE),"") ->  | T194: =VLOOKUP(D194,Listes_masqué!$H$3:$J$6,3,FALSE) ->  | U194: =IF(K194="213",VLOOKUP(F194,Listes_masqué!$Q$9:$R$13,2,FALSE),VLOOKUP(F194,Listes_masqué!$Q$3:$R$7,2,FALSE)) -> 
J195: =IF(D195="","",VLOOKUP(D195,Listes_masqué!$H$3:$K$14,2,FALSE)) ->  | K195: =IF(E195="","",VLOOKUP(E195,Listes_masqué!$N$3:$O$22,2,FALSE)) ->  | L195: =IF(G195="","",VLOOKUP(G195,Listes_masqué!$F$3:$G$62,2,FALSE)) ->  | M195: =IF(H195="","",VLOOKUP(H195,Listes_masqué!$B$3:$C$25,2,FALSE)) ->  | Q195: =IFERROR(_xlfn.XLOOKUP(P195,Tableau13[Code produit],Tableau13[Libellé]),"") ->  | R195: =IFERROR(VLOOKUP('Generateur code produit'!$P195,Tableau13[[#All],[Code produit]:[Tarif HT]],3,FALSE),"") ->  | T195: =VLOOKUP(D195,Listes_masqué!$H$3:$J$6,3,FALSE) ->  | U195: =IF(K195="213",VLOOKUP(F195,Listes_masqué!$Q$9:$R$13,2,FALSE),VLOOKUP(F195,Listes_masqué!$Q$3:$R$7,2,FALSE)) -> 
J196: =IF(D196="","",VLOOKUP(D196,Listes_masqué!$H$3:$K$14,2,FALSE)) ->  | K196: =IF(E196="","",VLOOKUP(E196,Listes_masqué!$N$3:$O$22,2,FALSE)) ->  | L196: =IF(G196="","",VLOOKUP(G196,Listes_masqué!$F$3:$G$62,2,FALSE)) ->  | M196: =IF(H196="","",VLOOKUP(H196,Listes_masqué!$B$3:$C$25,2,FALSE)) ->  | Q196: =IFERROR(_xlfn.XLOOKUP(P196,Tableau13[Code produit],Tableau13[Libellé]),"") ->  | R196: =IFERROR(VLOOKUP('Generateur code produit'!$P196,Tableau13[[#All],[Code produit]:[Tarif HT]],3,FALSE),"") ->  | T196: =VLOOKUP(D196,Listes_masqué!$H$3:$J$6,3,FALSE) ->  | U196: =IF(K196="213",VLOOKUP(F196,Listes_masqué!$Q$9:$R$13,2,FALSE),VLOOKUP(F196,Listes_masqué!$Q$3:$R$7,2,FALSE)) -> 
J197: =IF(D197="","",VLOOKUP(D197,Listes_masqué!$H$3:$K$14,2,FALSE)) ->  | K197: =IF(E197="","",VLOOKUP(E197,Listes_masqué!$N$3:$O$22,2,FALSE)) ->  | L197: =IF(G197="","",VLOOKUP(G197,Listes_masqué!$F$3:$G$62,2,FALSE)) ->  | M197: =IF(H197="","",VLOOKUP(H197,Listes_masqué!$B$3:$C$25,2,FALSE)) ->  | Q197: =IFERROR(_xlfn.XLOOKUP(P197,Tableau13[Code produit],Tableau13[Libellé]),"") ->  | R197: =IFERROR(VLOOKUP('Generateur code produit'!$P197,Tableau13[[#All],[Code produit]:[Tarif HT]],3,FALSE),"") ->  | T197: =VLOOKUP(D197,Listes_masqué!$H$3:$J$6,3,FALSE) ->  | U197: =IF(K197="213",VLOOKUP(F197,Listes_masqué!$Q$9:$R$13,2,FALSE),VLOOKUP(F197,Listes_masqué!$Q$3:$R$7,2,FALSE)) -> 
J198: =IF(D198="","",VLOOKUP(D198,Listes_masqué!$H$3:$K$14,2,FALSE)) ->  | K198: =IF(E198="","",VLOOKUP(E198,Listes_masqué!$N$3:$O$22,2,FALSE)) ->  | L198: =IF(G198="","",VLOOKUP(G198,Listes_masqué!$F$3:$G$62,2,FALSE)) ->  | M198: =IF(H198="","",VLOOKUP(H198,Listes_masqué!$B$3:$C$25,2,FALSE)) ->  | Q198: =IFERROR(_xlfn.XLOOKUP(P198,Tableau13[Code produit],Tableau13[Libellé]),"") ->  | R198: =IFERROR(VLOOKUP('Generateur code produit'!$P198,Tableau13[[#All],[Code produit]:[Tarif HT]],3,FALSE),"") ->  | T198: =VLOOKUP(D198,Listes_masqué!$H$3:$J$6,3,FALSE) ->  | U198: =IF(K198="213",VLOOKUP(F198,Listes_masqué!$Q$9:$R$13,2,FALSE),VLOOKUP(F198,Listes_masqué!$Q$3:$R$7,2,FALSE)) -> 
J199: =IF(D199="","",VLOOKUP(D199,Listes_masqué!$H$3:$K$14,2,FALSE)) ->  | K199: =IF(E199="","",VLOOKUP(E199,Listes_masqué!$N$3:$O$22,2,FALSE)) ->  | L199: =IF(G199="","",VLOOKUP(G199,Listes_masqué!$F$3:$G$62,2,FALSE)) ->  | M199: =IF(H199="","",VLOOKUP(H199,Listes_masqué!$B$3:$C$25,2,FALSE)) ->  | N199: =IF(I199="","",IF(I199="oui",1,0)) ->  | Q199: =IFERROR(_xlfn.XLOOKUP(P199,Tableau13[Code produit],Tableau13[Libellé]),"") ->  | R199: =IFERROR(VLOOKUP('Generateur code produit'!$P199,Tableau13[[#All],[Code produit]:[Tarif HT]],3,FALSE),"") ->  | T199: =VLOOKUP(D199,Listes_masqué!$H$3:$J$6,3,FALSE) ->  | U199: =IF(K199="213",VLOOKUP(F199,Listes_masqué!$Q$9:$R$13,2,FALSE),VLOOKUP(F199,Listes_masqué!$Q$3:$R$7,2,FALSE)) -> 
J200: =IF(D200="","",VLOOKUP(D200,Listes_masqué!$H$3:$K$14,2,FALSE)) ->  | K200: =IF(E200="","",VLOOKUP(E200,Listes_masqué!$N$3:$O$22,2,FALSE)) ->  | L200: =IF(G200="","",VLOOKUP(G200,Listes_masqué!$F$3:$G$62,2,FALSE)) ->  | M200: =IF(H200="","",VLOOKUP(H200,Listes_masqué!$B$3:$C$25,2,FALSE)) ->  | Q200: =IFERROR(_xlfn.XLOOKUP(P200,Tableau13[Code produit],Tableau13[Libellé]),"") ->  | R200: =IFERROR(VLOOKUP('Generateur code produit'!$P200,Tableau13[[#All],[Code produit]:[Tarif HT]],3,FALSE),"") ->  | T200: =VLOOKUP(D200,Listes_masqué!$H$3:$J$6,3,FALSE) ->  | U200: =IF(K200="213",VLOOKUP(F200,Listes_masqué!$Q$9:$R$13,2,FALSE),VLOOKUP(F200,Listes_masqué!$Q$3:$R$7,2,FALSE)) -> 
J201: =IF(D201="","",VLOOKUP(D201,Listes_masqué!$H$3:$K$14,2,FALSE)) ->  | K201: =IF(E201="","",VLOOKUP(E201,Listes_masqué!$N$3:$O$22,2,FALSE)) ->  | L201: =IF(G201="","",VLOOKUP(G201,Listes_masqué!$F$3:$G$62,2,FALSE)) ->  | M201: =IF(H201="","",VLOOKUP(H201,Listes_masqué!$B$3:$C$25,2,FALSE)) ->  | Q201: =IFERROR(_xlfn.XLOOKUP(P201,Tableau13[Code produit],Tableau13[Libellé]),"") ->  | R201: =IFERROR(VLOOKUP('Generateur code produit'!$P201,Tableau13[[#All],[Code produit]:[Tarif HT]],3,FALSE),"") ->  | S201: =IF(M201="089","Attention! Il faut déclarer un nombre de lot de 1000 et non des unités.",IF(I201="oui","Attention, pensez à bien verifier l'éligibilité de ce produit aux éco-modulations.","")) ->  | T201: =VLOOKUP(D201,Listes_masqué!$H$3:$J$6,3,FALSE) ->  | U201: =IF(K201="213",VLOOKUP(F201,Listes_masqué!$Q$9:$R$13,2,FALSE),VLOOKUP(F201,Listes_masqué!$Q$3:$R$7,2,FALSE)) -> 
J202: =IF(D202="","",VLOOKUP(D202,Listes_masqué!$H$3:$K$14,2,FALSE)) ->  | K202: =IF(E202="","",VLOOKUP(E202,Listes_masqué!$N$3:$O$22,2,FALSE)) ->  | L202: =IF(G202="","",VLOOKUP(G202,Listes_masqué!$F$3:$G$62,2,FALSE)) ->  | M202: =IF(H202="","",VLOOKUP(H202,Listes_masqué!$B$3:$C$25,2,FALSE)) ->  | P202: =IF(OR(H202="",G202="",E202="",D202=""),"",CONCATENATE(J202,K202,L202,M202,N202)) ->  | Q202: =IFERROR(_xlfn.XLOOKUP(P202,Tableau13[Code produit],Tableau13[Libellé]),"") ->  | R202: =IFERROR(VLOOKUP('Generateur code produit'!$P202,Tableau13[[#All],[Code produit]:[Tarif HT]],3,FALSE),"") ->  | T202: =VLOOKUP(D202,Listes_masqué!$H$3:$J$6,3,FALSE) ->  | U202: =IF(K202="213",VLOOKUP(F202,Listes_masqué!$Q$9:$R$13,2,FALSE),VLOOKUP(F202,Listes_masqué!$Q$3:$R$7,2,FALSE)) -> 
... 88 more rows

Sheet Codes
A1: Code Catégorie | B1: Libellé Cat | C1: Code Type de produit | D1: Libellé Type | E1: Code Matériau | F1: Libellé Mat | G1: Code Caractéristique | H1: Libellé Carac | I1: Index tarif | J1: Code produit | K1: Libellé | L1: Tarif HT | M1: Code Eco part | N1: Tarif TTC
A2: =MID(J2,1,2) -> 31 | B2: Jouets | C2: =MID(J2,3,3) -> 201 | D2: Figurines d'action & accessoires | E2: =MID(J2,6,2) -> 00 | F2: Non connu | G2: =MID(J2,8,3) -> 021 | H2: Compris entre 0,5 kg et 1 kg exclus | J2: 31201000210 | K2: Jouets - en Non connu Compris entre 0,5 kg et 1 kg exclus | L2: 0.24 | M2: =VLOOKUP(Tableau13[[#This Row],[Tarif HT]],'Codes éco-part'!C:E,3,FALSE) -> 248 | N2: =Tableau13[[#This Row],[Tarif HT]]*1.2 -> 0.288
A3: 31 | B3: Jouets | C3: 201 | D3: Figurines d'action & accessoires | E3: 00 | F3: Non connu | G3: 021 | H3: Compris entre 0,5 kg et 1 kg exclus | J3: 31201000211 | K3: Jouets - en Non connu Compris entre 0,5 kg et 1 kg exclus éco-modulés | L3: 0.22 | M3: =VLOOKUP(Tableau13[[#This Row],[Tarif HT]],'Codes éco-part'!C:E,3,FALSE) -> 263 | N3: =Tableau13[[#This Row],[Tarif HT]]*1.2 -> 0.264
A4: 31 | B4: Jouets | C4: 201 | D4: Figurines d'action & accessoires | E4: 00 | F4: Non connu | G4: 022 | H4: Compris entre 1 kg et 2 kg exclus | J4: 31201000220 | K4: Jouets - en Non connu Compris entre 1 kg et 2 kg exclus | L4: 0.47 | M4: =VLOOKUP(Tableau13[[#This Row],[Tarif HT]],'Codes éco-part'!C:E,3,FALSE) -> 107 | N4: =Tableau13[[#This Row],[Tarif HT]]*1.2 -> 0.564
A5: 31 | B5: Jouets | C5: 201 | D5: Figurines d'action & accessoires | E5: 00 | F5: Non connu | G5: 022 | H5: Compris entre 1 kg et 2 kg exclus | J5: 31201000221 | K5: Jouets - en Non connu Compris entre 1 kg et 2 kg exclus éco-modulés | L5: 0.42 | M5: =VLOOKUP(Tableau13[[#This Row],[Tarif HT]],'Codes éco-part'!C:E,3,FALSE) -> 450 | N5: =Tableau13[[#This Row],[Tarif HT]]*1.2 -> 0.504
A6: 31 | B6: Jouets | C6: 201 | D6: Figurines d'action & accessoires | E6: 00 | F6: Non connu | G6: 027 | H6: Compris entre 30 kg et 40 kg exclus | J6: 31201000270 | K6: Jouets - en Non connu Compris entre 30 kg et 40 kg exclus | L6: 9.3 | M6: =VLOOKUP(Tableau13[[#This Row],[Tarif HT]],'Codes éco-part'!C:E,3,FALSE) -> 420 | N6: =Tableau13[[#This Row],[Tarif HT]]*1.2 -> 11.16
A7: 31 | B7: Jouets | C7: 201 | D7: Figurines d'action & accessoires | E7: 00 | F7: Non connu | G7: 027 | H7: Compris entre 30 kg et 40 kg exclus | J7: 31201000271 | K7: Jouets - en Non connu Compris entre 30 kg et 40 kg exclus éco-modulés | L7: 8.37 | M7: =VLOOKUP(Tableau13[[#This Row],[Tarif HT]],'Codes éco-part'!C:E,3,FALSE) -> 735 | N7: =Tableau13[[#This Row],[Tarif HT]]*1.2 -> 10.044
A8: 31 | B8: Jouets | C8: 201 | D8: Figurines d'action & accessoires | E8: 00 | F8: Non connu | G8: 030 | H8: Compris entre 100 kg et 150 kg exclus | J8: 31201000300 | K8: Jouets - en Non connu Compris entre 100 kg et 150 kg exclus | L8: 27.1 | M8: =VLOOKUP(Tableau13[[#This Row],[Tarif HT]],'Codes éco-part'!C:E,3,FALSE) -> 421 | N8: =Tableau13[[#This Row],[Tarif HT]]*1.2 -> 32.52
A9: 31 | B9: Jouets | C9: 201 | D9: Figurines d'action & accessoires | E9: 00 | F9: Non connu | G9: 030 | H9: Compris entre 100 kg et 150 kg exclus | J9: 31201000301 | K9: Jouets - en Non connu Compris entre 100 kg et 150 kg exclus éco-modulés | L9: 24.39 | M9: =VLOOKUP(Tableau13[[#This Row],[Tarif HT]],'Codes éco-part'!C:E,3,FALSE) -> 929 | N9: =Tableau13[[#This Row],[Tarif HT]]*1.2 -> 29.268
A10: 31 | B10: Jouets | C10: 201 | D10: Figurines d'action & accessoires | E10: 00 | F10: Non connu | G10: 031 | H10: Compris entre 150 kg et 200 kg exclus | J10: 31201000310 | K10: Jouets - en Non connu Compris entre 150 kg et 200 kg exclus | L10: 37.95 | M10: =VLOOKUP(Tableau13[[#This Row],[Tarif HT]],'Codes éco-part'!C:E,3,FALSE) -> 422 | N10: =Tableau13[[#This Row],[Tarif HT]]*1.2 -> 45.54
A11: 31 | B11: Jouets | C11: 201 | D11: Figurines d'action & accessoires | E11: 00 | F11: Non connu | G11: 031 | H11: Compris entre 150 kg et 200 kg exclus | J11: 31201000311 | K11: Jouets - en Non connu Compris entre 150 kg et 200 kg exclus éco-modulés | L11: 34.16 | M11: =VLOOKUP(Tableau13[[#This Row],[Tarif HT]],'Codes éco-part'!C:E,3,FALSE) -> 933 | N11: =Tableau13[[#This Row],[Tarif HT]]*1.2 -> 40.992
A12: 31 | B12: Jouets | C12: 201 | D12: Figurines d'action & accessoires | E12: 00 | F12: Non connu | G12: 032 | H12: Compris entre 200 kg et 250 kg exclus | J12: 31201000320 | K12: Jouets - en Non connu Compris entre 200 kg et 250 kg exclus | L12: 48.79 | M12: =VLOOKUP(Tableau13[[#This Row],[Tarif HT]],'Codes éco-part'!C:E,3,FALSE) -> 423 | N12: =Tableau13[[#This Row],[Tarif HT]]*1.2 -> 58.548
A13: 31 | B13: Jouets | C13: 201 | D13: Figurines d'action & accessoires | E13: 00 | F13: Non connu | G13: 032 | H13: Compris entre 200 kg et 250 kg exclus | J13: 31201000321 | K13: Jouets - en Non connu Compris entre 200 kg et 250 kg exclus éco-modulés | L13: 43.91 | M13: =VLOOKUP(Tableau13[[#This Row],[Tarif HT]],'Codes éco-part'!C:E,3,FALSE) -> 935 | N13: =Tableau13[[#This Row],[Tarif HT]]*1.2 -> 52.692
A14: 31 | B14: Jouets | C14: 201 | D14: Figurines d'action & accessoires | E14: 00 | F14: Non connu | G14: 052 | H14: Compris entre 2 kg et 3 kg exclus | J14: 31201000520 | K14: Jouets - en Non connu Compris entre 2 kg et 3 kg exclus | L14: 0.78 | M14: =VLOOKUP(Tableau13[[#This Row],[Tarif HT]],'Codes éco-part'!C:E,3,FALSE) -> 312 | N14: =Tableau13[[#This Row],[Tarif HT]]*1.2 -> 0.936
A15: 31 | B15: Jouets | C15: 201 | D15: Figurines d'action & accessoires | E15: 00 | F15: Non connu | G15: 052 | H15: Compris entre 2 kg et 3 kg exclus | J15: 31201000521 | K15: Jouets - en Non connu Compris entre 2 kg et 3 kg exclus éco-modulés | L15: 0.7 | M15: =VLOOKUP(Tableau13[[#This Row],[Tarif HT]],'Codes éco-part'!C:E,3,FALSE) -> 282 | N15: =Tableau13[[#This Row],[Tarif HT]]*1.2 -> 0.84
A16: 31 | B16: Jouets | C16: 201 | D16: Figurines d'action & accessoires | E16: 00 | F16: Non connu | G16: 053 | H16: Compris entre 3 kg et 5 kg exclus | J16: 31201000530 | K16: Jouets - en Non connu Compris entre 3 kg et 5 kg exclus | L16: 1.24 | M16: =VLOOKUP(Tableau13[[#This Row],[Tarif HT]],'Codes éco-part'!C:E,3,FALSE) -> 313 | N16: =Tableau13[[#This Row],[Tarif HT]]*1.2 -> 1.488
A17: 31 | B17: Jouets | C17: 201 | D17: Figurines d'action & accessoires | E17: 00 | F17: Non connu | G17: 053 | H17: Compris entre 3 kg et 5 kg exclus | J17: 31201000531 | K17: Jouets - en Non connu Compris entre 3 kg et 5 kg exclus éco-modulés | L17: 1.12 | M17: =VLOOKUP(Tableau13[[#This Row],[Tarif HT]],'Codes éco-part'!C:E,3,FALSE) -> 605 | N17: =Tableau13[[#This Row],[Tarif HT]]*1.2 -> 1.344
A18: 31 | B18: Jouets | C18: 201 | D18: Figurines d'action & accessoires | E18: 00 | F18: Non connu | G18: 054 | H18: Compris entre 5 kg et 7 kg exclus | J18: 31201000540 | K18: Jouets - en Non connu Compris entre 5 kg et 7 kg exclus | L18: 1.86 | M18: =VLOOKUP(Tableau13[[#This Row],[Tarif HT]],'Codes éco-part'!C:E,3,FALSE) -> 314 | N18: =Tableau13[[#This Row],[Tarif HT]]*1.2 -> 2.232
A19: 31 | B19: Jouets | C19: 201 | D19: Figurines d'action & accessoires | E19: 00 | F19: Non connu | G19: 054 | H19: Compris entre 5 kg et 7 kg exclus | J19: 31201000541 | K19: Jouets - en Non connu Compris entre 5 kg et 7 kg exclus éco-modulés | L19: 1.67 | M19: =VLOOKUP(Tableau13[[#This Row],[Tarif HT]],'Codes éco-part'!C:E,3,FALSE) -> 010 | N19: =Tableau13[[#This Row],[Tarif HT]]*1.2 -> 2.004
A20: 31 | B20: Jouets | C20: 201 | D20: Figurines d'action & accessoires | E20: 00 | F20: Non connu | G20: 055 | H20: Compris entre 7 kg et 10 kg exclus | J20: 31201000550 | K20: Jouets - en Non connu Compris entre 7 kg et 10 kg exclus | L20: 2.33 | M20: =VLOOKUP(Tableau13[[#This Row],[Tarif HT]],'Codes éco-part'!C:E,3,FALSE) -> 062 | N20: =Tableau13[[#This Row],[Tarif HT]]*1.2 -> 2.796
A21: 31 | B21: Jouets | C21: 201 | D21: Figurines d'action & accessoires | E21: 00 | F21: Non connu | G21: 055 | H21: Compris entre 7 kg et 10 kg exclus | J21: 31201000551 | K21: Jouets - en Non connu Compris entre 7 kg et 10 kg exclus éco-modulés | L21: 2.1 | M21: =VLOOKUP(Tableau13[[#This Row],[Tarif HT]],'Codes éco-part'!C:E,3,FALSE) -> 632 | N21: =Tableau13[[#This Row],[Tarif HT]]*1.2 -> 2.52
A22: 31 | B22: Jouets | C22: 201 | D22: Figurines d'action & accessoires | E22: 00 | F22: Non connu | G22: 056 | H22: Compris entre 10 kg et 15 kg exclus | J22: 31201000560 | K22: Jouets - en Non connu Compris entre 10 kg et 15 kg exclus | L22: 3.88 | M22: =VLOOKUP(Tableau13[[#This Row],[Tarif HT]],'Codes éco-part'!C:E,3,FALSE) -> 315 | N22: =Tableau13[[#This Row],[Tarif HT]]*1.2 -> 4.656
A23: 31 | B23: Jouets | C23: 201 | D23: Figurines d'action & accessoires | E23: 00 | F23: Non connu | G23: 056 | H23: Compris entre 10 kg et 15 kg exclus | J23: 31201000561 | K23: Jouets - en Non connu Compris entre 10 kg et 15 kg exclus éco-modulés | L23: 3.49 | M23: =VLOOKUP(Tableau13[[#This Row],[Tarif HT]],'Codes éco-part'!C:E,3,FALSE) -> 904 | N23: =Tableau13[[#This Row],[Tarif HT]]*1.2 -> 4.188
A24: 31 | B24: Jouets | C24: 201 | D24: Figurines d'action & accessoires | E24: 00 | F24: Non connu | G24: 057 | H24: Compris entre 15 kg et 20 kg exclus | J24: 31201000570 | K24: Jouets - en Non connu Compris entre 15 kg et 20 kg exclus | L24: 5.43 | M24: =VLOOKUP(Tableau13[[#This Row],[Tarif HT]],'Codes éco-part'!C:E,3,FALSE) -> 316 | N24: =Tableau13[[#This Row],[Tarif HT]]*1.2 -> 6.516
A25: 31 | B25: Jouets | C25: 201 | D25: Figurines d'action & accessoires | E25: 00 | F25: Non connu | G25: 057 | H25: Compris entre 15 kg et 20 kg exclus | J25: 31201000571 | K25: Jouets - en Non connu Compris entre 15 kg et 20 kg exclus éco-modulés | L25: 4.89 | M25: =VLOOKUP(Tableau13[[#This Row],[Tarif HT]],'Codes éco-part'!C:E,3,FALSE) -> 907 | N25: =Tableau13[[#This Row],[Tarif HT]]*1.2 -> 5.868
A26: 31 | B26: Jouets | C26: 201 | D26: Figurines d'action & accessoires | E26: 00 | F26: Non connu | G26: 058 | H26: Compris entre 20 kg et 25 kg exclus | J26: 31201000580 | K26: Jouets - en Non connu Compris entre 20 kg et 25 kg exclus | L26: 6.62 | M26: =VLOOKUP(Tableau13[[#This Row],[Tarif HT]],'Codes éco-part'!C:E,3,FALSE) -> 424 | N26: =Tableau13[[#This Row],[Tarif HT]]*1.2 -> 7.944
A27: 31 | B27: Jouets | C27: 201 | D27: Figurines d'action & accessoires | E27: 00 | F27: Non connu | G27: 058 | H27: Compris entre 20 kg et 25 kg exclus | J27: 31201000581 | K27: Jouets - en Non connu Compris entre 20 kg et 25 kg exclus éco-modulés | L27: 5.96 | M27: =VLOOKUP(Tableau13[[#This Row],[Tarif HT]],'Codes éco-part'!C:E,3,FALSE) -> 841 | N27: =Tableau13[[#This Row],[Tarif HT]]*1.2 -> 7.152
A28: 31 | B28: Jouets | C28: 201 | D28: Figurines d'action & accessoires | E28: 00 | F28: Non connu | G28: 059 | H28: Compris entre 25 kg et 30 kg exclus | J28: 31201000590 | K28: Jouets - en Non connu Compris entre 25 kg et 30 kg exclus | L28: 7.69 | M28: =VLOOKUP(Tableau13[[#This Row],[Tarif HT]],'Codes éco-part'!C:E,3,FALSE) -> 425 | N28: =Tableau13[[#This Row],[Tarif HT]]*1.2 -> 9.228
A29: 31 | B29: Jouets | C29: 201 | D29: Figurines d'action & accessoires | E29: 00 | F29: Non connu | G29: 059 | H29: Compris entre 25 kg et 30 kg exclus | J29: 31201000591 | K29: Jouets - en Non connu Compris entre 25 kg et 30 kg exclus éco-modulés | L29: 6.92 | M29: =VLOOKUP(Tableau13[[#This Row],[Tarif HT]],'Codes éco-part'!C:E,3,FALSE) -> 136 | N29: =Tableau13[[#This Row],[Tarif HT]]*1.2 -> 8.304
A30: 31 | B30: Jouets | C30: 201 | D30: Figurines d'action & accessoires | E30: 00 | F30: Non connu | G30: 060 | H30: Compris entre 40 kg et 50 kg exclus | J30: 31201000600 | K30: Jouets - en Non connu Compris entre 40 kg et 50 kg exclus | L30: 11.35 | M30: =VLOOKUP(Tableau13[[#This Row],[Tarif HT]],'Codes éco-part'!C:E,3,FALSE) -> 426 | N30: =Tableau13[[#This Row],[Tarif HT]]*1.2 -> 13.62
A31: 31 | B31: Jouets | C31: 201 | D31: Figurines d'action & accessoires | E31: 00 | F31: Non connu | G31: 060 | H31: Compris entre 40 kg et 50 kg exclus | J31: 31201000601 | K31: Jouets - en Non connu Compris entre 40 kg et 50 kg exclus éco-modulés | L31: 10.22 | M31: =VLOOKUP(Tableau13[[#This Row],[Tarif HT]],'Codes éco-part'!C:E,3,FALSE) -> 737 | N31: =Tableau13[[#This Row],[Tarif HT]]*1.2 -> 12.264
A32: 31 | B32: Jouets | C32: 201 | D32: Figurines d'action & accessoires | E32: 00 | F32: Non connu | G32: 082 | H32: supérieur à 250 kg | J32: 31201000820 | K32: Jouets - en Non connu supérieur à 250 kg | L32: 54.21 | M32: =VLOOKUP(Tableau13[[#This Row],[Tarif HT]],'Codes éco-part'!C:E,3,FALSE) -> 310 | N32: =Tableau13[[#This Row],[Tarif HT]]*1.2 -> 65.052
A33: 31 | B33: Jouets | C33: 201 | D33: Figurines d'action & accessoires | E33: 00 | F33: Non connu | G33: 082 | H33: supérieur à 250 kg | J33: 31201000821 | K33: Jouets - en Non connu supérieur à 250 kg éco-modulés | L33: 48.79 | M33: =VLOOKUP(Tableau13[[#This Row],[Tarif HT]],'Codes éco-part'!C:E,3,FALSE) -> 423 | N33: =Tableau13[[#This Row],[Tarif HT]]*1.2 -> 58.548
A34: 31 | B34: Jouets | C34: 201 | D34: Figurines d'action & accessoires | E34: 00 | F34: Non connu | G34: 083 | H34: inférieur strictement à 0,1 kg | J34: 31201000830 | K34: Jouets - en Non connu inférieur strictement à 0,1 kg | L34: 0.02 | M34: =VLOOKUP(Tableau13[[#This Row],[Tarif HT]],'Codes éco-part'!C:E,3,FALSE) -> 047 | N34: =Tableau13[[#This Row],[Tarif HT]]*1.2 -> 0.024
A35: 31 | B35: Jouets | C35: 201 | D35: Figurines d'action & accessoires | E35: 00 | F35: Non connu | G35: 083 | H35: inférieur strictement à 0,1 kg | J35: 31201000831 | K35: Jouets - en Non connu inférieur strictement à 0,1 kg éco-modulés | L35: 0.02 | M35: =VLOOKUP(Tableau13[[#This Row],[Tarif HT]],'Codes éco-part'!C:E,3,FALSE) -> 047 | N35: =Tableau13[[#This Row],[Tarif HT]]*1.2 -> 0.024
A36: 31 | B36: Jouets | C36: 201 | D36: Figurines d'action & accessoires | E36: 00 | F36: Non connu | G36: 084 | H36: Compris entre 0,1 kg et 0,2 kg exclus | J36: 31201000840 | K36: Jouets - en Non connu Compris entre 0,1 kg et 0,2 kg exclus | L36: 0.05 | M36: =VLOOKUP(Tableau13[[#This Row],[Tarif HT]],'Codes éco-part'!C:E,3,FALSE) -> 048 | N36: =Tableau13[[#This Row],[Tarif HT]]*1.2 -> 0.06
A37: 31 | B37: Jouets | C37: 201 | D37: Figurines d'action & accessoires | E37: 00 | F37: Non connu | G37: 084 | H37: Compris entre 0,1 kg et 0,2 kg exclus | J37: 31201000841 | K37: Jouets - en Non connu Compris entre 0,1 kg et 0,2 kg exclus éco-modulés | L37: 0.05 | M37: =VLOOKUP(Tableau13[[#This Row],[Tarif HT]],'Codes éco-part'!C:E,3,FALSE) -> 048 | N37: =Tableau13[[#This Row],[Tarif HT]]*1.2 -> 0.06
A38: 31 | B38: Jouets | C38: 201 | D38: Figurines d'action & accessoires | E38: 00 | F38: Non connu | G38: 085 | H38: Compris entre 0,2 kg et 0,3 kg exclus | J38: 31201000850 | K38: Jouets - en Non connu Compris entre 0,2 kg et 0,3 kg exclus | L38: 0.08 | M38: =VLOOKUP(Tableau13[[#This Row],[Tarif HT]],'Codes éco-part'!C:E,3,FALSE) -> 003 | N38: =Tableau13[[#This Row],[Tarif HT]]*1.2 -> 0.096
A39: 31 | B39: Jouets | C39: 201 | D39: Figurines d'action & accessoires | E39: 00 | F39: Non connu | G39: 085 | H39: Compris entre 0,2 kg et 0,3 kg exclus | J39: 31201000851 | K39: Jouets - en Non connu Compris entre 0,2 kg et 0,3 kg exclus éco-modulés | L39: 0.07 | M39: =VLOOKUP(Tableau13[[#This Row],[Tarif HT]],'Codes éco-part'!C:E,3,FALSE) -> 247 | N39: =Tableau13[[#This Row],[Tarif HT]]*1.2 -> 0.084
A40: 31 | B40: Jouets | C40: 201 | D40: Figurines d'action & accessoires | E40: 00 | F40: Non connu | G40: 086 | H40: Compris entre 0,3 kg et 0,4 kg exclus | J40: 31201000860 | K40: Jouets - en Non connu Compris entre 0,3 kg et 0,4 kg exclus | L40: 0.11 | M40: =VLOOKUP(Tableau13[[#This Row],[Tarif HT]],'Codes éco-part'!C:E,3,FALSE) -> 262 | N40: =Tableau13[[#This Row],[Tarif HT]]*1.2 -> 0.132
A41: 31 | B41: Jouets | C41: 201 | D41: Figurines d'action & accessoires | E41: 00 | F41: Non connu | G41: 086 | H41: Compris entre 0,3 kg et 0,4 kg exclus | J41: 31201000861 | K41: Jouets - en Non connu Compris entre 0,3 kg et 0,4 kg exclus éco-modulés | L41: 0.1 | M41: =VLOOKUP(Tableau13[[#This Row],[Tarif HT]],'Codes éco-part'!C:E,3,FALSE) -> 094 | N41: =Tableau13[[#This Row],[Tarif HT]]*1.2 -> 0.12
A42: 31 | B42: Jouets | C42: 201 | D42: Figurines d'action & accessoires | E42: 00 | F42: Non connu | G42: 087 | H42: Compris entre 0,4 kg et 0,5 kg exclus | J42: 31201000870 | K42: Jouets - en Non connu Compris entre 0,4 kg et 0,5 kg exclus | L42: 0.14 | M42: =VLOOKUP(Tableau13[[#This Row],[Tarif HT]],'Codes éco-part'!C:E,3,FALSE) -> 098 | N42: =Tableau13[[#This Row],[Tarif HT]]*1.2 -> 0.168
A43: 31 | B43: Jouets | C43: 201 | D43: Figurines d'action & accessoires | E43: 00 | F43: Non connu | G43: 087 | H43: Compris entre 0,4 kg et 0,5 kg exclus | J43: 31201000871 | K43: Jouets - en Non connu Compris entre 0,4 kg et 0,5 kg exclus éco-modulés | L43: 0.13 | M43: =VLOOKUP(Tableau13[[#This Row],[Tarif HT]],'Codes éco-part'!C:E,3,FALSE) -> 004 | N43: =Tableau13[[#This Row],[Tarif HT]]*1.2 -> 0.156
A44: 31 | B44: Jouets | C44: 201 | D44: Figurines d'action & accessoires | E44: 00 | F44: Non connu | G44: 088 | H44: Compris entre 50 kg et 100 kg exclus | J44: 31201000880 | K44: Jouets - en Non connu Compris entre 50 kg et 100 kg exclus | L44: 17.98 | M44: =VLOOKUP(Tableau13[[#This Row],[Tarif HT]],'Codes éco-part'!C:E,3,FALSE) -> 427 | N44: =Tableau13[[#This Row],[Tarif HT]]*1.2 -> 21.576
A45: 31 | B45: Jouets | C45: 201 | D45: Figurines d'action & accessoires | E45: 00 | F45: Non connu | G45: 088 | H45: Compris entre 50 kg et 100 kg exclus | J45: 31201000881 | K45: Jouets - en Non connu Compris entre 50 kg et 100 kg exclus éco-modulés | L45: 16.18 | M45: =VLOOKUP(Tableau13[[#This Row],[Tarif HT]],'Codes éco-part'!C:E,3,FALSE) -> 926 | N45: =Tableau13[[#This Row],[Tarif HT]]*1.2 -> 19.416
A46: 31 | B46: Jouets | C46: 201 | D46: Figurines d'action & accessoires | E46: 01 | F46: Bois, panneaux et dérivés de bois >50% | G46: 021 | H46: Compris entre 0,5 kg et 1 kg exclus | J46: 31201010210 | K46: Jouets - en Bois, panneaux et dérivés de bois >50% Compris entre 0,5 kg et 1 kg exclus | L46: 0.14 | M46: =VLOOKUP(Tableau13[[#This Row],[Tarif HT]],'Codes éco-part'!C:E,3,FALSE) -> 098 | N46: =Tableau13[[#This Row],[Tarif HT]]*1.2 -> 0.168
A47: 31 | B47: Jouets | C47: 201 | D47: Figurines d'action & accessoires | E47: 01 | F47: Bois, panneaux et dérivés de bois >50% | G47: 021 | H47: Compris entre 0,5 kg et 1 kg exclus | J47: 31201010211 | K47: Jouets - en Bois, panneaux et dérivés de bois >50% Compris entre 0,5 kg et 1 kg exclus éco-modulés | L47: 0.13 | M47: =VLOOKUP(Tableau13[[#This Row],[Tarif HT]],'Codes éco-part'!C:E,3,FALSE) -> 004 | N47: =Tableau13[[#This Row],[Tarif HT]]*1.2 -> 0.156
A48: 31 | B48: Jouets | C48: 201 | D48: Figurines d'action & accessoires | E48: 01 | F48: Bois, panneaux et dérivés de bois >50% | G48: 022 | H48: Compris entre 1 kg et 2 kg exclus | J48: 31201010220 | K48: Jouets - en Bois, panneaux et dérivés de bois >50% Compris entre 1 kg et 2 kg exclus | L48: 0.27 | M48: =VLOOKUP(Tableau13[[#This Row],[Tarif HT]],'Codes éco-part'!C:E,3,FALSE) -> 103 | N48: =Tableau13[[#This Row],[Tarif HT]]*1.2 -> 0.324
A49: 31 | B49: Jouets | C49: 201 | D49: Figurines d'action & accessoires | E49: 01 | F49: Bois, panneaux et dérivés de bois >50% | G49: 022 | H49: Compris entre 1 kg et 2 kg exclus | J49: 31201010221 | K49: Jouets - en Bois, panneaux et dérivés de bois >50% Compris entre 1 kg et 2 kg exclus éco-modulés | L49: 0.24 | M49: =VLOOKUP(Tableau13[[#This Row],[Tarif HT]],'Codes éco-part'!C:E,3,FALSE) -> 248 | N49: =Tableau13[[#This Row],[Tarif HT]]*1.2 -> 0.288
A50: 31 | B50: Jouets | C50: 201 | D50: Figurines d'action & accessoires | E50: 01 | F50: Bois, panneaux et dérivés de bois >50% | G50: 027 | H50: Compris entre 30 kg et 40 kg exclus | J50: 31201010270 | K50: Jouets - en Bois, panneaux et dérivés de bois >50% Compris entre 30 kg et 40 kg exclus | L50: 5.23 | M50: =VLOOKUP(Tableau13[[#This Row],[Tarif HT]],'Codes éco-part'!C:E,3,FALSE) -> 403 | N50: =Tableau13[[#This Row],[Tarif HT]]*1.2 -> 6.276
A51: 31 | B51: Jouets | C51: 201 | D51: Figurines d'action & accessoires | E51: 01 | F51: Bois, panneaux et dérivés de bois >50% | G51: 027 | H51: Compris entre 30 kg et 40 kg exclus | J51: 31201010271 | K51: Jouets - en Bois, panneaux et dérivés de bois >50% Compris entre 30 kg et 40 kg exclus éco-modulés | L51: 4.71 | M51: =VLOOKUP(Tableau13[[#This Row],[Tarif HT]],'Codes éco-part'!C:E,3,FALSE) -> 726 | N51: =Tableau13[[#This Row],[Tarif HT]]*1.2 -> 5.652
A52: 31 | B52: Jouets | C52: 201 | D52: Figurines d'action & accessoires | E52: 01 | F52: Bois, panneaux et dérivés de bois >50% | G52: 030 | H52: Compris entre 100 kg et 150 kg exclus | J52: 31201010300 | K52: Jouets - en Bois, panneaux et dérivés de bois >50% Compris entre 100 kg et 150 kg exclus | L52: 15.25 | M52: =VLOOKUP(Tableau13[[#This Row],[Tarif HT]],'Codes éco-part'!C:E,3,FALSE) -> 404 | N52: =Tableau13[[#This Row],[Tarif HT]]*1.2 -> 18.3
A53: 31 | B53: Jouets | C53: 201 | D53: Figurines d'action & accessoires | E53: 01 | F53: Bois, panneaux et dérivés de bois >50% | G53: 030 | H53: Compris entre 100 kg et 150 kg exclus | J53: 31201010301 | K53: Jouets - en Bois, panneaux et dérivés de bois >50% Compris entre 100 kg et 150 kg exclus éco-modulés | L53: 13.73 | M53: =VLOOKUP(Tableau13[[#This Row],[Tarif HT]],'Codes éco-part'!C:E,3,FALSE) -> 923 | N53: =Tableau13[[#This Row],[Tarif HT]]*1.2 -> 16.476
A54: 31 | B54: Jouets | C54: 201 | D54: Figurines d'action & accessoires | E54: 01 | F54: Bois, panneaux et dérivés de bois >50% | G54: 031 | H54: Compris entre 150 kg et 200 kg exclus | J54: 31201010310 | K54: Jouets - en Bois, panneaux et dérivés de bois >50% Compris entre 150 kg et 200 kg exclus | L54: 21.35 | M54: =VLOOKUP(Tableau13[[#This Row],[Tarif HT]],'Codes éco-part'!C:E,3,FALSE) -> 405 | N54: =Tableau13[[#This Row],[Tarif HT]]*1.2 -> 25.62
A55: 31 | B55: Jouets | C55: 201 | D55: Figurines d'action & accessoires | E55: 01 | F55: Bois, panneaux et dérivés de bois >50% | G55: 031 | H55: Compris entre 150 kg et 200 kg exclus | J55: 31201010311 | K55: Jouets - en Bois, panneaux et dérivés de bois >50% Compris entre 150 kg et 200 kg exclus éco-modulés | L55: 19.22 | M55: =VLOOKUP(Tableau13[[#This Row],[Tarif HT]],'Codes éco-part'!C:E,3,FALSE) -> 927 | N55: =Tableau13[[#This Row],[Tarif HT]]*1.2 -> 23.064
A56: 31 | B56: Jouets | C56: 201 | D56: Figurines d'action & accessoires | E56: 01 | F56: Bois, panneaux et dérivés de bois >50% | G56: 032 | H56: Compris entre 200 kg et 250 kg exclus | J56: 31201010320 | K56: Jouets - en Bois, panneaux et dérivés de bois >50% Compris entre 200 kg et 250 kg exclus | L56: 27.45 | M56: =VLOOKUP(Tableau13[[#This Row],[Tarif HT]],'Codes éco-part'!C:E,3,FALSE) -> 406 | N56: =Tableau13[[#This Row],[Tarif HT]]*1.2 -> 32.94
A57: 31 | B57: Jouets | C57: 201 | D57: Figurines d'action & accessoires | E57: 01 | F57: Bois, panneaux et dérivés de bois >50% | G57: 032 | H57: Compris entre 200 kg et 250 kg exclus | J57: 31201010321 | K57: Jouets - en Bois, panneaux et dérivés de bois >50% Compris entre 200 kg et 250 kg exclus éco-modulés | L57: 24.71 | M57: =VLOOKUP(Tableau13[[#This Row],[Tarif HT]],'Codes éco-part'!C:E,3,FALSE) -> 930 | N57: =Tableau13[[#This Row],[Tarif HT]]*1.2 -> 29.652
A58: 31 | B58: Jouets | C58: 201 | D58: Figurines d'action & accessoires | E58: 01 | F58: Bois, panneaux et dérivés de bois >50% | G58: 052 | H58: Compris entre 2 kg et 3 kg exclus | J58: 31201010520 | K58: Jouets - en Bois, panneaux et dérivés de bois >50% Compris entre 2 kg et 3 kg exclus | L58: 0.44 | M58: =VLOOKUP(Tableau13[[#This Row],[Tarif HT]],'Codes éco-part'!C:E,3,FALSE) -> 281 | N58: =Tableau13[[#This Row],[Tarif HT]]*1.2 -> 0.528
A59: 31 | B59: Jouets | C59: 201 | D59: Figurines d'action & accessoires | E59: 01 | F59: Bois, panneaux et dérivés de bois >50% | G59: 052 | H59: Compris entre 2 kg et 3 kg exclus | J59: 31201010521 | K59: Jouets - en Bois, panneaux et dérivés de bois >50% Compris entre 2 kg et 3 kg exclus éco-modulés | L59: 0.4 | M59: =VLOOKUP(Tableau13[[#This Row],[Tarif HT]],'Codes éco-part'!C:E,3,FALSE) -> 105 | N59: =Tableau13[[#This Row],[Tarif HT]]*1.2 -> 0.48
A60: 31 | B60: Jouets | C60: 201 | D60: Figurines d'action & accessoires | E60: 01 | F60: Bois, panneaux et dérivés de bois >50% | G60: 053 | H60: Compris entre 3 kg et 5 kg exclus | J60: 31201010530 | K60: Jouets - en Bois, panneaux et dérivés de bois >50% Compris entre 3 kg et 5 kg exclus | L60: 0.7 | M60: =VLOOKUP(Tableau13[[#This Row],[Tarif HT]],'Codes éco-part'!C:E,3,FALSE) -> 282 | N60: =Tableau13[[#This Row],[Tarif HT]]*1.2 -> 0.84
A61: 31 | B61: Jouets | C61: 201 | D61: Figurines d'action & accessoires | E61: 01 | F61: Bois, panneaux et dérivés de bois >50% | G61: 053 | H61: Compris entre 3 kg et 5 kg exclus | J61: 31201010531 | K61: Jouets - en Bois, panneaux et dérivés de bois >50% Compris entre 3 kg et 5 kg exclus éco-modulés | L61: 0.63 | M61: =VLOOKUP(Tableau13[[#This Row],[Tarif HT]],'Codes éco-part'!C:E,3,FALSE) -> 297 | N61: =Tableau13[[#This Row],[Tarif HT]]*1.2 -> 0.756
A62: 31 | B62: Jouets | C62: 201 | D62: Figurines d'action & accessoires | E62: 01 | F62: Bois, panneaux et dérivés de bois >50% | G62: 054 | H62: Compris entre 5 kg et 7 kg exclus | J62: 31201010540 | K62: Jouets - en Bois, panneaux et dérivés de bois >50% Compris entre 5 kg et 7 kg exclus | L62: 1.05 | M62: =VLOOKUP(Tableau13[[#This Row],[Tarif HT]],'Codes éco-part'!C:E,3,FALSE) -> 283 | N62: =Tableau13[[#This Row],[Tarif HT]]*1.2 -> 1.26
A63: 31 | B63: Jouets | C63: 201 | D63: Figurines d'action & accessoires | E63: 01 | F63: Bois, panneaux et dérivés de bois >50% | G63: 054 | H63: Compris entre 5 kg et 7 kg exclus | J63: 31201010541 | K63: Jouets - en Bois, panneaux et dérivés de bois >50% Compris entre 5 kg et 7 kg exclus éco-modulés | L63: 0.95 | M63: =VLOOKUP(Tableau13[[#This Row],[Tarif HT]],'Codes éco-part'!C:E,3,FALSE) -> 896 | N63: =Tableau13[[#This Row],[Tarif HT]]*1.2 -> 1.14
A64: 31 | B64: Jouets | C64: 201 | D64: Figurines d'action & accessoires | E64: 01 | F64: Bois, panneaux et dérivés de bois >50% | G64: 055 | H64: Compris entre 7 kg et 10 kg exclus | J64: 31201010550 | K64: Jouets - en Bois, panneaux et dérivés de bois >50% Compris entre 7 kg et 10 kg exclus | L64: 1.31 | M64: =VLOOKUP(Tableau13[[#This Row],[Tarif HT]],'Codes éco-part'!C:E,3,FALSE) -> 284 | N64: =Tableau13[[#This Row],[Tarif HT]]*1.2 -> 1.572
A65: 31 | B65: Jouets | C65: 201 | D65: Figurines d'action & accessoires | E65: 01 | F65: Bois, panneaux et dérivés de bois >50% | G65: 055 | H65: Compris entre 7 kg et 10 kg exclus | J65: 31201010551 | K65: Jouets - en Bois, panneaux et dérivés de bois >50% Compris entre 7 kg et 10 kg exclus éco-modulés | L65: 1.18 | M65: =VLOOKUP(Tableau13[[#This Row],[Tarif HT]],'Codes éco-part'!C:E,3,FALSE) -> 461 | N65: =Tableau13[[#This Row],[Tarif HT]]*1.2 -> 1.416
A66: =MID(J66,1,2) -> 31 | B66: Jouets | C66: =MID(J66,3,3) -> 201 | D66: Figurines d'action & accessoires | E66: =MID(J66,6,2) -> 01 | F66: Bois, panneaux et dérivés de bois >50% | G66: =MID(J66,8,3) -> 056 | H66: Compris entre 10 kg et 15 kg exclus | J66: 31201010560 | K66: Jouets - en Bois, panneaux et dérivés de bois >50% Compris entre 10 kg et 15 kg exclus | L66: 2.18 | M66: =VLOOKUP(Tableau13[[#This Row],[Tarif HT]],'Codes éco-part'!C:E,3,FALSE) -> 257 | N66: =Tableau13[[#This Row],[Tarif HT]]*1.2 -> 2.616
A67: 31 | B67: Jouets | C67: 201 | D67: Figurines d'action & accessoires | E67: 01 | F67: Bois, panneaux et dérivés de bois >50% | G67: 056 | H67: Compris entre 10 kg et 15 kg exclus | J67: 31201010561 | K67: Jouets - en Bois, panneaux et dérivés de bois >50% Compris entre 10 kg et 15 kg exclus éco-modulés | L67: 1.96 | M67: =VLOOKUP(Tableau13[[#This Row],[Tarif HT]],'Codes éco-part'!C:E,3,FALSE) -> 900 | N67: =Tableau13[[#This Row],[Tarif HT]]*1.2 -> 2.352
A68: 31 | B68: Jouets | C68: 201 | D68: Figurines d'action & accessoires | E68: 01 | F68: Bois, panneaux et dérivés de bois >50% | G68: 057 | H68: Compris entre 15 kg et 20 kg exclus | J68: 31201010570 | K68: Jouets - en Bois, panneaux et dérivés de bois >50% Compris entre 15 kg et 20 kg exclus | L68: 3.05 | M68: =VLOOKUP(Tableau13[[#This Row],[Tarif HT]],'Codes éco-part'!C:E,3,FALSE) -> 285 | N68: =Tableau13[[#This Row],[Tarif HT]]*1.2 -> 3.66
A69: 31 | B69: Jouets | C69: 201 | D69: Figurines d'action & accessoires | E69: 01 | F69: Bois, panneaux et dérivés de bois >50% | G69: 057 | H69: Compris entre 15 kg et 20 kg exclus | J69: 31201010571 | K69: Jouets - en Bois, panneaux et dérivés de bois >50% Compris entre 15 kg et 20 kg exclus éco-modulés | L69: 2.75 | M69: =VLOOKUP(Tableau13[[#This Row],[Tarif HT]],'Codes éco-part'!C:E,3,FALSE) -> 120 | N69: =Tableau13[[#This Row],[Tarif HT]]*1.2 -> 3.3
A70: 31 | B70: Jouets | C70: 201 | D70: Figurines d'action & accessoires | E70: 01 | F70: Bois, panneaux et dérivés de bois >50% | G70: 058 | H70: Compris entre 20 kg et 25 kg exclus | J70: 31201010580 | K70: Jouets - en Bois, panneaux et dérivés de bois >50% Compris entre 20 kg et 25 kg exclus | L70: 3.73 | M70: =VLOOKUP(Tableau13[[#This Row],[Tarif HT]],'Codes éco-part'!C:E,3,FALSE) -> 407 | N70: =Tableau13[[#This Row],[Tarif HT]]*1.2 -> 4.476
A71: 31 | B71: Jouets | C71: 201 | D71: Figurines d'action & accessoires | E71: 01 | F71: Bois, panneaux et dérivés de bois >50% | G71: 058 | H71: Compris entre 20 kg et 25 kg exclus | J71: 31201010581 | K71: Jouets - en Bois, panneaux et dérivés de bois >50% Compris entre 20 kg et 25 kg exclus éco-modulés | L71: 3.36 | M71: =VLOOKUP(Tableau13[[#This Row],[Tarif HT]],'Codes éco-part'!C:E,3,FALSE) -> 891 | N71: =Tableau13[[#This Row],[Tarif HT]]*1.2 -> 4.032
A72: 31 | B72: Jouets | C72: 201 | D72: Figurines d'action & accessoires | E72: 01 | F72: Bois, panneaux et dérivés de bois >50% | G72: 059 | H72: Compris entre 25 kg et 30 kg exclus | J72: 31201010590 | K72: Jouets - en Bois, panneaux et dérivés de bois >50% Compris entre 25 kg et 30 kg exclus | L72: 4.33 | M72: =VLOOKUP(Tableau13[[#This Row],[Tarif HT]],'Codes éco-part'!C:E,3,FALSE) -> 408 | N72: =Tableau13[[#This Row],[Tarif HT]]*1.2 -> 5.196
A73: 31 | B73: Jouets | C73: 201 | D73: Figurines d'action & accessoires | E73: 01 | F73: Bois, panneaux et dérivés de bois >50% | G73: 059 | H73: Compris entre 25 kg et 30 kg exclus | J73: 31201010591 | K73: Jouets - en Bois, panneaux et dérivés de bois >50% Compris entre 25 kg et 30 kg exclus éco-modulés | L73: 3.9 | M73: =VLOOKUP(Tableau13[[#This Row],[Tarif HT]],'Codes éco-part'!C:E,3,FALSE) -> 840 | N73: =Tableau13[[#This Row],[Tarif HT]]*1.2 -> 4.68
A74: 31 | B74: Jouets | C74: 201 | D74: Figurines d'action & accessoires | E74: 01 | F74: Bois, panneaux et dérivés de bois >50% | G74: 060 | H74: Compris entre 40 kg et 50 kg exclus | J74: 31201010600 | K74: Jouets - en Bois, panneaux et dérivés de bois >50% Compris entre 40 kg et 50 kg exclus | L74: 6.39 | M74: =VLOOKUP(Tableau13[[#This Row],[Tarif HT]],'Codes éco-part'!C:E,3,FALSE) -> 409 | N74: =Tableau13[[#This Row],[Tarif HT]]*1.2 -> 7.668
A75: 31 | B75: Jouets | C75: 201 | D75: Figurines d'action & accessoires | E75: 01 | F75: Bois, panneaux et dérivés de bois >50% | G75: 060 | H75: Compris entre 40 kg et 50 kg exclus | J75: 31201010601 | K75: Jouets - en Bois, panneaux et dérivés de bois >50% Compris entre 40 kg et 50 kg exclus éco-modulés | L75: 5.75 | M75: =VLOOKUP(Tableau13[[#This Row],[Tarif HT]],'Codes éco-part'!C:E,3,FALSE) -> 866 | N75: =Tableau13[[#This Row],[Tarif HT]]*1.2 -> 6.9
A76: 31 | B76: Jouets | C76: 201 | D76: Figurines d'action & accessoires | E76: 01 | F76: Bois, panneaux et dérivés de bois >50% | G76: 082 | H76: supérieur à 250 kg | J76: 31201010820 | K76: Jouets - en Bois, panneaux et dérivés de bois >50% supérieur à 250 kg | L76: 30.49 | M76: =VLOOKUP(Tableau13[[#This Row],[Tarif HT]],'Codes éco-part'!C:E,3,FALSE) -> 410 | N76: =Tableau13[[#This Row],[Tarif HT]]*1.2 -> 36.588
A77: 31 | B77: Jouets | C77: 201 | D77: Figurines d'action & accessoires | E77: 01 | F77: Bois, panneaux et dérivés de bois >50% | G77: 082 | H77: supérieur à 250 kg | J77: 31201010821 | K77: Jouets - en Bois, panneaux et dérivés de bois >50% supérieur à 250 kg éco-modulés | L77: 27.44 | M77: =VLOOKUP(Tableau13[[#This Row],[Tarif HT]],'Codes éco-part'!C:E,3,FALSE) -> 931 | N77: =Tableau13[[#This Row],[Tarif HT]]*1.2 -> 32.928
A78: 31 | B78: Jouets | C78: 201 | D78: Figurines d'action & accessoires | E78: 01 | F78: Bois, panneaux et dérivés de bois >50% | G78: 083 | H78: inférieur strictement à 0,1 kg | J78: 31201010830 | K78: Jouets - en Bois, panneaux et dérivés de bois >50% inférieur strictement à 0,1 kg | L78: 0.01 | M78: =VLOOKUP(Tableau13[[#This Row],[Tarif HT]],'Codes éco-part'!C:E,3,FALSE) -> 260 | N78: =Tableau13[[#This Row],[Tarif HT]]*1.2 -> 0.012
A79: 31 | B79: Jouets | C79: 201 | D79: Figurines d'action & accessoires | E79: 01 | F79: Bois, panneaux et dérivés de bois >50% | G79: 083 | H79: inférieur strictement à 0,1 kg | J79: 31201010831 | K79: Jouets - en Bois, panneaux et dérivés de bois >50% inférieur strictement à 0,1 kg éco-modulés | L79: 0.01 | M79: =VLOOKUP(Tableau13[[#This Row],[Tarif HT]],'Codes éco-part'!C:E,3,FALSE) -> 260 | N79: =Tableau13[[#This Row],[Tarif HT]]*1.2 -> 0.012
A80: 31 | B80: Jouets | C80: 201 | D80: Figurines d'action & accessoires | E80: 01 | F80: Bois, panneaux et dérivés de bois >50% | G80: 084 | H80: Compris entre 0,1 kg et 0,2 kg exclus | J80: 31201010840 | K80: Jouets - en Bois, panneaux et dérivés de bois >50% Compris entre 0,1 kg et 0,2 kg exclus | L80: 0.03 | M80: =VLOOKUP(Tableau13[[#This Row],[Tarif HT]],'Codes éco-part'!C:E,3,FALSE) -> 092 | N80: =Tableau13[[#This Row],[Tarif HT]]*1.2 -> 0.036
A81: 31 | B81: Jouets | C81: 201 | D81: Figurines d'action & accessoires | E81: 01 | F81: Bois, panneaux et dérivés de bois >50% | G81: 084 | H81: Compris entre 0,1 kg et 0,2 kg exclus | J81: 31201010841 | K81: Jouets - en Bois, panneaux et dérivés de bois >50% Compris entre 0,1 kg et 0,2 kg exclus éco-modulés | L81: 0.03 | M81: =VLOOKUP(Tableau13[[#This Row],[Tarif HT]],'Codes éco-part'!C:E,3,FALSE) -> 092 | N81: =Tableau13[[#This Row],[Tarif HT]]*1.2 -> 0.036
A82: 31 | B82: Jouets | C82: 201 | D82: Figurines d'action & accessoires | E82: 01 | F82: Bois, panneaux et dérivés de bois >50% | G82: 085 | H82: Compris entre 0,2 kg et 0,3 kg exclus | J82: 31201010850 | K82: Jouets - en Bois, panneaux et dérivés de bois >50% Compris entre 0,2 kg et 0,3 kg exclus | L82: 0.05 | M82: =VLOOKUP(Tableau13[[#This Row],[Tarif HT]],'Codes éco-part'!C:E,3,FALSE) -> 048 | N82: =Tableau13[[#This Row],[Tarif HT]]*1.2 -> 0.06
A83: 31 | B83: Jouets | C83: 201 | D83: Figurines d'action & accessoires | E83: 01 | F83: Bois, panneaux et dérivés de bois >50% | G83: 085 | H83: Compris entre 0,2 kg et 0,3 kg exclus | J83: 31201010851 | K83: Jouets - en Bois, panneaux et dérivés de bois >50% Compris entre 0,2 kg et 0,3 kg exclus éco-modulés | L83: 0.05 | M83: =VLOOKUP(Tableau13[[#This Row],[Tarif HT]],'Codes éco-part'!C:E,3,FALSE) -> 048 | N83: =Tableau13[[#This Row],[Tarif HT]]*1.2 -> 0.06
A84: 31 | B84: Jouets | C84: 201 | D84: Figurines d'action & accessoires | E84: 01 | F84: Bois, panneaux et dérivés de bois >50% | G84: 086 | H84: Compris entre 0,3 kg et 0,4 kg exclus | J84: 31201010860 | K84: Jouets - en Bois, panneaux et dérivés de bois >50% Compris entre 0,3 kg et 0,4 kg exclus | L84: 0.07 | M84: =VLOOKUP(Tableau13[[#This Row],[Tarif HT]],'Codes éco-part'!C:E,3,FALSE) -> 247 | N84: =Tableau13[[#This Row],[Tarif HT]]*1.2 -> 0.084
A85: 31 | B85: Jouets | C85: 201 | D85: Figurines d'action & accessoires | E85: 01 | F85: Bois, panneaux et dérivés de bois >50% | G85: 086 | H85: Compris entre 0,3 kg et 0,4 kg exclus | J85: 31201010861 | K85: Jouets - en Bois, panneaux et dérivés de bois >50% Compris entre 0,3 kg et 0,4 kg exclus éco-modulés | L85: 0.06 | M85: =VLOOKUP(Tableau13[[#This Row],[Tarif HT]],'Codes éco-part'!C:E,3,FALSE) -> 096 | N85: =Tableau13[[#This Row],[Tarif HT]]*1.2 -> 0.072
A86: 31 | B86: Jouets | C86: 201 | D86: Figurines d'action & accessoires | E86: 01 | F86: Bois, panneaux et dérivés de bois >50% | G86: 087 | H86: Compris entre 0,4 kg et 0,5 kg exclus | J86: 31201010870 | K86: Jouets - en Bois, panneaux et dérivés de bois >50% Compris entre 0,4 kg et 0,5 kg exclus | L86: 0.08 | M86: =VLOOKUP(Tableau13[[#This Row],[Tarif HT]],'Codes éco-part'!C:E,3,FALSE) -> 003 | N86: =Tableau13[[#This Row],[Tarif HT]]*1.2 -> 0.096
A87: 31 | B87: Jouets | C87: 201 | D87: Figurines d'action & accessoires | E87: 01 | F87: Bois, panneaux et dérivés de bois >50% | G87: 087 | H87: Compris entre 0,4 kg et 0,5 kg exclus | J87: 31201010871 | K87: Jouets - en Bois, panneaux et dérivés de bois >50% Compris entre 0,4 kg et 0,5 kg exclus éco-modulés | L87: 0.07 | M87: =VLOOKUP(Tableau13[[#This Row],[Tarif HT]],'Codes éco-part'!C:E,3,FALSE) -> 247 | N87: =Tableau13[[#This Row],[Tarif HT]]*1.2 -> 0.084
A88: 31 | B88: Jouets | C88: 201 | D88: Figurines d'action & accessoires | E88: 01 | F88: Bois, panneaux et dérivés de bois >50% | G88: 088 | H88: Compris entre 50 kg et 100 kg exclus | J88: 31201010880 | K88: Jouets - en Bois, panneaux et dérivés de bois >50% Compris entre 50 kg et 100 kg exclus | L88: 10.11 | M88: =VLOOKUP(Tableau13[[#This Row],[Tarif HT]],'Codes éco-part'!C:E,3,FALSE) -> 411 | N88: =Tableau13[[#This Row],[Tarif HT]]*1.2 -> 12.132
A89: 31 | B89: Jouets | C89: 201 | D89: Figurines d'action & accessoires | E89: 01 | F89: Bois, panneaux et dérivés de bois >50% | G89: 088 | H89: Compris entre 50 kg et 100 kg exclus | J89: 31201010881 | K89: Jouets - en Bois, panneaux et dérivés de bois >50% Compris entre 50 kg et 100 kg exclus éco-modulés | L89: 9.1 | M89: =VLOOKUP(Tableau13[[#This Row],[Tarif HT]],'Codes éco-part'!C:E,3,FALSE) -> 917 | N89: =Tableau13[[#This Row],[Tarif HT]]*1.2 -> 10.92
A90: 31 | B90: Jouets | C90: 201 | D90: Figurines d'action & accessoires | E90: 02 | F90: Métal >50% | G90: 021 | H90: Compris entre 0,5 kg et 1 kg exclus | J90: 31201020210 | K90: Jouets - en Métal >50% Compris entre 0,5 kg et 1 kg exclus | L90: 0.11 | M90: =VLOOKUP(Tableau13[[#This Row],[Tarif HT]],'Codes éco-part'!C:E,3,FALSE) -> 262 | N90: =Tableau13[[#This Row],[Tarif HT]]*1.2 -> 0.132
A91: 31 | B91: Jouets | C91: 201 | D91: Figurines d'action & accessoires | E91: 02 | F91: Métal >50% | G91: 021 | H91: Compris entre 0,5 kg et 1 kg exclus | J91: 31201020211 | K91: Jouets - en Métal >50% Compris entre 0,5 kg et 1 kg exclus éco-modulés | L91: 0.1 | M91: =VLOOKUP(Tableau13[[#This Row],[Tarif HT]],'Codes éco-part'!C:E,3,FALSE) -> 094 | N91: =Tableau13[[#This Row],[Tarif HT]]*1.2 -> 0.12
A92: 31 | B92: Jouets | C92: 201 | D92: Figurines d'action & accessoires | E92: 02 | F92: Métal >50% | G92: 022 | H92: Compris entre 1 kg et 2 kg exclus | J92: 31201020220 | K92: Jouets - en Métal >50% Compris entre 1 kg et 2 kg exclus | L92: 0.22 | M92: =VLOOKUP(Tableau13[[#This Row],[Tarif HT]],'Codes éco-part'!C:E,3,FALSE) -> 263 | N92: =Tableau13[[#This Row],[Tarif HT]]*1.2 -> 0.264
A93: 31 | B93: Jouets | C93: 201 | D93: Figurines d'action & accessoires | E93: 02 | F93: Métal >50% | G93: 022 | H93: Compris entre 1 kg et 2 kg exclus | J93: 31201020221 | K93: Jouets - en Métal >50% Compris entre 1 kg et 2 kg exclus éco-modulés | L93: 0.2 | M93: =VLOOKUP(Tableau13[[#This Row],[Tarif HT]],'Codes éco-part'!C:E,3,FALSE) -> 101 | N93: =Tableau13[[#This Row],[Tarif HT]]*1.2 -> 0.24
A94: 31 | B94: Jouets | C94: 201 | D94: Figurines d'action & accessoires | E94: 02 | F94: Métal >50% | G94: 027 | H94: Compris entre 30 kg et 40 kg exclus | J94: 31201020270 | K94: Jouets - en Métal >50% Compris entre 30 kg et 40 kg exclus | L94: 4.36 | M94: =VLOOKUP(Tableau13[[#This Row],[Tarif HT]],'Codes éco-part'!C:E,3,FALSE) -> 258 | N94: =Tableau13[[#This Row],[Tarif HT]]*1.2 -> 5.232
A95: 31 | B95: Jouets | C95: 201 | D95: Figurines d'action & accessoires | E95: 02 | F95: Métal >50% | G95: 027 | H95: Compris entre 30 kg et 40 kg exclus | J95: 31201020271 | K95: Jouets - en Métal >50% Compris entre 30 kg et 40 kg exclus éco-modulés | L95: 3.92 | M95: =VLOOKUP(Tableau13[[#This Row],[Tarif HT]],'Codes éco-part'!C:E,3,FALSE) -> 125 | N95: =Tableau13[[#This Row],[Tarif HT]]*1.2 -> 4.704
A96: 31 | B96: Jouets | C96: 201 | D96: Figurines d'action & accessoires | E96: 02 | F96: Métal >50% | G96: 030 | H96: Compris entre 100 kg et 150 kg exclus | J96: 31201020300 | K96: Jouets - en Métal >50% Compris entre 100 kg et 150 kg exclus | L96: 12.71 | M96: =VLOOKUP(Tableau13[[#This Row],[Tarif HT]],'Codes éco-part'!C:E,3,FALSE) -> 428 | N96: =Tableau13[[#This Row],[Tarif HT]]*1.2 -> 15.252
A97: 31 | B97: Jouets | C97: 201 | D97: Figurines d'action & accessoires | E97: 02 | F97: Métal >50% | G97: 030 | H97: Compris entre 100 kg et 150 kg exclus | J97: 31201020301 | K97: Jouets - en Métal >50% Compris entre 100 kg et 150 kg exclus éco-modulés | L97: 11.44 | M97: =VLOOKUP(Tableau13[[#This Row],[Tarif HT]],'Codes éco-part'!C:E,3,FALSE) -> 920 | N97: =Tableau13[[#This Row],[Tarif HT]]*1.2 -> 13.728
A98: 31 | B98: Jouets | C98: 201 | D98: Figurines d'action & accessoires | E98: 02 | F98: Métal >50% | G98: 031 | H98: Compris entre 150 kg et 200 kg exclus | J98: 31201020310 | K98: Jouets - en Métal >50% Compris entre 150 kg et 200 kg exclus | L98: 17.79 | M98: =VLOOKUP(Tableau13[[#This Row],[Tarif HT]],'Codes éco-part'!C:E,3,FALSE) -> 429 | N98: =Tableau13[[#This Row],[Tarif HT]]*1.2 -> 21.348
A99: 31 | B99: Jouets | C99: 201 | D99: Figurines d'action & accessoires | E99: 02 | F99: Métal >50% | G99: 031 | H99: Compris entre 150 kg et 200 kg exclus | J99: 31201020311 | K99: Jouets - en Métal >50% Compris entre 150 kg et 200 kg exclus éco-modulés | L99: 16.01 | M99: =VLOOKUP(Tableau13[[#This Row],[Tarif HT]],'Codes éco-part'!C:E,3,FALSE) -> 925 | N99: =Tableau13[[#This Row],[Tarif HT]]*1.2 -> 19.212
A100: 31 | B100: Jouets | C100: 201 | D100: Figurines d'action & accessoires | E100: 02 | F100: Métal >50% | G100: 032 | H100: Compris entre 200 kg et 250 kg exclus | J100: 31201020320 | K100: Jouets - en Métal >50% Compris entre 200 kg et 250 kg exclus | L100: 22.87 | M100: =VLOOKUP(Tableau13[[#This Row],[Tarif HT]],'Codes éco-part'!C:E,3,FALSE) -> 430 | N100: =Tableau13[[#This Row],[Tarif HT]]*1.2 -> 27.444
A101: 31 | B101: Jouets | C101: 201 | D101: Figurines d'action & accessoires | E101: 02 | F101: Métal >50% | G101: 032 | H101: Compris entre 200 kg et 250 kg exclus | J101: 31201020321 | K101: Jouets - en Métal >50% Compris entre 200 kg et 250 kg exclus éco-modulés | L101: 20.58 | M101: =VLOOKUP(Tableau13[[#This Row],[Tarif HT]],'Codes éco-part'!C:E,3,FALSE) -> 847 | N101: =Tableau13[[#This Row],[Tarif HT]]*1.2 -> 24.696
A102: 31 | B102: Jouets | C102: 201 | D102: Figurines d'action & accessoires | E102: 02 | F102: Métal >50% | G102: 052 | H102: Compris entre 2 kg et 3 kg exclus | J102: 31201020520 | K102: Jouets - en Métal >50% Compris entre 2 kg et 3 kg exclus | L102: 0.37 | M102: =VLOOKUP(Tableau13[[#This Row],[Tarif HT]],'Codes éco-part'!C:E,3,FALSE) -> 268 | N102: =Tableau13[[#This Row],[Tarif HT]]*1.2 -> 0.444
A103: 31 | B103: Jouets | C103: 201 | D103: Figurines d'action & accessoires | E103: 02 | F103: Métal >50% | G103: 052 | H103: Compris entre 2 kg et 3 kg exclus | J103: 31201020521 | K103: Jouets - en Métal >50% Compris entre 2 kg et 3 kg exclus éco-modulés | L103: 0.33 | M103: =VLOOKUP(Tableau13[[#This Row],[Tarif HT]],'Codes éco-part'!C:E,3,FALSE) -> 006 | N103: =Tableau13[[#This Row],[Tarif HT]]*1.2 -> 0.396
A104: 31 | B104: Jouets | C104: 201 | D104: Figurines d'action & accessoires | E104: 02 | F104: Métal >50% | G104: 053 | H104: Compris entre 3 kg et 5 kg exclus | J104: 31201020530 | K104: Jouets - en Métal >50% Compris entre 3 kg et 5 kg exclus | L104: 0.59 | M104: =VLOOKUP(Tableau13[[#This Row],[Tarif HT]],'Codes éco-part'!C:E,3,FALSE) -> 254 | N104: =Tableau13[[#This Row],[Tarif HT]]*1.2 -> 0.708
A105: 31 | B105: Jouets | C105: 201 | D105: Figurines d'action & accessoires | E105: 02 | F105: Métal >50% | G105: 053 | H105: Compris entre 3 kg et 5 kg exclus | J105: 31201020531 | K105: Jouets - en Métal >50% Compris entre 3 kg et 5 kg exclus éco-modulés | L105: 0.53 | M105: =VLOOKUP(Tableau13[[#This Row],[Tarif HT]],'Codes éco-part'!C:E,3,FALSE) -> 451 | N105: =Tableau13[[#This Row],[Tarif HT]]*1.2 -> 0.636
A106: 31 | B106: Jouets | C106: 201 | D106: Figurines d'action & accessoires | E106: 02 | F106: Métal >50% | G106: 054 | H106: Compris entre 5 kg et 7 kg exclus | J106: 31201020540 | K106: Jouets - en Métal >50% Compris entre 5 kg et 7 kg exclus | L106: 0.88 | M106: =VLOOKUP(Tableau13[[#This Row],[Tarif HT]],'Codes éco-part'!C:E,3,FALSE) -> 269 | N106: =Tableau13[[#This Row],[Tarif HT]]*1.2 -> 1.056
A107: 31 | B107: Jouets | C107: 201 | D107: Figurines d'action & accessoires | E107: 02 | F107: Métal >50% | G107: 054 | H107: Compris entre 5 kg et 7 kg exclus | J107: 31201020541 | K107: Jouets - en Métal >50% Compris entre 5 kg et 7 kg exclus éco-modulés | L107: 0.79 | M107: =VLOOKUP(Tableau13[[#This Row],[Tarif HT]],'Codes éco-part'!C:E,3,FALSE) -> 895 | N107: =Tableau13[[#This Row],[Tarif HT]]*1.2 -> 0.948
A108: 31 | B108: Jouets | C108: 201 | D108: Figurines d'action & accessoires | E108: 02 | F108: Métal >50% | G108: 055 | H108: Compris entre 7 kg et 10 kg exclus | J108: 31201020550 | K108: Jouets - en Métal >50% Compris entre 7 kg et 10 kg exclus | L108: 1.09 | M108: =VLOOKUP(Tableau13[[#This Row],[Tarif HT]],'Codes éco-part'!C:E,3,FALSE) -> 270 | N108: =Tableau13[[#This Row],[Tarif HT]]*1.2 -> 1.308
A109: 31 | B109: Jouets | C109: 201 | D109: Figurines d'action & accessoires | E109: 02 | F109: Métal >50% | G109: 055 | H109: Compris entre 7 kg et 10 kg exclus | J109: 31201020551 | K109: Jouets - en Métal >50% Compris entre 7 kg et 10 kg exclus éco-modulés | L109: 0.98 | M109: =VLOOKUP(Tableau13[[#This Row],[Tarif HT]],'Codes éco-part'!C:E,3,FALSE) -> 459 | N109: =Tableau13[[#This Row],[Tarif HT]]*1.2 -> 1.176
A110: 31 | B110: Jouets | C110: 201 | D110: Figurines d'action & accessoires | E110: 02 | F110: Métal >50% | G110: 056 | H110: Compris entre 10 kg et 15 kg exclus | J110: 31201020560 | K110: Jouets - en Métal >50% Compris entre 10 kg et 15 kg exclus | L110: 1.82 | M110: =VLOOKUP(Tableau13[[#This Row],[Tarif HT]],'Codes éco-part'!C:E,3,FALSE) -> 271 | N110: =Tableau13[[#This Row],[Tarif HT]]*1.2 -> 2.184
A111: 31 | B111: Jouets | C111: 201 | D111: Figurines d'action & accessoires | E111: 02 | F111: Métal >50% | G111: 056 | H111: Compris entre 10 kg et 15 kg exclus | J111: 31201020561 | K111: Jouets - en Métal >50% Compris entre 10 kg et 15 kg exclus éco-modulés | L111: 1.64 | M111: =VLOOKUP(Tableau13[[#This Row],[Tarif HT]],'Codes éco-part'!C:E,3,FALSE) -> 898 | N111: =Tableau13[[#This Row],[Tarif HT]]*1.2 -> 1.968
A112: 31 | B112: Jouets | C112: 201 | D112: Figurines d'action & accessoires | E112: 02 | F112: Métal >50% | G112: 057 | H112: Compris entre 15 kg et 20 kg exclus | J112: 31201020570 | K112: Jouets - en Métal >50% Compris entre 15 kg et 20 kg exclus | L112: 2.55 | M112: =VLOOKUP(Tableau13[[#This Row],[Tarif HT]],'Codes éco-part'!C:E,3,FALSE) -> 272 | N112: =Tableau13[[#This Row],[Tarif HT]]*1.2 -> 3.06
A113: 31 | B113: Jouets | C113: 201 | D113: Figurines d'action & accessoires | E113: 02 | F113: Métal >50% | G113: 057 | H113: Compris entre 15 kg et 20 kg exclus | J113: 31201020571 | K113: Jouets - en Métal >50% Compris entre 15 kg et 20 kg exclus éco-modulés | L113: 2.3 | M113: =VLOOKUP(Tableau13[[#This Row],[Tarif HT]],'Codes éco-part'!C:E,3,FALSE) -> 564 | N113: =Tableau13[[#This Row],[Tarif HT]]*1.2 -> 2.76
A114: 31 | B114: Jouets | C114: 201 | D114: Figurines d'action & accessoires | E114: 02 | F114: Métal >50% | G114: 058 | H114: Compris entre 20 kg et 25 kg exclus | J114: 31201020580 | K114: Jouets - en Métal >50% Compris entre 20 kg et 25 kg exclus | L114: 3.11 | M114: =VLOOKUP(Tableau13[[#This Row],[Tarif HT]],'Codes éco-part'!C:E,3,FALSE) -> 431 | N114: =Tableau13[[#This Row],[Tarif HT]]*1.2 -> 3.732
A115: 31 | B115: Jouets | C115: 201 | D115: Figurines d'action & accessoires | E115: 02 | F115: Métal >50% | G115: 058 | H115: Compris entre 20 kg et 25 kg exclus | J115: 31201020581 | K115: Jouets - en Métal >50% Compris entre 20 kg et 25 kg exclus éco-modulés | L115: 2.8 | M115: =VLOOKUP(Tableau13[[#This Row],[Tarif HT]],'Codes éco-part'!C:E,3,FALSE) -> 902 | N115: =Tableau13[[#This Row],[Tarif HT]]*1.2 -> 3.36
A116: 31 | B116: Jouets | C116: 201 | D116: Figurines d'action & accessoires | E116: 02 | F116: Métal >50% | G116: 059 | H116: Compris entre 25 kg et 30 kg exclus | J116: 31201020590 | K116: Jouets - en Métal >50% Compris entre 25 kg et 30 kg exclus | L116: 3.61 | M116: =VLOOKUP(Tableau13[[#This Row],[Tarif HT]],'Codes éco-part'!C:E,3,FALSE) -> 432 | N116: =Tableau13[[#This Row],[Tarif HT]]*1.2 -> 4.332
A117: 31 | B117: Jouets | C117: 201 | D117: Figurines d'action & accessoires | E117: 02 | F117: Métal >50% | G117: 059 | H117: Compris entre 25 kg et 30 kg exclus | J117: 31201020591 | K117: Jouets - en Métal >50% Compris entre 25 kg et 30 kg exclus éco-modulés | L117: 3.25 | M117: =VLOOKUP(Tableau13[[#This Row],[Tarif HT]],'Codes éco-part'!C:E,3,FALSE) -> 122 | N117: =Tableau13[[#This Row],[Tarif HT]]*1.2 -> 3.9
A118: 31 | B118: Jouets | C118: 201 | D118: Figurines d'action & accessoires | E118: 02 | F118: Métal >50% | G118: 060 | H118: Compris entre 40 kg et 50 kg exclus | J118: 31201020600 | K118: Jouets - en Métal >50% Compris entre 40 kg et 50 kg exclus | L118: 5.33 | M118: =VLOOKUP(Tableau13[[#This Row],[Tarif HT]],'Codes éco-part'!C:E,3,FALSE) -> 132 | N118: =Tableau13[[#This Row],[Tarif HT]]*1.2 -> 6.396
A119: 31 | B119: Jouets | C119: 201 | D119: Figurines d'action & accessoires | E119: 02 | F119: Métal >50% | G119: 060 | H119: Compris entre 40 kg et 50 kg exclus | J119: 31201020601 | K119: Jouets - en Métal >50% Compris entre 40 kg et 50 kg exclus éco-modulés | L119: 4.8 | M119: =VLOOKUP(Tableau13[[#This Row],[Tarif HT]],'Codes éco-part'!C:E,3,FALSE) -> 287 | N119: =Tableau13[[#This Row],[Tarif HT]]*1.2 -> 5.76
A120: 31 | B120: Jouets | C120: 201 | D120: Figurines d'action & accessoires | E120: 02 | F120: Métal >50% | G120: 082 | H120: supérieur à 250 kg | J120: 31201020820 | K120: Jouets - en Métal >50% supérieur à 250 kg | L120: 25.41 | M120: =VLOOKUP(Tableau13[[#This Row],[Tarif HT]],'Codes éco-part'!C:E,3,FALSE) -> 266 | N120: =Tableau13[[#This Row],[Tarif HT]]*1.2 -> 30.492
A121: 31 | B121: Jouets | C121: 201 | D121: Figurines d'action & accessoires | E121: 02 | F121: Métal >50% | G121: 082 | H121: supérieur à 250 kg | J121: 31201020821 | K121: Jouets - en Métal >50% supérieur à 250 kg éco-modulés | L121: 22.87 | M121: =VLOOKUP(Tableau13[[#This Row],[Tarif HT]],'Codes éco-part'!C:E,3,FALSE) -> 430 | N121: =Tableau13[[#This Row],[Tarif HT]]*1.2 -> 27.444
A122: 31 | B122: Jouets | C122: 201 | D122: Figurines d'action & accessoires | E122: 02 | F122: Métal >50% | G122: 083 | H122: inférieur strictement à 0,1 kg | J122: 31201020830 | K122: Jouets - en Métal >50% inférieur strictement à 0,1 kg | L122: 0.01 | M122: =VLOOKUP(Tableau13[[#This Row],[Tarif HT]],'Codes éco-part'!C:E,3,FALSE) -> 260 | N122: =Tableau13[[#This Row],[Tarif HT]]*1.2 -> 0.012
A123: 31 | B123: Jouets | C123: 201 | D123: Figurines d'action & accessoires | E123: 02 | F123: Métal >50% | G123: 083 | H123: inférieur strictement à 0,1 kg | J123: 31201020831 | K123: Jouets - en Métal >50% inférieur strictement à 0,1 kg éco-modulés | L123: 0.01 | M123: =VLOOKUP(Tableau13[[#This Row],[Tarif HT]],'Codes éco-part'!C:E,3,FALSE) -> 260 | N123: =Tableau13[[#This Row],[Tarif HT]]*1.2 -> 0.012
A124: 31 | B124: Jouets | C124: 201 | D124: Figurines d'action & accessoires | E124: 02 | F124: Métal >50% | G124: 084 | H124: Compris entre 0,1 kg et 0,2 kg exclus | J124: 31201020840 | K124: Jouets - en Métal >50% Compris entre 0,1 kg et 0,2 kg exclus | L124: 0.03 | M124: =VLOOKUP(Tableau13[[#This Row],[Tarif HT]],'Codes éco-part'!C:E,3,FALSE) -> 092 | N124: =Tableau13[[#This Row],[Tarif HT]]*1.2 -> 0.036
A125: 31 | B125: Jouets | C125: 201 | D125: Figurines d'action & accessoires | E125: 02 | F125: Métal >50% | G125: 084 | H125: Compris entre 0,1 kg et 0,2 kg exclus | J125: 31201020841 | K125: Jouets - en Métal >50% Compris entre 0,1 kg et 0,2 kg exclus éco-modulés | L125: 0.03 | M125: =VLOOKUP(Tableau13[[#This Row],[Tarif HT]],'Codes éco-part'!C:E,3,FALSE) -> 092 | N125: =Tableau13[[#This Row],[Tarif HT]]*1.2 -> 0.036
A126: 31 | B126: Jouets | C126: 201 | D126: Figurines d'action & accessoires | E126: 02 | F126: Métal >50% | G126: 085 | H126: Compris entre 0,2 kg et 0,3 kg exclus | J126: 31201020850 | K126: Jouets - en Métal >50% Compris entre 0,2 kg et 0,3 kg exclus | L126: 0.04 | M126: =VLOOKUP(Tableau13[[#This Row],[Tarif HT]],'Codes éco-part'!C:E,3,FALSE) -> 002 | N126: =Tableau13[[#This Row],[Tarif HT]]*1.2 -> 0.048
A127: 31 | B127: Jouets | C127: 201 | D127: Figurines d'action & accessoires | E127: 02 | F127: Métal >50% | G127: 085 | H127: Compris entre 0,2 kg et 0,3 kg exclus | J127: 31201020851 | K127: Jouets - en Métal >50% Compris entre 0,2 kg et 0,3 kg exclus éco-modulés | L127: 0.04 | M127: =VLOOKUP(Tableau13[[#This Row],[Tarif HT]],'Codes éco-part'!C:E,3,FALSE) -> 002 | N127: =Tableau13[[#This Row],[Tarif HT]]*1.2 -> 0.048
A128: 31 | B128: Jouets | C128: 201 | D128: Figurines d'action & accessoires | E128: 02 | F128: Métal >50% | G128: 086 | H128: Compris entre 0,3 kg et 0,4 kg exclus | J128: 31201020860 | K128: Jouets - en Métal >50% Compris entre 0,3 kg et 0,4 kg exclus | L128: 0.06 | M128: =VLOOKUP(Tableau13[[#This Row],[Tarif HT]],'Codes éco-part'!C:E,3,FALSE) -> 096 | N128: =Tableau13[[#This Row],[Tarif HT]]*1.2 -> 0.072
A129: 31 | B129: Jouets | C129: 201 | D129: Figurines d'action & accessoires | E129: 02 | F129: Métal >50% | G129: 086 | H129: Compris entre 0,3 kg et 0,4 kg exclus | J129: 31201020861 | K129: Jouets - en Métal >50% Compris entre 0,3 kg et 0,4 kg exclus éco-modulés | L129: 0.05 | M129: =VLOOKUP(Tableau13[[#This Row],[Tarif HT]],'Codes éco-part'!C:E,3,FALSE) -> 048 | N129: =Tableau13[[#This Row],[Tarif HT]]*1.2 -> 0.06
A130: =MID(J130,1,2) -> 31 | B130: Jouets | C130: =MID(J130,3,3) -> 201 | D130: Figurines d'action & accessoires | E130: =MID(J130,6,2) -> 02 | F130: Métal >50% | G130: =MID(J130,8,3) -> 087 | H130: Compris entre 0,4 kg et 0,5 kg exclus | J130: 31201020870 | K130: Jouets - en Métal >50% Compris entre 0,4 kg et 0,5 kg exclus | L130: 0.07 | M130: =VLOOKUP(Tableau13[[#This Row],[Tarif HT]],'Codes éco-part'!C:E,3,FALSE) -> 247 | N130: =Tableau13[[#This Row],[Tarif HT]]*1.2 -> 0.084
A131: 31 | B131: Jouets | C131: 201 | D131: Figurines d'action & accessoires | E131: 02 | F131: Métal >50% | G131: 087 | H131: Compris entre 0,4 kg et 0,5 kg exclus | J131: 31201020871 | K131: Jouets - en Métal >50% Compris entre 0,4 kg et 0,5 kg exclus éco-modulés | L131: 0.06 | M131: =VLOOKUP(Tableau13[[#This Row],[Tarif HT]],'Codes éco-part'!C:E,3,FALSE) -> 096 | N131: =Tableau13[[#This Row],[Tarif HT]]*1.2 -> 0.072
A132: 31 | B132: Jouets | C132: 201 | D132: Figurines d'action & accessoires | E132: 02 | F132: Métal >50% | G132: 088 | H132: Compris entre 50 kg et 100 kg exclus | J132: 31201020880 | K132: Jouets - en Métal >50% Compris entre 50 kg et 100 kg exclus | L132: 8.43 | M132: =VLOOKUP(Tableau13[[#This Row],[Tarif HT]],'Codes éco-part'!C:E,3,FALSE) -> 433 | N132: =Tableau13[[#This Row],[Tarif HT]]*1.2 -> 10.116
A133: 31 | B133: Jouets | C133: 201 | D133: Figurines d'action & accessoires | E133: 02 | F133: Métal >50% | G133: 088 | H133: Compris entre 50 kg et 100 kg exclus | J133: 31201020881 | K133: Jouets - en Métal >50% Compris entre 50 kg et 100 kg exclus éco-modulés | L133: 7.59 | M133: =VLOOKUP(Tableau13[[#This Row],[Tarif HT]],'Codes éco-part'!C:E,3,FALSE) -> 913 | N133: =Tableau13[[#This Row],[Tarif HT]]*1.2 -> 9.108
A134: 31 | B134: Jouets | C134: 201 | D134: Figurines d'action & accessoires | E134: 03 | F134: Bambou/Rotin >50% | G134: 021 | H134: Compris entre 0,5 kg et 1 kg exclus | J134: 31201030210 | K134: Jouets - en Bambou/Rotin >50% Compris entre 0,5 kg et 1 kg exclus | L134: 0.14 | M134: =VLOOKUP(Tableau13[[#This Row],[Tarif HT]],'Codes éco-part'!C:E,3,FALSE) -> 098 | N134: =Tableau13[[#This Row],[Tarif HT]]*1.2 -> 0.168
A135: 31 | B135: Jouets | C135: 201 | D135: Figurines d'action & accessoires | E135: 03 | F135: Bambou/Rotin >50% | G135: 021 | H135: Compris entre 0,5 kg et 1 kg exclus | J135: 31201030211 | K135: Jouets - en Bambou/Rotin >50% Compris entre 0,5 kg et 1 kg exclus éco-modulés | L135: 0.13 | M135: =VLOOKUP(Tableau13[[#This Row],[Tarif HT]],'Codes éco-part'!C:E,3,FALSE) -> 004 | N135: =Tableau13[[#This Row],[Tarif HT]]*1.2 -> 0.156
A136: 31 | B136: Jouets | C136: 201 | D136: Figurines d'action & accessoires | E136: 03 | F136: Bambou/Rotin >50% | G136: 022 | H136: Compris entre 1 kg et 2 kg exclus | J136: 31201030220 | K136: Jouets - en Bambou/Rotin >50% Compris entre 1 kg et 2 kg exclus | L136: 0.27 | M136: =VLOOKUP(Tableau13[[#This Row],[Tarif HT]],'Codes éco-part'!C:E,3,FALSE) -> 103 | N136: =Tableau13[[#This Row],[Tarif HT]]*1.2 -> 0.324
A137: 31 | B137: Jouets | C137: 201 | D137: Figurines d'action & accessoires | E137: 03 | F137: Bambou/Rotin >50% | G137: 022 | H137: Compris entre 1 kg et 2 kg exclus | J137: 31201030221 | K137: Jouets - en Bambou/Rotin >50% Compris entre 1 kg et 2 kg exclus éco-modulés | L137: 0.24 | M137: =VLOOKUP(Tableau13[[#This Row],[Tarif HT]],'Codes éco-part'!C:E,3,FALSE) -> 248 | N137: =Tableau13[[#This Row],[Tarif HT]]*1.2 -> 0.288
A138: 31 | B138: Jouets | C138: 201 | D138: Figurines d'action & accessoires | E138: 03 | F138: Bambou/Rotin >50% | G138: 027 | H138: Compris entre 30 kg et 40 kg exclus | J138: 31201030270 | K138: Jouets - en Bambou/Rotin >50% Compris entre 30 kg et 40 kg exclus | L138: 5.23 | M138: =VLOOKUP(Tableau13[[#This Row],[Tarif HT]],'Codes éco-part'!C:E,3,FALSE) -> 403 | N138: =Tableau13[[#This Row],[Tarif HT]]*1.2 -> 6.276
A139: 31 | B139: Jouets | C139: 201 | D139: Figurines d'action & accessoires | E139: 03 | F139: Bambou/Rotin >50% | G139: 027 | H139: Compris entre 30 kg et 40 kg exclus | J139: 31201030271 | K139: Jouets - en Bambou/Rotin >50% Compris entre 30 kg et 40 kg exclus éco-modulés | L139: 4.71 | M139: =VLOOKUP(Tableau13[[#This Row],[Tarif HT]],'Codes éco-part'!C:E,3,FALSE) -> 726 | N139: =Tableau13[[#This Row],[Tarif HT]]*1.2 -> 5.652
A140: 31 | B140: Jouets | C140: 201 | D140: Figurines d'action & accessoires | E140: 03 | F140: Bambou/Rotin >50% | G140: 030 | H140: Compris entre 100 kg et 150 kg exclus | J140: 31201030300 | K140: Jouets - en Bambou/Rotin >50% Compris entre 100 kg et 150 kg exclus | L140: 15.25 | M140: =VLOOKUP(Tableau13[[#This Row],[Tarif HT]],'Codes éco-part'!C:E,3,FALSE) -> 404 | N140: =Tableau13[[#This Row],[Tarif HT]]*1.2 -> 18.3
A141: 31 | B141: Jouets | C141: 201 | D141: Figurines d'action & accessoires | E141: 03 | F141: Bambou/Rotin >50% | G141: 030 | H141: Compris entre 100 kg et 150 kg exclus | J141: 31201030301 | K141: Jouets - en Bambou/Rotin >50% Compris entre 100 kg et 150 kg exclus éco-modulés | L141: 13.73 | M141: =VLOOKUP(Tableau13[[#This Row],[Tarif HT]],'Codes éco-part'!C:E,3,FALSE) -> 923 | N141: =Tableau13[[#This Row],[Tarif HT]]*1.2 -> 16.476
A142: 31 | B142: Jouets | C142: 201 | D142: Figurines d'action & accessoires | E142: 03 | F142: Bambou/Rotin >50% | G142: 031 | H142: Compris entre 150 kg et 200 kg exclus | J142: 31201030310 | K142: Jouets - en Bambou/Rotin >50% Compris entre 150 kg et 200 kg exclus | L142: 21.35 | M142: =VLOOKUP(Tableau13[[#This Row],[Tarif HT]],'Codes éco-part'!C:E,3,FALSE) -> 405 | N142: =Tableau13[[#This Row],[Tarif HT]]*1.2 -> 25.62
A143: 31 | B143: Jouets | C143: 201 | D143: Figurines d'action & accessoires | E143: 03 | F143: Bambou/Rotin >50% | G143: 031 | H143: Compris entre 150 kg et 200 kg exclus | J143: 31201030311 | K143: Jouets - en Bambou/Rotin >50% Compris entre 150 kg et 200 kg exclus éco-modulés | L143: 19.22 | M143: =VLOOKUP(Tableau13[[#This Row],[Tarif HT]],'Codes éco-part'!C:E,3,FALSE) -> 927 | N143: =Tableau13[[#This Row],[Tarif HT]]*1.2 -> 23.064
A144: 31 | B144: Jouets | C144: 201 | D144: Figurines d'action & accessoires | E144: 03 | F144: Bambou/Rotin >50% | G144: 032 | H144: Compris entre 200 kg et 250 kg exclus | J144: 31201030320 | K144: Jouets - en Bambou/Rotin >50% Compris entre 200 kg et 250 kg exclus | L144: 27.45 | M144: =VLOOKUP(Tableau13[[#This Row],[Tarif HT]],'Codes éco-part'!C:E,3,FALSE) -> 406 | N144: =Tableau13[[#This Row],[Tarif HT]]*1.2 -> 32.94
A145: 31 | B145: Jouets | C145: 201 | D145: Figurines d'action & accessoires | E145: 03 | F145: Bambou/Rotin >50% | G145: 032 | H145: Compris entre 200 kg et 250 kg exclus | J145: 31201030321 | K145: Jouets - en Bambou/Rotin >50% Compris entre 200 kg et 250 kg exclus éco-modulés | L145: 24.71 | M145: =VLOOKUP(Tableau13[[#This Row],[Tarif HT]],'Codes éco-part'!C:E,3,FALSE) -> 930 | N145: =Tableau13[[#This Row],[Tarif HT]]*1.2 -> 29.652
A146: 31 | B146: Jouets | C146: 201 | D146: Figurines d'action & accessoires | E146: 03 | F146: Bambou/Rotin >50% | G146: 052 | H146: Compris entre 2 kg et 3 kg exclus | J146: 31201030520 | K146: Jouets - en Bambou/Rotin >50% Compris entre 2 kg et 3 kg exclus | L146: 0.44 | M146: =VLOOKUP(Tableau13[[#This Row],[Tarif HT]],'Codes éco-part'!C:E,3,FALSE) -> 281 | N146: =Tableau13[[#This Row],[Tarif HT]]*1.2 -> 0.528
A147: 31 | B147: Jouets | C147: 201 | D147: Figurines d'action & accessoires | E147: 03 | F147: Bambou/Rotin >50% | G147: 052 | H147: Compris entre 2 kg et 3 kg exclus | J147: 31201030521 | K147: Jouets - en Bambou/Rotin >50% Compris entre 2 kg et 3 kg exclus éco-modulés | L147: 0.4 | M147: =VLOOKUP(Tableau13[[#This Row],[Tarif HT]],'Codes éco-part'!C:E,3,FALSE) -> 105 | N147: =Tableau13[[#This Row],[Tarif HT]]*1.2 -> 0.48
A148: 31 | B148: Jouets | C148: 201 | D148: Figurines d'action & accessoires | E148: 03 | F148: Bambou/Rotin >50% | G148: 053 | H148: Compris entre 3 kg et 5 kg exclus | J148: 31201030530 | K148: Jouets - en Bambou/Rotin >50% Compris entre 3 kg et 5 kg exclus | L148: 0.7 | M148: =VLOOKUP(Tableau13[[#This Row],[Tarif HT]],'Codes éco-part'!C:E,3,FALSE) -> 282 | N148: =Tableau13[[#This Row],[Tarif HT]]*1.2 -> 0.84
A149: 31 | B149: Jouets | C149: 201 | D149: Figurines d'action & accessoires | E149: 03 | F149: Bambou/Rotin >50% | G149: 053 | H149: Compris entre 3 kg et 5 kg exclus | J149: 31201030531 | K149: Jouets - en Bambou/Rotin >50% Compris entre 3 kg et 5 kg exclus éco-modulés | L149: 0.63 | M149: =VLOOKUP(Tableau13[[#This Row],[Tarif HT]],'Codes éco-part'!C:E,3,FALSE) -> 297 | N149: =Tableau13[[#This Row],[Tarif HT]]*1.2 -> 0.756
A150: 31 | B150: Jouets | C150: 201 | D150: Figurines d'action & accessoires | E150: 03 | F150: Bambou/Rotin >50% | G150: 054 | H150: Compris entre 5 kg et 7 kg exclus | J150: 31201030540 | K150: Jouets - en Bambou/Rotin >50% Compris entre 5 kg et 7 kg exclus | L150: 1.05 | M150: =VLOOKUP(Tableau13[[#This Row],[Tarif HT]],'Codes éco-part'!C:E,3,FALSE) -> 283 | N150: =Tableau13[[#This Row],[Tarif HT]]*1.2 -> 1.26
A151: 31 | B151: Jouets | C151: 201 | D151: Figurines d'action & accessoires | E151: 03 | F151: Bambou/Rotin >50% | G151: 054 | H151: Compris entre 5 kg et 7 kg exclus | J151: 31201030541 | K151: Jouets - en Bambou/Rotin >50% Compris entre 5 kg et 7 kg exclus éco-modulés | L151: 0.95 | M151: =VLOOKUP(Tableau13[[#This Row],[Tarif HT]],'Codes éco-part'!C:E,3,FALSE) -> 896 | N151: =Tableau13[[#This Row],[Tarif HT]]*1.2 -> 1.14
A152: 31 | B152: Jouets | C152: 201 | D152: Figurines d'action & accessoires | E152: 03 | F152: Bambou/Rotin >50% | G152: 055 | H152: Compris entre 7 kg et 10 kg exclus | J152: 31201030550 | K152: Jouets - en Bambou/Rotin >50% Compris entre 7 kg et 10 kg exclus | L152: 1.31 | M152: =VLOOKUP(Tableau13[[#This Row],[Tarif HT]],'Codes éco-part'!C:E,3,FALSE) -> 284 | N152: =Tableau13[[#This Row],[Tarif HT]]*1.2 -> 1.572
A153: 31 | B153: Jouets | C153: 201 | D153: Figurines d'action & accessoires | E153: 03 | F153: Bambou/Rotin >50% | G153: 055 | H153: Compris entre 7 kg et 10 kg exclus | J153: 31201030551 | K153: Jouets - en Bambou/Rotin >50% Compris entre 7 kg et 10 kg exclus éco-modulés | L153: 1.18 | M153: =VLOOKUP(Tableau13[[#This Row],[Tarif HT]],'Codes éco-part'!C:E,3,FALSE) -> 461 | N153: =Tableau13[[#This Row],[Tarif HT]]*1.2 -> 1.416
A154: 31 | B154: Jouets | C154: 201 | D154: Figurines d'action & accessoires | E154: 03 | F154: Bambou/Rotin >50% | G154: 056 | H154: Compris entre 10 kg et 15 kg exclus | J154: 31201030560 | K154: Jouets - en Bambou/Rotin >50% Compris entre 10 kg et 15 kg exclus | L154: 2.18 | M154: =VLOOKUP(Tableau13[[#This Row],[Tarif HT]],'Codes éco-part'!C:E,3,FALSE) -> 257 | N154: =Tableau13[[#This Row],[Tarif HT]]*1.2 -> 2.616
A155: 31 | B155: Jouets | C155: 201 | D155: Figurines d'action & accessoires | E155: 03 | F155: Bambou/Rotin >50% | G155: 056 | H155: Compris entre 10 kg et 15 kg exclus | J155: 31201030561 | K155: Jouets - en Bambou/Rotin >50% Compris entre 10 kg et 15 kg exclus éco-modulés | L155: 1.96 | M155: =VLOOKUP(Tableau13[[#This Row],[Tarif HT]],'Codes éco-part'!C:E,3,FALSE) -> 900 | N155: =Tableau13[[#This Row],[Tarif HT]]*1.2 -> 2.352
A156: 31 | B156: Jouets | C156: 201 | D156: Figurines d'action & accessoires | E156: 03 | F156: Bambou/Rotin >50% | G156: 057 | H156: Compris entre 15 kg et 20 kg exclus | J156: 31201030570 | K156: Jouets - en Bambou/Rotin >50% Compris entre 15 kg et 20 kg exclus | L156: 3.05 | M156: =VLOOKUP(Tableau13[[#This Row],[Tarif HT]],'Codes éco-part'!C:E,3,FALSE) -> 285 | N156: =Tableau13[[#This Row],[Tarif HT]]*1.2 -> 3.66
A157: 31 | B157: Jouets | C157: 201 | D157: Figurines d'action & accessoires | E157: 03 | F157: Bambou/Rotin >50% | G157: 057 | H157: Compris entre 15 kg et 20 kg exclus | J157: 31201030571 | K157: Jouets - en Bambou/Rotin >50% Compris entre 15 kg et 20 kg exclus éco-modulés | L157: 2.75 | M157: =VLOOKUP(Tableau13[[#This Row],[Tarif HT]],'Codes éco-part'!C:E,3,FALSE) -> 120 | N157: =Tableau13[[#This Row],[Tarif HT]]*1.2 -> 3.3
A158: 31 | B158: Jouets | C158: 201 | D158: Figurines d'action & accessoires | E158: 03 | F158: Bambou/Rotin >50% | G158: 058 | H158: Compris entre 20 kg et 25 kg exclus | J158: 31201030580 | K158: Jouets - en Bambou/Rotin >50% Compris entre 20 kg et 25 kg exclus | L158: 3.73 | M158: =VLOOKUP(Tableau13[[#This Row],[Tarif HT]],'Codes éco-part'!C:E,3,FALSE) -> 407 | N158: =Tableau13[[#This Row],[Tarif HT]]*1.2 -> 4.476
A159: 31 | B159: Jouets | C159: 201 | D159: Figurines d'action & accessoires | E159: 03 | F159: Bambou/Rotin >50% | G159: 058 | H159: Compris entre 20 kg et 25 kg exclus | J159: 31201030581 | K159: Jouets - en Bambou/Rotin >50% Compris entre 20 kg et 25 kg exclus éco-modulés | L159: 3.36 | M159: =VLOOKUP(Tableau13[[#This Row],[Tarif HT]],'Codes éco-part'!C:E,3,FALSE) -> 891 | N159: =Tableau13[[#This Row],[Tarif HT]]*1.2 -> 4.032
A160: 31 | B160: Jouets | C160: 201 | D160: Figurines d'action & accessoires | E160: 03 | F160: Bambou/Rotin >50% | G160: 059 | H160: Compris entre 25 kg et 30 kg exclus | J160: 31201030590 | K160: Jouets - en Bambou/Rotin >50% Compris entre 25 kg et 30 kg exclus | L160: 4.33 | M160: =VLOOKUP(Tableau13[[#This Row],[Tarif HT]],'Codes éco-part'!C:E,3,FALSE) -> 408 | N160: =Tableau13[[#This Row],[Tarif HT]]*1.2 -> 5.196
A161: 31 | B161: Jouets | C161: 201 | D161: Figurines d'action & accessoires | E161: 03 | F161: Bambou/Rotin >50% | G161: 059 | H161: Compris entre 25 kg et 30 kg exclus | J161: 31201030591 | K161: Jouets - en Bambou/Rotin >50% Compris entre 25 kg et 30 kg exclus éco-modulés | L161: 3.9 | M161: =VLOOKUP(Tableau13[[#This Row],[Tarif HT]],'Codes éco-part'!C:E,3,FALSE) -> 840 | N161: =Tableau13[[#This Row],[Tarif HT]]*1.2 -> 4.68
A162: 31 | B162: Jouets | C162: 201 | D162: Figurines d'action & accessoires | E162: 03 | F162: Bambou/Rotin >50% | G162: 060 | H162: Compris entre 40 kg et 50 kg exclus | J162: 31201030600 | K162: Jouets - en Bambou/Rotin >50% Compris entre 40 kg et 50 kg exclus | L162: 6.39 | M162: =VLOOKUP(Tableau13[[#This Row],[Tarif HT]],'Codes éco-part'!C:E,3,FALSE) -> 409 | N162: =Tableau13[[#This Row],[Tarif HT]]*1.2 -> 7.668
A163: 31 | B163: Jouets | C163: 201 | D163: Figurines d'action & accessoires | E163: 03 | F163: Bambou/Rotin >50% | G163: 060 | H163: Compris entre 40 kg et 50 kg exclus | J163: 31201030601 | K163: Jouets - en Bambou/Rotin >50% Compris entre 40 kg et 50 kg exclus éco-modulés | L163: 5.75 | M163: =VLOOKUP(Tableau13[[#This Row],[Tarif HT]],'Codes éco-part'!C:E,3,FALSE) -> 866 | N163: =Tableau13[[#This Row],[Tarif HT]]*1.2 -> 6.9
A164: 31 | B164: Jouets | C164: 201 | D164: Figurines d'action & accessoires | E164: 03 | F164: Bambou/Rotin >50% | G164: 082 | H164: supérieur à 250 kg | J164: 31201030820 | K164: Jouets - en Bambou/Rotin >50% supérieur à 250 kg | L164: 30.49 | M164: =VLOOKUP(Tableau13[[#This Row],[Tarif HT]],'Codes éco-part'!C:E,3,FALSE) -> 410 | N164: =Tableau13[[#This Row],[Tarif HT]]*1.2 -> 36.588
A165: 31 | B165: Jouets | C165: 201 | D165: Figurines d'action & accessoires | E165: 03 | F165: Bambou/Rotin >50% | G165: 082 | H165: supérieur à 250 kg | J165: 31201030821 | K165: Jouets - en Bambou/Rotin >50% supérieur à 250 kg éco-modulés | L165: 27.44 | M165: =VLOOKUP(Tableau13[[#This Row],[Tarif HT]],'Codes éco-part'!C:E,3,FALSE) -> 931 | N165: =Tableau13[[#This Row],[Tarif HT]]*1.2 -> 32.928
A166: 31 | B166: Jouets | C166: 201 | D166: Figurines d'action & accessoires | E166: 03 | F166: Bambou/Rotin >50% | G166: 083 | H166: inférieur strictement à 0,1 kg | J166: 31201030830 | K166: Jouets - en Bambou/Rotin >50% inférieur strictement à 0,1 kg | L166: 0.01 | M166: =VLOOKUP(Tableau13[[#This Row],[Tarif HT]],'Codes éco-part'!C:E,3,FALSE) -> 260 | N166: =Tableau13[[#This Row],[Tarif HT]]*1.2 -> 0.012
A167: 31 | B167: Jouets | C167: 201 | D167: Figurines d'action & accessoires | E167: 03 | F167: Bambou/Rotin >50% | G167: 083 | H167: inférieur strictement à 0,1 kg | J167: 31201030831 | K167: Jouets - en Bambou/Rotin >50% inférieur strictement à 0,1 kg éco-modulés | L167: 0.01 | M167: =VLOOKUP(Tableau13[[#This Row],[Tarif HT]],'Codes éco-part'!C:E,3,FALSE) -> 260 | N167: =Tableau13[[#This Row],[Tarif HT]]*1.2 -> 0.012
A168: 31 | B168: Jouets | C168: 201 | D168: Figurines d'action & accessoires | E168: 03 | F168: Bambou/Rotin >50% | G168: 084 | H168: Compris entre 0,1 kg et 0,2 kg exclus | J168: 31201030840 | K168: Jouets - en Bambou/Rotin >50% Compris entre 0,1 kg et 0,2 kg exclus | L168: 0.03 | M168: =VLOOKUP(Tableau13[[#This Row],[Tarif HT]],'Codes éco-part'!C:E,3,FALSE) -> 092 | N168: =Tableau13[[#This Row],[Tarif HT]]*1.2 -> 0.036
A169: 31 | B169: Jouets | C169: 201 | D169: Figurines d'action & accessoires | E169: 03 | F169: Bambou/Rotin >50% | G169: 084 | H169: Compris entre 0,1 kg et 0,2 kg exclus | J169: 31201030841 | K169: Jouets - en Bambou/Rotin >50% Compris entre 0,1 kg et 0,2 kg exclus éco-modulés | L169: 0.03 | M169: =VLOOKUP(Tableau13[[#This Row],[Tarif HT]],'Codes éco-part'!C:E,3,FALSE) -> 092 | N169: =Tableau13[[#This Row],[Tarif HT]]*1.2 -> 0.036
A170: 31 | B170: Jouets | C170: 201 | D170: Figurines d'action & accessoires | E170: 03 | F170: Bambou/Rotin >50% | G170: 085 | H170: Compris entre 0,2 kg et 0,3 kg exclus | J170: 31201030850 | K170: Jouets - en Bambou/Rotin >50% Compris entre 0,2 kg et 0,3 kg exclus | L170: 0.05 | M170: =VLOOKUP(Tableau13[[#This Row],[Tarif HT]],'Codes éco-part'!C:E,3,FALSE) -> 048 | N170: =Tableau13[[#This Row],[Tarif HT]]*1.2 -> 0.06
A171: 31 | B171: Jouets | C171: 201 | D171: Figurines d'action & accessoires | E171: 03 | F171: Bambou/Rotin >50% | G171: 085 | H171: Compris entre 0,2 kg et 0,3 kg exclus | J171: 31201030851 | K171: Jouets - en Bambou/Rotin >50% Compris entre 0,2 kg et 0,3 kg exclus éco-modulés | L171: 0.05 | M171: =VLOOKUP(Tableau13[[#This Row],[Tarif HT]],'Codes éco-part'!C:E,3,FALSE) -> 048 | N171: =Tableau13[[#This Row],[Tarif HT]]*1.2 -> 0.06
A172: 31 | B172: Jouets | C172: 201 | D172: Figurines d'action & accessoires | E172: 03 | F172: Bambou/Rotin >50% | G172: 086 | H172: Compris entre 0,3 kg et 0,4 kg exclus | J172: 31201030860 | K172: Jouets - en Bambou/Rotin >50% Compris entre 0,3 kg et 0,4 kg exclus | L172: 0.07 | M172: =VLOOKUP(Tableau13[[#This Row],[Tarif HT]],'Codes éco-part'!C:E,3,FALSE) -> 247 | N172: =Tableau13[[#This Row],[Tarif HT]]*1.2 -> 0.084
A173: 31 | B173: Jouets | C173: 201 | D173: Figurines d'action & accessoires | E173: 03 | F173: Bambou/Rotin >50% | G173: 086 | H173: Compris entre 0,3 kg et 0,4 kg exclus | J173: 31201030861 | K173: Jouets - en Bambou/Rotin >50% Compris entre 0,3 kg et 0,4 kg exclus éco-modulés | L173: 0.06 | M173: =VLOOKUP(Tableau13[[#This Row],[Tarif HT]],'Codes éco-part'!C:E,3,FALSE) -> 096 | N173: =Tableau13[[#This Row],[Tarif HT]]*1.2 -> 0.072
A174: 31 | B174: Jouets | C174: 201 | D174: Figurines d'action & accessoires | E174: 03 | F174: Bambou/Rotin >50% | G174: 087 | H174: Compris entre 0,4 kg et 0,5 kg exclus | J174: 31201030870 | K174: Jouets - en Bambou/Rotin >50% Compris entre 0,4 kg et 0,5 kg exclus | L174: 0.08 | M174: =VLOOKUP(Tableau13[[#This Row],[Tarif HT]],'Codes éco-part'!C:E,3,FALSE) -> 003 | N174: =Tableau13[[#This Row],[Tarif HT]]*1.2 -> 0.096
A175: 31 | B175: Jouets | C175: 201 | D175: Figurines d'action & accessoires | E175: 03 | F175: Bambou/Rotin >50% | G175: 087 | H175: Compris entre 0,4 kg et 0,5 kg exclus | J175: 31201030871 | K175: Jouets - en Bambou/Rotin >50% Compris entre 0,4 kg et 0,5 kg exclus éco-modulés | L175: 0.07 | M175: =VLOOKUP(Tableau13[[#This Row],[Tarif HT]],'Codes éco-part'!C:E,3,FALSE) -> 247 | N175: =Tableau13[[#This Row],[Tarif HT]]*1.2 -> 0.084
A176: 31 | B176: Jouets | C176: 201 | D176: Figurines d'action & accessoires | E176: 03 | F176: Bambou/Rotin >50% | G176: 088 | H176: Compris entre 50 kg et 100 kg exclus | J176: 31201030880 | K176: Jouets - en Bambou/Rotin >50% Compris entre 50 kg et 100 kg exclus | L176: 10.11 | M176: =VLOOKUP(Tableau13[[#This Row],[Tarif HT]],'Codes éco-part'!C:E,3,FALSE) -> 411 | N176: =Tableau13[[#This Row],[Tarif HT]]*1.2 -> 12.132
A177: 31 | B177: Jouets | C177: 201 | D177: Figurines d'action & accessoires | E177: 03 | F177: Bambou/Rotin >50% | G177: 088 | H177: Compris entre 50 kg et 100 kg exclus | J177: 31201030881 | K177: Jouets - en Bambou/Rotin >50% Compris entre 50 kg et 100 kg exclus éco-modulés | L177: 9.1 | M177: =VLOOKUP(Tableau13[[#This Row],[Tarif HT]],'Codes éco-part'!C:E,3,FALSE) -> 917 | N177: =Tableau13[[#This Row],[Tarif HT]]*1.2 -> 10.92
A178: 31 | B178: Jouets | C178: 201 | D178: Figurines d'action & accessoires | E178: 04 | F178: Osier et autres tiges végétales >50% | G178: 021 | H178: Compris entre 0,5 kg et 1 kg exclus | J178: 31201040210 | K178: Jouets - en Osier et autres tiges végétales >50% Compris entre 0,5 kg et 1 kg exclus | L178: 0.14 | M178: =VLOOKUP(Tableau13[[#This Row],[Tarif HT]],'Codes éco-part'!C:E,3,FALSE) -> 098 | N178: =Tableau13[[#This Row],[Tarif HT]]*1.2 -> 0.168
A179: 31 | B179: Jouets | C179: 201 | D179: Figurines d'action & accessoires | E179: 04 | F179: Osier et autres tiges végétales >50% | G179: 021 | H179: Compris entre 0,5 kg et 1 kg exclus | J179: 31201040211 | K179: Jouets - en Osier et autres tiges végétales >50% Compris entre 0,5 kg et 1 kg exclus éco-modulés | L179: 0.13 | M179: =VLOOKUP(Tableau13[[#This Row],[Tarif HT]],'Codes éco-part'!C:E,3,FALSE) -> 004 | N179: =Tableau13[[#This Row],[Tarif HT]]*1.2 -> 0.156
A180: 31 | B180: Jouets | C180: 201 | D180: Figurines d'action & accessoires | E180: 04 | F180: Osier et autres tiges végétales >50% | G180: 022 | H180: Compris entre 1 kg et 2 kg exclus | J180: 31201040220 | K180: Jouets - en Osier et autres tiges végétales >50% Compris entre 1 kg et 2 kg exclus | L180: 0.27 | M180: =VLOOKUP(Tableau13[[#This Row],[Tarif HT]],'Codes éco-part'!C:E,3,FALSE) -> 103 | N180: =Tableau13[[#This Row],[Tarif HT]]*1.2 -> 0.324
A181: 31 | B181: Jouets | C181: 201 | D181: Figurines d'action & accessoires | E181: 04 | F181: Osier et autres tiges végétales >50% | G181: 022 | H181: Compris entre 1 kg et 2 kg exclus | J181: 31201040221 | K181: Jouets - en Osier et autres tiges végétales >50% Compris entre 1 kg et 2 kg exclus éco-modulés | L181: 0.24 | M181: =VLOOKUP(Tableau13[[#This Row],[Tarif HT]],'Codes éco-part'!C:E,3,FALSE) -> 248 | N181: =Tableau13[[#This Row],[Tarif HT]]*1.2 -> 0.288
A182: 31 | B182: Jouets | C182: 201 | D182: Figurines d'action & accessoires | E182: 04 | F182: Osier et autres tiges végétales >50% | G182: 027 | H182: Compris entre 30 kg et 40 kg exclus | J182: 31201040270 | K182: Jouets - en Osier et autres tiges végétales >50% Compris entre 30 kg et 40 kg exclus | L182: 5.23 | M182: =VLOOKUP(Tableau13[[#This Row],[Tarif HT]],'Codes éco-part'!C:E,3,FALSE) -> 403 | N182: =Tableau13[[#This Row],[Tarif HT]]*1.2 -> 6.276
A183: 31 | B183: Jouets | C183: 201 | D183: Figurines d'action & accessoires | E183: 04 | F183: Osier et autres tiges végétales >50% | G183: 027 | H183: Compris entre 30 kg et 40 kg exclus | J183: 31201040271 | K183: Jouets - en Osier et autres tiges végétales >50% Compris entre 30 kg et 40 kg exclus éco-modulés | L183: 4.71 | M183: =VLOOKUP(Tableau13[[#This Row],[Tarif HT]],'Codes éco-part'!C:E,3,FALSE) -> 726 | N183: =Tableau13[[#This Row],[Tarif HT]]*1.2 -> 5.652
A184: 31 | B184: Jouets | C184: 201 | D184: Figurines d'action & accessoires | E184: 04 | F184: Osier et autres tiges végétales >50% | G184: 030 | H184: Compris entre 100 kg et 150 kg exclus | J184: 31201040300 | K184: Jouets - en Osier et autres tiges végétales >50% Compris entre 100 kg et 150 kg exclus | L184: 15.25 | M184: =VLOOKUP(Tableau13[[#This Row],[Tarif HT]],'Codes éco-part'!C:E,3,FALSE) -> 404 | N184: =Tableau13[[#This Row],[Tarif HT]]*1.2 -> 18.3
A185: 31 | B185: Jouets | C185: 201 | D185: Figurines d'action & accessoires | E185: 04 | F185: Osier et autres tiges végétales >50% | G185: 030 | H185: Compris entre 100 kg et 150 kg exclus | J185: 31201040301 | K185: Jouets - en Osier et autres tiges végétales >50% Compris entre 100 kg et 150 kg exclus éco-modulés | L185: 13.73 | M185: =VLOOKUP(Tableau13[[#This Row],[Tarif HT]],'Codes éco-part'!C:E,3,FALSE) -> 923 | N185: =Tableau13[[#This Row],[Tarif HT]]*1.2 -> 16.476
A186: 31 | B186: Jouets | C186: 201 | D186: Figurines d'action & accessoires | E186: 04 | F186: Osier et autres tiges végétales >50% | G186: 031 | H186: Compris entre 150 kg et 200 kg exclus | J186: 31201040310 | K186: Jouets - en Osier et autres tiges végétales >50% Compris entre 150 kg et 200 kg exclus | L186: 21.35 | M186: =VLOOKUP(Tableau13[[#This Row],[Tarif HT]],'Codes éco-part'!C:E,3,FALSE) -> 405 | N186: =Tableau13[[#This Row],[Tarif HT]]*1.2 -> 25.62
A187: 31 | B187: Jouets | C187: 201 | D187: Figurines d'action & accessoires | E187: 04 | F187: Osier et autres tiges végétales >50% | G187: 031 | H187: Compris entre 150 kg et 200 kg exclus | J187: 31201040311 | K187: Jouets - en Osier et autres tiges végétales >50% Compris entre 150 kg et 200 kg exclus éco-modulés | L187: 19.22 | M187: =VLOOKUP(Tableau13[[#This Row],[Tarif HT]],'Codes éco-part'!C:E,3,FALSE) -> 927 | N187: =Tableau13[[#This Row],[Tarif HT]]*1.2 -> 23.064
A188: 31 | B188: Jouets | C188: 201 | D188: Figurines d'action & accessoires | E188: 04 | F188: Osier et autres tiges végétales >50% | G188: 032 | H188: Compris entre 200 kg et 250 kg exclus | J188: 31201040320 | K188: Jouets - en Osier et autres tiges végétales >50% Compris entre 200 kg et 250 kg exclus | L188: 27.45 | M188: =VLOOKUP(Tableau13[[#This Row],[Tarif HT]],'Codes éco-part'!C:E,3,FALSE) -> 406 | N188: =Tableau13[[#This Row],[Tarif HT]]*1.2 -> 32.94
A189: 31 | B189: Jouets | C189: 201 | D189: Figurines d'action & accessoires | E189: 04 | F189: Osier et autres tiges végétales >50% | G189: 032 | H189: Compris entre 200 kg et 250 kg exclus | J189: 31201040321 | K189: Jouets - en Osier et autres tiges végétales >50% Compris entre 200 kg et 250 kg exclus éco-modulés | L189: 24.71 | M189: =VLOOKUP(Tableau13[[#This Row],[Tarif HT]],'Codes éco-part'!C:E,3,FALSE) -> 930 | N189: =Tableau13[[#This Row],[Tarif HT]]*1.2 -> 29.652
A190: 31 | B190: Jouets | C190: 201 | D190: Figurines d'action & accessoires | E190: 04 | F190: Osier et autres tiges végétales >50% | G190: 052 | H190: Compris entre 2 kg et 3 kg exclus | J190: 31201040520 | K190: Jouets - en Osier et autres tiges végétales >50% Compris entre 2 kg et 3 kg exclus | L190: 0.44 | M190: =VLOOKUP(Tableau13[[#This Row],[Tarif HT]],'Codes éco-part'!C:E,3,FALSE) -> 281 | N190: =Tableau13[[#This Row],[Tarif HT]]*1.2 -> 0.528
A191: 31 | B191: Jouets | C191: 201 | D191: Figurines d'action & accessoires | E191: 04 | F191: Osier et autres tiges végétales >50% | G191: 052 | H191: Compris entre 2 kg et 3 kg exclus | J191: 31201040521 | K191: Jouets - en Osier et autres tiges végétales >50% Compris entre 2 kg et 3 kg exclus éco-modulés | L191: 0.4 | M191: =VLOOKUP(Tableau13[[#This Row],[Tarif HT]],'Codes éco-part'!C:E,3,FALSE) -> 105 | N191: =Tableau13[[#This Row],[Tarif HT]]*1.2 -> 0.48
A192: 31 | B192: Jouets | C192: 201 | D192: Figurines d'action & accessoires | E192: 04 | F192: Osier et autres tiges végétales >50% | G192: 053 | H192: Compris entre 3 kg et 5 kg exclus | J192: 31201040530 | K192: Jouets - en Osier et autres tiges végétales >50% Compris entre 3 kg et 5 kg exclus | L192: 0.7 | M192: =VLOOKUP(Tableau13[[#This Row],[Tarif HT]],'Codes éco-part'!C:E,3,FALSE) -> 282 | N192: =Tableau13[[#This Row],[Tarif HT]]*1.2 -> 0.84
A193: 31 | B193: Jouets | C193: 201 | D193: Figurines d'action & accessoires | E193: 04 | F193: Osier et autres tiges végétales >50% | G193: 053 | H193: Compris entre 3 kg et 5 kg exclus | J193: 31201040531 | K193: Jouets - en Osier et autres tiges végétales >50% Compris entre 3 kg et 5 kg exclus éco-modulés | L193: 0.63 | M193: =VLOOKUP(Tableau13[[#This Row],[Tarif HT]],'Codes éco-part'!C:E,3,FALSE) -> 297 | N193: =Tableau13[[#This Row],[Tarif HT]]*1.2 -> 0.756
A194: =MID(J194,1,2) -> 31 | B194: Jouets | C194: =MID(J194,3,3) -> 201 | D194: Figurines d'action & accessoires | E194: =MID(J194,6,2) -> 04 | F194: Osier et autres tiges végétales >50% | G194: =MID(J194,8,3) -> 054 | H194: Compris entre 5 kg et 7 kg exclus | J194: 31201040540 | K194: Jouets - en Osier et autres tiges végétales >50% Compris entre 5 kg et 7 kg exclus | L194: 1.05 | M194: =VLOOKUP(Tableau13[[#This Row],[Tarif HT]],'Codes éco-part'!C:E,3,FALSE) -> 283 | N194: =Tableau13[[#This Row],[Tarif HT]]*1.2 -> 1.26
A195: 31 | B195: Jouets | C195: 201 | D195: Figurines d'action & accessoires | E195: 04 | F195: Osier et autres tiges végétales >50% | G195: 054 | H195: Compris entre 5 kg et 7 kg exclus | J195: 31201040541 | K195: Jouets - en Osier et autres tiges végétales >50% Compris entre 5 kg et 7 kg exclus éco-modulés | L195: 0.95 | M195: =VLOOKUP(Tableau13[[#This Row],[Tarif HT]],'Codes éco-part'!C:E,3,FALSE) -> 896 | N195: =Tableau13[[#This Row],[Tarif HT]]*1.2 -> 1.14
A196: 31 | B196: Jouets | C196: 201 | D196: Figurines d'action & accessoires | E196: 04 | F196: Osier et autres tiges végétales >50% | G196: 055 | H196: Compris entre 7 kg et 10 kg exclus | J196: 31201040550 | K196: Jouets - en Osier et autres tiges végétales >50% Compris entre 7 kg et 10 kg exclus | L196: 1.31 | M196: =VLOOKUP(Tableau13[[#This Row],[Tarif HT]],'Codes éco-part'!C:E,3,FALSE) -> 284 | N196: =Tableau13[[#This Row],[Tarif HT]]*1.2 -> 1.572
A197: 31 | B197: Jouets | C197: 201 | D197: Figurines d'action & accessoires | E197: 04 | F197: Osier et autres tiges végétales >50% | G197: 055 | H197: Compris entre 7 kg et 10 kg exclus | J197: 31201040551 | K197: Jouets - en Osier et autres tiges végétales >50% Compris entre 7 kg et 10 kg exclus éco-modulés | L197: 1.18 | M197: =VLOOKUP(Tableau13[[#This Row],[Tarif HT]],'Codes éco-part'!C:E,3,FALSE) -> 461 | N197: =Tableau13[[#This Row],[Tarif HT]]*1.2 -> 1.416
A198: 31 | B198: Jouets | C198: 201 | D198: Figurines d'action & accessoires | E198: 04 | F198: Osier et autres tiges végétales >50% | G198: 056 | H198: Compris entre 10 kg et 15 kg exclus | J198: 31201040560 | K198: Jouets - en Osier et autres tiges végétales >50% Compris entre 10 kg et 15 kg exclus | L198: 2.18 | M198: =VLOOKUP(Tableau13[[#This Row],[Tarif HT]],'Codes éco-part'!C:E,3,FALSE) -> 257 | N198: =Tableau13[[#This Row],[Tarif HT]]*1.2 -> 2.616
A199: 31 | B199: Jouets | C199: 201 | D199: Figurines d'action & accessoires | E199: 04 | F199: Osier et autres tiges végétales >50% | G199: 056 | H199: Compris entre 10 kg et 15 kg exclus | J199: 31201040561 | K199: Jouets - en Osier et autres tiges végétales >50% Compris entre 10 kg et 15 kg exclus éco-modulés | L199: 1.96 | M199: =VLOOKUP(Tableau13[[#This Row],[Tarif HT]],'Codes éco-part'!C:E,3,FALSE) -> 900 | N199: =Tableau13[[#This Row],[Tarif HT]]*1.2 -> 2.352
A200: 31 | B200: Jouets | C200: 201 | D200: Figurines d'action & accessoires | E200: 04 | F200: Osier et autres tiges végétales >50% | G200: 057 | H200: Compris entre 15 kg et 20 kg exclus | J200: 31201040570 | K200: Jouets - en Osier et autres tiges végétales >50% Compris entre 15 kg et 20 kg exclus | L200: 3.05 | M200: =VLOOKUP(Tableau13[[#This Row],[Tarif HT]],'Codes éco-part'!C:E,3,FALSE) -> 285 | N200: =Tableau13[[#This Row],[Tarif HT]]*1.2 -> 3.66
... 4300 more rows

Sheet Listes_masqué (hidden)
A1: Code caractéristique | E1: Code matériau | I1: Code catégorie | M1: Code type de produit | U1: Code matériau | W1: Code dimension | Z1: Eco-modulation
Z2: oui
A3: 083 | B3: inférieur strictement à 0,1 kg | C3: =A3 -> 083 | E3: 00 | F3: Non connu | G3: =E3 -> 00 | H3: Jouets | I3: 31 | J3: Jouets | K3: =I3 -> 31 | M3: 201 | N3: Figurines d'action & accessoires | O3: =M3 -> 201 | P3: =CONCATENATE(M3," - ",N3) -> 201 - Figurines d'action & accessoires | Q3: Bois et dérivés | R3: Bois_et_dérivés | U3: Bois_et_dérivés | V3: =IFERROR(VLOOKUP(RIGHT(U3,3),$M$3:$N$41,2,FALSE),"") ->  | W3: Tous_jouets | X3: =IFERROR(VLOOKUP(RIGHT(W3,3),$M$3:$N$41,2,FALSE),"") ->  | Z3: non
A4: 084 | B4: Compris entre 0,1 kg et 0,2 kg exclus | C4: =A4 -> 084 | E4: 01 | F4: Bois, panneaux et dérivés de bois >50% | G4: =E4 -> 01 | H4: Jouets de plein air | I4: 32 | J4: Jouets_de_plein_air | K4: =I4 -> 32 | M4: 202 | N4: Jeux de construction & accessoires | O4: =M4 -> 202 | P4: =CONCATENATE(M4," - ",N4) -> 202 - Jeux de construction & accessoires | Q4: Métal | R4: Métal | U4: Bois, panneaux et dérivés de bois >50% | V4: =IFERROR(VLOOKUP(RIGHT(U4,3),$M$3:$N$41,2,FALSE),"") ->  | W4: inférieur strictement à 0,1 kg | X4: =IFERROR(VLOOKUP(W4,$B$3:$C$25,2,FALSE),"") -> 083
A5: 085 | B5: Compris entre 0,2 kg et 0,3 kg exclus | C5: 085 | E5: 02 | F5: Métal >50% | G5: 02 | H5: Jeux de société | I5: 33 | J5: Jeux_de_société | K5: 33 | M5: 203 | N5: Poupées, Poupons & accessoires | O5: 203 | P5: 203 - Poupées, Poupons & accessoires | Q5: Plastiques | R5: Plastiques | U5: Bois massif certifié à plus de 75% | V5: =IFERROR(VLOOKUP(RIGHT(U14,3),$M$3:$N$41,2,FALSE),"") ->  | W5: Compris entre 0,1 kg et 0,2 kg exclus | X5: 084
A6: 086 | B6: Compris entre 0,3 kg et 0,4 kg exclus | C6: 086 | E6: 03 | F6: Bambou/Rotin >50% | G6: 03 | H6: Jouets cadeaux | I6: 34 | J6: Jeux_cadeau | K6: 34 | M6: 204 | N6: Peluches & accessoires | O6: 204 | P6: 204 - Peluches & accessoires | Q6: Textiles et avec rembourrage | R6: Textiles_et_avec_rembourrage | U6: Bois massif certifié à plus de 95% | V6: =IFERROR(VLOOKUP(RIGHT(U16,3),$M$3:$N$41,2,FALSE),"") ->  | W6: Compris entre 0,2 kg et 0,3 kg exclus | X6: 085
A7: 087 | B7: Compris entre 0,4 kg et 0,5 kg exclus | C7: 087 | E7: 04 | F7: Osier et autres tiges végétales >50% | G7: 04 | M7: 205 | N7: Jouets Premier âge et Pré-scolaires & accessoires (3 ans et moins) | O7: 205 | P7: 205 - Jouets Premier âge et Pré-scolaires & accessoires (3 ans et moins) | Q7: Autres | R7: Autres | U7: Bois massif non certifié à plus de 75% | V7: =IFERROR(VLOOKUP(RIGHT(U5,3),$M$3:$N$41,2,FALSE),"") ->  | W7: Compris entre 0,3 kg et 0,4 kg exclus | X7: 086
A8: 021 | B8: Compris entre 0,5 kg et 1 kg exclus | C8: 021 | E8: 05 | F8: Plastiques >50% | G8: 05 | M8: 206 | N8: Véhicules miniatures & accessoires | O8: 206 | P8: 206 - Véhicules miniatures & accessoires | U8: Bois massif non certifié à plus de 95% | V8: =IFERROR(VLOOKUP(RIGHT(U7,3),$M$3:$N$41,2,FALSE),"") ->  | W8: Compris entre 0,4 kg et 0,5 kg exclus | X8: 087
A9: 022 | B9: Compris entre 1 kg et 2 kg exclus | C9: 022 | E9: 06 | F9: Textiles, cuirs, fourrures… >50% | G9: 06 | M9: 207 | N9: Loisirs créatifs jouets & accessoires | O9: 207 | P9: 207 - Loisirs créatifs jouets & accessoires | Q9: Bois et dérivés | R9: Bois_et_dérivés | U9: Mélange bois massif certifié et métal à plus de 75% | V9: =IFERROR(VLOOKUP(RIGHT(U9,3),$M$3:$N$41,2,FALSE),"") ->  | W9: Compris entre 0,5 kg et 1 kg exclus | X9: 021
A10: 052 | B10: Compris entre 2 kg et 3 kg exclus | C10: 052 | E10: 07 | F10: Verre et miroir >50% | G10: 07 | M10: 208 | N10: Jouets d'exploration et autres jouets & accessoires | O10: 208 | P10: 208 - Jouets d'exploration et autres jouets & accessoires | Q10: Métal | R10: Métal | U10: Panneaux de particules à plus de 75% | V10: =IFERROR(VLOOKUP(RIGHT(U11,3),$M$3:$N$41,2,FALSE),"") ->  | W10: Compris entre 1 kg et 2 kg exclus | X10: 022
A11: 053 | B11: Compris entre 3 kg et 5 kg exclus | C11: 053 | E11: 08 | F11: Inerte, minéraux >50% | G11: 08 | M11: 209 | N11: Jouets porteurs à pédales & accessoires | O11: 209 | P11: 209 - Jouets porteurs à pédales & accessoires | Q11: Plastiques | R11: Plastiques | U11: Panneaux de particules et/ou bois et/ou métal à plus de 75% | V11: =IFERROR(VLOOKUP(RIGHT(U10,3),$M$3:$N$41,2,FALSE),"") ->  | W11: Compris entre 2 kg et 3 kg exclus | X11: 052
A12: 054 | B12: Compris entre 5 kg et 7 kg exclus | C12: 054 | E12: 09 | F12: Mousse | G12: 09 | M12: 210 | N12: Jouets porteurs sans pédales & accessoires | O12: 210 | P12: 210 - Jouets porteurs sans pédales & accessoires | Q12: Textiles et avec rembourrage | R12: Textiles_et_avec_rembourrage | U12: Contreplaqué à plus de 75% | V12: =IFERROR(VLOOKUP(RIGHT(U12,3),$M$3:$N$41,2,FALSE),"") ->  | W12: Compris entre 3 kg et 5 kg exclus | X12: 053
A13: 055 | B13: Compris entre 7 kg et 10 kg exclus | C13: 055 | E13: 10 | F13: Latex | G13: 10 | M13: 211 | N13: Jouets sportifs & accessoires | O13: 211 | P13: 211 - Jouets sportifs & accessoires | Q13: Autres | R13: Autres_usage_famille | U13: OSB à plus de 75% | V13: =IFERROR(VLOOKUP(RIGHT(U13,3),$M$3:$N$41,2,FALSE),"") ->  | W13: Compris entre 5 kg et 7 kg exclus | X13: 054
A14: 056 | B14: Compris entre 10 kg et 15 kg exclus | C14: 056 | E14: 11 | F14: Ressorts | G14: 11 | M14: 212 | N14: Jouets d'été & accessoires | O14: 212 | P14: 212 - Jouets d'été & accessoires | U14: Bambou/Rotin >50% | V14: =IFERROR(VLOOKUP(RIGHT(#REF!,3),$M$3:$N$41,2,FALSE),"") ->  | W14: Compris entre 7 kg et 10 kg exclus | X14: 055
A15: 057 | B15: Compris entre 15 kg et 20 kg exclus | C15: 057 | E15: 12 | F15: Autres | G15: 12 | M15: 213 | N15: Jouets d’activités à usage familial | O15: 213 | P15: 213 - Jouets d’activités à usage familial | U15: Bambou/Rotin >95% | V15: =IFERROR(VLOOKUP(RIGHT(U19,3),$M$3:$N$41,2,FALSE),"") ->  | W15: Compris entre 10 kg et 15 kg exclus | X15: 056
A16: 058 | B16: Compris entre 20 kg et 25 kg exclus | C16: 058 | E16: 13 | F16: Rembourrage naturel (plume, laine…) | G16: 13 | M16: 214 | N16: Jeux de Société & accessoires (directive jouet) | O16: 214 | P16: 214 - Jeux de Société & accessoires (directive jouet) | U16: Osier et autres tiges végétales >50% | V16: =IFERROR(VLOOKUP(RIGHT(#REF!,3),$M$3:$N$41,2,FALSE),"") ->  | W16: Compris entre 15 kg et 20 kg exclus | X16: 057
A17: 059 | B17: Compris entre 25 kg et 30 kg exclus | C17: 059 | E17: 14 | F17: Rembourrage Synthétique (mousse, polyester…) | G17: 14 | M17: 215 | N17: Jeux de Société & accessoires (hors directive jouet) | O17: 215 | P17: 215 - Jeux de Société & accessoires (hors directive jouet) | U17: Osier et autres tiges végétales >95% | V17: =IFERROR(VLOOKUP(RIGHT(#REF!,3),$M$3:$N$41,2,FALSE),"") ->  | W17: Compris entre 20 kg et 25 kg exclus | X17: 058
A18: 027 | B18: Compris entre 30 kg et 40 kg exclus | C18: 027 | E18: 15 | F18: Composites et compact >50% | G18: 15 | M18: 216 | N18: Puzzles & accessoires (directive jouet) | O18: 216 | P18: 216 - Puzzles & accessoires (directive jouet) | V18: =IFERROR(VLOOKUP(RIGHT(#REF!,3),$M$3:$N$41,2,FALSE),"") ->  | W18: Compris entre 25 kg et 30 kg exclus | X18: 059
A19: 060 | B19: Compris entre 40 kg et 50 kg exclus | C19: 060 | E19: 16 | F19: Pierre artificielle >50% | G19: 16 | M19: 217 | N19: Puzzles & accessoires (hors directive jouet) | O19: 217 | P19: 217 - Puzzles & accessoires (hors directive jouet) | V19: =IFERROR(VLOOKUP(RIGHT(#REF!,3),$M$3:$N$41,2,FALSE),"") ->  | W19: Compris entre 30 kg et 40 kg exclus | X19: 027
A20: 088 | B20: Compris entre 50 kg et 100 kg exclus | C20: 088 | E20: 17 | F20: Ciment, béton >50% | G20: 17 | M20: 218 | N20: Maquettes & accessoires (directive jouet) | O20: 218 | P20: 218 - Maquettes & accessoires (directive jouet) | W20: Compris entre 40 kg et 50 kg exclus | X20: 060
A21: 030 | B21: Compris entre 100 kg et 150 kg exclus | C21: 030 | E21: 18 | F21: Céramique >50% | G21: 18 | M21: 219 | N21: Maquettes & accessoires (hors directive jouet) | O21: 219 | P21: 219 - Maquettes & accessoires (hors directive jouet) | U21: Métal | V21: =IFERROR(VLOOKUP(RIGHT(#REF!,3),$M$3:$N$41,2,FALSE),"") ->  | W21: Compris entre 50 kg et 100 kg exclus | X21: 088
A22: 031 | B22: Compris entre 150 kg et 200 kg exclus | C22: 031 | E22: 19 | F22: Papier, carton >50% | G22: 19 | M22: 220 | N22: Jouets cadeaux & accessoires | O22: 220 | P22: 220 - Jouets cadeaux & accessoires | U22: Métal >50% | V22: =IFERROR(VLOOKUP(RIGHT(#REF!,3),$M$3:$N$41,2,FALSE),"") ->  | W22: Compris entre 100 kg et 150 kg exclus | X22: 030
A23: 032 | B23: Compris entre 200 kg et 250 kg exclus | C23: 032 | E23: 20 | F23: Bois massif certifié à plus de 75% | G23: 20 | U23: Métal à plus de 75% | V23: =IFERROR(VLOOKUP(RIGHT(#REF!,3),$M$3:$N$41,2,FALSE),"") ->  | W23: Compris entre 150 kg et 200 kg exclus | X23: 031
A24: 082 | B24: supérieur à 250 kg | C24: 082 | E24: 21 | F24: Bois massif non certifié à plus de 75% | G24: 21 | U24: Métal à plus de 95% | V24: =IFERROR(VLOOKUP(RIGHT(#REF!,3),$M$3:$N$41,2,FALSE),"") ->  | W24: Compris entre 200 kg et 250 kg exclus | X24: 032
A25: 089 | B25: Lot de 1000 | C25: 089 | E25: 22 | F25: Métal à plus de 75% | G25: 22 | U25: Métal ferreux >50% | V25: =IFERROR(VLOOKUP(RIGHT(#REF!,3),$M$3:$N$41,2,FALSE),"") ->  | W25: supérieur à 250 kg | X25: 082
E26: 23 | F26: Mélange bois massif certifié et métal à plus de 75% | G26: 23 | U26: Métal ferreux à plus de 95% | V26: =IFERROR(VLOOKUP(RIGHT(U21,3),$M$3:$N$41,2,FALSE),"") ->  | X26: =IFERROR(VLOOKUP(#REF!,$B$3:$C$25,2,FALSE),"") -> 
E27: 24 | F27: Panneaux de particules et/ou bois et/ou métal à plus de 75% | G27: 24 | U27: Métal non ferreux >50% | W27: Jouets_cadeau | X27: =IFERROR(VLOOKUP(#REF!,$B$3:$C$25,2,FALSE),"") -> 
E28: 25 | F28: Panneaux de particules à plus de 75% | G28: 25 | U28: Métal non ferreux à plus de 95% | W28: Lot de 1000 | X28: =IFERROR(VLOOKUP(#REF!,$B$3:$C$25,2,FALSE),"") -> 
E29: 26 | F29: Contreplaqué à plus de 75% | G29: 26 | X29: =IFERROR(VLOOKUP(#REF!,$B$3:$C$25,2,FALSE),"") -> 
E30: 27 | F30: OSB à plus de 75% | G30: 27
E31: 28 | F31: Métal à plus de 95% | G31: 28 | W31: Jouets_usage_famille | X31: =IFERROR(VLOOKUP(RIGHT(W31,3),$M$3:$N$41,2,FALSE),"") -> 
E32: 29 | F32: Métal ferreux >50% | G32: 29 | U32: Plastiques | W32: Compris entre 20 kg et 25 kg exclus | X32: =IFERROR(VLOOKUP(W32,$B$3:$C$25,2,FALSE),"") -> 058
E33: 30 | F33: Métal ferreux à plus de 95% | G33: 30 | U33: Plastiques >50% | W33: Compris entre 25 kg et 30 kg exclus | X33: 059
E34: 31 | F34: Métal non ferreux >50% | G34: 31 | U34: Plastiques​ (sans spécificité) >95% | V34: =IFERROR(VLOOKUP(RIGHT(#REF!,3),$M$3:$N$41,2,FALSE),"") ->  | W34: Compris entre 30 kg et 40 kg exclus | X34: 027
E35: 32 | F35: Métal non ferreux à plus de 95% | G35: 32 | U35: Polyterephtalate d'Ethylène (PET) >50% | V35: =IFERROR(VLOOKUP(RIGHT(#REF!,3),$M$3:$N$41,2,FALSE),"") ->  | W35: Compris entre 40 kg et 50 kg exclus | X35: 060
E36: 33 | F36: Polyterephtalate d'Ethylène (PET) >50% | G36: 33 | U36: Polyterephtalate d'Ethylène (PET) >95% | V36: =IFERROR(VLOOKUP(RIGHT(#REF!,3),$M$3:$N$41,2,FALSE),"") ->  | W36: Compris entre 50 kg et 100 kg exclus | X36: 088
E37: 34 | F37: Polyéthylène (PE) >50% | G37: 34 | U37: Polyéthylène (PE) >50% | V37: =IFERROR(VLOOKUP(RIGHT(#REF!,3),$M$3:$N$41,2,FALSE),"") ->  | W37: Compris entre 100 kg et 150 kg exclus | X37: 030
E38: 35 | F38: Polypropylène (PP) >50% | G38: 35 | U38: Polyéthylène (PE) >95% | V38: =IFERROR(VLOOKUP(RIGHT(#REF!,3),$M$3:$N$41,2,FALSE),"") ->  | W38: Compris entre 150 kg et 200 kg exclus | X38: 031
E39: 36 | F39: Mélange PE et PP >50% | G39: 36 | U39: Polypropylène (PP) >50% | V39: =IFERROR(VLOOKUP(RIGHT(#REF!,3),$M$3:$N$41,2,FALSE),"") ->  | W39: Compris entre 200 kg et 250 kg exclus | X39: 032
E40: 37 | F40: ABS >50% | G40: 37 | U40: Polypropylène (PP) >95% | V40: =IFERROR(VLOOKUP(RIGHT(#REF!,3),$M$3:$N$41,2,FALSE),"") ->  | W40: supérieur à 250 kg | X40: 082
E41: 38 | F41: Polystyrène >50% | G41: 38 | U41: Mélange PE et PP >50% | V41: =IFERROR(VLOOKUP(RIGHT(#REF!,3),$M$3:$N$41,2,FALSE),"") -> 
E42: 39 | F42: PVC >50% | G42: 39 | U42: Mélange PE et PP >95% | V42: =IFERROR(VLOOKUP(RIGHT(#REF!,3),$M$3:$N$41,2,FALSE),"") -> 
E43: 40 | F43: Caoutchouc >50% | G43: 40 | U43: ABS >50% | V43: =IFERROR(VLOOKUP(RIGHT(U32,3),$M$3:$N$41,2,FALSE),"") -> 
E44: 41 | F44: Plastiques​ (sans spécificité) >95% | G44: 41 | U44: ABS >95% | V44: =IFERROR(VLOOKUP(RIGHT(U33,3),$M$3:$N$41,2,FALSE),"") -> 
E45: 42 | F45: Polyterephtalate d'Ethylène (PET) >95% | G45: 42 | U45: Polystyrène >50% | V45: =IFERROR(VLOOKUP(RIGHT(U35,3),$M$3:$N$41,2,FALSE),"") -> 
E46: 43 | F46: Polyéthylène (PE) >95% | G46: 43 | U46: Polystyrène >95% | V46: =IFERROR(VLOOKUP(RIGHT(U37,3),$M$3:$N$41,2,FALSE),"") -> 
E47: 44 | F47: Polypropylène (PP) >95% | G47: 44 | U47: PVC >50% | V47: =IFERROR(VLOOKUP(RIGHT(U39,3),$M$3:$N$41,2,FALSE),"") -> 
E48: 45 | F48: Mélange PE et PP >95% | G48: 45 | U48: PVC >95% | V48: =IFERROR(VLOOKUP(RIGHT(U41,3),$M$3:$N$41,2,FALSE),"") -> 
E49: 46 | F49: ABS >95% | G49: 46 | U49: Caoutchouc >50% | V49: =IFERROR(VLOOKUP(RIGHT(U43,3),$M$3:$N$41,2,FALSE),"") -> 
E50: 47 | F50: Polystyrène >95% | G50: 47 | U50: Caoutchouc >95% | V50: =IFERROR(VLOOKUP(RIGHT(U45,3),$M$3:$N$41,2,FALSE),"") -> 
E51: 48 | F51: PVC >95% | G51: 48 | V51: =IFERROR(VLOOKUP(RIGHT(U47,3),$M$3:$N$41,2,FALSE),"") -> 
E52: 49 | F52: Caoutchouc >95% | G52: 49 | U52: Textiles_et_avec_rembourrage | V52: =IFERROR(VLOOKUP(RIGHT(U49,3),$M$3:$N$41,2,FALSE),"") -> 
E53: 50 | F53: Papier, carton >95% en gestion non certifiée | G53: 50 | U53: Textiles, cuirs, fourrures… >50% | V53: =IFERROR(VLOOKUP(RIGHT(U34,3),$M$3:$N$41,2,FALSE),"") -> 
E54: 51 | F54: Papier, carton >95% en gestion durable certifiée | G54: =E54 -> 51 | U54: Textiles, cuirs, fourrures… >95% | V54: =IFERROR(VLOOKUP(RIGHT(U36,3),$M$3:$N$41,2,FALSE),"") -> 
E55: 52 | F55: Bois massif certifié à plus de 95% | G55: 52 | U55: Rembourrage naturel (plume, laine…) | V55: =IFERROR(VLOOKUP(RIGHT(U38,3),$M$3:$N$41,2,FALSE),"") -> 
E56: 53 | F56: Bois massif non certifié à plus de 95% | G56: 53 | U56: Rembourrage Synthétique (mousse, polyester…) | V56: =IFERROR(VLOOKUP(RIGHT(U40,3),$M$3:$N$41,2,FALSE),"") -> 
E57: 54 | F57: Bambou/Rotin >95% | G57: 54 | V57: =IFERROR(VLOOKUP(RIGHT(U42,3),$M$3:$N$41,2,FALSE),"") -> 
E58: 55 | F58: Osier et autres tiges végétales >95% | G58: 55 | V58: =IFERROR(VLOOKUP(RIGHT(U44,3),$M$3:$N$41,2,FALSE),"") -> 
E59: 56 | F59: Textiles, cuirs, fourrures… >95% | G59: 56 | V59: =IFERROR(VLOOKUP(RIGHT(U46,3),$M$3:$N$41,2,FALSE),"") -> 
E60: 57 | F60: Verre et miroir >95% | G60: 57 | V60: =IFERROR(VLOOKUP(RIGHT(U48,3),$M$3:$N$41,2,FALSE),"") -> 
E61: 58 | F61: Inerte, minéraux >95% | G61: 58 | U61: Autres | V61: =IFERROR(VLOOKUP(RIGHT(U50,3),$M$3:$N$41,2,FALSE),"") -> 
E62: 99 | F62: Assemblage de 3 matériaux maximum | G62: 99 | U62: Non connu | V62: =IFERROR(VLOOKUP(RIGHT(U70,3),$M$3:$N$41,2,FALSE),"") -> 
U63: Papier, carton >50% | V63: =IFERROR(VLOOKUP(RIGHT(U71,3),$M$3:$N$41,2,FALSE),"") -> 
U64: Papier, carton >95% en gestion non certifiée | V64: =IFERROR(VLOOKUP(RIGHT(U72,3),$M$3:$N$41,2,FALSE),"") -> 
U65: Papier, carton >95% en gestion durable certifiée | V65: =IFERROR(VLOOKUP(RIGHT(U73,3),$M$3:$N$41,2,FALSE),"") -> 
U66: Verre et miroir >50% | V66: =IFERROR(VLOOKUP(RIGHT(U63,3),$M$3:$N$41,2,FALSE),"") -> 
U67: Verre et miroir >95% | V67: =IFERROR(VLOOKUP(RIGHT(U65,3),$M$3:$N$41,2,FALSE),"") -> 
U68: Inerte, minéraux >50% | V68: =IFERROR(VLOOKUP(RIGHT(#REF!,3),$M$3:$N$41,2,FALSE),"") -> 
U69: Inerte, minéraux >95% | V69: =IFERROR(VLOOKUP(RIGHT(U67,3),$M$3:$N$41,2,FALSE),"") -> 
U70: Composites et compact >50% | V70: =IFERROR(VLOOKUP(RIGHT(U69,3),$M$3:$N$41,2,FALSE),"") -> 
U71: Pierre artificielle >50% | V71: =IFERROR(VLOOKUP(RIGHT(#REF!,3),$M$3:$N$41,2,FALSE),"") -> 
U72: Ciment, béton >50% | V72: =IFERROR(VLOOKUP(RIGHT(#REF!,3),$M$3:$N$41,2,FALSE),"") -> 
U73: Céramique >50% | V73: =IFERROR(VLOOKUP(RIGHT(#REF!,3),$M$3:$N$41,2,FALSE),"") -> 
U74: Autres | V74: =IFERROR(VLOOKUP(RIGHT(#REF!,3),$M$3:$N$41,2,FALSE),"") -> 
V75: =IFERROR(VLOOKUP(RIGHT(#REF!,3),$M$3:$N$41,2,FALSE),"") -> 
V76: =IFERROR(VLOOKUP(RIGHT(#REF!,3),$M$3:$N$41,2,FALSE),"") -> 
U77: Autres_usage_famille | V77: =IFERROR(VLOOKUP(RIGHT(#REF!,3),$M$3:$N$41,2,FALSE),"") -> 
U78: Non connu | V78: =IFERROR(VLOOKUP(RIGHT(#REF!,3),$M$3:$N$41,2,FALSE),"") -> 
U79: Papier, carton >50% | V79: =IFERROR(VLOOKUP(RIGHT(#REF!,3),$M$3:$N$41,2,FALSE),"") -> 
U80: Papier, carton >95% en gestion non certifiée | V80: =IFERROR(VLOOKUP(RIGHT(U77,3),$M$3:$N$41,2,FALSE),"") -> 
U81: Papier, carton >95% en gestion durable certifiée
U82: Verre et miroir >50%
U83: Verre et miroir >95%
U84: Inerte, minéraux >50%
U85: Inerte, minéraux >95%
U86: Composites et compact >50%
U87: Pierre artificielle >50%
U88: Ciment, béton >50%
U89: Céramique >50% | X89: =IFERROR(VLOOKUP(W69,$B$3:$C$25,2,FALSE),"") -> 
U90: Assemblage de 3 matériaux maximum
U91: Autres
V144: =IFERROR(VLOOKUP(RIGHT(U141,3),$M$3:$N$41,2,FALSE),"") -> 
X153: =IFERROR(VLOOKUP(W133,$B$3:$C$25,2,FALSE),"") -> 
V208: =IFERROR(VLOOKUP(RIGHT(U205,3),$M$3:$N$41,2,FALSE),"") -> 
X217: =IFERROR(VLOOKUP(W197,$B$3:$C$25,2,FALSE),"") -> 
V272: =IFERROR(VLOOKUP(RIGHT(U269,3),$M$3:$N$41,2,FALSE),"") -> 
X281: =IFERROR(VLOOKUP(W261,$B$3:$C$25,2,FALSE),"") -> 
V336: =IFERROR(VLOOKUP(RIGHT(U333,3),$M$3:$N$41,2,FALSE),"") -> 
X345: =IFERROR(VLOOKUP(W325,$B$3:$C$25,2,FALSE),"") -> 
V400: =IFERROR(VLOOKUP(RIGHT(U397,3),$M$3:$N$41,2,FALSE),"") -> 
X409: =IFERROR(VLOOKUP(W389,$B$3:$C$25,2,FALSE),"") -> 
V464: =IFERROR(VLOOKUP(RIGHT(U461,3),$M$3:$N$41,2,FALSE),"") -> 
X473: =IFERROR(VLOOKUP(W453,$B$3:$C$25,2,FALSE),"") -> 
V528: =IFERROR(VLOOKUP(RIGHT(U525,3),$M$3:$N$41,2,FALSE),"") -> 
X537: =IFERROR(VLOOKUP(W517,$B$3:$C$25,2,FALSE),"") -> 
V550: =IFERROR(VLOOKUP(RIGHT(U547,3),$M$3:$N$41,2,FALSE),"") -> 
V567: =IFERROR(VLOOKUP(RIGHT(U564,3),$M$3:$N$43,2,FALSE),"") -> 
V575: =IFERROR(VLOOKUP(RIGHT(U572,3),$M$3:$N$43,2,FALSE),"") -> 
X601: =IFERROR(VLOOKUP(W581,$B$3:$C$25,2,FALSE),"") -> 
X665: =IFERROR(VLOOKUP(W645,$B$3:$C$25,2,FALSE),"") -> 
X729: =IFERROR(VLOOKUP(W709,$B$3:$C$25,2,FALSE),"") -> 
X793: =IFERROR(VLOOKUP(W773,$B$3:$C$25,2,FALSE),"") -> 
X857: =IFERROR(VLOOKUP(W837,$B$3:$C$25,2,FALSE),"") -> 
X921: =IFERROR(VLOOKUP(W901,$B$3:$C$25,2,FALSE),"") -> 
X985: =IFERROR(VLOOKUP(W965,$B$3:$C$25,2,FALSE),"") -> 

Sheet Dimension (hidden)
A1: Code caractéristique | E1: Code matériau | I1: Code catégorie
A3: =Listes_masqué!A3 -> 083 | B3: =Listes_masqué!B3 -> inférieur strictement à 0,1 kg | C3: =Listes_masqué!C3 -> 083 | E3: =Listes_masqué!E3 -> 00 | F3: =Listes_masqué!F3 -> Non connu | G3: =Listes_masqué!G3 -> 00 | H3: A | I3: =Listes_masqué!I3 -> 31 | J3: =Listes_masqué!J3 -> Jouets | K3: =Listes_masqué!K3 -> 31
A4: =Listes_masqué!A4 -> 084 | B4: =Listes_masqué!B4 -> Compris entre 0,1 kg et 0,2 kg exclus | C4: =Listes_masqué!C4 -> 084 | E4: =Listes_masqué!E4 -> 01 | F4: =Listes_masqué!F4 -> Bois, panneaux et dérivés de bois >50% | G4: =Listes_masqué!G4 -> 01 | H4: B | I4: =Listes_masqué!I4 -> 32 | J4: =Listes_masqué!J4 -> Jouets_de_plein_air | K4: =Listes_masqué!K4 -> 32
A5: =Listes_masqué!A5 -> 085 | B5: =Listes_masqué!B5 -> Compris entre 0,2 kg et 0,3 kg exclus | C5: =Listes_masqué!C5 -> 085 | E5: =Listes_masqué!E5 -> 02 | F5: =Listes_masqué!F5 -> Métal >50% | G5: =Listes_masqué!G5 -> 02 | H5: B | I5: =Listes_masqué!I5 -> 33 | J5: =Listes_masqué!J5 -> Jeux_de_société | K5: =Listes_masqué!K5 -> 33
A6: =Listes_masqué!A6 -> 086 | B6: =Listes_masqué!B6 -> Compris entre 0,3 kg et 0,4 kg exclus | C6: =Listes_masqué!C6 -> 086 | E6: =Listes_masqué!E6 -> 03 | F6: =Listes_masqué!F6 -> Bambou/Rotin >50% | G6: =Listes_masqué!G6 -> 03 | H6: B | I6: =Listes_masqué!I6 -> 34 | J6: =Listes_masqué!J6 -> Jeux_cadeau | K6: =Listes_masqué!K6 -> 34
A7: =Listes_masqué!A7 -> 087 | B7: =Listes_masqué!B7 -> Compris entre 0,4 kg et 0,5 kg exclus | C7: =Listes_masqué!C7 -> 087 | E7: =Listes_masqué!E7 -> 04 | F7: =Listes_masqué!F7 -> Osier et autres tiges végétales >50% | G7: =Listes_masqué!G7 -> 04 | H7: B | I7: =Listes_masqué!I7 -> 0 | J7: =Listes_masqué!J7 -> 0 | K7: =Listes_masqué!K7 -> 0
A8: =Listes_masqué!A8 -> 021 | B8: =Listes_masqué!B8 -> Compris entre 0,5 kg et 1 kg exclus | C8: =Listes_masqué!C8 -> 021 | E8: =Listes_masqué!E8 -> 05 | F8: =Listes_masqué!F8 -> Plastiques >50% | G8: =Listes_masqué!G8 -> 05 | H8: A | I8: =Listes_masqué!I8 -> 0 | J8: =Listes_masqué!J8 -> 0 | K8: =Listes_masqué!K8 -> 0
A9: =Listes_masqué!A9 -> 022 | B9: =Listes_masqué!B9 -> Compris entre 1 kg et 2 kg exclus | C9: =Listes_masqué!C9 -> 022 | E9: =Listes_masqué!E9 -> 06 | F9: =Listes_masqué!F9 -> Textiles, cuirs, fourrures… >50% | G9: =Listes_masqué!G9 -> 06 | H9: A | I9: =Listes_masqué!I9 -> 0 | J9: =Listes_masqué!J9 -> 0 | K9: =Listes_masqué!K9 -> 0
A10: =Listes_masqué!A10 -> 052 | B10: =Listes_masqué!B10 -> Compris entre 2 kg et 3 kg exclus | C10: =Listes_masqué!C10 -> 052 | E10: =Listes_masqué!E10 -> 07 | F10: =Listes_masqué!F10 -> Verre et miroir >50% | G10: =Listes_masqué!G10 -> 07 | H10: A | I10: =Listes_masqué!I10 -> 0 | J10: =Listes_masqué!J10 -> 0 | K10: =Listes_masqué!K10 -> 0
A11: =Listes_masqué!A11 -> 053 | B11: =Listes_masqué!B11 -> Compris entre 3 kg et 5 kg exclus | C11: =Listes_masqué!C11 -> 053 | E11: =Listes_masqué!E11 -> 08 | F11: =Listes_masqué!F11 -> Inerte, minéraux >50% | G11: =Listes_masqué!G11 -> 08 | H11: A | I11: =Listes_masqué!I11 -> 0 | J11: =Listes_masqué!J11 -> 0 | K11: =Listes_masqué!K11 -> 0
A12: =Listes_masqué!A12 -> 054 | B12: =Listes_masqué!B12 -> Compris entre 5 kg et 7 kg exclus | C12: =Listes_masqué!C12 -> 054 | E12: =Listes_masqué!E12 -> 09 | F12: =Listes_masqué!F12 -> Mousse | G12: =Listes_masqué!G12 -> 09 | H12: A | I12: =Listes_masqué!I12 -> 0 | J12: =Listes_masqué!J12 -> 0 | K12: =Listes_masqué!K12 -> 0
A13: =Listes_masqué!A13 -> 055 | B13: =Listes_masqué!B13 -> Compris entre 7 kg et 10 kg exclus | C13: =Listes_masqué!C13 -> 055 | E13: =Listes_masqué!E13 -> 10 | F13: =Listes_masqué!F13 -> Latex | G13: =Listes_masqué!G13 -> 10 | H13: A | I13: =Listes_masqué!I13 -> 0 | J13: =Listes_masqué!J13 -> 0 | K13: =Listes_masqué!K13 -> 0
A14: =Listes_masqué!A14 -> 056 | B14: =Listes_masqué!B14 -> Compris entre 10 kg et 15 kg exclus | C14: =Listes_masqué!C14 -> 056 | E14: =Listes_masqué!E14 -> 11 | F14: =Listes_masqué!F14 -> Ressorts | G14: =Listes_masqué!G14 -> 11 | H14: A | I14: =Listes_masqué!I14 -> 0 | J14: =Listes_masqué!J14 -> 0 | K14: =Listes_masqué!K14 -> 0
A15: =Listes_masqué!A15 -> 057 | B15: =Listes_masqué!B15 -> Compris entre 15 kg et 20 kg exclus | C15: =Listes_masqué!C15 -> 057 | E15: =Listes_masqué!E15 -> 12 | F15: =Listes_masqué!F15 -> Autres | G15: =Listes_masqué!G15 -> 12 | H15: A | I15: =Listes_masqué!I15 -> 0 | J15: =Listes_masqué!J15 -> 0 | K15: =Listes_masqué!K15 -> 0
A16: =Listes_masqué!A16 -> 058 | B16: =Listes_masqué!B16 -> Compris entre 20 kg et 25 kg exclus | C16: =Listes_masqué!C16 -> 058 | E16: =Listes_masqué!E16 -> 13 | F16: =Listes_masqué!F16 -> Rembourrage naturel (plume, laine…) | G16: =Listes_masqué!G16 -> 13 | H16: A
A17: =Listes_masqué!A17 -> 059 | B17: =Listes_masqué!B17 -> Compris entre 25 kg et 30 kg exclus | C17: =Listes_masqué!C17 -> 059 | E17: =Listes_masqué!E17 -> 14 | F17: =Listes_masqué!F17 -> Rembourrage Synthétique (mousse, polyester…) | G17: =Listes_masqué!G17 -> 14 | H17: A | I17: =Listes_masqué!I17 -> 0 | J17: =Listes_masqué!J17 -> 0 | K17: =Listes_masqué!K17 -> 0
A18: =Listes_masqué!A18 -> 027 | B18: =Listes_masqué!B18 -> Compris entre 30 kg et 40 kg exclus | C18: =Listes_masqué!C18 -> 027 | E18: =Listes_masqué!E18 -> 15 | F18: =Listes_masqué!F18 -> Composites et compact >50% | G18: =Listes_masqué!G18 -> 15 | H18: A | I18: =Listes_masqué!I18 -> 0 | J18: =Listes_masqué!J18 -> 0 | K18: =Listes_masqué!K18 -> 0
A19: =Listes_masqué!A19 -> 060 | B19: =Listes_masqué!B19 -> Compris entre 40 kg et 50 kg exclus | C19: =Listes_masqué!C19 -> 060 | E19: =Listes_masqué!E19 -> 16 | F19: =Listes_masqué!F19 -> Pierre artificielle >50% | G19: =Listes_masqué!G19 -> 16 | H19: A | I19: =Listes_masqué!I19 -> 0 | J19: =Listes_masqué!J19 -> 0 | K19: =Listes_masqué!K19 -> 0
A20: =Listes_masqué!A20 -> 088 | B20: =Listes_masqué!B20 -> Compris entre 50 kg et 100 kg exclus | C20: =Listes_masqué!C20 -> 088 | E20: =Listes_masqué!E20 -> 17 | F20: =Listes_masqué!F20 -> Ciment, béton >50% | G20: =Listes_masqué!G20 -> 17 | H20: A | I20: =Listes_masqué!I20 -> 0 | J20: =Listes_masqué!J20 -> 0 | K20: =Listes_masqué!K20 -> 0
A21: =Listes_masqué!A21 -> 030 | B21: =Listes_masqué!B21 -> Compris entre 100 kg et 150 kg exclus | C21: =Listes_masqué!C21 -> 030 | E21: =Listes_masqué!E21 -> 18 | F21: =Listes_masqué!F21 -> Céramique >50% | G21: =Listes_masqué!G21 -> 18 | H21: A | I21: =Listes_masqué!I21 -> 0 | J21: =Listes_masqué!J21 -> 0 | K21: =Listes_masqué!K21 -> 0
A22: =Listes_masqué!A22 -> 031 | B22: =Listes_masqué!B22 -> Compris entre 150 kg et 200 kg exclus | C22: =Listes_masqué!C22 -> 031 | E22: =Listes_masqué!E22 -> 19 | F22: =Listes_masqué!F22 -> Papier, carton >50% | G22: =Listes_masqué!G22 -> 19 | H22: A | I22: =Listes_masqué!I22 -> 0 | J22: =Listes_masqué!J22 -> 0 | K22: =Listes_masqué!K22 -> 0
A23: =Listes_masqué!A23 -> 032 | B23: =Listes_masqué!B23 -> Compris entre 200 kg et 250 kg exclus | C23: =Listes_masqué!C23 -> 032 | E23: =Listes_masqué!E23 -> 20 | F23: =Listes_masqué!F23 -> Bois massif certifié à plus de 75% | G23: =Listes_masqué!G23 -> 20 | H23: B | I23: =Listes_masqué!I23 -> 0 | J23: =Listes_masqué!J23 -> 0 | K23: =Listes_masqué!K23 -> 0
A24: =Listes_masqué!A24 -> 082 | B24: =Listes_masqué!B24 -> supérieur à 250 kg | C24: =Listes_masqué!C24 -> 082 | E24: =Listes_masqué!E24 -> 21 | F24: =Listes_masqué!F24 -> Bois massif non certifié à plus de 75% | G24: =Listes_masqué!G24 -> 21 | H24: B
A25: =Listes_masqué!#REF! ->  | B25: =Listes_masqué!#REF! ->  | C25: =Listes_masqué!#REF! ->  | E25: =Listes_masqué!E25 -> 22 | F25: =Listes_masqué!F25 -> Métal à plus de 75% | G25: =Listes_masqué!G25 -> 22 | H25: B
A26: =Listes_masqué!#REF! ->  | B26: =Listes_masqué!#REF! ->  | C26: =Listes_masqué!#REF! ->  | E26: =Listes_masqué!E26 -> 23 | F26: =Listes_masqué!F26 -> Mélange bois massif certifié et métal à plus de 75% | G26: =Listes_masqué!G26 -> 23 | H26: B | I26: =Listes_masqué!I26 -> 0 | J26: =Listes_masqué!J26 -> 0 | K26: =Listes_masqué!K26 -> 0
A27: =Listes_masqué!#REF! ->  | B27: =Listes_masqué!#REF! ->  | C27: =Listes_masqué!#REF! ->  | E27: =Listes_masqué!E27 -> 24 | F27: =Listes_masqué!F27 -> Panneaux de particules et/ou bois et/ou métal à plus de 75% | G27: =Listes_masqué!G27 -> 24 | H27: B
A28: =Listes_masqué!#REF! ->  | B28: =Listes_masqué!#REF! ->  | C28: =Listes_masqué!#REF! ->  | E28: =Listes_masqué!E28 -> 25 | F28: =Listes_masqué!F28 -> Panneaux de particules à plus de 75% | G28: =Listes_masqué!G28 -> 25 | H28: B
A29: =Listes_masqué!#REF! ->  | B29: =Listes_masqué!#REF! ->  | C29: =Listes_masqué!#REF! -> 
A30: =Listes_masqué!#REF! ->  | B30: =Listes_masqué!#REF! ->  | C30: =Listes_masqué!#REF! -> 
A31: =Listes_masqué!#REF! ->  | B31: =Listes_masqué!#REF! ->  | C31: =Listes_masqué!#REF! -> 
A32: =Listes_masqué!#REF! ->  | B32: =Listes_masqué!#REF! ->  | C32: =Listes_masqué!#REF! -> 
A33: =Listes_masqué!#REF! ->  | B33: =Listes_masqué!#REF! ->  | C33: =Listes_masqué!#REF! -> 
A34: =Listes_masqué!#REF! ->  | B34: =Listes_masqué!#REF! ->  | C34: =Listes_masqué!#REF! -> 
A35: =Listes_masqué!#REF! ->  | B35: =Listes_masqué!#REF! ->  | C35: =Listes_masqué!#REF! -> 
A36: =Listes_masqué!#REF! ->  | B36: =Listes_masqué!#REF! ->  | C36: =Listes_masqué!#REF! -> 
A37: =Listes_masqué!#REF! ->  | B37: =Listes_masqué!#REF! ->  | C37: =Listes_masqué!#REF! -> 
A38: =Listes_masqué!#REF! ->  | B38: =Listes_masqué!#REF! ->  | C38: =Listes_masqué!#REF! -> 
A39: =Listes_masqué!#REF! ->  | B39: =Listes_masqué!#REF! ->  | C39: =Listes_masqué!#REF! -> 
A40: =Listes_masqué!#REF! ->  | B40: =Listes_masqué!#REF! ->  | C40: =Listes_masqué!#REF! -> 
A41: =Listes_masqué!#REF! ->  | B41: =Listes_masqué!#REF! ->  | C41: =Listes_masqué!#REF! -> 
A42: =Listes_masqué!#REF! ->  | B42: =Listes_masqué!#REF! ->  | C42: =Listes_masqué!#REF! -> 
A43: =Listes_masqué!#REF! ->  | B43: =Listes_masqué!#REF! ->  | C43: =Listes_masqué!#REF! -> 
A44: =Listes_masqué!#REF! ->  | B44: =Listes_masqué!#REF! ->  | C44: =Listes_masqué!#REF! -> 
A45: =Listes_masqué!A25 -> 089 | B45: =Listes_masqué!B25 -> Lot de 1000 | C45: =Listes_masqué!C25 -> 089
A46: =Listes_masqué!#REF! ->  | B46: =Listes_masqué!#REF! ->  | C46: =Listes_masqué!#REF! -> 
A47: =Listes_masqué!#REF! ->  | B47: =Listes_masqué!#REF! ->  | C47: =Listes_masqué!#REF! -> 
A48: =Listes_masqué!#REF! ->  | B48: =Listes_masqué!#REF! ->  | C48: =Listes_masqué!#REF! -> 
A49: =Listes_masqué!#REF! ->  | B49: =Listes_masqué!#REF! ->  | C49: =Listes_masqué!#REF! -> 
A50: =Listes_masqué!#REF! ->  | B50: =Listes_masqué!#REF! ->  | C50: =Listes_masqué!#REF! -> 
A51: =Listes_masqué!#REF! ->  | B51: =Listes_masqué!#REF! ->  | C51: =Listes_masqué!#REF! -> 
A52: =Listes_masqué!#REF! ->  | B52: =Listes_masqué!#REF! ->  | C52: =Listes_masqué!#REF! -> 
A53: =Listes_masqué!#REF! ->  | B53: =Listes_masqué!#REF! ->  | C53: =Listes_masqué!#REF! -> 
A54: =Listes_masqué!#REF! ->  | B54: =Listes_masqué!#REF! ->  | C54: =Listes_masqué!#REF! -> 
A55: =Listes_masqué!#REF! ->  | B55: =Listes_masqué!#REF! ->  | C55: =Listes_masqué!#REF! -> 
A56: =Listes_masqué!#REF! ->  | B56: =Listes_masqué!#REF! ->  | C56: =Listes_masqué!#REF! -> 
A57: =Listes_masqué!#REF! ->  | B57: =Listes_masqué!#REF! ->  | C57: =Listes_masqué!#REF! -> 
A58: =Listes_masqué!#REF! ->  | B58: =Listes_masqué!#REF! ->  | C58: =Listes_masqué!#REF! -> 
A59: =Listes_masqué!#REF! ->  | B59: =Listes_masqué!#REF! ->  | C59: =Listes_masqué!#REF! -> 
A60: =Listes_masqué!#REF! ->  | B60: =Listes_masqué!#REF! ->  | C60: =Listes_masqué!#REF! -> 
A61: =Listes_masqué!#REF! ->  | B61: =Listes_masqué!#REF! ->  | C61: =Listes_masqué!#REF! -> 
A62: =Listes_masqué!#REF! ->  | B62: =Listes_masqué!#REF! ->  | C62: =Listes_masqué!#REF! -> 
A63: =Listes_masqué!#REF! ->  | B63: =Listes_masqué!#REF! ->  | C63: =Listes_masqué!#REF! -> 
A64: =Listes_masqué!#REF! ->  | B64: =Listes_masqué!#REF! ->  | C64: =Listes_masqué!#REF! -> 
A65: =Listes_masqué!#REF! ->  | B65: =Listes_masqué!#REF! ->  | C65: =Listes_masqué!#REF! -> 
A66: =Listes_masqué!#REF! ->  | B66: =Listes_masqué!#REF! ->  | C66: =Listes_masqué!#REF! -> 
A67: =Listes_masqué!#REF! ->  | B67: =Listes_masqué!#REF! ->  | C67: =Listes_masqué!#REF! -> 
A68: =Listes_masqué!#REF! ->  | B68: =Listes_masqué!#REF! ->  | C68: =Listes_masqué!#REF! -> 
A69: =Listes_masqué!#REF! ->  | B69: =Listes_masqué!#REF! ->  | C69: =Listes_masqué!#REF! -> 
A70: =Listes_masqué!#REF! ->  | B70: =Listes_masqué!#REF! ->  | C70: =Listes_masqué!#REF! -> 
A71: =Listes_masqué!#REF! ->  | B71: =Listes_masqué!#REF! ->  | C71: =Listes_masqué!#REF! -> 
A72: =Listes_masqué!#REF! ->  | B72: =Listes_masqué!#REF! ->  | C72: =Listes_masqué!#REF! -> 
A73: =Listes_masqué!#REF! ->  | B73: =Listes_masqué!#REF! ->  | C73: =Listes_masqué!#REF! -> 
A74: =Listes_masqué!#REF! ->  | B74: =Listes_masqué!#REF! ->  | C74: =Listes_masqué!#REF! -> 
A75: =Listes_masqué!#REF! ->  | B75: =Listes_masqué!#REF! ->  | C75: =Listes_masqué!#REF! -> 
A76: =Listes_masqué!#REF! ->  | B76: =Listes_masqué!#REF! ->  | C76: =Listes_masqué!#REF! -> 

Sheet Codes éco-part
C1: Codes éco-participation
B3: =Infos!$B$10 -> Version 1.7m - 18 Décembre 2024
B4: Code éco-participation | C4: Montant € HT / article | D4: Montant € TTC / article (TVA à 20%)
B5: 260 | C5: 0.01 | D5: 0.01 | E5: =B5 -> 260
B6: 047 | C6: 0.02 | D6: 0.02 | E6: =B6 -> 047
B7: 092 | C7: 0.03 | D7: 0.04 | E7: 092
B8: 002 | C8: 0.04 | D8: 0.05 | E8: 002
B9: 048 | C9: 0.05 | D9: 0.06 | E9: 048
B10: 096 | C10: 0.06 | D10: 0.07 | E10: 096
B11: 247 | C11: 0.07 | D11: 0.08 | E11: 247
B12: 003 | C12: 0.08 | D12: 0.1 | E12: 003
B13: 049 | C13: 0.09 | D13: 0.11 | E13: 049
B14: 094 | C14: 0.1 | D14: 0.12 | E14: 094
B15: 262 | C15: 0.11 | D15: 0.13 | E15: 262
B16: 097 | C16: 0.12 | D16: 0.14 | E16: 097
B17: 004 | C17: 0.13 | D17: 0.16 | E17: 004
B18: 098 | C18: 0.14 | D18: 0.17 | E18: 098
B19: 050 | C19: 0.15 | D19: 0.18 | E19: 050
B20: 099 | C20: 0.16 | D20: 0.19 | E20: 099
B21: 005 | C21: 0.17 | D21: 0.2 | E21: 005
B22: 100 | C22: 0.18 | D22: 0.22 | E22: 100
B23: 291 | C23: 0.19 | D23: 0.23 | E23: 291
B24: 101 | C24: 0.2 | D24: 0.24 | E24: 101
B25: 051 | C25: 0.21 | D25: 0.25 | E25: 051
B26: 263 | C26: 0.22 | D26: 0.26 | E26: 263
B27: 323 | C27: 0.23 | D27: =C27*1.2 -> 0.276 | E27: 323
B28: 248 | C28: 0.24 | D28: 0.29 | E28: 248
B29: 095 | C29: 0.25 | D29: 0.3 | E29: 095
B30: 103 | C30: 0.27 | D30: 0.32 | E30: 103
B31: 324 | C31: 0.29 | D31: =C31*1.2 -> 0.348 | E31: 324
B32: 104 | C32: 0.31 | D32: 0.37 | E32: 104
B33: 006 | C33: 0.33 | D33: 0.4 | E33: 006
B34: 043 | C34: 0.34 | D34: 0.41 | E34: 043
B35: 268 | C35: 0.37 | D35: 0.44 | E35: 268
B36: 292 | C36: 0.38 | D36: 0.46 | E36: 292
B37: 253 | C37: 0.39 | D37: 0.47 | E37: 253
B38: 105 | C38: 0.4 | D38: 0.48 | E38: 105
B39: 281 | C39: 0.44 | D39: 0.53 | E39: 281
B40: 325 | C40: 0.45 | D40: =C40*1.2 -> 0.54 | E40: 325
B41: 106 | C41: 0.46 | D41: 0.55 | E41: 106
B42: 107 | C42: 0.47 | D42: 0.56 | E42: 107
B43: 108 | C43: 0.49 | D43: 0.59 | E43: 108
B44: 053 | C44: 0.5 | D44: 0.6 | E44: 053
B45: 109 | C45: 0.51 | D45: 0.61 | E45: 109
B46: 326 | C46: 0.57 | D46: =C46*1.2 -> 0.684 | E46: 326
B47: 254 | C47: 0.59 | D47: 0.71 | E47: 254
B48: 327 | C48: 0.6 | D48: =C48*1.2 -> 0.72 | E48: 327
B49: 297 | C49: 0.63 | D49: 0.76 | E49: 297
B50: 110 | C50: 0.67 | D50: 0.8 | E50: 110
B51: 044 | C51: 0.68 | D51: 0.82 | E51: 044
B52: 111 | C52: 0.69 | D52: 0.83 | E52: 111
B53: 282 | C53: 0.7 | D53: 0.84 | E53: 282
B54: 255 | C54: 0.73 | D54: 0.88 | E54: 255
B55: 328 | C55: 0.75 | D55: =C55*1.2 -> 0.9 | E55: 328
B56: 312 | C56: 0.78 | D56: 0.94 | E56: 312
B57: 112 | C57: 0.81 | D57: 0.97 | E57: 112
B58: 008 | C58: 0.83 | D58: 1 | E58: 008
B59: 329 | C59: 0.85 | D59: =C59*1.2 -> 1.02 | E59: 329
B60: 269 | C60: 0.88 | D60: 1.06 | E60: 269
B61: 330 | C61: 0.9 | D61: =C61*1.2 -> 1.08 | E61: 330
B62: 054 | C62: 0.92 | D62: 1.1 | E62: 054
B63: 055 | C63: 0.96 | D63: 1.15 | E63: 055
B64: 056 | C64: 1 | D64: 1.2 | E64: 056
B65: 298 | C65: 1.01 | D65: 1.21 | E65: 298
B66: 283 | C66: 1.05 | D66: 1.26 | E66: 283
B67: 113 | C67: 1.08 | D67: 1.3 | E67: 113
B68: 270 | C68: 1.09 | D68: 1.31 | E68: 270
B69: 331 | C69: 1.13 | D69: =C69*1.2 -> 1.356 | E69: 331
B70: 114 | C70: 1.21 | D70: 1.45 | E70: =B70 -> 114
B71: 313 | C71: 1.24 | D71: 1.49 | E71: 313
B72: 009 | C72: 1.25 | D72: 1.5 | E72: 009
B73: 284 | C73: 1.31 | D73: 1.57 | E73: 284
B74: 115 | C74: 1.33 | D74: 1.6 | E74: 115
B75: 332 | C75: 1.35 | D75: =C75*1.2 -> 1.62 | E75: 332
B76: 333 | C76: 1.41 | D76: =C76*1.2 -> 1.692 | E76: 333
B77: 057 | C77: 1.42 | D77: 1.7 | E77: 057
B78: 058 | C78: 1.46 | D78: 1.75 | E78: 058
B79: 059 | C79: 1.5 | D79: 1.8 | E79: 059
B80: 299 | C80: 1.52 | D80: 1.82 | E80: 299
B81: 010 | C81: 1.67 | D81: 2 | E81: 010
B82: 334 | C82: 1.69 | D82: =C82*1.2 -> 2.028 | E82: 334
B83: 256 | C83: 1.7 | D83: 2.04 | E83: 256
B84: 116 | C84: 1.71 | D84: 2.05 | E84: 116
B85: 394 | C85: 1.74 | D85: =C85*1.2 -> 2.088 | E85: 394
B86: 271 | C86: 1.82 | D86: 2.18 | E86: 271
B87: 117 | C87: 1.83 | D87: 2.2 | E87: 117
B88: 314 | C88: 1.86 | D88: 2.23 | E88: 314
B89: 335 | C89: 1.88 | D89: =C89*1.2 -> 2.256 | E89: 335
B90: 300 | C90: 1.89 | D90: 2.27 | E90: 300
B91: 060 | C91: 1.92 | D91: 2.3 | E91: 060
B92: 336 | C92: 1.97 | D92: =C92*1.2 -> 2.364 | E92: 336
B93: 061 | C93: 2 | D93: 2.4 | E93: 061
B94: 011 | C94: 2.08 | D94: 2.5 | E94: 011
B95: 257 | C95: 2.18 | D95: 2.62 | E95: 257
B96: 390 | C96: 2.2 | D96: =C96*1.2 -> 2.64 | E96: 390
B97: 118 | C97: 2.25 | D97: 2.7 | E97: 118
B98: 062 | C98: 2.33 | D98: 2.8 | E98: 062
B99: 337 | C99: 2.35 | D99: =C99*1.2 -> 2.82 | E99: 337
B100: 012 | C100: 2.5 | D100: 3 | E100: 012
B101: 338 | C101: 2.54 | D101: =C101*1.2 -> 3.048 | E101: 338
B102: 272 | C102: 2.55 | D102: 3.06 | E102: 272
B103: 399 | C103: 2.62 | D103: =C103*1.2 -> 3.144 | E103: 399
B104: 339 | C104: 2.63 | D104: =C104*1.2 -> 3.156 | E104: 339
B105: 119 | C105: 2.67 | D105: 3.2 | E105: 119
B106: 120 | C106: 2.75 | D106: 3.3 | E106: 120
B107: 340 | C107: 2.82 | D107: =C107*1.2 -> 3.384 | E107: 340
B108: 437 | C108: 2.84 | D108: =C108*1.2 -> 3.408 | E108: 437
B109: 400 | C109: 2.88 | D109: =C109*1.2 -> 3.456 | E109: 400
B110: 013 | C110: 2.92 | D110: 3.5 | E110: 013
B111: 285 | C111: 3.05 | D111: 3.66 | E111: 285
B112: 121 | C112: 3.08 | D112: 3.7 | E112: 121
B113: 341 | C113: 3.1 | D113: =C113*1.2 -> 3.72 | E113: 341
B114: 431 | C114: 3.11 | D114: =C114*1.2 -> 3.732 | E114: 431
B115: 301 | C115: 3.15 | D115: 3.78 | E115: 301
B116: 438 | C116: 3.17 | D116: =C116*1.2 -> 3.804 | E116: 438
B117: 122 | C117: 3.25 | D117: 3.9 | E117: 122
B118: 273 | C118: 3.27 | D118: 3.92 | E118: 273
B119: 342 | C119: 3.29 | D119: =C119*1.2 -> 3.948 | E119: 342
B120: 397 | C120: 3.3 | D120: =C120*1.2 -> 3.96 | E120: 397
B121: 014 | C121: 3.33 | D121: 4 | E121: 014
B122: 343 | C122: 3.38 | D122: =C122*1.2 -> 4.056 | E122: 343
B123: 249 | C123: 3.39 | D123: 4.07 | E123: 249
B124: 123 | C124: 3.58 | D124: 4.3 | E124: 123
B125: 432 | C125: 3.61 | D125: =C125*1.2 -> 4.332 | E125: 432
B126: 124 | C126: 3.67 | D126: 4.4 | E126: 124
B127: 434 | C127: 3.68 | D127: =C127*1.2 -> 4.416 | E127: 434
B128: 407 | C128: 3.73 | D128: =C128*1.2 -> 4.476 | E128: 407
B129: 015 | C129: 3.75 | D129: 4.5 | E129: 015
B130: 396 | C130: 3.81 | D130: =C130*1.2 -> 4.572 | E130: 396
B131: 315 | C131: 3.88 | D131: 4.66 | E131: 315
B132: 125 | C132: 3.92 | D132: 4.7 | E132: 125
B133: 286 | C133: 3.93 | D133: 4.72 | E133: 286
B134: 344 | C134: 3.94 | D134: =C134*1.2 -> 4.728 | E134: =B134 -> 344
B135: 274 | C135: 4 | D135: 4.8 | E135: 274
B136: 345 | C136: 4.13 | D136: =C136*1.2 -> 4.956 | E136: 345
B137: 016 | C137: 4.17 | D137: 5 | E137: 016
B138: 346 | C138: 4.22 | D138: =C138*1.2 -> 5.064 | E138: 346
B139: 408 | C139: 4.33 | D139: =C139*1.2 -> 5.196 | E139: 408
B140: 258 | C140: 4.36 | D140: 5.23 | E140: 258
B141: 302 | C141: 4.41 | D141: 5.29 | E141: 302
B142: 126 | C142: 4.42 | D142: 5.3 | E142: 126
B143: 127 | C143: 4.5 | D143: 5.4 | E143: 127
B144: 065 | C144: 4.58 | D144: 5.5 | E144: 065
B145: 128 | C145: 4.67 | D145: 5.6 | E145: 128
B146: 129 | C146: 4.75 | D146: 5.7 | E146: 129
B147: 287 | C147: 4.8 | D147: 5.76 | E147: 287
B148: 130 | C148: 4.83 | D148: 5.8 | E148: 130
B149: 391 | C149: 4.84 | D149: =C149*1.2 -> 5.808 | E149: 391
B150: 042 | C150: 5 | D150: 6 | E150: 042
B151: 347 | C151: 5.07 | D151: =C151*1.2 -> 6.084 | E151: 347
B152: 264 | C152: 5.09 | D152: 6.11 | E152: 264
B153: 348 | C153: 5.16 | D153: =C153*1.2 -> 6.192 | E153: 348
B154: 131 | C154: 5.17 | D154: 6.2 | E154: 131
B155: 403 | C155: 5.23 | D155: =C155*1.2 -> 6.276 | E155: 403
B156: 349 | C156: 5.25 | D156: =C156*1.2 -> 6.3 | E156: 349
B157: 132 | C157: 5.33 | D157: 6.4 | E157: 132
B158: 416 | C158: 5.39 | D158: =C158*1.2 -> 6.468 | E158: 416
B159: 017 | C159: 5.42 | D159: 6.5 | E159: 017
B160: 316 | C160: 5.43 | D160: 6.52 | E160: 316
B161: 133 | C161: 5.58 | D161: 6.7 | E161: 133
B162: 303 | C162: 5.67 | D162: 6.8 | E162: 303
B163: 402 | C163: 5.72 | D163: =C163*1.2 -> 6.864 | E163: 402
B164: 018 | C164: 5.83 | D164: 7 | E164: 018
B165: 134 | C165: 6.08 | D165: 7.3 | E165: 134
B166: 278 | C166: 6.1 | D166: 7.32 | E166: 278
B167: 350 | C167: 6.19 | D167: =C167*1.2 -> 7.428 | E167: 350
B168: 135 | C168: 6.25 | D168: 7.5 | E168: 135
B169: 409 | C169: 6.39 | D169: =C169*1.2 -> 7.668 | E169: 409
B170: 275 | C170: 6.54 | D170: 7.85 | E170: 275
B171: 351 | C171: 6.57 | D171: =C171*1.2 -> 7.884 | E171: 351
B172: 440 | C172: 6.6 | D172: =C172*1.2 -> 7.92 | E172: 440
B173: 424 | C173: 6.62 | D173: =C173*1.2 -> 7.944 | E173: 424
B174: 019 | C174: 6.67 | D174: 8 | E174: 019
B175: 352 | C175: 6.75 | D175: =C175*1.2 -> 8.1 | E175: 352
B176: 392 | C176: 6.78 | D176: =C176*1.2 -> 8.136 | E176: 392
B177: 136 | C177: 6.92 | D177: 8.3 | E177: 136
B178: 304 | C178: 6.93 | D178: 8.32 | E178: 304
B179: 317 | C179: 6.97 | D179: 8.36 | E179: 317
B180: 322 | C180: 7 | D180: 8.4 | E180: 322
B181: 067 | C181: 7.08 | D181: 8.5 | E181: 067
B182: 261 | C182: 7.26 | D182: 8.71 | E182: 261
B183: 353 | C183: 7.32 | D183: =C183*1.2 -> 8.784 | E183: 353
B184: 020 | C184: 7.5 | D184: 9 | E184: 020
B185: 412 | C185: 7.55 | D185: =C185*1.2 -> 9.06 | E185: 412
B186: 425 | C186: 7.69 | D186: =C186*1.2 -> 9.228 | E186: 425
B187: 288 | C187: 7.85 | D187: 9.42 | E187: 288
B188: 354 | C188: 7.88 | D188: =C188*1.2 -> 9.456 | E188: 354
B189: 068 | C189: 7.92 | D189: 9.5 | E189: 068
B190: 355 | C190: 8.25 | D190: =C190*1.2 -> 9.9 | E190: 355
B191: 021 | C191: 8.33 | D191: 10 | E191: 021
B192: 433 | C192: 8.43 | D192: =C192*1.2 -> 10.116 | E192: 433
B193: 356 | C193: 8.44 | D193: =C193*1.2 -> 10.128 | E193: 356
B194: 318 | C194: 8.52 | D194: 10.22 | E194: 318
B195: 393 | C195: 8.71 | D195: =C195*1.2 -> 10.452 | E195: 393
B196: 069 | C196: 8.75 | D196: 10.5 | E196: 069
B197: 293 | C197: 8.81 | D197: 10.57 | E197: 293
B198: 137 | C198: 8.83 | D198: 10.6 | E198: =B198 -> 137
B199: 435 | C199: 8.86 | D199: =C199*1.2 -> 10.632 | E199: 435
B200: 070 | C200: 9.17 | D200: 11 | E200: 070
B201: 417 | C201: 9.23 | D201: =C201*1.2 -> 11.076 | E201: 417
... 277 more rows

Sheet Table correspondance (hidden)
A1: Table de correspondances
B3: La table ci-dessous présente la correspondance unique entre :
C4: - le code produit (11 chiffres), porte sur le produit, il est utilisé par les metteurs en marché pour leurs déclarations à Eco-mobilier.
C5: - le code éco-participation (3 chiffres), correspond au montant d'éco-participation. Ce code est amené à évoluer avec la mise à jour des barèmes d'éco-participations.
C6: - le code douanier, pour information uniquement, tel qu'il sera transmis à l'ADEME par Eco-mobilier.
B9: Code produit | C9: Code éco-participation | D9: Code douanier
B10: 09001010000 | C10: 051 | D10: 9401.69
B11: 09001010050 | C11: 007 | D11: 9401.69
B12: 09001010060 | C12: 045 | D12: 9401.69
B13: 09001020000 | C13: 051 | D13: 9401.79
B14: 09001020050 | C14: 007 | D14: 9401.79
B15: 09001020060 | C15: 045 | D15: 9401.79
B16: 09001030000 | C16: 051 | D16: 9401.51
B17: 09001030050 | C17: 007 | D17: 9401.51
B18: 09001030060 | C18: 045 | D18: 9401.51
B19: 09001040000 | C19: 051 | D19: 9401.59
B20: 09001040050 | C20: 007 | D20: 9401.59
B21: 09001040060 | C21: 045 | D21: 9401.59
B22: 09001050000 | C22: 051 | D22: 9401.80
B23: 09001050050 | C23: 007 | D23: 9401.80
B24: 09001050060 | C24: 045 | D24: 9401.80
B25: 09001120000 | C25: 051 | D25: 9401.80
B26: 09001120050 | C26: 007 | D26: 9401.80
B27: 09001120060 | C27: 045 | D27: 9401.80
B28: 09002010000 | C28: 054 | D28: 9401.69
B29: 09002020000 | C29: 054 | D29: 9401.79
B30: 09002030000 | C30: 054 | D30: 9401.51
B31: 09002040000 | C31: 054 | D31: 9401.59
B32: 09002050000 | C32: 054 | D32: 9401.80
B33: 09002120000 | C33: 054 | D33: 9401.80
B34: 09003000000 | C34: 053 | D34: 9401.30
B35: 09003000050 | C35: 056 | D35: 9401.30
B36: 09003000060 | C36: 061 | D36: 9401.30
B37: 09004000010 | C37: 053 | D37: 9401.80
B38: 09004000020 | C38: 059 | D38: 9401.80
B39: 09004000030 | C39: 012 | D39: 9401.80
B40: 09005000000 | C40: 002 | D40: 9401.80
B41: 09006000010 | C41: 057 | D41: 9401.61
B42: 09006000020 | C42: 015 | D42: 9401.61
B43: 09006000030 | C43: 067 | D43: 9401.61
B44: 09007000010 | C44: 012 | D44: 9401.40
B45: 09007000020 | C45: 065 | D45: 9401.40
B46: 09007000030 | C46: 069 | D46: 9401.40
B47: 09007000040 | C47: 012 | D47: 9401.40
B48: 09008000010 | C48: 014 | D48: 9401.80
B49: 09008000020 | C49: 018 | D49: 9401.80
B50: 09008000030 | C50: 070 | D50: 9401.80
B51: 09009000000 | C51: 002 | D51: 9401.90
B52: 09026000000 | C52: 052 | D52: 9401.90
B53: 09027010000 | C53: 055 | D53: 9401.90
B54: 09027020000 | C54: 055 | D54: 9401.90
B55: 09027050000 | C55: 055 | D55: 9401.90
B56: 09027120000 | C56: 055 | D56: 9401.90
B57: 04010000100 | C57: 059 | D57: 9404.10
B58: 04010000110 | C58: 012 | D58: 9404.10
B59: 04010000120 | C59: 012 | D59: 9404.10
B60: 04010000130 | C60: 089 | D60: 9404.10
B61: 04011000100 | C61: 062 | D61: 9404.10
B62: 04011000110 | C62: 015 | D62: 9404.10
B63: 04011000120 | C63: 015 | D63: 9404.10
B64: 04011000130 | C64: 090 | D64: 9404.10
B65: 04012000100 | C65: 013 | D65: 9404.10
B66: 04012000110 | C66: 015 | D66: 9404.10
B67: 04012000120 | C67: 015 | D67: 9404.10
B68: 04012000130 | C68: 091 | D68: 9404.10
B69: 04013000000 | C69: 065 | D69: 9404.10
B70: 04013000130 | C70: 070 | D70: 9404.10
B71: 04014000000 | C71: 054 | D71: 9404.10
B72: 04015090100 | C72: 012 | D72: 9404.29
B73: 04015090110 | C73: 042 | D73: 9404.29
B74: 04015090120 | C74: 042 | D74: 9404.29
B75: 04015090130 | C75: 042 | D75: 9404.29
B76: 04015100100 | C76: 012 | D76: 9404.21
B77: 04015100110 | C77: 042 | D77: 9404.21
B78: 04015100120 | C78: 042 | D78: 9404.21
B79: 04015100130 | C79: 042 | D79: 9404.29
B80: 04015110100 | C80: 012 | D80: 9404.29
B81: 04015110110 | C81: 042 | D81: 9404.29
B82: 04015110120 | C82: 042 | D82: 9404.29
B83: 04015110130 | C83: 042 | D83: 9404.29
B84: 04015120100 | C84: 012 | D84: 9404.29
B85: 04015120110 | C85: 042 | D85: 9404.29
B86: 04015120120 | C86: 042 | D86: 9404.29
B87: 04015120130 | C87: 042 | D87: 9404.29
B88: 04016000000 | C88: 054 | D88: 9404.29
B89: 04023000000 | C89: 050 | D89: 9404.29
B90: 04024000100 | C90: 063 | D90: 9404.10
B91: 04024000110 | C91: 066 | D91: 9404.10
B92: 04024000120 | C92: 066 | D92: 9404.10
B93: 04025010000 | C93: 050 | D93: 9403.90
B94: 04025020000 | C94: 050 | D94: 9403.90
B95: 04025050000 | C95: 050 | D95: 9403.90
B96: 04025120000 | C96: 050 | D96: 9403.90
B97: 14010000100 | C97: 059 | D97: 9404.10
B98: 14010000110 | C98: 012 | D98: 9404.10
B99: 14010000120 | C99: 012 | D99: 9404.10
B100: 14010000130 | C100: 089 | D100: 9404.10
B101: 14011000100 | C101: 062 | D101: 9404.10
B102: 14011000110 | C102: 015 | D102: 9404.10
B103: 14011000120 | C103: 015 | D103: 9404.10
B104: 14011000130 | C104: 090 | D104: 9404.10
B105: 14012000100 | C105: 013 | D105: 9404.10
B106: 14012000110 | C106: 015 | D106: 9404.10
B107: 14012000120 | C107: 015 | D107: 9404.10
B108: 14012000130 | C108: 091 | D108: 9404.10
B109: 14013000000 | C109: 065 | D109: 9404.10
B110: 14013000130 | C110: 070 | D110: 9404.10
B111: 14014000000 | C111: 054 | D111: 9404.10
B112: 14015090100 | C112: 012 | D112: 9404.29
B113: 14015090110 | C113: 042 | D113: 9404.29
B114: 14015090120 | C114: 042 | D114: 9404.29
B115: 14015090130 | C115: 042 | D115: 9404.29
B116: 14015100100 | C116: 012 | D116: 9404.21
B117: 14015100110 | C117: 042 | D117: 9404.21
B118: 14015100120 | C118: 042 | D118: 9404.21
B119: 14015100130 | C119: 042 | D119: 9404.29
B120: 14015110100 | C120: 012 | D120: 9404.29
B121: 14015110110 | C121: 042 | D121: 9404.29
B122: 14015110120 | C122: 042 | D122: 9404.29
B123: 14015110130 | C123: 042 | D123: 9404.29
B124: 14015120100 | C124: 012 | D124: 9404.29
B125: 14015120110 | C125: 042 | D125: 9404.29
B126: 14015120120 | C126: 042 | D126: 9404.29
B127: 14015120130 | C127: 042 | D127: 9404.29
B128: 14016000000 | C128: 054 | D128: 9404.29
B129: 14023000000 | C129: 050 | D129: 9404.29
B130: 14024000100 | C130: 063 | D130: 9404.10
B131: 14024000110 | C131: 066 | D131: 9404.10
B132: 14024000120 | C132: 066 | D132: 9404.10
B133: 14025010000 | C133: 050 | D133: 9403.90
B134: 14025020000 | C134: 050 | D134: 9403.90
B135: 14025050000 | C135: 050 | D135: 9403.90
B136: 14025120000 | C136: 050 | D136: 9403.90
B137: 01017010200 | C137: 047 | D137: 9403.60
B138: 01017010210 | C138: 048 | D138: 9403.60
B139: 01017010220 | C139: 049 | D139: 9403.60
B140: 01017010230 | C140: 050 | D140: 9403.60
B141: 01017010240 | C141: 052 | D141: 9403.60
B142: 01017010250 | C142: 055 | D142: 9403.60
B143: 01017010260 | C143: 058 | D143: 9403.60
B144: 01017010270 | C144: 060 | D144: 9403.60
B145: 01017010280 | C145: 012 | D145: 9403.60
B146: 01017010290 | C146: 064 | D146: 9403.60
B147: 01017010300 | C147: 068 | D147: 9403.60
B148: 01017010310 | C148: 071 | D148: 9403.60
B149: 01017010320 | C149: 072 | D149: 9403.60
B150: 01017010330 | C150: 073 | D150: 9403.60
B151: 01017010340 | C151: 074 | D151: 9403.60
B152: 01017010350 | C152: 075 | D152: 9403.60
B153: 01017010360 | C153: 027 | D153: 9403.60
B154: 01017010370 | C154: 076 | D154: 9403.60
B155: 01017010380 | C155: 077 | D155: 9403.60
B156: 01017010390 | C156: 078 | D156: 9403.60
B157: 01017010400 | C157: 079 | D157: 9403.60
B158: 01017010410 | C158: 033 | D158: 9403.60
B159: 01017010420 | C159: 080 | D159: 9403.60
B160: 01017010430 | C160: 081 | D160: 9403.60
B161: 01017010440 | C161: 082 | D161: 9403.60
B162: 01017010450 | C162: 083 | D162: 9403.60
B163: 01017010460 | C163: 039 | D163: 9403.60
B164: 01017010470 | C164: 084 | D164: 9403.60
B165: 01017010480 | C165: 085 | D165: 9403.60
B166: 01017010490 | C166: 086 | D166: 9403.60
B167: 01017010500 | C167: 087 | D167: 9403.60
B168: 01017010510 | C168: 088 | D168: 9403.60
B169: 01017020200 | C169: 047 | D169: 9403.20
B170: 01017020210 | C170: 048 | D170: 9403.20
B171: 01017020220 | C171: 049 | D171: 9403.20
B172: 01017020230 | C172: 050 | D172: 9403.20
B173: 01017020240 | C173: 052 | D173: 9403.20
B174: 01017020250 | C174: 055 | D174: 9403.20
B175: 01017020260 | C175: 058 | D175: 9403.20
B176: 01017020270 | C176: 060 | D176: 9403.20
B177: 01017020280 | C177: 012 | D177: 9403.20
B178: 01017020290 | C178: 064 | D178: 9403.20
B179: 01017020300 | C179: 068 | D179: 9403.20
B180: 01017020310 | C180: 071 | D180: 9403.20
B181: 01017020320 | C181: 072 | D181: 9403.20
B182: 01017020330 | C182: 073 | D182: 9403.20
B183: 01017020340 | C183: 074 | D183: 9403.20
B184: 01017020350 | C184: 075 | D184: 9403.20
B185: 01017020360 | C185: 027 | D185: 9403.20
B186: 01017020370 | C186: 076 | D186: 9403.20
B187: 01017020380 | C187: 077 | D187: 9403.20
B188: 01017020390 | C188: 078 | D188: 9403.20
B189: 01017020400 | C189: 079 | D189: 9403.20
B190: 01017020410 | C190: 033 | D190: 9403.20
B191: 01017020420 | C191: 080 | D191: 9403.20
B192: 01017020430 | C192: 081 | D192: 9403.20
B193: 01017020440 | C193: 082 | D193: 9403.20
B194: 01017020450 | C194: 083 | D194: 9403.20
B195: 01017020460 | C195: 039 | D195: 9403.20
B196: 01017020470 | C196: 084 | D196: 9403.20
B197: 01017020480 | C197: 085 | D197: 9403.20
B198: 01017020490 | C198: 086 | D198: 9403.20
B199: 01017020500 | C199: 087 | D199: 9403.20
B200: 01017020510 | C200: 088 | D200: 9403.20
B201: 01017050200 | C201: 047 | D201: 9403.70
B202: 01017050210 | C202: 048 | D202: 9403.70
B203: 01017050220 | C203: 049 | D203: 9403.70
... 7555 more rows

Sheet Format infos du fab au dist
C1: Format de tableau à renseigner par les fabricants metteurs en marché pour leurs clients distributeurs
E3: Facultatif:
B4: Code EAN du produit (ou tout autre code utilisé par le fabricant et le distributeur) | C4: Libellé du produit | D4: Code éco-participation (3 digits) | E4: Code produit à 11 chiffres
D5: 000 | E5: 00000000000
D6: 000 | E6: 00000000000
D7: 000 | E7: 00000000000
D8: 000 | E8: 00000000000
D9: 000 | E9: 00000000000
D10: 000 | E10: 00000000000
D11: 000 | E11: 00000000000
D12: 000 | E12: 00000000000
D13: 000 | E13: 00000000000
D14: 000 | E14: 00000000000
D15: 000 | E15: 00000000000
D16: 000 | E16: 00000000000
D17: 000 | E17: 00000000000
D18: 000 | E18: 00000000000
D19: 000 | E19: 00000000000
D20: 000 | E20: 00000000000
D21: 000 | E21: 00000000000
D22: 000 | E22: 00000000000
D23: 000 | E23: 00000000000
D24: 000 | E24: 00000000000
B26: Une table de correspondance entre les codes éco-participation et les montants correspondants dans le barème figure dans l'onglet "Codes éco-part".

Sheet Listing Produits
A1: La liste des codes ci-dessous est indicative. Si vous ne trouvez pas le produit à coder dans les exemples de produits ou que vous avez une question, n'hésitez pas à nous contacter pour toutes les précisions utiles (contact@ecomaison.com). | G1: =Infos!$B$10 -> Version 1.7m - 18 Décembre 2024
A3: Code Cat | B3: Catégorie | C3: Code Tdp | D3: Type de produit | E3: Exemples de produit
A4: 31 | B4: Jouets | C4: 201 | D4: Figurines d'action & accessoires | E4: Figurines à collectionner
A5: 31 | B5: Jouets | C5: 201 | D5: Figurines d'action & accessoires | E5: Figurines d'action
A6: 31 | B6: Jouets | C6: 201 | D6: Figurines d'action & accessoires | E6: Jouets/Figurines de combat et univers de jeu
A7: 31 | B7: Jouets | C7: 201 | D7: Figurines d'action & accessoires | E7: Univers de jeu pour figurines d'action & accessoires
A8: 31 | B8: Jouets | C8: 202 | D8: Jeux de construction & accessoires | E8: Jeux de construction
A9: 31 | B9: Jouets | C9: 202 | D9: Jeux de construction & accessoires | E9: Accessoires de jeux de construction
A10: 31 | B10: Jouets | C10: 203 | D10: Poupons/Poupées & accessoires | E10: Accessoires de poupées mannequins
A11: 31 | B11: Jouets | C11: 203 | D11: Poupons/Poupées & accessoires | E11: Autres accessoires pour poupons
A12: 31 | B12: Jouets | C12: 203 | D12: Poupons/Poupées & accessoires | E12: Grandes poupées et accessoires
A13: 31 | B13: Jouets | C13: 203 | D13: Poupons/Poupées & accessoires | E13: Maison et mobilier de poupées
A14: 31 | B14: Jouets | C14: 203 | D14: Poupons/Poupées & accessoires | E14: Porteurs pour poupons
A15: 31 | B15: Jouets | C15: 203 | D15: Poupons/Poupées & accessoires | E15: Poupées mini-univers et/ou à collectionner
A16: 31 | B16: Jouets | C16: 203 | D16: Poupons/Poupées & accessoires | E16: Poupées décoratives et de collection pour adultes
A17: 31 | B17: Jouets | C17: 203 | D17: Poupons/Poupées & accessoires | E17: Poupées mannequins
A18: 31 | B18: Jouets | C18: 203 | D18: Poupons/Poupées & accessoires | E18: Poupons à pouponner à fonctions
A19: 31 | B19: Jouets | C19: 203 | D19: Poupons/Poupées & accessoires | E19: Poupons à pouponner traditionnels
A20: 31 | B20: Jouets | C20: 203 | D20: Poupons/Poupées & accessoires | E20: Vêtements de poupées mannequins
A21: 31 | B21: Jouets | C21: 203 | D21: Poupons/Poupées & accessoires | E21: Vêtements pour poupons
A22: 31 | B22: Jouets | C22: 204 | D22: Peluches & accessoires | E22: Décors marionnettes
A23: 31 | B23: Jouets | C23: 204 | D23: Peluches & accessoires | E23: Marionnettes
A24: 31 | B24: Jouets | C24: 204 | D24: Peluches & accessoires | E24: Marionnettes à doigts
A25: 31 | B25: Jouets | C25: 204 | D25: Peluches & accessoires | E25: Peluches traditionnelles
A26: 31 | B26: Jouets | C26: 205 | D26: Jouets premier âge et préscolaire & accessoires | E26: Figurines/Univers & accessoires pour tout-petits
A27: 31 | B27: Jouets | C27: 205 | D27: Jouets premier âge et préscolaire & accessoires | E27: Figurines/Univers de jeu & accessoires préscolaires
A28: 31 | B28: Jouets | C28: 205 | D28: Jouets premier âge et préscolaire & accessoires | E28: Hochets
A29: 31 | B29: Jouets | C29: 205 | D29: Jouets premier âge et préscolaire & accessoires | E29: Instruments de musique Préscolaires
A30: 31 | B30: Jouets | C30: 205 | D30: Jouets premier âge et préscolaire & accessoires | E30: Jeux d'imitation
A31: 31 | B31: Jouets | C31: 205 | D31: Jouets premier âge et préscolaire & accessoires | E31: Jeux d'imitation cuisines/supermarché
A32: 31 | B32: Jouets | C32: 205 | D32: Jouets premier âge et préscolaire & accessoires | E32: Jouets à promener et à pousser préscolaires
A33: 31 | B33: Jouets | C33: 205 | D33: Jouets premier âge et préscolaire & accessoires | E33: Jouets de bain
A34: 31 | B34: Jouets | C34: 205 | D34: Jouets premier âge et préscolaire & accessoires | E34: Jouets éducatifs préscolaires
A35: 31 | B35: Jouets | C35: 205 | D35: Jouets premier âge et préscolaire & accessoires | E35: Mobiles
A36: 31 | B36: Jouets | C36: 205 | D36: Jouets premier âge et préscolaire & accessoires | E36: Peluches pour nourrissons
A37: 31 | B37: Jouets | C37: 206 | D37: Véhicules miniatures & accessoires | E37: Avions/Bateaux non motorisés
A38: 31 | B38: Jouets | C38: 206 | D38: Véhicules miniatures & accessoires | E38: Camions non motorisés
A39: 31 | B39: Jouets | C39: 206 | D39: Véhicules miniatures & accessoires | E39: Figurines véhicules
A40: 31 | B40: Jouets | C40: 206 | D40: Véhicules miniatures & accessoires | E40: Mini véhicules
A41: 31 | B41: Jouets | C41: 206 | D41: Véhicules miniatures & accessoires | E41: Univers de jeu pour véhicules & accessoires
A42: 31 | B42: Jouets | C42: 206 | D42: Véhicules miniatures & accessoires | E42: Véhicules à friction
A43: 31 | B43: Jouets | C43: 206 | D43: Véhicules miniatures & accessoires | E43: Véhicules à jouer avec les doigts & accessoires
A44: 31 | B44: Jouets | C44: 206 | D44: Véhicules miniatures & accessoires | E44: Voitures non motorisées
A45: 31 | B45: Jouets | C45: 207 | D45: Arts créatifs & accessoires | E45: Canevas à diamanter
A46: 31 | B46: Jouets | C46: 207 | D46: Arts créatifs & accessoires | E46: Kits créatifs "mallette de bricolage"
A47: 31 | B47: Jouets | C47: 207 | D47: Arts créatifs & accessoires | E47: Kits matériels de sculpture
A48: 31 | B48: Jouets | C48: 207 | D48: Arts créatifs & accessoires | E48: Articles à modeler
A49: 31 | B49: Jouets | C49: 207 | D49: Arts créatifs & accessoires | E49: Jeux gustatifs
A50: 31 | B50: Jouets | C50: 207 | D50: Arts créatifs & accessoires | E50: Ateliers d'écriture
A51: 31 | B51: Jouets | C51: 207 | D51: Arts créatifs & accessoires | E51: Tableaux de sequins
A52: 31 | B52: Jouets | C52: 208 | D52: Jouets d'exploration et autres jouets & accessoires | E52: Ballons de baudruches
A53: 31 | B53: Jouets | C53: 208 | D53: Jouets d'exploration et autres jouets & accessoires | E53: Cartes/Vignettes à collectionner (hors jeux de stratégie)
A54: 31 | B54: Jouets | C54: 208 | D54: Jouets d'exploration et autres jouets & accessoires | E54: Costumes enfants (- de 14 ans)
A55: 31 | B55: Jouets | C55: 208 | D55: Jouets d'exploration et autres jouets & accessoires | E55: Décors et figurines
A56: 31 | B56: Jouets | C56: 208 | D56: Jouets d'exploration et autres jouets & accessoires | E56: Ensembles cosmétique
A57: 31 | B57: Jouets | C57: 208 | D57: Jouets d'exploration et autres jouets & accessoires | E57: Farces et attrapes
A58: 31 | B58: Jouets | C58: 208 | D58: Jouets d'exploration et autres jouets & accessoires | E58: Instruments de musique
A59: 31 | B59: Jouets | C59: 208 | D59: Jouets d'exploration et autres jouets & accessoires | E59: Jeux de magie
A60: 31 | B60: Jouets | C60: 208 | D60: Jouets d'exploration et autres jouets & accessoires | E60: Jeux scientifiques
A61: 31 | B61: Jouets | C61: 208 | D61: Jouets d'exploration et autres jouets & accessoires | E61: Jouets de chimistes
A62: 32 | B62: Jeux de plein air | C62: 209 | D62: Jouets porteurs à pédales & accessoires | E62: Bicyclettes jouets
A63: 32 | B63: Jeux de plein air | C63: 209 | D63: Jouets porteurs à pédales & accessoires | E63: Tricycles jouets
A64: 32 | B64: Jeux de plein air | C64: 210 | D64: Jouets porteurs sans pédales & accessoires | E64: Autres jouets porteurs
A65: 32 | B65: Jeux de plein air | C65: 210 | D65: Jouets porteurs sans pédales & accessoires | E65: Planches à roulette enfants (enfants -20kg)
A66: 32 | B66: Jeux de plein air | C66: 210 | D66: Jouets porteurs sans pédales & accessoires | E66: Trottinettes jouets
A67: 32 | B67: Jeux de plein air | C67: 211 | D67: Jouets sportifs & accessoires | E67: Babyfoots jouets
A68: 32 | B68: Jeux de plein air | C68: 211 | D68: Jouets sportifs & accessoires | E68: Jouets armes factices et accessoires
A69: 32 | B69: Jeux de plein air | C69: 211 | D69: Jouets sportifs & accessoires | E69: Echasses et ballons sauteurs
A70: 32 | B70: Jeux de plein air | C70: 211 | D70: Jouets sportifs & accessoires | E70: Jeux d'imitation de sport d'extérieur
A71: 32 | B71: Jeux de plein air | C71: 211 | D71: Jouets sportifs & accessoires | E71: Jouets de sports d'hivers (pelles à neige…)
A72: 32 | B72: Jeux de plein air | C72: 212 | D72: Jouet d'été & accessoires | E72: Pataugettes couvertes par la Directive Jouets
A73: 32 | B73: Jeux de plein air | C73: 212 | D73: Jouet d'été & accessoires | E73: Jeux d'eau et de plage – Jouets aquatiques
A74: 32 | B74: Jeux de plein air | C74: 212 | D74: Jouet d'été & accessoires | E74: Pistolets à eau
A75: 32 | B75: Jeux de plein air | C75: 213 | D75: Jouets d'activité à usage famillial | E75: Maisons
A76: 33 | B76: Jeux de plein air | C76: 213 | D76: Jouets d'activité à usage famillial | E76: Portiques / Trampolines jouets / Toboggans
A77: 33 | B77: Jeux de société | C77: 214 | D77: Jeux de société & accessoires (directive jouet) | E77: Autres jeux de sociétés
A78: 33 | B78: Jeux de société | C78: 214 | D78: Jeux de société & accessoires (directive jouet) | E78: Casse-têtes
A79: 33 | B79: Jeux de société | C79: 214 | D79: Jeux de société & accessoires (directive jouet) | E79: Jeux de cartes
A80: 33 | B80: Jeux de société | C80: 214 | D80: Jeux de société & accessoires (directive jouet) | E80: Jeux de cartes stratégiques
A81: 33 | B81: Jeux de société | C81: 214 | D81: Jeux de société & accessoires (directive jouet) | E81: Jeux de dés/mots/autres pour la famille
A82: 33 | B82: Jeux de société | C82: 214 | D82: Jeux de société & accessoires (directive jouet) | E82: Jeux de plateau/d'action pour la famille
A83: 33 | B83: Jeux de société | C83: 214 | D83: Jeux de société & accessoires (directive jouet) | E83: Jeux de stratégie
A84: 33 | B84: Jeux de société | C84: 214 | D84: Jeux de société & accessoires (directive jouet) | E84: Jeux de stratégie pour la famille
A85: 33 | B85: Jeux de société | C85: 214 | D85: Jeux de société & accessoires (directive jouet) | E85: Jeux de voyage
A86: 33 | B86: Jeux de société | C86: 214 | D86: Jeux de société & accessoires (directive jouet) | E86: Jeux préscolaires
A87: 33 | B87: Jeux de société | C87: 214 | D87: Jeux de société & accessoires (directive jouet) | E87: Jeux standards pour la famille
A88: 33 | B88: Jeux de société | C88: 215 | D88: Jeux de société & accessoires (hors directive jouet) | E88: Jeux de société adulte
A89: 33 | B89: Jeux de société | C89: 216 | D89: Puzzles & accessoires (directive jouet) | E89: Puzzles 500 pièces max
A90: 33 | B90: Jeux de société | C90: 217 | D90: Puzzles & accessoires (hors directive jouet) | E90: Puzzles plus de 500 pièces
A91: 33 | B91: Jeux de société | C91: 218 | D91: Maquettes & accessoires (directive jouet) | E91: Maquettes pour les moins de 14 ans
A92: 33 | B92: Jeux de société | C92: 219 | D92: Maquettes & accessoires (hors directive jouet) | E92: Maquettes pour les plus de 14 ans
A93: 34 | B93: Jouets cadeaux | C93: 220 | D93: Jouets cadeau & accessoires | E93: Jouets cadeau
